{"text_format":"1","workbook":"xlsx","n_sheets":2,"sheets":["Plant-Equipment Register","Worksheet"],"not_rendered":{"charts":0,"images":1,"macros":1,"external_links":0,"defined_names":4,"comments":0,"pivot_tables":0},"unopened":[],"bounds":{"document_bytes":16777216,"sheet_cells":100000,"rows_first":2000,"rows_last":500,"rows_between":2000,"halvings":0,"cell_chars":16384,"cell_head_chars":4096},"cells_cut":0,"cells_raw":0,"read":"whole","date_system":"1900"}

{"sheet":"Plant-Equipment Register","index":0,"n_rows":179,"n_cols":14,"rows_kept":179,"cut":false,"hidden":false,"merged":[[32,0,32,1],[33,0,33,1],[34,0,34,1],[29,0,29,1],[24,0,24,1],[25,0,25,1],[26,0,26,1],[27,0,27,1],[28,0,28,1],[12,0,12,1],[13,0,13,1],[14,0,14,1],[15,0,15,1],[16,0,16,1],[8,0,8,1],[30,0,30,1],[31,0,31,1],[20,2,20,3],[10,0,10,1],[11,0,11,1],[22,3,23,5],[19,0,19,1],[20,0,20,1],[4,6,5,6],[4,7,5,9],[4,10,5,12],[1,6,1,10],[1,3,1,5],[9,0,9,1],[1,0,1,1],[2,0,2,1],[7,0,7,1],[22,6,23,6],[22,7,23,9],[22,10,23,12],[0,3,0,5],[0,6,0,10],[1,11,1,12],[2,2,2,3],[2,4,2,5],[2,11,2,13],[2,6,2,9],[4,13,5,13],[18,3,18,5],[20,4,20,5],[22,13,23,13],[18,6,18,10],[19,3,19,5],[19,6,19,10],[19,11,19,12],[20,6,20,9],[20,11,20,13],[22,0,23,2],[6,0,6,1],[4,3,5,5],[4,0,5,2],[37,11,37,12],[38,0,38,1],[38,2,38,3],[38,4,38,5],[38,6,38,9],[38,11,38,13],[36,3,36,5],[36,6,36,10],[37,0,37,1],[37,3,37,5],[37,6,37,10],[46,0,46,1],[47,0,47,1],[48,0,48,1],[49,0,49,1],[50,0,50,1],[40,13,41,13],[42,0,42,1],[43,0,43,1],[44,0,44,1],[45,0,45,1],[40,0,41,2],[40,3,41,5],[40,6,41,6],[40,7,41,9],[40,10,41,12],[55,11,55,12],[56,0,56,1],[56,2,56,3],[56,4,56,5],[56,6,56,9],[56,11,56,13],[51,0,51,1],[52,0,52,1],[54,3,54,5],[54,6,54,10],[55,0,55,1],[55,3,55,5],[55,6,55,10],[64,0,64,1],[65,0,65,1],[66,0,66,1],[67,0,67,1],[68,0,68,1],[58,13,59,13],[60,0,60,1],[61,0,61,1],[62,0,62,1],[63,0,63,1],[58,0,59,2],[58,3,59,5],[58,6,59,6],[58,7,59,9],[58,10,59,12],[73,11,73,12],[74,0,74,1],[74,2,74,3],[74,4,74,5],[74,6,74,9],[74,11,74,13],[69,0,69,1],[70,0,70,1],[72,3,72,5],[72,6,72,10],[73,0,73,1],[73,3,73,5],[73,6,73,10],[82,0,82,1],[83,0,83,1],[84,0,84,1],[85,0,85,1],[86,0,86,1],[76,13,77,13],[78,0,78,1],[79,0,79,1],[80,0,80,1],[81,0,81,1],[76,0,77,2],[76,3,77,5],[76,6,77,6],[76,7,77,9],[76,10,77,12],[91,11,91,12],[92,0,92,1],[92,2,92,3],[92,4,92,5],[92,6,92,9],[92,11,92,13],[87,0,87,1],[88,0,88,1],[90,3,90,5],[90,6,90,10],[91,0,91,1],[91,3,91,5],[91,6,91,10],[100,0,100,1],[101,0,101,1],[102,0,102,1],[103,0,103,1],[104,0,104,1],[94,13,95,13],[96,0,96,1],[97,0,97,1],[98,0,98,1],[99,0,99,1],[94,0,95,2],[94,3,95,5],[94,6,95,6],[94,7,95,9],[94,10,95,12],[109,11,109,12],[110,0,110,1],[110,2,110,3],[110,4,110,5],[110,6,110,9],[110,11,110,13],[105,0,105,1],[106,0,106,1],[108,3,108,5],[108,6,108,10],[109,0,109,1],[109,3,109,5],[109,6,109,10],[118,0,118,1],[119,0,119,1],[120,0,120,1],[121,0,121,1],[122,0,122,1],[112,13,113,13],[114,0,114,1],[115,0,115,1],[116,0,116,1],[117,0,117,1],[112,0,113,2],[112,3,113,5],[112,6,113,6],[112,7,113,9],[112,10,113,12],[127,11,127,12],[128,0,128,1],[128,2,128,3],[128,4,128,5],[128,6,128,9],[128,11,128,13],[123,0,123,1],[124,0,124,1],[126,3,126,5],[126,6,126,10],[127,0,127,1],[127,3,127,5],[127,6,127,10],[136,0,136,1],[137,0,137,1],[138,0,138,1],[139,0,139,1],[140,0,140,1],[130,13,131,13],[132,0,132,1],[133,0,133,1],[134,0,134,1],[135,0,135,1],[130,0,131,2],[130,3,131,5],[130,6,131,6],[130,7,131,9],[130,10,131,12],[145,11,145,12],[146,0,146,1],[146,2,146,3],[146,4,146,5],[146,6,146,9],[146,11,146,13],[141,0,141,1],[142,0,142,1],[144,3,144,5],[144,6,144,10],[145,0,145,1],[145,3,145,5],[145,6,145,10],[154,0,154,1],[155,0,155,1],[156,0,156,1],[157,0,157,1],[158,0,158,1],[148,13,149,13],[150,0,150,1],[151,0,151,1],[152,0,152,1],[153,0,153,1],[148,0,149,2],[148,3,149,5],[148,6,149,6],[148,7,149,9],[148,10,149,12],[163,11,163,12],[164,0,164,1],[164,2,164,3],[164,4,164,5],[164,6,164,9],[164,11,164,13],[159,0,159,1],[160,0,160,1],[162,3,162,5],[162,6,162,10],[163,0,163,1],[163,3,163,5],[163,6,163,10],[177,0,177,1],[178,0,178,1],[172,0,172,1],[173,0,173,1],[174,0,174,1],[175,0,175,1],[176,0,176,1],[166,13,167,13],[168,0,168,1],[169,0,169,1],[170,0,170,1],[171,0,171,1],[166,0,167,2],[166,3,167,5],[166,6,167,6],[166,7,167,9],[166,10,167,12]]}
["Date:",{"$f":"TODAY()","v":"2021-09-23"},null,"Document ID:",null,null,{"$f":"IF(C2=\"\",\"\",IFERROR($C$2&\"-\"&INDEX(Base_Codes,MATCH(C3,bases,0),2)&\"-\"&N2&\"-VPE-\"&TEXT($B$1,\"yy\")&TEXT($B$1,\"mm\")&TEXT($B$1,\"dd\")&\"-v\"&N1,\"\"))","v":""},null,null,null,null,null,"Version #:",1]
["PVID:",null,null,"Contractor/Company:",null,null,null,null,null,null,null,"Contractor ID:"]
["Camp/Base:",null,null,null,"Location:",null,null,null,null,null,"Site:"]
[]
["Construction Vehicles, Plant and Equipment",null,null,"Operator Requirements\nY/N",null,null,"Visual Inspections","Test/Tag Requirements",null,null,"Service Requirements",null,null,"End Of Use"]
[]
["Vehicle/Plant/Equipment",null,"Purchase Date","Induction","Training","CoC","Frequency","Frequency","Last Test","Next Test","Frequency","Last Service","Next Service","Disposal"]
[null,null,null,null,null,null,null,null,null,{"$f":"IF(OR($A8=\"\",$H8=\"\",$H8=\"MG\",$H8=\"Before use\",$H8=\"wrnty\"),\"\",IF($I8=\"\",$C8+OFFSET(Worksheet!$E$1,ROW()-6,0),$I8+OFFSET(Worksheet!$E$1,ROW()-6,0)))","v":""},null,null,{"$f":"IF(OR($A8=\"\",$K8=\"\",$K8=\"MG\",$K8=\"Before use\",$K8=\"wrnty\"),\"\",IF($L8=\"\",$C8+OFFSET(Worksheet!$F$1,ROW()-6,0),$L8+OFFSET(Worksheet!$F$1,ROW()-6,0)))","v":""}]
[null,null,null,null,null,null,null,null,null,{"$f":"IF(OR($A9=\"\",$H9=\"\",$H9=\"MG\",$H9=\"Before use\",$H9=\"wrnty\"),\"\",IF($I9=\"\",$C9+OFFSET(Worksheet!$E$1,ROW()-6,0),$I9+OFFSET(Worksheet!$E$1,ROW()-6,0)))","v":""},null,null,{"$f":"IF(OR($A9=\"\",$K9=\"\",$K9=\"MG\",$K9=\"Before use\",$K9=\"wrnty\"),\"\",IF($L9=\"\",$C9+OFFSET(Worksheet!$F$1,ROW()-6,0),$L9+OFFSET(Worksheet!$F$1,ROW()-6,0)))","v":""}]
[null,null,null,null,null,null,null,null,null,{"$f":"IF(OR($A10=\"\",$H10=\"\",$H10=\"MG\",$H10=\"Before use\",$H10=\"wrnty\"),\"\",IF($I10=\"\",$C10+OFFSET(Worksheet!$E$1,ROW()-6,0),$I10+OFFSET(Worksheet!$E$1,ROW()-6,0)))","v":""},null,null,{"$f":"IF(OR($A10=\"\",$K10=\"\",$K10=\"MG\",$K10=\"Before use\",$K10=\"wrnty\"),\"\",IF($L10=\"\",$C10+OFFSET(Worksheet!$F$1,ROW()-6,0),$L10+OFFSET(Worksheet!$F$1,ROW()-6,0)))","v":""}]
[null,null,null,null,null,null,null,null,null,{"$f":"IF(OR($A11=\"\",$H11=\"\",$H11=\"MG\",$H11=\"Before use\",$H11=\"wrnty\"),\"\",IF($I11=\"\",$C11+OFFSET(Worksheet!$E$1,ROW()-6,0),$I11+OFFSET(Worksheet!$E$1,ROW()-6,0)))","v":""},null,null,{"$f":"IF(OR($A11=\"\",$K11=\"\",$K11=\"MG\",$K11=\"Before use\",$K11=\"wrnty\"),\"\",IF($L11=\"\",$C11+OFFSET(Worksheet!$F$1,ROW()-6,0),$L11+OFFSET(Worksheet!$F$1,ROW()-6,0)))","v":""}]
[null,null,null,null,null,null,null,null,null,{"$f":"IF(OR($A12=\"\",$H12=\"\",$H12=\"MG\",$H12=\"Before use\",$H12=\"wrnty\"),\"\",IF($I12=\"\",$C12+OFFSET(Worksheet!$E$1,ROW()-6,0),$I12+OFFSET(Worksheet!$E$1,ROW()-6,0)))","v":""},null,null,{"$f":"IF(OR($A12=\"\",$K12=\"\",$K12=\"MG\",$K12=\"Before use\",$K12=\"wrnty\"),\"\",IF($L12=\"\",$C12+OFFSET(Worksheet!$F$1,ROW()-6,0),$L12+OFFSET(Worksheet!$F$1,ROW()-6,0)))","v":""}]
[null,null,null,null,null,null,null,null,null,{"$f":"IF(OR($A13=\"\",$H13=\"\",$H13=\"MG\",$H13=\"Before use\",$H13=\"wrnty\"),\"\",IF($I13=\"\",$C13+OFFSET(Worksheet!$E$1,ROW()-6,0),$I13+OFFSET(Worksheet!$E$1,ROW()-6,0)))","v":""},null,null,{"$f":"IF(OR($A13=\"\",$K13=\"\",$K13=\"MG\",$K13=\"Before use\",$K13=\"wrnty\"),\"\",IF($L13=\"\",$C13+OFFSET(Worksheet!$F$1,ROW()-6,0),$L13+OFFSET(Worksheet!$F$1,ROW()-6,0)))","v":""}]
[null,null,null,null,null,null,null,null,null,{"$f":"IF(OR($A14=\"\",$H14=\"\",$H14=\"MG\",$H14=\"Before use\",$H14=\"wrnty\"),\"\",IF($I14=\"\",$C14+OFFSET(Worksheet!$E$1,ROW()-6,0),$I14+OFFSET(Worksheet!$E$1,ROW()-6,0)))","v":""},null,null,{"$f":"IF(OR($A14=\"\",$K14=\"\",$K14=\"MG\",$K14=\"Before use\",$K14=\"wrnty\"),\"\",IF($L14=\"\",$C14+OFFSET(Worksheet!$F$1,ROW()-6,0),$L14+OFFSET(Worksheet!$F$1,ROW()-6,0)))","v":""}]
[null,null,null,null,null,null,null,null,null,{"$f":"IF(OR($A15=\"\",$H15=\"\",$H15=\"MG\",$H15=\"Before use\",$H15=\"wrnty\"),\"\",IF($I15=\"\",$C15+OFFSET(Worksheet!$E$1,ROW()-6,0),$I15+OFFSET(Worksheet!$E$1,ROW()-6,0)))","v":""},null,null,{"$f":"IF(OR($A15=\"\",$K15=\"\",$K15=\"MG\",$K15=\"Before use\",$K15=\"wrnty\"),\"\",IF($L15=\"\",$C15+OFFSET(Worksheet!$F$1,ROW()-6,0),$L15+OFFSET(Worksheet!$F$1,ROW()-6,0)))","v":""}]
[null,null,null,null,null,null,null,null,null,{"$f":"IF(OR($A16=\"\",$H16=\"\",$H16=\"MG\",$H16=\"Before use\",$H16=\"wrnty\"),\"\",IF($I16=\"\",$C16+OFFSET(Worksheet!$E$1,ROW()-6,0),$I16+OFFSET(Worksheet!$E$1,ROW()-6,0)))","v":""},null,null,{"$f":"IF(OR($A16=\"\",$K16=\"\",$K16=\"MG\",$K16=\"Before use\",$K16=\"wrnty\"),\"\",IF($L16=\"\",$C16+OFFSET(Worksheet!$F$1,ROW()-6,0),$L16+OFFSET(Worksheet!$F$1,ROW()-6,0)))","v":""}]
[null,null,null,null,null,null,null,null,null,{"$f":"IF(OR($A17=\"\",$H17=\"\",$H17=\"MG\",$H17=\"Before use\",$H17=\"wrnty\"),\"\",IF($I17=\"\",$C17+OFFSET(Worksheet!$E$1,ROW()-6,0),$I17+OFFSET(Worksheet!$E$1,ROW()-6,0)))","v":""},null,null,{"$f":"IF(OR($A17=\"\",$K17=\"\",$K17=\"MG\",$K17=\"Before use\",$K17=\"wrnty\"),\"\",IF($L17=\"\",$C17+OFFSET(Worksheet!$F$1,ROW()-6,0),$L17+OFFSET(Worksheet!$F$1,ROW()-6,0)))","v":""}]
[]
["Date:",{"$f":"$B$1","v":"2021-09-23"},null,"Document ID:",null,null,{"$f":"$G$1","v":""},null,null,null,null,null,"Version #:",{"$f":"$N$1","v":1}]
["PVID:",null,{"$f":"$C$2","v":0},"Contractor/Company:",null,null,{"$f":"$G$2","v":0},null,null,null,null,"Contractor ID:",null,{"$f":"$N$2","v":0}]
["Camp/Base:",null,{"$f":"$C$3","v":0},null,"Location:",null,{"$f":"$G$3","v":0},null,null,null,"Site:",{"$f":"$L$3","v":0}]
[]
["Construction Vehicles, Plant and Equipment",null,null,"Operator Requirements\nY/N",null,null,"Visual Inspections","Test/Tag Requirements",null,null,"Service Requirements",null,null,"End Of Use"]
[]
["Vehicle/Plant/Equipment",null,"Purchase Date","Induction","Training","CoC","Frequency","Frequency","Last Test","Next Test","Frequency","Last Service","Next Service","Disposal"]
[null,null,null,null,null,null,null,null,null,{"$f":"IF(OR($A26=\"\",$H26=\"\",$H26=\"MG\",$H26=\"Before use\",$H26=\"wrnty\"),\"\",IF($I26=\"\",$C26+OFFSET(Worksheet!$E$1,ROW()-6,0),$I26+OFFSET(Worksheet!$E$1,ROW()-6,0)))","v":""},null,null,{"$f":"IF(OR($A26=\"\",$K26=\"\",$K26=\"MG\",$K26=\"Before use\",$K26=\"wrnty\"),\"\",IF($L26=\"\",$C26+OFFSET(Worksheet!$F$1,ROW()-6,0),$L26+OFFSET(Worksheet!$F$1,ROW()-6,0)))","v":""}]
[null,null,null,null,null,null,null,null,null,{"$f":"IF(OR($A27=\"\",$H27=\"\",$H27=\"MG\",$H27=\"Before use\",$H27=\"wrnty\"),\"\",IF($I27=\"\",$C27+OFFSET(Worksheet!$E$1,ROW()-6,0),$I27+OFFSET(Worksheet!$E$1,ROW()-6,0)))","v":""},null,null,{"$f":"IF(OR($A27=\"\",$K27=\"\",$K27=\"MG\",$K27=\"Before use\",$K27=\"wrnty\"),\"\",IF($L27=\"\",$C27+OFFSET(Worksheet!$F$1,ROW()-6,0),$L27+OFFSET(Worksheet!$F$1,ROW()-6,0)))","v":""}]
[null,null,null,null,null,null,null,null,null,{"$f":"IF(OR($A28=\"\",$H28=\"\",$H28=\"MG\",$H28=\"Before use\",$H28=\"wrnty\"),\"\",IF($I28=\"\",$C28+OFFSET(Worksheet!$E$1,ROW()-6,0),$I28+OFFSET(Worksheet!$E$1,ROW()-6,0)))","v":""},null,null,{"$f":"IF(OR($A28=\"\",$K28=\"\",$K28=\"MG\",$K28=\"Before use\",$K28=\"wrnty\"),\"\",IF($L28=\"\",$C28+OFFSET(Worksheet!$F$1,ROW()-6,0),$L28+OFFSET(Worksheet!$F$1,ROW()-6,0)))","v":""}]
[null,null,null,null,null,null,null,null,null,{"$f":"IF(OR($A29=\"\",$H29=\"\",$H29=\"MG\",$H29=\"Before use\",$H29=\"wrnty\"),\"\",IF($I29=\"\",$C29+OFFSET(Worksheet!$E$1,ROW()-6,0),$I29+OFFSET(Worksheet!$E$1,ROW()-6,0)))","v":""},null,null,{"$f":"IF(OR($A29=\"\",$K29=\"\",$K29=\"MG\",$K29=\"Before use\",$K29=\"wrnty\"),\"\",IF($L29=\"\",$C29+OFFSET(Worksheet!$F$1,ROW()-6,0),$L29+OFFSET(Worksheet!$F$1,ROW()-6,0)))","v":""}]
[null,null,null,null,null,null,null,null,null,{"$f":"IF(OR($A30=\"\",$H30=\"\",$H30=\"MG\",$H30=\"Before use\",$H30=\"wrnty\"),\"\",IF($I30=\"\",$C30+OFFSET(Worksheet!$E$1,ROW()-6,0),$I30+OFFSET(Worksheet!$E$1,ROW()-6,0)))","v":""},null,null,{"$f":"IF(OR($A30=\"\",$K30=\"\",$K30=\"MG\",$K30=\"Before use\",$K30=\"wrnty\"),\"\",IF($L30=\"\",$C30+OFFSET(Worksheet!$F$1,ROW()-6,0),$L30+OFFSET(Worksheet!$F$1,ROW()-6,0)))","v":""}]
[null,null,null,null,null,null,null,null,null,{"$f":"IF(OR($A31=\"\",$H31=\"\",$H31=\"MG\",$H31=\"Before use\",$H31=\"wrnty\"),\"\",IF($I31=\"\",$C31+OFFSET(Worksheet!$E$1,ROW()-6,0),$I31+OFFSET(Worksheet!$E$1,ROW()-6,0)))","v":""},null,null,{"$f":"IF(OR($A31=\"\",$K31=\"\",$K31=\"MG\",$K31=\"Before use\",$K31=\"wrnty\"),\"\",IF($L31=\"\",$C31+OFFSET(Worksheet!$F$1,ROW()-6,0),$L31+OFFSET(Worksheet!$F$1,ROW()-6,0)))","v":""}]
[null,null,null,null,null,null,null,null,null,{"$f":"IF(OR($A32=\"\",$H32=\"\",$H32=\"MG\",$H32=\"Before use\",$H32=\"wrnty\"),\"\",IF($I32=\"\",$C32+OFFSET(Worksheet!$E$1,ROW()-6,0),$I32+OFFSET(Worksheet!$E$1,ROW()-6,0)))","v":""},null,null,{"$f":"IF(OR($A32=\"\",$K32=\"\",$K32=\"MG\",$K32=\"Before use\",$K32=\"wrnty\"),\"\",IF($L32=\"\",$C32+OFFSET(Worksheet!$F$1,ROW()-6,0),$L32+OFFSET(Worksheet!$F$1,ROW()-6,0)))","v":""}]
[null,null,null,null,null,null,null,null,null,{"$f":"IF(OR($A33=\"\",$H33=\"\",$H33=\"MG\",$H33=\"Before use\",$H33=\"wrnty\"),\"\",IF($I33=\"\",$C33+OFFSET(Worksheet!$E$1,ROW()-6,0),$I33+OFFSET(Worksheet!$E$1,ROW()-6,0)))","v":""},null,null,{"$f":"IF(OR($A33=\"\",$K33=\"\",$K33=\"MG\",$K33=\"Before use\",$K33=\"wrnty\"),\"\",IF($L33=\"\",$C33+OFFSET(Worksheet!$F$1,ROW()-6,0),$L33+OFFSET(Worksheet!$F$1,ROW()-6,0)))","v":""}]
[null,null,null,null,null,null,null,null,null,{"$f":"IF(OR($A34=\"\",$H34=\"\",$H34=\"MG\",$H34=\"Before use\",$H34=\"wrnty\"),\"\",IF($I34=\"\",$C34+OFFSET(Worksheet!$E$1,ROW()-6,0),$I34+OFFSET(Worksheet!$E$1,ROW()-6,0)))","v":""},null,null,{"$f":"IF(OR($A34=\"\",$K34=\"\",$K34=\"MG\",$K34=\"Before use\",$K34=\"wrnty\"),\"\",IF($L34=\"\",$C34+OFFSET(Worksheet!$F$1,ROW()-6,0),$L34+OFFSET(Worksheet!$F$1,ROW()-6,0)))","v":""}]
[null,null,null,null,null,null,null,null,null,{"$f":"IF(OR($A35=\"\",$H35=\"\",$H35=\"MG\",$H35=\"Before use\",$H35=\"wrnty\"),\"\",IF($I35=\"\",$C35+OFFSET(Worksheet!$E$1,ROW()-6,0),$I35+OFFSET(Worksheet!$E$1,ROW()-6,0)))","v":""},null,null,{"$f":"IF(OR($A35=\"\",$K35=\"\",$K35=\"MG\",$K35=\"Before use\",$K35=\"wrnty\"),\"\",IF($L35=\"\",$C35+OFFSET(Worksheet!$F$1,ROW()-6,0),$L35+OFFSET(Worksheet!$F$1,ROW()-6,0)))","v":""}]
[]
["Date:",{"$f":"$B$1","v":"2021-09-23"},null,"Document ID:",null,null,{"$f":"$G$1","v":""},null,null,null,null,null,"Version #:",{"$f":"$N$1","v":1}]
["PVID:",null,{"$f":"$C$2","v":0},"Contractor/Company:",null,null,{"$f":"$G$2","v":0},null,null,null,null,"Contractor ID:",null,{"$f":"$N$2","v":0}]
["Camp/Base:",null,{"$f":"$C$3","v":0},null,"Location:",null,{"$f":"$G$3","v":0},null,null,null,"Site:",{"$f":"$L$3","v":0}]
[]
["Construction Vehicles, Plant and Equipment",null,null,"Operator Requirements\nY/N",null,null,"Visual Inspections","Test/Tag Requirements",null,null,"Service Requirements",null,null,"End Of Use"]
[]
["Vehicle/Plant/Equipment",null,"Purchase Date","Induction","Training","CoC","Frequency","Frequency","Last Test","Next Test","Frequency","Last Service","Next Service","Disposal"]
[null,null,null,null,null,null,null,null,null,{"$f":"IF(OR($A44=\"\",$H44=\"\",$H44=\"MG\",$H44=\"Before use\",$H44=\"wrnty\"),\"\",IF($I44=\"\",$C44+OFFSET(Worksheet!$E$1,ROW()-6,0),$I44+OFFSET(Worksheet!$E$1,ROW()-6,0)))","v":""},null,null,{"$f":"IF(OR($A44=\"\",$K44=\"\",$K44=\"MG\",$K44=\"Before use\",$K44=\"wrnty\"),\"\",IF($L44=\"\",$C44+OFFSET(Worksheet!$F$1,ROW()-6,0),$L44+OFFSET(Worksheet!$F$1,ROW()-6,0)))","v":""}]
[null,null,null,null,null,null,null,null,null,{"$f":"IF(OR($A45=\"\",$H45=\"\",$H45=\"MG\",$H45=\"Before use\",$H45=\"wrnty\"),\"\",IF($I45=\"\",$C45+OFFSET(Worksheet!$E$1,ROW()-6,0),$I45+OFFSET(Worksheet!$E$1,ROW()-6,0)))","v":""},null,null,{"$f":"IF(OR($A45=\"\",$K45=\"\",$K45=\"MG\",$K45=\"Before use\",$K45=\"wrnty\"),\"\",IF($L45=\"\",$C45+OFFSET(Worksheet!$F$1,ROW()-6,0),$L45+OFFSET(Worksheet!$F$1,ROW()-6,0)))","v":""}]
[null,null,null,null,null,null,null,null,null,{"$f":"IF(OR($A46=\"\",$H46=\"\",$H46=\"MG\",$H46=\"Before use\",$H46=\"wrnty\"),\"\",IF($I46=\"\",$C46+OFFSET(Worksheet!$E$1,ROW()-6,0),$I46+OFFSET(Worksheet!$E$1,ROW()-6,0)))","v":""},null,null,{"$f":"IF(OR($A46=\"\",$K46=\"\",$K46=\"MG\",$K46=\"Before use\",$K46=\"wrnty\"),\"\",IF($L46=\"\",$C46+OFFSET(Worksheet!$F$1,ROW()-6,0),$L46+OFFSET(Worksheet!$F$1,ROW()-6,0)))","v":""}]
[null,null,null,null,null,null,null,null,null,{"$f":"IF(OR($A47=\"\",$H47=\"\",$H47=\"MG\",$H47=\"Before use\",$H47=\"wrnty\"),\"\",IF($I47=\"\",$C47+OFFSET(Worksheet!$E$1,ROW()-6,0),$I47+OFFSET(Worksheet!$E$1,ROW()-6,0)))","v":""},null,null,{"$f":"IF(OR($A47=\"\",$K47=\"\",$K47=\"MG\",$K47=\"Before use\",$K47=\"wrnty\"),\"\",IF($L47=\"\",$C47+OFFSET(Worksheet!$F$1,ROW()-6,0),$L47+OFFSET(Worksheet!$F$1,ROW()-6,0)))","v":""}]
[null,null,null,null,null,null,null,null,null,{"$f":"IF(OR($A48=\"\",$H48=\"\",$H48=\"MG\",$H48=\"Before use\",$H48=\"wrnty\"),\"\",IF($I48=\"\",$C48+OFFSET(Worksheet!$E$1,ROW()-6,0),$I48+OFFSET(Worksheet!$E$1,ROW()-6,0)))","v":""},null,null,{"$f":"IF(OR($A48=\"\",$K48=\"\",$K48=\"MG\",$K48=\"Before use\",$K48=\"wrnty\"),\"\",IF($L48=\"\",$C48+OFFSET(Worksheet!$F$1,ROW()-6,0),$L48+OFFSET(Worksheet!$F$1,ROW()-6,0)))","v":""}]
[null,null,null,null,null,null,null,null,null,{"$f":"IF(OR($A49=\"\",$H49=\"\",$H49=\"MG\",$H49=\"Before use\",$H49=\"wrnty\"),\"\",IF($I49=\"\",$C49+OFFSET(Worksheet!$E$1,ROW()-6,0),$I49+OFFSET(Worksheet!$E$1,ROW()-6,0)))","v":""},null,null,{"$f":"IF(OR($A49=\"\",$K49=\"\",$K49=\"MG\",$K49=\"Before use\",$K49=\"wrnty\"),\"\",IF($L49=\"\",$C49+OFFSET(Worksheet!$F$1,ROW()-6,0),$L49+OFFSET(Worksheet!$F$1,ROW()-6,0)))","v":""}]
[null,null,null,null,null,null,null,null,null,{"$f":"IF(OR($A50=\"\",$H50=\"\",$H50=\"MG\",$H50=\"Before use\",$H50=\"wrnty\"),\"\",IF($I50=\"\",$C50+OFFSET(Worksheet!$E$1,ROW()-6,0),$I50+OFFSET(Worksheet!$E$1,ROW()-6,0)))","v":""},null,null,{"$f":"IF(OR($A50=\"\",$K50=\"\",$K50=\"MG\",$K50=\"Before use\",$K50=\"wrnty\"),\"\",IF($L50=\"\",$C50+OFFSET(Worksheet!$F$1,ROW()-6,0),$L50+OFFSET(Worksheet!$F$1,ROW()-6,0)))","v":""}]
[null,null,null,null,null,null,null,null,null,{"$f":"IF(OR($A51=\"\",$H51=\"\",$H51=\"MG\",$H51=\"Before use\",$H51=\"wrnty\"),\"\",IF($I51=\"\",$C51+OFFSET(Worksheet!$E$1,ROW()-6,0),$I51+OFFSET(Worksheet!$E$1,ROW()-6,0)))","v":""},null,null,{"$f":"IF(OR($A51=\"\",$K51=\"\",$K51=\"MG\",$K51=\"Before use\",$K51=\"wrnty\"),\"\",IF($L51=\"\",$C51+OFFSET(Worksheet!$F$1,ROW()-6,0),$L51+OFFSET(Worksheet!$F$1,ROW()-6,0)))","v":""}]
[null,null,null,null,null,null,null,null,null,{"$f":"IF(OR($A52=\"\",$H52=\"\",$H52=\"MG\",$H52=\"Before use\",$H52=\"wrnty\"),\"\",IF($I52=\"\",$C52+OFFSET(Worksheet!$E$1,ROW()-6,0),$I52+OFFSET(Worksheet!$E$1,ROW()-6,0)))","v":""},null,null,{"$f":"IF(OR($A52=\"\",$K52=\"\",$K52=\"MG\",$K52=\"Before use\",$K52=\"wrnty\"),\"\",IF($L52=\"\",$C52+OFFSET(Worksheet!$F$1,ROW()-6,0),$L52+OFFSET(Worksheet!$F$1,ROW()-6,0)))","v":""}]
[null,null,null,null,null,null,null,null,null,{"$f":"IF(OR($A53=\"\",$H53=\"\",$H53=\"MG\",$H53=\"Before use\",$H53=\"wrnty\"),\"\",IF($I53=\"\",$C53+OFFSET(Worksheet!$E$1,ROW()-6,0),$I53+OFFSET(Worksheet!$E$1,ROW()-6,0)))","v":""},null,null,{"$f":"IF(OR($A53=\"\",$K53=\"\",$K53=\"MG\",$K53=\"Before use\",$K53=\"wrnty\"),\"\",IF($L53=\"\",$C53+OFFSET(Worksheet!$F$1,ROW()-6,0),$L53+OFFSET(Worksheet!$F$1,ROW()-6,0)))","v":""}]
[]
["Date:",{"$f":"$B$1","v":"2021-09-23"},null,"Document ID:",null,null,{"$f":"$G$1","v":""},null,null,null,null,null,"Version #:",{"$f":"$N$1","v":1}]
["PVID:",null,{"$f":"$C$2","v":0},"Contractor/Company:",null,null,{"$f":"$G$2","v":0},null,null,null,null,"Contractor ID:",null,{"$f":"$N$2","v":0}]
["Camp/Base:",null,{"$f":"$C$3","v":0},null,"Location:",null,{"$f":"$G$3","v":0},null,null,null,"Site:",{"$f":"$L$3","v":0}]
[]
["Construction Vehicles, Plant and Equipment",null,null,"Operator Requirements\nY/N",null,null,"Visual Inspections","Test/Tag Requirements",null,null,"Service Requirements",null,null,"End Of Use"]
[]
["Vehicle/Plant/Equipment",null,"Purchase Date","Induction","Training","CoC","Frequency","Frequency","Last Test","Next Test","Frequency","Last Service","Next Service","Disposal"]
[null,null,null,null,null,null,null,null,null,{"$f":"IF(OR($A62=\"\",$H62=\"\",$H62=\"MG\",$H62=\"Before use\",$H62=\"wrnty\"),\"\",IF($I62=\"\",$C62+OFFSET(Worksheet!$E$1,ROW()-6,0),$I62+OFFSET(Worksheet!$E$1,ROW()-6,0)))","v":""},null,null,{"$f":"IF(OR($A62=\"\",$K62=\"\",$K62=\"MG\",$K62=\"Before use\",$K62=\"wrnty\"),\"\",IF($L62=\"\",$C62+OFFSET(Worksheet!$F$1,ROW()-6,0),$L62+OFFSET(Worksheet!$F$1,ROW()-6,0)))","v":""}]
[null,null,null,null,null,null,null,null,null,{"$f":"IF(OR($A63=\"\",$H63=\"\",$H63=\"MG\",$H63=\"Before use\",$H63=\"wrnty\"),\"\",IF($I63=\"\",$C63+OFFSET(Worksheet!$E$1,ROW()-6,0),$I63+OFFSET(Worksheet!$E$1,ROW()-6,0)))","v":""},null,null,{"$f":"IF(OR($A63=\"\",$K63=\"\",$K63=\"MG\",$K63=\"Before use\",$K63=\"wrnty\"),\"\",IF($L63=\"\",$C63+OFFSET(Worksheet!$F$1,ROW()-6,0),$L63+OFFSET(Worksheet!$F$1,ROW()-6,0)))","v":""}]
[null,null,null,null,null,null,null,null,null,{"$f":"IF(OR($A64=\"\",$H64=\"\",$H64=\"MG\",$H64=\"Before use\",$H64=\"wrnty\"),\"\",IF($I64=\"\",$C64+OFFSET(Worksheet!$E$1,ROW()-6,0),$I64+OFFSET(Worksheet!$E$1,ROW()-6,0)))","v":""},null,null,{"$f":"IF(OR($A64=\"\",$K64=\"\",$K64=\"MG\",$K64=\"Before use\",$K64=\"wrnty\"),\"\",IF($L64=\"\",$C64+OFFSET(Worksheet!$F$1,ROW()-6,0),$L64+OFFSET(Worksheet!$F$1,ROW()-6,0)))","v":""}]
[null,null,null,null,null,null,null,null,null,{"$f":"IF(OR($A65=\"\",$H65=\"\",$H65=\"MG\",$H65=\"Before use\",$H65=\"wrnty\"),\"\",IF($I65=\"\",$C65+OFFSET(Worksheet!$E$1,ROW()-6,0),$I65+OFFSET(Worksheet!$E$1,ROW()-6,0)))","v":""},null,null,{"$f":"IF(OR($A65=\"\",$K65=\"\",$K65=\"MG\",$K65=\"Before use\",$K65=\"wrnty\"),\"\",IF($L65=\"\",$C65+OFFSET(Worksheet!$F$1,ROW()-6,0),$L65+OFFSET(Worksheet!$F$1,ROW()-6,0)))","v":""}]
[null,null,null,null,null,null,null,null,null,{"$f":"IF(OR($A66=\"\",$H66=\"\",$H66=\"MG\",$H66=\"Before use\",$H66=\"wrnty\"),\"\",IF($I66=\"\",$C66+OFFSET(Worksheet!$E$1,ROW()-6,0),$I66+OFFSET(Worksheet!$E$1,ROW()-6,0)))","v":""},null,null,{"$f":"IF(OR($A66=\"\",$K66=\"\",$K66=\"MG\",$K66=\"Before use\",$K66=\"wrnty\"),\"\",IF($L66=\"\",$C66+OFFSET(Worksheet!$F$1,ROW()-6,0),$L66+OFFSET(Worksheet!$F$1,ROW()-6,0)))","v":""}]
[null,null,null,null,null,null,null,null,null,{"$f":"IF(OR($A67=\"\",$H67=\"\",$H67=\"MG\",$H67=\"Before use\",$H67=\"wrnty\"),\"\",IF($I67=\"\",$C67+OFFSET(Worksheet!$E$1,ROW()-6,0),$I67+OFFSET(Worksheet!$E$1,ROW()-6,0)))","v":""},null,null,{"$f":"IF(OR($A67=\"\",$K67=\"\",$K67=\"MG\",$K67=\"Before use\",$K67=\"wrnty\"),\"\",IF($L67=\"\",$C67+OFFSET(Worksheet!$F$1,ROW()-6,0),$L67+OFFSET(Worksheet!$F$1,ROW()-6,0)))","v":""}]
[null,null,null,null,null,null,null,null,null,{"$f":"IF(OR($A68=\"\",$H68=\"\",$H68=\"MG\",$H68=\"Before use\",$H68=\"wrnty\"),\"\",IF($I68=\"\",$C68+OFFSET(Worksheet!$E$1,ROW()-6,0),$I68+OFFSET(Worksheet!$E$1,ROW()-6,0)))","v":""},null,null,{"$f":"IF(OR($A68=\"\",$K68=\"\",$K68=\"MG\",$K68=\"Before use\",$K68=\"wrnty\"),\"\",IF($L68=\"\",$C68+OFFSET(Worksheet!$F$1,ROW()-6,0),$L68+OFFSET(Worksheet!$F$1,ROW()-6,0)))","v":""}]
[null,null,null,null,null,null,null,null,null,{"$f":"IF(OR($A69=\"\",$H69=\"\",$H69=\"MG\",$H69=\"Before use\",$H69=\"wrnty\"),\"\",IF($I69=\"\",$C69+OFFSET(Worksheet!$E$1,ROW()-6,0),$I69+OFFSET(Worksheet!$E$1,ROW()-6,0)))","v":""},null,null,{"$f":"IF(OR($A69=\"\",$K69=\"\",$K69=\"MG\",$K69=\"Before use\",$K69=\"wrnty\"),\"\",IF($L69=\"\",$C69+OFFSET(Worksheet!$F$1,ROW()-6,0),$L69+OFFSET(Worksheet!$F$1,ROW()-6,0)))","v":""}]
[null,null,null,null,null,null,null,null,null,{"$f":"IF(OR($A70=\"\",$H70=\"\",$H70=\"MG\",$H70=\"Before use\",$H70=\"wrnty\"),\"\",IF($I70=\"\",$C70+OFFSET(Worksheet!$E$1,ROW()-6,0),$I70+OFFSET(Worksheet!$E$1,ROW()-6,0)))","v":""},null,null,{"$f":"IF(OR($A70=\"\",$K70=\"\",$K70=\"MG\",$K70=\"Before use\",$K70=\"wrnty\"),\"\",IF($L70=\"\",$C70+OFFSET(Worksheet!$F$1,ROW()-6,0),$L70+OFFSET(Worksheet!$F$1,ROW()-6,0)))","v":""}]
[null,null,null,null,null,null,null,null,null,{"$f":"IF(OR($A71=\"\",$H71=\"\",$H71=\"MG\",$H71=\"Before use\",$H71=\"wrnty\"),\"\",IF($I71=\"\",$C71+OFFSET(Worksheet!$E$1,ROW()-6,0),$I71+OFFSET(Worksheet!$E$1,ROW()-6,0)))","v":""},null,null,{"$f":"IF(OR($A71=\"\",$K71=\"\",$K71=\"MG\",$K71=\"Before use\",$K71=\"wrnty\"),\"\",IF($L71=\"\",$C71+OFFSET(Worksheet!$F$1,ROW()-6,0),$L71+OFFSET(Worksheet!$F$1,ROW()-6,0)))","v":""}]
[]
["Date:",{"$f":"$B$1","v":"2021-09-23"},null,"Document ID:",null,null,{"$f":"$G$1","v":""},null,null,null,null,null,"Version #:",{"$f":"$N$1","v":1}]
["PVID:",null,{"$f":"$C$2","v":0},"Contractor/Company:",null,null,{"$f":"$G$2","v":0},null,null,null,null,"Contractor ID:",null,{"$f":"$N$2","v":0}]
["Camp/Base:",null,{"$f":"$C$3","v":0},null,"Location:",null,{"$f":"$G$3","v":0},null,null,null,"Site:",{"$f":"$L$3","v":0}]
[]
["Construction Vehicles, Plant and Equipment",null,null,"Operator Requirements\nY/N",null,null,"Visual Inspections","Test/Tag Requirements",null,null,"Service Requirements",null,null,"End Of Use"]
[]
["Vehicle/Plant/Equipment",null,"Purchase Date","Induction","Training","CoC","Frequency","Frequency","Last Test","Next Test","Frequency","Last Service","Next Service","Disposal"]
[null,null,null,null,null,null,null,null,null,{"$f":"IF(OR($A80=\"\",$H80=\"\",$H80=\"MG\",$H80=\"Before use\",$H80=\"wrnty\"),\"\",IF($I80=\"\",$C80+OFFSET(Worksheet!$E$1,ROW()-6,0),$I80+OFFSET(Worksheet!$E$1,ROW()-6,0)))","v":""},null,null,{"$f":"IF(OR($A80=\"\",$K80=\"\",$K80=\"MG\",$K80=\"Before use\",$K80=\"wrnty\"),\"\",IF($L80=\"\",$C80+OFFSET(Worksheet!$F$1,ROW()-6,0),$L80+OFFSET(Worksheet!$F$1,ROW()-6,0)))","v":""}]
[null,null,null,null,null,null,null,null,null,{"$f":"IF(OR($A81=\"\",$H81=\"\",$H81=\"MG\",$H81=\"Before use\",$H81=\"wrnty\"),\"\",IF($I81=\"\",$C81+OFFSET(Worksheet!$E$1,ROW()-6,0),$I81+OFFSET(Worksheet!$E$1,ROW()-6,0)))","v":""},null,null,{"$f":"IF(OR($A81=\"\",$K81=\"\",$K81=\"MG\",$K81=\"Before use\",$K81=\"wrnty\"),\"\",IF($L81=\"\",$C81+OFFSET(Worksheet!$F$1,ROW()-6,0),$L81+OFFSET(Worksheet!$F$1,ROW()-6,0)))","v":""}]
[null,null,null,null,null,null,null,null,null,{"$f":"IF(OR($A82=\"\",$H82=\"\",$H82=\"MG\",$H82=\"Before use\",$H82=\"wrnty\"),\"\",IF($I82=\"\",$C82+OFFSET(Worksheet!$E$1,ROW()-6,0),$I82+OFFSET(Worksheet!$E$1,ROW()-6,0)))","v":""},null,null,{"$f":"IF(OR($A82=\"\",$K82=\"\",$K82=\"MG\",$K82=\"Before use\",$K82=\"wrnty\"),\"\",IF($L82=\"\",$C82+OFFSET(Worksheet!$F$1,ROW()-6,0),$L82+OFFSET(Worksheet!$F$1,ROW()-6,0)))","v":""}]
[null,null,null,null,null,null,null,null,null,{"$f":"IF(OR($A83=\"\",$H83=\"\",$H83=\"MG\",$H83=\"Before use\",$H83=\"wrnty\"),\"\",IF($I83=\"\",$C83+OFFSET(Worksheet!$E$1,ROW()-6,0),$I83+OFFSET(Worksheet!$E$1,ROW()-6,0)))","v":""},null,null,{"$f":"IF(OR($A83=\"\",$K83=\"\",$K83=\"MG\",$K83=\"Before use\",$K83=\"wrnty\"),\"\",IF($L83=\"\",$C83+OFFSET(Worksheet!$F$1,ROW()-6,0),$L83+OFFSET(Worksheet!$F$1,ROW()-6,0)))","v":""}]
[null,null,null,null,null,null,null,null,null,{"$f":"IF(OR($A84=\"\",$H84=\"\",$H84=\"MG\",$H84=\"Before use\",$H84=\"wrnty\"),\"\",IF($I84=\"\",$C84+OFFSET(Worksheet!$E$1,ROW()-6,0),$I84+OFFSET(Worksheet!$E$1,ROW()-6,0)))","v":""},null,null,{"$f":"IF(OR($A84=\"\",$K84=\"\",$K84=\"MG\",$K84=\"Before use\",$K84=\"wrnty\"),\"\",IF($L84=\"\",$C84+OFFSET(Worksheet!$F$1,ROW()-6,0),$L84+OFFSET(Worksheet!$F$1,ROW()-6,0)))","v":""}]
[null,null,null,null,null,null,null,null,null,{"$f":"IF(OR($A85=\"\",$H85=\"\",$H85=\"MG\",$H85=\"Before use\",$H85=\"wrnty\"),\"\",IF($I85=\"\",$C85+OFFSET(Worksheet!$E$1,ROW()-6,0),$I85+OFFSET(Worksheet!$E$1,ROW()-6,0)))","v":""},null,null,{"$f":"IF(OR($A85=\"\",$K85=\"\",$K85=\"MG\",$K85=\"Before use\",$K85=\"wrnty\"),\"\",IF($L85=\"\",$C85+OFFSET(Worksheet!$F$1,ROW()-6,0),$L85+OFFSET(Worksheet!$F$1,ROW()-6,0)))","v":""}]
[null,null,null,null,null,null,null,null,null,{"$f":"IF(OR($A86=\"\",$H86=\"\",$H86=\"MG\",$H86=\"Before use\",$H86=\"wrnty\"),\"\",IF($I86=\"\",$C86+OFFSET(Worksheet!$E$1,ROW()-6,0),$I86+OFFSET(Worksheet!$E$1,ROW()-6,0)))","v":""},null,null,{"$f":"IF(OR($A86=\"\",$K86=\"\",$K86=\"MG\",$K86=\"Before use\",$K86=\"wrnty\"),\"\",IF($L86=\"\",$C86+OFFSET(Worksheet!$F$1,ROW()-6,0),$L86+OFFSET(Worksheet!$F$1,ROW()-6,0)))","v":""}]
[null,null,null,null,null,null,null,null,null,{"$f":"IF(OR($A87=\"\",$H87=\"\",$H87=\"MG\",$H87=\"Before use\",$H87=\"wrnty\"),\"\",IF($I87=\"\",$C87+OFFSET(Worksheet!$E$1,ROW()-6,0),$I87+OFFSET(Worksheet!$E$1,ROW()-6,0)))","v":""},null,null,{"$f":"IF(OR($A87=\"\",$K87=\"\",$K87=\"MG\",$K87=\"Before use\",$K87=\"wrnty\"),\"\",IF($L87=\"\",$C87+OFFSET(Worksheet!$F$1,ROW()-6,0),$L87+OFFSET(Worksheet!$F$1,ROW()-6,0)))","v":""}]
[null,null,null,null,null,null,null,null,null,{"$f":"IF(OR($A88=\"\",$H88=\"\",$H88=\"MG\",$H88=\"Before use\",$H88=\"wrnty\"),\"\",IF($I88=\"\",$C88+OFFSET(Worksheet!$E$1,ROW()-6,0),$I88+OFFSET(Worksheet!$E$1,ROW()-6,0)))","v":""},null,null,{"$f":"IF(OR($A88=\"\",$K88=\"\",$K88=\"MG\",$K88=\"Before use\",$K88=\"wrnty\"),\"\",IF($L88=\"\",$C88+OFFSET(Worksheet!$F$1,ROW()-6,0),$L88+OFFSET(Worksheet!$F$1,ROW()-6,0)))","v":""}]
[null,null,null,null,null,null,null,null,null,{"$f":"IF(OR($A89=\"\",$H89=\"\",$H89=\"MG\",$H89=\"Before use\",$H89=\"wrnty\"),\"\",IF($I89=\"\",$C89+OFFSET(Worksheet!$E$1,ROW()-6,0),$I89+OFFSET(Worksheet!$E$1,ROW()-6,0)))","v":""},null,null,{"$f":"IF(OR($A89=\"\",$K89=\"\",$K89=\"MG\",$K89=\"Before use\",$K89=\"wrnty\"),\"\",IF($L89=\"\",$C89+OFFSET(Worksheet!$F$1,ROW()-6,0),$L89+OFFSET(Worksheet!$F$1,ROW()-6,0)))","v":""}]
[]
["Date:",{"$f":"$B$1","v":"2021-09-23"},null,"Document ID:",null,null,{"$f":"$G$1","v":""},null,null,null,null,null,"Version #:",{"$f":"$N$1","v":1}]
["PVID:",null,{"$f":"$C$2","v":0},"Contractor/Company:",null,null,{"$f":"$G$2","v":0},null,null,null,null,"Contractor ID:",null,{"$f":"$N$2","v":0}]
["Camp/Base:",null,{"$f":"$C$3","v":0},null,"Location:",null,{"$f":"$G$3","v":0},null,null,null,"Site:",{"$f":"$L$3","v":0}]
[]
["Construction Vehicles, Plant and Equipment",null,null,"Operator Requirements\nY/N",null,null,"Visual Inspections","Test/Tag Requirements",null,null,"Service Requirements",null,null,"End Of Use"]
[]
["Vehicle/Plant/Equipment",null,"Purchase Date","Induction","Training","CoC","Frequency","Frequency","Last Test","Next Test","Frequency","Last Service","Next Service","Disposal"]
[null,null,null,null,null,null,null,null,null,{"$f":"IF(OR($A98=\"\",$H98=\"\",$H98=\"MG\",$H98=\"Before use\",$H98=\"wrnty\"),\"\",IF($I98=\"\",$C98+OFFSET(Worksheet!$E$1,ROW()-6,0),$I98+OFFSET(Worksheet!$E$1,ROW()-6,0)))","v":""},null,null,{"$f":"IF(OR($A98=\"\",$K98=\"\",$K98=\"MG\",$K98=\"Before use\",$K98=\"wrnty\"),\"\",IF($L98=\"\",$C98+OFFSET(Worksheet!$F$1,ROW()-6,0),$L98+OFFSET(Worksheet!$F$1,ROW()-6,0)))","v":""}]
[null,null,null,null,null,null,null,null,null,{"$f":"IF(OR($A99=\"\",$H99=\"\",$H99=\"MG\",$H99=\"Before use\",$H99=\"wrnty\"),\"\",IF($I99=\"\",$C99+OFFSET(Worksheet!$E$1,ROW()-6,0),$I99+OFFSET(Worksheet!$E$1,ROW()-6,0)))","v":""},null,null,{"$f":"IF(OR($A99=\"\",$K99=\"\",$K99=\"MG\",$K99=\"Before use\",$K99=\"wrnty\"),\"\",IF($L99=\"\",$C99+OFFSET(Worksheet!$F$1,ROW()-6,0),$L99+OFFSET(Worksheet!$F$1,ROW()-6,0)))","v":""}]
[null,null,null,null,null,null,null,null,null,{"$f":"IF(OR($A100=\"\",$H100=\"\",$H100=\"MG\",$H100=\"Before use\",$H100=\"wrnty\"),\"\",IF($I100=\"\",$C100+OFFSET(Worksheet!$E$1,ROW()-6,0),$I100+OFFSET(Worksheet!$E$1,ROW()-6,0)))","v":""},null,null,{"$f":"IF(OR($A100=\"\",$K100=\"\",$K100=\"MG\",$K100=\"Before use\",$K100=\"wrnty\"),\"\",IF($L100=\"\",$C100+OFFSET(Worksheet!$F$1,ROW()-6,0),$L100+OFFSET(Worksheet!$F$1,ROW()-6,0)))","v":""}]
[null,null,null,null,null,null,null,null,null,{"$f":"IF(OR($A101=\"\",$H101=\"\",$H101=\"MG\",$H101=\"Before use\",$H101=\"wrnty\"),\"\",IF($I101=\"\",$C101+OFFSET(Worksheet!$E$1,ROW()-6,0),$I101+OFFSET(Worksheet!$E$1,ROW()-6,0)))","v":""},null,null,{"$f":"IF(OR($A101=\"\",$K101=\"\",$K101=\"MG\",$K101=\"Before use\",$K101=\"wrnty\"),\"\",IF($L101=\"\",$C101+OFFSET(Worksheet!$F$1,ROW()-6,0),$L101+OFFSET(Worksheet!$F$1,ROW()-6,0)))","v":""}]
[null,null,null,null,null,null,null,null,null,{"$f":"IF(OR($A102=\"\",$H102=\"\",$H102=\"MG\",$H102=\"Before use\",$H102=\"wrnty\"),\"\",IF($I102=\"\",$C102+OFFSET(Worksheet!$E$1,ROW()-6,0),$I102+OFFSET(Worksheet!$E$1,ROW()-6,0)))","v":""},null,null,{"$f":"IF(OR($A102=\"\",$K102=\"\",$K102=\"MG\",$K102=\"Before use\",$K102=\"wrnty\"),\"\",IF($L102=\"\",$C102+OFFSET(Worksheet!$F$1,ROW()-6,0),$L102+OFFSET(Worksheet!$F$1,ROW()-6,0)))","v":""}]
[null,null,null,null,null,null,null,null,null,{"$f":"IF(OR($A103=\"\",$H103=\"\",$H103=\"MG\",$H103=\"Before use\",$H103=\"wrnty\"),\"\",IF($I103=\"\",$C103+OFFSET(Worksheet!$E$1,ROW()-6,0),$I103+OFFSET(Worksheet!$E$1,ROW()-6,0)))","v":""},null,null,{"$f":"IF(OR($A103=\"\",$K103=\"\",$K103=\"MG\",$K103=\"Before use\",$K103=\"wrnty\"),\"\",IF($L103=\"\",$C103+OFFSET(Worksheet!$F$1,ROW()-6,0),$L103+OFFSET(Worksheet!$F$1,ROW()-6,0)))","v":""}]
[null,null,null,null,null,null,null,null,null,{"$f":"IF(OR($A104=\"\",$H104=\"\",$H104=\"MG\",$H104=\"Before use\",$H104=\"wrnty\"),\"\",IF($I104=\"\",$C104+OFFSET(Worksheet!$E$1,ROW()-6,0),$I104+OFFSET(Worksheet!$E$1,ROW()-6,0)))","v":""},null,null,{"$f":"IF(OR($A104=\"\",$K104=\"\",$K104=\"MG\",$K104=\"Before use\",$K104=\"wrnty\"),\"\",IF($L104=\"\",$C104+OFFSET(Worksheet!$F$1,ROW()-6,0),$L104+OFFSET(Worksheet!$F$1,ROW()-6,0)))","v":""}]
[null,null,null,null,null,null,null,null,null,{"$f":"IF(OR($A105=\"\",$H105=\"\",$H105=\"MG\",$H105=\"Before use\",$H105=\"wrnty\"),\"\",IF($I105=\"\",$C105+OFFSET(Worksheet!$E$1,ROW()-6,0),$I105+OFFSET(Worksheet!$E$1,ROW()-6,0)))","v":""},null,null,{"$f":"IF(OR($A105=\"\",$K105=\"\",$K105=\"MG\",$K105=\"Before use\",$K105=\"wrnty\"),\"\",IF($L105=\"\",$C105+OFFSET(Worksheet!$F$1,ROW()-6,0),$L105+OFFSET(Worksheet!$F$1,ROW()-6,0)))","v":""}]
[null,null,null,null,null,null,null,null,null,{"$f":"IF(OR($A106=\"\",$H106=\"\",$H106=\"MG\",$H106=\"Before use\",$H106=\"wrnty\"),\"\",IF($I106=\"\",$C106+OFFSET(Worksheet!$E$1,ROW()-6,0),$I106+OFFSET(Worksheet!$E$1,ROW()-6,0)))","v":""},null,null,{"$f":"IF(OR($A106=\"\",$K106=\"\",$K106=\"MG\",$K106=\"Before use\",$K106=\"wrnty\"),\"\",IF($L106=\"\",$C106+OFFSET(Worksheet!$F$1,ROW()-6,0),$L106+OFFSET(Worksheet!$F$1,ROW()-6,0)))","v":""}]
[null,null,null,null,null,null,null,null,null,{"$f":"IF(OR($A107=\"\",$H107=\"\",$H107=\"MG\",$H107=\"Before use\",$H107=\"wrnty\"),\"\",IF($I107=\"\",$C107+OFFSET(Worksheet!$E$1,ROW()-6,0),$I107+OFFSET(Worksheet!$E$1,ROW()-6,0)))","v":""},null,null,{"$f":"IF(OR($A107=\"\",$K107=\"\",$K107=\"MG\",$K107=\"Before use\",$K107=\"wrnty\"),\"\",IF($L107=\"\",$C107+OFFSET(Worksheet!$F$1,ROW()-6,0),$L107+OFFSET(Worksheet!$F$1,ROW()-6,0)))","v":""}]
[]
["Date:",{"$f":"$B$1","v":"2021-09-23"},null,"Document ID:",null,null,{"$f":"$G$1","v":""},null,null,null,null,null,"Version #:",{"$f":"$N$1","v":1}]
["PVID:",null,{"$f":"$C$2","v":0},"Contractor/Company:",null,null,{"$f":"$G$2","v":0},null,null,null,null,"Contractor ID:",null,{"$f":"$N$2","v":0}]
["Camp/Base:",null,{"$f":"$C$3","v":0},null,"Location:",null,{"$f":"$G$3","v":0},null,null,null,"Site:",{"$f":"$L$3","v":0}]
[]
["Construction Vehicles, Plant and Equipment",null,null,"Operator Requirements\nY/N",null,null,"Visual Inspections","Test/Tag Requirements",null,null,"Service Requirements",null,null,"End Of Use"]
[]
["Vehicle/Plant/Equipment",null,"Purchase Date","Induction","Training","CoC","Frequency","Frequency","Last Test","Next Test","Frequency","Last Service","Next Service","Disposal"]
[null,null,null,null,null,null,null,null,null,{"$f":"IF(OR($A116=\"\",$H116=\"\",$H116=\"MG\",$H116=\"Before use\",$H116=\"wrnty\"),\"\",IF($I116=\"\",$C116+OFFSET(Worksheet!$E$1,ROW()-6,0),$I116+OFFSET(Worksheet!$E$1,ROW()-6,0)))","v":""},null,null,{"$f":"IF(OR($A116=\"\",$K116=\"\",$K116=\"MG\",$K116=\"Before use\",$K116=\"wrnty\"),\"\",IF($L116=\"\",$C116+OFFSET(Worksheet!$F$1,ROW()-6,0),$L116+OFFSET(Worksheet!$F$1,ROW()-6,0)))","v":""}]
[null,null,null,null,null,null,null,null,null,{"$f":"IF(OR($A117=\"\",$H117=\"\",$H117=\"MG\",$H117=\"Before use\",$H117=\"wrnty\"),\"\",IF($I117=\"\",$C117+OFFSET(Worksheet!$E$1,ROW()-6,0),$I117+OFFSET(Worksheet!$E$1,ROW()-6,0)))","v":""},null,null,{"$f":"IF(OR($A117=\"\",$K117=\"\",$K117=\"MG\",$K117=\"Before use\",$K117=\"wrnty\"),\"\",IF($L117=\"\",$C117+OFFSET(Worksheet!$F$1,ROW()-6,0),$L117+OFFSET(Worksheet!$F$1,ROW()-6,0)))","v":""}]
[null,null,null,null,null,null,null,null,null,{"$f":"IF(OR($A118=\"\",$H118=\"\",$H118=\"MG\",$H118=\"Before use\",$H118=\"wrnty\"),\"\",IF($I118=\"\",$C118+OFFSET(Worksheet!$E$1,ROW()-6,0),$I118+OFFSET(Worksheet!$E$1,ROW()-6,0)))","v":""},null,null,{"$f":"IF(OR($A118=\"\",$K118=\"\",$K118=\"MG\",$K118=\"Before use\",$K118=\"wrnty\"),\"\",IF($L118=\"\",$C118+OFFSET(Worksheet!$F$1,ROW()-6,0),$L118+OFFSET(Worksheet!$F$1,ROW()-6,0)))","v":""}]
[null,null,null,null,null,null,null,null,null,{"$f":"IF(OR($A119=\"\",$H119=\"\",$H119=\"MG\",$H119=\"Before use\",$H119=\"wrnty\"),\"\",IF($I119=\"\",$C119+OFFSET(Worksheet!$E$1,ROW()-6,0),$I119+OFFSET(Worksheet!$E$1,ROW()-6,0)))","v":""},null,null,{"$f":"IF(OR($A119=\"\",$K119=\"\",$K119=\"MG\",$K119=\"Before use\",$K119=\"wrnty\"),\"\",IF($L119=\"\",$C119+OFFSET(Worksheet!$F$1,ROW()-6,0),$L119+OFFSET(Worksheet!$F$1,ROW()-6,0)))","v":""}]
[null,null,null,null,null,null,null,null,null,{"$f":"IF(OR($A120=\"\",$H120=\"\",$H120=\"MG\",$H120=\"Before use\",$H120=\"wrnty\"),\"\",IF($I120=\"\",$C120+OFFSET(Worksheet!$E$1,ROW()-6,0),$I120+OFFSET(Worksheet!$E$1,ROW()-6,0)))","v":""},null,null,{"$f":"IF(OR($A120=\"\",$K120=\"\",$K120=\"MG\",$K120=\"Before use\",$K120=\"wrnty\"),\"\",IF($L120=\"\",$C120+OFFSET(Worksheet!$F$1,ROW()-6,0),$L120+OFFSET(Worksheet!$F$1,ROW()-6,0)))","v":""}]
[null,null,null,null,null,null,null,null,null,{"$f":"IF(OR($A121=\"\",$H121=\"\",$H121=\"MG\",$H121=\"Before use\",$H121=\"wrnty\"),\"\",IF($I121=\"\",$C121+OFFSET(Worksheet!$E$1,ROW()-6,0),$I121+OFFSET(Worksheet!$E$1,ROW()-6,0)))","v":""},null,null,{"$f":"IF(OR($A121=\"\",$K121=\"\",$K121=\"MG\",$K121=\"Before use\",$K121=\"wrnty\"),\"\",IF($L121=\"\",$C121+OFFSET(Worksheet!$F$1,ROW()-6,0),$L121+OFFSET(Worksheet!$F$1,ROW()-6,0)))","v":""}]
[null,null,null,null,null,null,null,null,null,{"$f":"IF(OR($A122=\"\",$H122=\"\",$H122=\"MG\",$H122=\"Before use\",$H122=\"wrnty\"),\"\",IF($I122=\"\",$C122+OFFSET(Worksheet!$E$1,ROW()-6,0),$I122+OFFSET(Worksheet!$E$1,ROW()-6,0)))","v":""},null,null,{"$f":"IF(OR($A122=\"\",$K122=\"\",$K122=\"MG\",$K122=\"Before use\",$K122=\"wrnty\"),\"\",IF($L122=\"\",$C122+OFFSET(Worksheet!$F$1,ROW()-6,0),$L122+OFFSET(Worksheet!$F$1,ROW()-6,0)))","v":""}]
[null,null,null,null,null,null,null,null,null,{"$f":"IF(OR($A123=\"\",$H123=\"\",$H123=\"MG\",$H123=\"Before use\",$H123=\"wrnty\"),\"\",IF($I123=\"\",$C123+OFFSET(Worksheet!$E$1,ROW()-6,0),$I123+OFFSET(Worksheet!$E$1,ROW()-6,0)))","v":""},null,null,{"$f":"IF(OR($A123=\"\",$K123=\"\",$K123=\"MG\",$K123=\"Before use\",$K123=\"wrnty\"),\"\",IF($L123=\"\",$C123+OFFSET(Worksheet!$F$1,ROW()-6,0),$L123+OFFSET(Worksheet!$F$1,ROW()-6,0)))","v":""}]
[null,null,null,null,null,null,null,null,null,{"$f":"IF(OR($A124=\"\",$H124=\"\",$H124=\"MG\",$H124=\"Before use\",$H124=\"wrnty\"),\"\",IF($I124=\"\",$C124+OFFSET(Worksheet!$E$1,ROW()-6,0),$I124+OFFSET(Worksheet!$E$1,ROW()-6,0)))","v":""},null,null,{"$f":"IF(OR($A124=\"\",$K124=\"\",$K124=\"MG\",$K124=\"Before use\",$K124=\"wrnty\"),\"\",IF($L124=\"\",$C124+OFFSET(Worksheet!$F$1,ROW()-6,0),$L124+OFFSET(Worksheet!$F$1,ROW()-6,0)))","v":""}]
[null,null,null,null,null,null,null,null,null,{"$f":"IF(OR($A125=\"\",$H125=\"\",$H125=\"MG\",$H125=\"Before use\",$H125=\"wrnty\"),\"\",IF($I125=\"\",$C125+OFFSET(Worksheet!$E$1,ROW()-6,0),$I125+OFFSET(Worksheet!$E$1,ROW()-6,0)))","v":""},null,null,{"$f":"IF(OR($A125=\"\",$K125=\"\",$K125=\"MG\",$K125=\"Before use\",$K125=\"wrnty\"),\"\",IF($L125=\"\",$C125+OFFSET(Worksheet!$F$1,ROW()-6,0),$L125+OFFSET(Worksheet!$F$1,ROW()-6,0)))","v":""}]
[]
["Date:",{"$f":"$B$1","v":"2021-09-23"},null,"Document ID:",null,null,{"$f":"$G$1","v":""},null,null,null,null,null,"Version #:",{"$f":"$N$1","v":1}]
["PVID:",null,{"$f":"$C$2","v":0},"Contractor/Company:",null,null,{"$f":"$G$2","v":0},null,null,null,null,"Contractor ID:",null,{"$f":"$N$2","v":0}]
["Camp/Base:",null,{"$f":"$C$3","v":0},null,"Location:",null,{"$f":"$G$3","v":0},null,null,null,"Site:",{"$f":"$L$3","v":0}]
[]
["Construction Vehicles, Plant and Equipment",null,null,"Operator Requirements\nY/N",null,null,"Visual Inspections","Test/Tag Requirements",null,null,"Service Requirements",null,null,"End Of Use"]
[]
["Vehicle/Plant/Equipment",null,"Purchase Date","Induction","Training","CoC","Frequency","Frequency","Last Test","Next Test","Frequency","Last Service","Next Service","Disposal"]
[null,null,null,null,null,null,null,null,null,{"$f":"IF(OR($A134=\"\",$H134=\"\",$H134=\"MG\",$H134=\"Before use\",$H134=\"wrnty\"),\"\",IF($I134=\"\",$C134+OFFSET(Worksheet!$E$1,ROW()-6,0),$I134+OFFSET(Worksheet!$E$1,ROW()-6,0)))","v":""},null,null,{"$f":"IF(OR($A134=\"\",$K134=\"\",$K134=\"MG\",$K134=\"Before use\",$K134=\"wrnty\"),\"\",IF($L134=\"\",$C134+OFFSET(Worksheet!$F$1,ROW()-6,0),$L134+OFFSET(Worksheet!$F$1,ROW()-6,0)))","v":""}]
[null,null,null,null,null,null,null,null,null,{"$f":"IF(OR($A135=\"\",$H135=\"\",$H135=\"MG\",$H135=\"Before use\",$H135=\"wrnty\"),\"\",IF($I135=\"\",$C135+OFFSET(Worksheet!$E$1,ROW()-6,0),$I135+OFFSET(Worksheet!$E$1,ROW()-6,0)))","v":""},null,null,{"$f":"IF(OR($A135=\"\",$K135=\"\",$K135=\"MG\",$K135=\"Before use\",$K135=\"wrnty\"),\"\",IF($L135=\"\",$C135+OFFSET(Worksheet!$F$1,ROW()-6,0),$L135+OFFSET(Worksheet!$F$1,ROW()-6,0)))","v":""}]
[null,null,null,null,null,null,null,null,null,{"$f":"IF(OR($A136=\"\",$H136=\"\",$H136=\"MG\",$H136=\"Before use\",$H136=\"wrnty\"),\"\",IF($I136=\"\",$C136+OFFSET(Worksheet!$E$1,ROW()-6,0),$I136+OFFSET(Worksheet!$E$1,ROW()-6,0)))","v":""},null,null,{"$f":"IF(OR($A136=\"\",$K136=\"\",$K136=\"MG\",$K136=\"Before use\",$K136=\"wrnty\"),\"\",IF($L136=\"\",$C136+OFFSET(Worksheet!$F$1,ROW()-6,0),$L136+OFFSET(Worksheet!$F$1,ROW()-6,0)))","v":""}]
[null,null,null,null,null,null,null,null,null,{"$f":"IF(OR($A137=\"\",$H137=\"\",$H137=\"MG\",$H137=\"Before use\",$H137=\"wrnty\"),\"\",IF($I137=\"\",$C137+OFFSET(Worksheet!$E$1,ROW()-6,0),$I137+OFFSET(Worksheet!$E$1,ROW()-6,0)))","v":""},null,null,{"$f":"IF(OR($A137=\"\",$K137=\"\",$K137=\"MG\",$K137=\"Before use\",$K137=\"wrnty\"),\"\",IF($L137=\"\",$C137+OFFSET(Worksheet!$F$1,ROW()-6,0),$L137+OFFSET(Worksheet!$F$1,ROW()-6,0)))","v":""}]
[null,null,null,null,null,null,null,null,null,{"$f":"IF(OR($A138=\"\",$H138=\"\",$H138=\"MG\",$H138=\"Before use\",$H138=\"wrnty\"),\"\",IF($I138=\"\",$C138+OFFSET(Worksheet!$E$1,ROW()-6,0),$I138+OFFSET(Worksheet!$E$1,ROW()-6,0)))","v":""},null,null,{"$f":"IF(OR($A138=\"\",$K138=\"\",$K138=\"MG\",$K138=\"Before use\",$K138=\"wrnty\"),\"\",IF($L138=\"\",$C138+OFFSET(Worksheet!$F$1,ROW()-6,0),$L138+OFFSET(Worksheet!$F$1,ROW()-6,0)))","v":""}]
[null,null,null,null,null,null,null,null,null,{"$f":"IF(OR($A139=\"\",$H139=\"\",$H139=\"MG\",$H139=\"Before use\",$H139=\"wrnty\"),\"\",IF($I139=\"\",$C139+OFFSET(Worksheet!$E$1,ROW()-6,0),$I139+OFFSET(Worksheet!$E$1,ROW()-6,0)))","v":""},null,null,{"$f":"IF(OR($A139=\"\",$K139=\"\",$K139=\"MG\",$K139=\"Before use\",$K139=\"wrnty\"),\"\",IF($L139=\"\",$C139+OFFSET(Worksheet!$F$1,ROW()-6,0),$L139+OFFSET(Worksheet!$F$1,ROW()-6,0)))","v":""}]
[null,null,null,null,null,null,null,null,null,{"$f":"IF(OR($A140=\"\",$H140=\"\",$H140=\"MG\",$H140=\"Before use\",$H140=\"wrnty\"),\"\",IF($I140=\"\",$C140+OFFSET(Worksheet!$E$1,ROW()-6,0),$I140+OFFSET(Worksheet!$E$1,ROW()-6,0)))","v":""},null,null,{"$f":"IF(OR($A140=\"\",$K140=\"\",$K140=\"MG\",$K140=\"Before use\",$K140=\"wrnty\"),\"\",IF($L140=\"\",$C140+OFFSET(Worksheet!$F$1,ROW()-6,0),$L140+OFFSET(Worksheet!$F$1,ROW()-6,0)))","v":""}]
[null,null,null,null,null,null,null,null,null,{"$f":"IF(OR($A141=\"\",$H141=\"\",$H141=\"MG\",$H141=\"Before use\",$H141=\"wrnty\"),\"\",IF($I141=\"\",$C141+OFFSET(Worksheet!$E$1,ROW()-6,0),$I141+OFFSET(Worksheet!$E$1,ROW()-6,0)))","v":""},null,null,{"$f":"IF(OR($A141=\"\",$K141=\"\",$K141=\"MG\",$K141=\"Before use\",$K141=\"wrnty\"),\"\",IF($L141=\"\",$C141+OFFSET(Worksheet!$F$1,ROW()-6,0),$L141+OFFSET(Worksheet!$F$1,ROW()-6,0)))","v":""}]
[null,null,null,null,null,null,null,null,null,{"$f":"IF(OR($A142=\"\",$H142=\"\",$H142=\"MG\",$H142=\"Before use\",$H142=\"wrnty\"),\"\",IF($I142=\"\",$C142+OFFSET(Worksheet!$E$1,ROW()-6,0),$I142+OFFSET(Worksheet!$E$1,ROW()-6,0)))","v":""},null,null,{"$f":"IF(OR($A142=\"\",$K142=\"\",$K142=\"MG\",$K142=\"Before use\",$K142=\"wrnty\"),\"\",IF($L142=\"\",$C142+OFFSET(Worksheet!$F$1,ROW()-6,0),$L142+OFFSET(Worksheet!$F$1,ROW()-6,0)))","v":""}]
[null,null,null,null,null,null,null,null,null,{"$f":"IF(OR($A143=\"\",$H143=\"\",$H143=\"MG\",$H143=\"Before use\",$H143=\"wrnty\"),\"\",IF($I143=\"\",$C143+OFFSET(Worksheet!$E$1,ROW()-6,0),$I143+OFFSET(Worksheet!$E$1,ROW()-6,0)))","v":""},null,null,{"$f":"IF(OR($A143=\"\",$K143=\"\",$K143=\"MG\",$K143=\"Before use\",$K143=\"wrnty\"),\"\",IF($L143=\"\",$C143+OFFSET(Worksheet!$F$1,ROW()-6,0),$L143+OFFSET(Worksheet!$F$1,ROW()-6,0)))","v":""}]
[]
["Date:",{"$f":"$B$1","v":"2021-09-23"},null,"Document ID:",null,null,{"$f":"$G$1","v":""},null,null,null,null,null,"Version #:",{"$f":"$N$1","v":1}]
["PVID:",null,{"$f":"$C$2","v":0},"Contractor/Company:",null,null,{"$f":"$G$2","v":0},null,null,null,null,"Contractor ID:",null,{"$f":"$N$2","v":0}]
["Camp/Base:",null,{"$f":"$C$3","v":0},null,"Location:",null,{"$f":"$G$3","v":0},null,null,null,"Site:",{"$f":"$L$3","v":0}]
[]
["Construction Vehicles, Plant and Equipment",null,null,"Operator Requirements\nY/N",null,null,"Visual Inspections","Test/Tag Requirements",null,null,"Service Requirements",null,null,"End Of Use"]
[]
["Vehicle/Plant/Equipment",null,"Purchase Date","Induction","Training","CoC","Frequency","Frequency","Last Test","Next Test","Frequency","Last Service","Next Service","Disposal"]
[null,null,null,null,null,null,null,null,null,{"$f":"IF(OR($A152=\"\",$H152=\"\",$H152=\"MG\",$H152=\"Before use\",$H152=\"wrnty\"),\"\",IF($I152=\"\",$C152+OFFSET(Worksheet!$E$1,ROW()-6,0),$I152+OFFSET(Worksheet!$E$1,ROW()-6,0)))","v":""},null,null,{"$f":"IF(OR($A152=\"\",$K152=\"\",$K152=\"MG\",$K152=\"Before use\",$K152=\"wrnty\"),\"\",IF($L152=\"\",$C152+OFFSET(Worksheet!$F$1,ROW()-6,0),$L152+OFFSET(Worksheet!$F$1,ROW()-6,0)))","v":""}]
[null,null,null,null,null,null,null,null,null,{"$f":"IF(OR($A153=\"\",$H153=\"\",$H153=\"MG\",$H153=\"Before use\",$H153=\"wrnty\"),\"\",IF($I153=\"\",$C153+OFFSET(Worksheet!$E$1,ROW()-6,0),$I153+OFFSET(Worksheet!$E$1,ROW()-6,0)))","v":""},null,null,{"$f":"IF(OR($A153=\"\",$K153=\"\",$K153=\"MG\",$K153=\"Before use\",$K153=\"wrnty\"),\"\",IF($L153=\"\",$C153+OFFSET(Worksheet!$F$1,ROW()-6,0),$L153+OFFSET(Worksheet!$F$1,ROW()-6,0)))","v":""}]
[null,null,null,null,null,null,null,null,null,{"$f":"IF(OR($A154=\"\",$H154=\"\",$H154=\"MG\",$H154=\"Before use\",$H154=\"wrnty\"),\"\",IF($I154=\"\",$C154+OFFSET(Worksheet!$E$1,ROW()-6,0),$I154+OFFSET(Worksheet!$E$1,ROW()-6,0)))","v":""},null,null,{"$f":"IF(OR($A154=\"\",$K154=\"\",$K154=\"MG\",$K154=\"Before use\",$K154=\"wrnty\"),\"\",IF($L154=\"\",$C154+OFFSET(Worksheet!$F$1,ROW()-6,0),$L154+OFFSET(Worksheet!$F$1,ROW()-6,0)))","v":""}]
[null,null,null,null,null,null,null,null,null,{"$f":"IF(OR($A155=\"\",$H155=\"\",$H155=\"MG\",$H155=\"Before use\",$H155=\"wrnty\"),\"\",IF($I155=\"\",$C155+OFFSET(Worksheet!$E$1,ROW()-6,0),$I155+OFFSET(Worksheet!$E$1,ROW()-6,0)))","v":""},null,null,{"$f":"IF(OR($A155=\"\",$K155=\"\",$K155=\"MG\",$K155=\"Before use\",$K155=\"wrnty\"),\"\",IF($L155=\"\",$C155+OFFSET(Worksheet!$F$1,ROW()-6,0),$L155+OFFSET(Worksheet!$F$1,ROW()-6,0)))","v":""}]
[null,null,null,null,null,null,null,null,null,{"$f":"IF(OR($A156=\"\",$H156=\"\",$H156=\"MG\",$H156=\"Before use\",$H156=\"wrnty\"),\"\",IF($I156=\"\",$C156+OFFSET(Worksheet!$E$1,ROW()-6,0),$I156+OFFSET(Worksheet!$E$1,ROW()-6,0)))","v":""},null,null,{"$f":"IF(OR($A156=\"\",$K156=\"\",$K156=\"MG\",$K156=\"Before use\",$K156=\"wrnty\"),\"\",IF($L156=\"\",$C156+OFFSET(Worksheet!$F$1,ROW()-6,0),$L156+OFFSET(Worksheet!$F$1,ROW()-6,0)))","v":""}]
[null,null,null,null,null,null,null,null,null,{"$f":"IF(OR($A157=\"\",$H157=\"\",$H157=\"MG\",$H157=\"Before use\",$H157=\"wrnty\"),\"\",IF($I157=\"\",$C157+OFFSET(Worksheet!$E$1,ROW()-6,0),$I157+OFFSET(Worksheet!$E$1,ROW()-6,0)))","v":""},null,null,{"$f":"IF(OR($A157=\"\",$K157=\"\",$K157=\"MG\",$K157=\"Before use\",$K157=\"wrnty\"),\"\",IF($L157=\"\",$C157+OFFSET(Worksheet!$F$1,ROW()-6,0),$L157+OFFSET(Worksheet!$F$1,ROW()-6,0)))","v":""}]
[null,null,null,null,null,null,null,null,null,{"$f":"IF(OR($A158=\"\",$H158=\"\",$H158=\"MG\",$H158=\"Before use\",$H158=\"wrnty\"),\"\",IF($I158=\"\",$C158+OFFSET(Worksheet!$E$1,ROW()-6,0),$I158+OFFSET(Worksheet!$E$1,ROW()-6,0)))","v":""},null,null,{"$f":"IF(OR($A158=\"\",$K158=\"\",$K158=\"MG\",$K158=\"Before use\",$K158=\"wrnty\"),\"\",IF($L158=\"\",$C158+OFFSET(Worksheet!$F$1,ROW()-6,0),$L158+OFFSET(Worksheet!$F$1,ROW()-6,0)))","v":""}]
[null,null,null,null,null,null,null,null,null,{"$f":"IF(OR($A159=\"\",$H159=\"\",$H159=\"MG\",$H159=\"Before use\",$H159=\"wrnty\"),\"\",IF($I159=\"\",$C159+OFFSET(Worksheet!$E$1,ROW()-6,0),$I159+OFFSET(Worksheet!$E$1,ROW()-6,0)))","v":""},null,null,{"$f":"IF(OR($A159=\"\",$K159=\"\",$K159=\"MG\",$K159=\"Before use\",$K159=\"wrnty\"),\"\",IF($L159=\"\",$C159+OFFSET(Worksheet!$F$1,ROW()-6,0),$L159+OFFSET(Worksheet!$F$1,ROW()-6,0)))","v":""}]
[null,null,null,null,null,null,null,null,null,{"$f":"IF(OR($A160=\"\",$H160=\"\",$H160=\"MG\",$H160=\"Before use\",$H160=\"wrnty\"),\"\",IF($I160=\"\",$C160+OFFSET(Worksheet!$E$1,ROW()-6,0),$I160+OFFSET(Worksheet!$E$1,ROW()-6,0)))","v":""},null,null,{"$f":"IF(OR($A160=\"\",$K160=\"\",$K160=\"MG\",$K160=\"Before use\",$K160=\"wrnty\"),\"\",IF($L160=\"\",$C160+OFFSET(Worksheet!$F$1,ROW()-6,0),$L160+OFFSET(Worksheet!$F$1,ROW()-6,0)))","v":""}]
[null,null,null,null,null,null,null,null,null,{"$f":"IF(OR($A161=\"\",$H161=\"\",$H161=\"MG\",$H161=\"Before use\",$H161=\"wrnty\"),\"\",IF($I161=\"\",$C161+OFFSET(Worksheet!$E$1,ROW()-6,0),$I161+OFFSET(Worksheet!$E$1,ROW()-6,0)))","v":""},null,null,{"$f":"IF(OR($A161=\"\",$K161=\"\",$K161=\"MG\",$K161=\"Before use\",$K161=\"wrnty\"),\"\",IF($L161=\"\",$C161+OFFSET(Worksheet!$F$1,ROW()-6,0),$L161+OFFSET(Worksheet!$F$1,ROW()-6,0)))","v":""}]
[]
["Date:",{"$f":"$B$1","v":"2021-09-23"},null,"Document ID:",null,null,{"$f":"$G$1","v":""},null,null,null,null,null,"Version #:",{"$f":"$N$1","v":1}]
["PVID:",null,{"$f":"$C$2","v":0},"Contractor/Company:",null,null,{"$f":"$G$2","v":0},null,null,null,null,"Contractor ID:",null,{"$f":"$N$2","v":0}]
["Camp/Base:",null,{"$f":"$C$3","v":0},null,"Location:",null,{"$f":"$G$3","v":0},null,null,null,"Site:",{"$f":"$L$3","v":0}]
[]
["Construction Vehicles, Plant and Equipment",null,null,"Operator Requirements\nY/N",null,null,"Visual Inspections","Test/Tag Requirements",null,null,"Service Requirements",null,null,"End Of Use"]
[]
["Vehicle/Plant/Equipment",null,"Purchase Date","Induction","Training","CoC","Frequency","Frequency","Last Test","Next Test","Frequency","Last Service","Next Service","Disposal"]
[null,null,null,null,null,null,null,null,null,{"$f":"IF(OR($A170=\"\",$H170=\"\",$H170=\"MG\",$H170=\"Before use\",$H170=\"wrnty\"),\"\",IF($I170=\"\",$C170+OFFSET(Worksheet!$E$1,ROW()-6,0),$I170+OFFSET(Worksheet!$E$1,ROW()-6,0)))","v":""},null,null,{"$f":"IF(OR($A170=\"\",$K170=\"\",$K170=\"MG\",$K170=\"Before use\",$K170=\"wrnty\"),\"\",IF($L170=\"\",$C170+OFFSET(Worksheet!$F$1,ROW()-6,0),$L170+OFFSET(Worksheet!$F$1,ROW()-6,0)))","v":""}]
[null,null,null,null,null,null,null,null,null,{"$f":"IF(OR($A171=\"\",$H171=\"\",$H171=\"MG\",$H171=\"Before use\",$H171=\"wrnty\"),\"\",IF($I171=\"\",$C171+OFFSET(Worksheet!$E$1,ROW()-6,0),$I171+OFFSET(Worksheet!$E$1,ROW()-6,0)))","v":""},null,null,{"$f":"IF(OR($A171=\"\",$K171=\"\",$K171=\"MG\",$K171=\"Before use\",$K171=\"wrnty\"),\"\",IF($L171=\"\",$C171+OFFSET(Worksheet!$F$1,ROW()-6,0),$L171+OFFSET(Worksheet!$F$1,ROW()-6,0)))","v":""}]
[null,null,null,null,null,null,null,null,null,{"$f":"IF(OR($A172=\"\",$H172=\"\",$H172=\"MG\",$H172=\"Before use\",$H172=\"wrnty\"),\"\",IF($I172=\"\",$C172+OFFSET(Worksheet!$E$1,ROW()-6,0),$I172+OFFSET(Worksheet!$E$1,ROW()-6,0)))","v":""},null,null,{"$f":"IF(OR($A172=\"\",$K172=\"\",$K172=\"MG\",$K172=\"Before use\",$K172=\"wrnty\"),\"\",IF($L172=\"\",$C172+OFFSET(Worksheet!$F$1,ROW()-6,0),$L172+OFFSET(Worksheet!$F$1,ROW()-6,0)))","v":""}]
[null,null,null,null,null,null,null,null,null,{"$f":"IF(OR($A173=\"\",$H173=\"\",$H173=\"MG\",$H173=\"Before use\",$H173=\"wrnty\"),\"\",IF($I173=\"\",$C173+OFFSET(Worksheet!$E$1,ROW()-6,0),$I173+OFFSET(Worksheet!$E$1,ROW()-6,0)))","v":""},null,null,{"$f":"IF(OR($A173=\"\",$K173=\"\",$K173=\"MG\",$K173=\"Before use\",$K173=\"wrnty\"),\"\",IF($L173=\"\",$C173+OFFSET(Worksheet!$F$1,ROW()-6,0),$L173+OFFSET(Worksheet!$F$1,ROW()-6,0)))","v":""}]
[null,null,null,null,null,null,null,null,null,{"$f":"IF(OR($A174=\"\",$H174=\"\",$H174=\"MG\",$H174=\"Before use\",$H174=\"wrnty\"),\"\",IF($I174=\"\",$C174+OFFSET(Worksheet!$E$1,ROW()-6,0),$I174+OFFSET(Worksheet!$E$1,ROW()-6,0)))","v":""},null,null,{"$f":"IF(OR($A174=\"\",$K174=\"\",$K174=\"MG\",$K174=\"Before use\",$K174=\"wrnty\"),\"\",IF($L174=\"\",$C174+OFFSET(Worksheet!$F$1,ROW()-6,0),$L174+OFFSET(Worksheet!$F$1,ROW()-6,0)))","v":""}]
[null,null,null,null,null,null,null,null,null,{"$f":"IF(OR($A175=\"\",$H175=\"\",$H175=\"MG\",$H175=\"Before use\",$H175=\"wrnty\"),\"\",IF($I175=\"\",$C175+OFFSET(Worksheet!$E$1,ROW()-6,0),$I175+OFFSET(Worksheet!$E$1,ROW()-6,0)))","v":""},null,null,{"$f":"IF(OR($A175=\"\",$K175=\"\",$K175=\"MG\",$K175=\"Before use\",$K175=\"wrnty\"),\"\",IF($L175=\"\",$C175+OFFSET(Worksheet!$F$1,ROW()-6,0),$L175+OFFSET(Worksheet!$F$1,ROW()-6,0)))","v":""}]
[null,null,null,null,null,null,null,null,null,{"$f":"IF(OR($A176=\"\",$H176=\"\",$H176=\"MG\",$H176=\"Before use\",$H176=\"wrnty\"),\"\",IF($I176=\"\",$C176+OFFSET(Worksheet!$E$1,ROW()-6,0),$I176+OFFSET(Worksheet!$E$1,ROW()-6,0)))","v":""},null,null,{"$f":"IF(OR($A176=\"\",$K176=\"\",$K176=\"MG\",$K176=\"Before use\",$K176=\"wrnty\"),\"\",IF($L176=\"\",$C176+OFFSET(Worksheet!$F$1,ROW()-6,0),$L176+OFFSET(Worksheet!$F$1,ROW()-6,0)))","v":""}]
[null,null,null,null,null,null,null,null,null,{"$f":"IF(OR($A177=\"\",$H177=\"\",$H177=\"MG\",$H177=\"Before use\",$H177=\"wrnty\"),\"\",IF($I177=\"\",$C177+OFFSET(Worksheet!$E$1,ROW()-6,0),$I177+OFFSET(Worksheet!$E$1,ROW()-6,0)))","v":""},null,null,{"$f":"IF(OR($A177=\"\",$K177=\"\",$K177=\"MG\",$K177=\"Before use\",$K177=\"wrnty\"),\"\",IF($L177=\"\",$C177+OFFSET(Worksheet!$F$1,ROW()-6,0),$L177+OFFSET(Worksheet!$F$1,ROW()-6,0)))","v":""}]
[null,null,null,null,null,null,null,null,null,{"$f":"IF(OR($A178=\"\",$H178=\"\",$H178=\"MG\",$H178=\"Before use\",$H178=\"wrnty\"),\"\",IF($I178=\"\",$C178+OFFSET(Worksheet!$E$1,ROW()-6,0),$I178+OFFSET(Worksheet!$E$1,ROW()-6,0)))","v":""},null,null,{"$f":"IF(OR($A178=\"\",$K178=\"\",$K178=\"MG\",$K178=\"Before use\",$K178=\"wrnty\"),\"\",IF($L178=\"\",$C178+OFFSET(Worksheet!$F$1,ROW()-6,0),$L178+OFFSET(Worksheet!$F$1,ROW()-6,0)))","v":""}]
[null,null,null,null,null,null,null,null,null,{"$f":"IF(OR($A179=\"\",$H179=\"\",$H179=\"MG\",$H179=\"Before use\",$H179=\"wrnty\"),\"\",IF($I179=\"\",$C179+OFFSET(Worksheet!$E$1,ROW()-6,0),$I179+OFFSET(Worksheet!$E$1,ROW()-6,0)))","v":""},null,null,{"$f":"IF(OR($A179=\"\",$K179=\"\",$K179=\"MG\",$K179=\"Before use\",$K179=\"wrnty\"),\"\",IF($L179=\"\",$C179+OFFSET(Worksheet!$F$1,ROW()-6,0),$L179+OFFSET(Worksheet!$F$1,ROW()-6,0)))","v":""}]

{"sheet":"Worksheet","index":1,"n_rows":200,"n_cols":8,"rows_kept":200,"cut":false,"hidden":true,"merged":[[0,0,0,1]]}
["Camp/Base abbreviation menu",null,"Y/N","Frequency","TT","Service","Last row","Lines"]
["Camp Base","Abbreviation","Yes",null,{"$f":"IF('Plant-Equipment Register'!H8=\"Daily\",1,IF('Plant-Equipment Register'!H8=\"Weekly\",7,IF('Plant-Equipment Register'!H8=\"Fortnightly\",7,IF('Plant-Equipment Register'!H8=\"Monthly\",30,IF('Plant-Equipment Register'!H8=\"2 monthly\",61,IF('Plant-Equipment Register'!H8=\"3 monthly\",92,IF('Plant-Equipment Register'!H8=\"6 monthly\",183,IF('Plant-Equipment Register'!H8=\"Yearly\",365,IF('Plant-Equipment Register'!H8=\"2 yearly\",730,IF('Plant-Equipment Register'!H8=\"3 yearly\",1095,IF('Plant-Equipment Register'!H8=\"5 yearly\",1826,\"\")))))))))))","v":""},{"$f":"IF('Plant-Equipment Register'!K8=\"Daily\",1,IF('Plant-Equipment Register'!K8=\"Weekly\",7,IF('Plant-Equipment Register'!K8=\"Fortnightly\",7,IF('Plant-Equipment Register'!K8=\"Monthly\",30,IF('Plant-Equipment Register'!K8=\"2 monthly\",61,IF('Plant-Equipment Register'!K8=\"3 monthly\",92,IF('Plant-Equipment Register'!K8=\"6 montly\",183,IF('Plant-Equipment Register'!K8=\"Yearly\",365,IF('Plant-Equipment Register'!K8=\"2 yearly\",730,IF('Plant-Equipment Register'!K8=\"3 Yearly\",1095,IF('Plant-Equipment Register'!K8=\"5 yearly\",1826,\"\")))))))))))","v":""},{"$f":"IF(AND('Plant-Equipment Register'!A1<>\"Date:\",'Plant-Equipment Register'!A1<>\"PVID:\",'Plant-Equipment Register'!A1<>\"Camp/Base:\",'Plant-Equipment Register'!A1<>\"\",'Plant-Equipment Register'!A1<>\"Construction Vehicles, Plant and Equipment\",'Plant-Equipment Register'!A1<>\"Vehicle/Plant/Equipment\"),ROW()-1,\"\")","v":""},{"$f":"MAX(G2:G197)","v":{"$error":"#REF!"}}]
[null,null,"No","MG",{"$f":"IF('Plant-Equipment Register'!H8=\"Daily\",1,IF('Plant-Equipment Register'!H8=\"Weekly\",7,IF('Plant-Equipment Register'!H8=\"Fortnightly\",7,IF('Plant-Equipment Register'!H8=\"Monthly\",30,IF('Plant-Equipment Register'!H8=\"2 monthly\",61,IF('Plant-Equipment Register'!H8=\"3 monthly\",92,IF('Plant-Equipment Register'!H8=\"6 monthly\",183,IF('Plant-Equipment Register'!H8=\"Yearly\",365,IF('Plant-Equipment Register'!H8=\"2 yearly\",730,IF('Plant-Equipment Register'!H8=\"3 yearly\",1095,IF('Plant-Equipment Register'!H8=\"5 yearly\",1826,\"\")))))))))))","v":""},{"$f":"IF('Plant-Equipment Register'!K8=\"Daily\",1,IF('Plant-Equipment Register'!K8=\"Weekly\",7,IF('Plant-Equipment Register'!K8=\"Fortnightly\",7,IF('Plant-Equipment Register'!K8=\"Monthly\",30,IF('Plant-Equipment Register'!K8=\"2 monthly\",61,IF('Plant-Equipment Register'!K8=\"3 monthly\",92,IF('Plant-Equipment Register'!K8=\"6 montly\",183,IF('Plant-Equipment Register'!K8=\"Yearly\",365,IF('Plant-Equipment Register'!K8=\"2 yearly\",730,IF('Plant-Equipment Register'!K8=\"3 Yearly\",1095,IF('Plant-Equipment Register'!K8=\"5 yearly\",1826,\"\")))))))))))","v":""},{"$f":"IF(AND('Plant-Equipment Register'!A2<>\"Date:\",'Plant-Equipment Register'!A2<>\"PVID:\",'Plant-Equipment Register'!A2<>\"Camp/Base:\",'Plant-Equipment Register'!A2<>\"\",'Plant-Equipment Register'!A2<>\"Construction Vehicles, Plant and Equipment\",'Plant-Equipment Register'!A2<>\"Vehicle/Plant/Equipment\"),ROW()-1,\"\")","v":""},"Pages"]
["Arch Hill","ARH",null,"wrnty",{"$f":"IF('Plant-Equipment Register'!H9=\"Daily\",1,IF('Plant-Equipment Register'!H9=\"Weekly\",7,IF('Plant-Equipment Register'!H9=\"Fortnightly\",7,IF('Plant-Equipment Register'!H9=\"Monthly\",30,IF('Plant-Equipment Register'!H9=\"2 monthly\",61,IF('Plant-Equipment Register'!H9=\"3 monthly\",92,IF('Plant-Equipment Register'!H9=\"6 monthly\",183,IF('Plant-Equipment Register'!H9=\"Yearly\",365,IF('Plant-Equipment Register'!H9=\"2 yearly\",730,IF('Plant-Equipment Register'!H9=\"3 yearly\",1095,IF('Plant-Equipment Register'!H9=\"5 yearly\",1826,\"\")))))))))))","v":""},{"$f":"IF('Plant-Equipment Register'!K9=\"Daily\",1,IF('Plant-Equipment Register'!K9=\"Weekly\",7,IF('Plant-Equipment Register'!K9=\"Fortnightly\",7,IF('Plant-Equipment Register'!K9=\"Monthly\",30,IF('Plant-Equipment Register'!K9=\"2 monthly\",61,IF('Plant-Equipment Register'!K9=\"3 monthly\",92,IF('Plant-Equipment Register'!K9=\"6 montly\",183,IF('Plant-Equipment Register'!K9=\"Yearly\",365,IF('Plant-Equipment Register'!K9=\"2 yearly\",730,IF('Plant-Equipment Register'!K9=\"3 Yearly\",1095,IF('Plant-Equipment Register'!K9=\"5 yearly\",1826,\"\")))))))))))","v":""},{"$f":"IF(AND('Plant-Equipment Register'!A3<>\"Date:\",'Plant-Equipment Register'!A3<>\"PVID:\",'Plant-Equipment Register'!A3<>\"Camp/Base:\",'Plant-Equipment Register'!A3<>\"\",'Plant-Equipment Register'!A3<>\"Construction Vehicles, Plant and Equipment\",'Plant-Equipment Register'!A3<>\"Vehicle/Plant/Equipment\"),ROW()-1,\"\")","v":""},{"$f":"INT((MAX(G2:G197)/20)+1)","v":{"$error":"#REF!"}}]
["Ardmore","ARD",null,"Before use",{"$f":"IF('Plant-Equipment Register'!H10=\"Daily\",1,IF('Plant-Equipment Register'!H10=\"Weekly\",7,IF('Plant-Equipment Register'!H10=\"Fortnightly\",7,IF('Plant-Equipment Register'!H10=\"Monthly\",30,IF('Plant-Equipment Register'!H10=\"2 monthly\",61,IF('Plant-Equipment Register'!H10=\"3 monthly\",92,IF('Plant-Equipment Register'!H10=\"6 monthly\",183,IF('Plant-Equipment Register'!H10=\"Yearly\",365,IF('Plant-Equipment Register'!H10=\"2 yearly\",730,IF('Plant-Equipment Register'!H10=\"3 yearly\",1095,IF('Plant-Equipment Register'!H10=\"5 yearly\",1826,\"\")))))))))))","v":""},{"$f":"IF('Plant-Equipment Register'!K10=\"Daily\",1,IF('Plant-Equipment Register'!K10=\"Weekly\",7,IF('Plant-Equipment Register'!K10=\"Fortnightly\",7,IF('Plant-Equipment Register'!K10=\"Monthly\",30,IF('Plant-Equipment Register'!K10=\"2 monthly\",61,IF('Plant-Equipment Register'!K10=\"3 monthly\",92,IF('Plant-Equipment Register'!K10=\"6 montly\",183,IF('Plant-Equipment Register'!K10=\"Yearly\",365,IF('Plant-Equipment Register'!K10=\"2 yearly\",730,IF('Plant-Equipment Register'!K10=\"3 Yearly\",1095,IF('Plant-Equipment Register'!K10=\"5 yearly\",1826,\"\")))))))))))","v":""},{"$f":"IF(AND('Plant-Equipment Register'!A4<>\"Date:\",'Plant-Equipment Register'!A4<>\"PVID:\",'Plant-Equipment Register'!A4<>\"Camp/Base:\",'Plant-Equipment Register'!A4<>\"\",'Plant-Equipment Register'!A4<>\"Construction Vehicles, Plant and Equipment\",'Plant-Equipment Register'!A4<>\"Vehicle/Plant/Equipment\"),ROW()-1,\"\")","v":""}]
["Auckland","AKL",null,"Daily",{"$f":"IF('Plant-Equipment Register'!H11=\"Daily\",1,IF('Plant-Equipment Register'!H11=\"Weekly\",7,IF('Plant-Equipment Register'!H11=\"Fortnightly\",7,IF('Plant-Equipment Register'!H11=\"Monthly\",30,IF('Plant-Equipment Register'!H11=\"2 monthly\",61,IF('Plant-Equipment Register'!H11=\"3 monthly\",92,IF('Plant-Equipment Register'!H11=\"6 monthly\",183,IF('Plant-Equipment Register'!H11=\"Yearly\",365,IF('Plant-Equipment Register'!H11=\"2 yearly\",730,IF('Plant-Equipment Register'!H11=\"3 yearly\",1095,IF('Plant-Equipment Register'!H11=\"5 yearly\",1826,\"\")))))))))))","v":""},{"$f":"IF('Plant-Equipment Register'!K11=\"Daily\",1,IF('Plant-Equipment Register'!K11=\"Weekly\",7,IF('Plant-Equipment Register'!K11=\"Fortnightly\",7,IF('Plant-Equipment Register'!K11=\"Monthly\",30,IF('Plant-Equipment Register'!K11=\"2 monthly\",61,IF('Plant-Equipment Register'!K11=\"3 monthly\",92,IF('Plant-Equipment Register'!K11=\"6 montly\",183,IF('Plant-Equipment Register'!K11=\"Yearly\",365,IF('Plant-Equipment Register'!K11=\"2 yearly\",730,IF('Plant-Equipment Register'!K11=\"3 Yearly\",1095,IF('Plant-Equipment Register'!K11=\"5 yearly\",1826,\"\")))))))))))","v":""},{"$f":"IF(AND('Plant-Equipment Register'!A5<>\"Date:\",'Plant-Equipment Register'!A5<>\"PVID:\",'Plant-Equipment Register'!A5<>\"Camp/Base:\",'Plant-Equipment Register'!A5<>\"\",'Plant-Equipment Register'!A5<>\"Construction Vehicles, Plant and Equipment\",'Plant-Equipment Register'!A5<>\"Vehicle/Plant/Equipment\"),ROW()-1,\"\")","v":""}]
["Bulls","BUL",null,"Weekly",{"$f":"IF('Plant-Equipment Register'!H12=\"Daily\",1,IF('Plant-Equipment Register'!H12=\"Weekly\",7,IF('Plant-Equipment Register'!H12=\"Fortnightly\",7,IF('Plant-Equipment Register'!H12=\"Monthly\",30,IF('Plant-Equipment Register'!H12=\"2 monthly\",61,IF('Plant-Equipment Register'!H12=\"3 monthly\",92,IF('Plant-Equipment Register'!H12=\"6 monthly\",183,IF('Plant-Equipment Register'!H12=\"Yearly\",365,IF('Plant-Equipment Register'!H12=\"2 yearly\",730,IF('Plant-Equipment Register'!H12=\"3 yearly\",1095,IF('Plant-Equipment Register'!H12=\"5 yearly\",1826,\"\")))))))))))","v":""},{"$f":"IF('Plant-Equipment Register'!K12=\"Daily\",1,IF('Plant-Equipment Register'!K12=\"Weekly\",7,IF('Plant-Equipment Register'!K12=\"Fortnightly\",7,IF('Plant-Equipment Register'!K12=\"Monthly\",30,IF('Plant-Equipment Register'!K12=\"2 monthly\",61,IF('Plant-Equipment Register'!K12=\"3 monthly\",92,IF('Plant-Equipment Register'!K12=\"6 montly\",183,IF('Plant-Equipment Register'!K12=\"Yearly\",365,IF('Plant-Equipment Register'!K12=\"2 yearly\",730,IF('Plant-Equipment Register'!K12=\"3 Yearly\",1095,IF('Plant-Equipment Register'!K12=\"5 yearly\",1826,\"\")))))))))))","v":""},{"$f":"IF(AND('Plant-Equipment Register'!A6<>\"Date:\",'Plant-Equipment Register'!A6<>\"PVID:\",'Plant-Equipment Register'!A6<>\"Camp/Base:\",'Plant-Equipment Register'!A6<>\"\",'Plant-Equipment Register'!A6<>\"Construction Vehicles, Plant and Equipment\",'Plant-Equipment Register'!A6<>\"Vehicle/Plant/Equipment\"),ROW()-1,\"\")","v":""}]
["Burnham","BHM",null,"Fortnightly",{"$f":"IF('Plant-Equipment Register'!H13=\"Daily\",1,IF('Plant-Equipment Register'!H13=\"Weekly\",7,IF('Plant-Equipment Register'!H13=\"Fortnightly\",7,IF('Plant-Equipment Register'!H13=\"Monthly\",30,IF('Plant-Equipment Register'!H13=\"2 monthly\",61,IF('Plant-Equipment Register'!H13=\"3 monthly\",92,IF('Plant-Equipment Register'!H13=\"6 monthly\",183,IF('Plant-Equipment Register'!H13=\"Yearly\",365,IF('Plant-Equipment Register'!H13=\"2 yearly\",730,IF('Plant-Equipment Register'!H13=\"3 yearly\",1095,IF('Plant-Equipment Register'!H13=\"5 yearly\",1826,\"\")))))))))))","v":""},{"$f":"IF('Plant-Equipment Register'!K13=\"Daily\",1,IF('Plant-Equipment Register'!K13=\"Weekly\",7,IF('Plant-Equipment Register'!K13=\"Fortnightly\",7,IF('Plant-Equipment Register'!K13=\"Monthly\",30,IF('Plant-Equipment Register'!K13=\"2 monthly\",61,IF('Plant-Equipment Register'!K13=\"3 monthly\",92,IF('Plant-Equipment Register'!K13=\"6 montly\",183,IF('Plant-Equipment Register'!K13=\"Yearly\",365,IF('Plant-Equipment Register'!K13=\"2 yearly\",730,IF('Plant-Equipment Register'!K13=\"3 Yearly\",1095,IF('Plant-Equipment Register'!K13=\"5 yearly\",1826,\"\")))))))))))","v":""},{"$f":"IF(AND('Plant-Equipment Register'!A7<>\"Date:\",'Plant-Equipment Register'!A7<>\"PVID:\",'Plant-Equipment Register'!A7<>\"Camp/Base:\",'Plant-Equipment Register'!A7<>\"\",'Plant-Equipment Register'!A7<>\"Construction Vehicles, Plant and Equipment\",'Plant-Equipment Register'!A7<>\"Vehicle/Plant/Equipment\"),ROW()-1,\"\")","v":""}]
["Christchurch","CHC",null,"Monthly",{"$f":"IF('Plant-Equipment Register'!H14=\"Daily\",1,IF('Plant-Equipment Register'!H14=\"Weekly\",7,IF('Plant-Equipment Register'!H14=\"Fortnightly\",7,IF('Plant-Equipment Register'!H14=\"Monthly\",30,IF('Plant-Equipment Register'!H14=\"2 monthly\",61,IF('Plant-Equipment Register'!H14=\"3 monthly\",92,IF('Plant-Equipment Register'!H14=\"6 monthly\",183,IF('Plant-Equipment Register'!H14=\"Yearly\",365,IF('Plant-Equipment Register'!H14=\"2 yearly\",730,IF('Plant-Equipment Register'!H14=\"3 yearly\",1095,IF('Plant-Equipment Register'!H14=\"5 yearly\",1826,\"\")))))))))))","v":""},{"$f":"IF('Plant-Equipment Register'!K14=\"Daily\",1,IF('Plant-Equipment Register'!K14=\"Weekly\",7,IF('Plant-Equipment Register'!K14=\"Fortnightly\",7,IF('Plant-Equipment Register'!K14=\"Monthly\",30,IF('Plant-Equipment Register'!K14=\"2 monthly\",61,IF('Plant-Equipment Register'!K14=\"3 monthly\",92,IF('Plant-Equipment Register'!K14=\"6 montly\",183,IF('Plant-Equipment Register'!K14=\"Yearly\",365,IF('Plant-Equipment Register'!K14=\"2 yearly\",730,IF('Plant-Equipment Register'!K14=\"3 Yearly\",1095,IF('Plant-Equipment Register'!K14=\"5 yearly\",1826,\"\")))))))))))","v":""},{"$f":"IF(AND('Plant-Equipment Register'!A8<>\"Date:\",'Plant-Equipment Register'!A8<>\"PVID:\",'Plant-Equipment Register'!A8<>\"Camp/Base:\",'Plant-Equipment Register'!A8<>\"\",'Plant-Equipment Register'!A8<>\"Construction Vehicles, Plant and Equipment\",'Plant-Equipment Register'!A8<>\"Vehicle/Plant/Equipment\"),ROW()-1,\"\")","v":""}]
["Cook Islands","COK",null,"2 monthly",{"$f":"IF('Plant-Equipment Register'!H15=\"Daily\",1,IF('Plant-Equipment Register'!H15=\"Weekly\",7,IF('Plant-Equipment Register'!H15=\"Fortnightly\",7,IF('Plant-Equipment Register'!H15=\"Monthly\",30,IF('Plant-Equipment Register'!H15=\"2 monthly\",61,IF('Plant-Equipment Register'!H15=\"3 monthly\",92,IF('Plant-Equipment Register'!H15=\"6 monthly\",183,IF('Plant-Equipment Register'!H15=\"Yearly\",365,IF('Plant-Equipment Register'!H15=\"2 yearly\",730,IF('Plant-Equipment Register'!H15=\"3 yearly\",1095,IF('Plant-Equipment Register'!H15=\"5 yearly\",1826,\"\")))))))))))","v":""},{"$f":"IF('Plant-Equipment Register'!K15=\"Daily\",1,IF('Plant-Equipment Register'!K15=\"Weekly\",7,IF('Plant-Equipment Register'!K15=\"Fortnightly\",7,IF('Plant-Equipment Register'!K15=\"Monthly\",30,IF('Plant-Equipment Register'!K15=\"2 monthly\",61,IF('Plant-Equipment Register'!K15=\"3 monthly\",92,IF('Plant-Equipment Register'!K15=\"6 montly\",183,IF('Plant-Equipment Register'!K15=\"Yearly\",365,IF('Plant-Equipment Register'!K15=\"2 yearly\",730,IF('Plant-Equipment Register'!K15=\"3 Yearly\",1095,IF('Plant-Equipment Register'!K15=\"5 yearly\",1826,\"\")))))))))))","v":""},{"$f":"IF(AND('Plant-Equipment Register'!A9<>\"Date:\",'Plant-Equipment Register'!A9<>\"PVID:\",'Plant-Equipment Register'!A9<>\"Camp/Base:\",'Plant-Equipment Register'!A9<>\"\",'Plant-Equipment Register'!A9<>\"Construction Vehicles, Plant and Equipment\",'Plant-Equipment Register'!A9<>\"Vehicle/Plant/Equipment\"),ROW()-1,\"\")","v":""}]
["Devonport","DPT",null,"3 monthly",{"$f":"IF('Plant-Equipment Register'!H16=\"Daily\",1,IF('Plant-Equipment Register'!H16=\"Weekly\",7,IF('Plant-Equipment Register'!H16=\"Fortnightly\",7,IF('Plant-Equipment Register'!H16=\"Monthly\",30,IF('Plant-Equipment Register'!H16=\"2 monthly\",61,IF('Plant-Equipment Register'!H16=\"3 monthly\",92,IF('Plant-Equipment Register'!H16=\"6 monthly\",183,IF('Plant-Equipment Register'!H16=\"Yearly\",365,IF('Plant-Equipment Register'!H16=\"2 yearly\",730,IF('Plant-Equipment Register'!H16=\"3 yearly\",1095,IF('Plant-Equipment Register'!H16=\"5 yearly\",1826,\"\")))))))))))","v":""},{"$f":"IF('Plant-Equipment Register'!K16=\"Daily\",1,IF('Plant-Equipment Register'!K16=\"Weekly\",7,IF('Plant-Equipment Register'!K16=\"Fortnightly\",7,IF('Plant-Equipment Register'!K16=\"Monthly\",30,IF('Plant-Equipment Register'!K16=\"2 monthly\",61,IF('Plant-Equipment Register'!K16=\"3 monthly\",92,IF('Plant-Equipment Register'!K16=\"6 montly\",183,IF('Plant-Equipment Register'!K16=\"Yearly\",365,IF('Plant-Equipment Register'!K16=\"2 yearly\",730,IF('Plant-Equipment Register'!K16=\"3 Yearly\",1095,IF('Plant-Equipment Register'!K16=\"5 yearly\",1826,\"\")))))))))))","v":""},{"$f":"IF(AND('Plant-Equipment Register'!A10<>\"Date:\",'Plant-Equipment Register'!A10<>\"PVID:\",'Plant-Equipment Register'!A10<>\"Camp/Base:\",'Plant-Equipment Register'!A10<>\"\",'Plant-Equipment Register'!A10<>\"Construction Vehicles, Plant and Equipment\",'Plant-Equipment Register'!A10<>\"Vehicle/Plant/Equipment\"),ROW()-1,\"\")","v":""}]
["Dip Flat","DIP",null,"6 monthly",{"$f":"IF('Plant-Equipment Register'!H17=\"Daily\",1,IF('Plant-Equipment Register'!H17=\"Weekly\",7,IF('Plant-Equipment Register'!H17=\"Fortnightly\",7,IF('Plant-Equipment Register'!H17=\"Monthly\",30,IF('Plant-Equipment Register'!H17=\"2 monthly\",61,IF('Plant-Equipment Register'!H17=\"3 monthly\",92,IF('Plant-Equipment Register'!H17=\"6 monthly\",183,IF('Plant-Equipment Register'!H17=\"Yearly\",365,IF('Plant-Equipment Register'!H17=\"2 yearly\",730,IF('Plant-Equipment Register'!H17=\"3 yearly\",1095,IF('Plant-Equipment Register'!H17=\"5 yearly\",1826,\"\")))))))))))","v":""},{"$f":"IF('Plant-Equipment Register'!K17=\"Daily\",1,IF('Plant-Equipment Register'!K17=\"Weekly\",7,IF('Plant-Equipment Register'!K17=\"Fortnightly\",7,IF('Plant-Equipment Register'!K17=\"Monthly\",30,IF('Plant-Equipment Register'!K17=\"2 monthly\",61,IF('Plant-Equipment Register'!K17=\"3 monthly\",92,IF('Plant-Equipment Register'!K17=\"6 montly\",183,IF('Plant-Equipment Register'!K17=\"Yearly\",365,IF('Plant-Equipment Register'!K17=\"2 yearly\",730,IF('Plant-Equipment Register'!K17=\"3 Yearly\",1095,IF('Plant-Equipment Register'!K17=\"5 yearly\",1826,\"\")))))))))))","v":""},{"$f":"IF(AND('Plant-Equipment Register'!A11<>\"Date:\",'Plant-Equipment Register'!A11<>\"PVID:\",'Plant-Equipment Register'!A11<>\"Camp/Base:\",'Plant-Equipment Register'!A11<>\"\",'Plant-Equipment Register'!A11<>\"Construction Vehicles, Plant and Equipment\",'Plant-Equipment Register'!A11<>\"Vehicle/Plant/Equipment\"),ROW()-1,\"\")","v":""}]
["Dunedin","DUN",null,"Yearly",{"$f":"IF('Plant-Equipment Register'!H18=\"Daily\",1,IF('Plant-Equipment Register'!H18=\"Weekly\",7,IF('Plant-Equipment Register'!H18=\"Fortnightly\",7,IF('Plant-Equipment Register'!H18=\"Monthly\",30,IF('Plant-Equipment Register'!H18=\"2 monthly\",61,IF('Plant-Equipment Register'!H18=\"3 monthly\",92,IF('Plant-Equipment Register'!H18=\"6 monthly\",183,IF('Plant-Equipment Register'!H18=\"Yearly\",365,IF('Plant-Equipment Register'!H18=\"2 yearly\",730,IF('Plant-Equipment Register'!H18=\"3 yearly\",1095,IF('Plant-Equipment Register'!H18=\"5 yearly\",1826,\"\")))))))))))","v":""},{"$f":"IF('Plant-Equipment Register'!K18=\"Daily\",1,IF('Plant-Equipment Register'!K18=\"Weekly\",7,IF('Plant-Equipment Register'!K18=\"Fortnightly\",7,IF('Plant-Equipment Register'!K18=\"Monthly\",30,IF('Plant-Equipment Register'!K18=\"2 monthly\",61,IF('Plant-Equipment Register'!K18=\"3 monthly\",92,IF('Plant-Equipment Register'!K18=\"6 montly\",183,IF('Plant-Equipment Register'!K18=\"Yearly\",365,IF('Plant-Equipment Register'!K18=\"2 yearly\",730,IF('Plant-Equipment Register'!K18=\"3 Yearly\",1095,IF('Plant-Equipment Register'!K18=\"5 yearly\",1826,\"\")))))))))))","v":""},{"$f":"IF(AND('Plant-Equipment Register'!A12<>\"Date:\",'Plant-Equipment Register'!A12<>\"PVID:\",'Plant-Equipment Register'!A12<>\"Camp/Base:\",'Plant-Equipment Register'!A12<>\"\",'Plant-Equipment Register'!A12<>\"Construction Vehicles, Plant and Equipment\",'Plant-Equipment Register'!A12<>\"Vehicle/Plant/Equipment\"),ROW()-1,\"\")","v":""}]
["Gisborne","GIS",null,"2 yearly",{"$f":"IF('Plant-Equipment Register'!#REF!=\"Daily\",1,IF('Plant-Equipment Register'!#REF!=\"Weekly\",7,IF('Plant-Equipment Register'!#REF!=\"Fortnightly\",7,IF('Plant-Equipment Register'!#REF!=\"Monthly\",30,IF('Plant-Equipment Register'!#REF!=\"2 monthly\",61,IF('Plant-Equipment Register'!#REF!=\"3 monthly\",92,IF('Plant-Equipment Register'!#REF!=\"6 monthly\",183,IF('Plant-Equipment Register'!#REF!=\"Yearly\",365,IF('Plant-Equipment Register'!#REF!=\"2 yearly\",730,IF('Plant-Equipment Register'!#REF!=\"3 yearly\",1095,IF('Plant-Equipment Register'!#REF!=\"5 yearly\",1826,\"\")))))))))))","v":{"$error":"#REF!"}},{"$f":"IF('Plant-Equipment Register'!#REF!=\"Daily\",1,IF('Plant-Equipment Register'!#REF!=\"Weekly\",7,IF('Plant-Equipment Register'!#REF!=\"Fortnightly\",7,IF('Plant-Equipment Register'!#REF!=\"Monthly\",30,IF('Plant-Equipment Register'!#REF!=\"2 monthly\",61,IF('Plant-Equipment Register'!#REF!=\"3 monthly\",92,IF('Plant-Equipment Register'!#REF!=\"6 montly\",183,IF('Plant-Equipment Register'!#REF!=\"Yearly\",365,IF('Plant-Equipment Register'!#REF!=\"2 yearly\",730,IF('Plant-Equipment Register'!#REF!=\"3 Yearly\",1095,IF('Plant-Equipment Register'!#REF!=\"5 yearly\",1826,\"\")))))))))))","v":{"$error":"#REF!"}},{"$f":"IF(AND('Plant-Equipment Register'!A13<>\"Date:\",'Plant-Equipment Register'!A13<>\"PVID:\",'Plant-Equipment Register'!A13<>\"Camp/Base:\",'Plant-Equipment Register'!A13<>\"\",'Plant-Equipment Register'!A13<>\"Construction Vehicles, Plant and Equipment\",'Plant-Equipment Register'!A13<>\"Vehicle/Plant/Equipment\"),ROW()-1,\"\")","v":""}]
["Glentunnel","GTN",null,"3 yearly",{"$f":"IF('Plant-Equipment Register'!H19=\"Daily\",1,IF('Plant-Equipment Register'!H19=\"Weekly\",7,IF('Plant-Equipment Register'!H19=\"Fortnightly\",7,IF('Plant-Equipment Register'!H19=\"Monthly\",30,IF('Plant-Equipment Register'!H19=\"2 monthly\",61,IF('Plant-Equipment Register'!H19=\"3 monthly\",92,IF('Plant-Equipment Register'!H19=\"6 monthly\",183,IF('Plant-Equipment Register'!H19=\"Yearly\",365,IF('Plant-Equipment Register'!H19=\"2 yearly\",730,IF('Plant-Equipment Register'!H19=\"3 yearly\",1095,IF('Plant-Equipment Register'!H19=\"5 yearly\",1826,\"\")))))))))))","v":""},{"$f":"IF('Plant-Equipment Register'!K19=\"Daily\",1,IF('Plant-Equipment Register'!K19=\"Weekly\",7,IF('Plant-Equipment Register'!K19=\"Fortnightly\",7,IF('Plant-Equipment Register'!K19=\"Monthly\",30,IF('Plant-Equipment Register'!K19=\"2 monthly\",61,IF('Plant-Equipment Register'!K19=\"3 monthly\",92,IF('Plant-Equipment Register'!K19=\"6 montly\",183,IF('Plant-Equipment Register'!K19=\"Yearly\",365,IF('Plant-Equipment Register'!K19=\"2 yearly\",730,IF('Plant-Equipment Register'!K19=\"3 Yearly\",1095,IF('Plant-Equipment Register'!K19=\"5 yearly\",1826,\"\")))))))))))","v":""},{"$f":"IF(AND('Plant-Equipment Register'!A14<>\"Date:\",'Plant-Equipment Register'!A14<>\"PVID:\",'Plant-Equipment Register'!A14<>\"Camp/Base:\",'Plant-Equipment Register'!A14<>\"\",'Plant-Equipment Register'!A14<>\"Construction Vehicles, Plant and Equipment\",'Plant-Equipment Register'!A14<>\"Vehicle/Plant/Equipment\"),ROW()-1,\"\")","v":""}]
["Great Barrier Island","GBI",null,"5 yearly",{"$f":"IF('Plant-Equipment Register'!H20=\"Daily\",1,IF('Plant-Equipment Register'!H20=\"Weekly\",7,IF('Plant-Equipment Register'!H20=\"Fortnightly\",7,IF('Plant-Equipment Register'!H20=\"Monthly\",30,IF('Plant-Equipment Register'!H20=\"2 monthly\",61,IF('Plant-Equipment Register'!H20=\"3 monthly\",92,IF('Plant-Equipment Register'!H20=\"6 monthly\",183,IF('Plant-Equipment Register'!H20=\"Yearly\",365,IF('Plant-Equipment Register'!H20=\"2 yearly\",730,IF('Plant-Equipment Register'!H20=\"3 yearly\",1095,IF('Plant-Equipment Register'!H20=\"5 yearly\",1826,\"\")))))))))))","v":""},{"$f":"IF('Plant-Equipment Register'!K20=\"Daily\",1,IF('Plant-Equipment Register'!K20=\"Weekly\",7,IF('Plant-Equipment Register'!K20=\"Fortnightly\",7,IF('Plant-Equipment Register'!K20=\"Monthly\",30,IF('Plant-Equipment Register'!K20=\"2 monthly\",61,IF('Plant-Equipment Register'!K20=\"3 monthly\",92,IF('Plant-Equipment Register'!K20=\"6 montly\",183,IF('Plant-Equipment Register'!K20=\"Yearly\",365,IF('Plant-Equipment Register'!K20=\"2 yearly\",730,IF('Plant-Equipment Register'!K20=\"3 Yearly\",1095,IF('Plant-Equipment Register'!K20=\"5 yearly\",1826,\"\")))))))))))","v":""},{"$f":"IF(AND('Plant-Equipment Register'!A15<>\"Date:\",'Plant-Equipment Register'!A15<>\"PVID:\",'Plant-Equipment Register'!A15<>\"Camp/Base:\",'Plant-Equipment Register'!A15<>\"\",'Plant-Equipment Register'!A15<>\"Construction Vehicles, Plant and Equipment\",'Plant-Equipment Register'!A15<>\"Vehicle/Plant/Equipment\"),ROW()-1,\"\")","v":""}]
["Greymouth","GRM",null,null,{"$f":"IF('Plant-Equipment Register'!H21=\"Daily\",1,IF('Plant-Equipment Register'!H21=\"Weekly\",7,IF('Plant-Equipment Register'!H21=\"Fortnightly\",7,IF('Plant-Equipment Register'!H21=\"Monthly\",30,IF('Plant-Equipment Register'!H21=\"2 monthly\",61,IF('Plant-Equipment Register'!H21=\"3 monthly\",92,IF('Plant-Equipment Register'!H21=\"6 monthly\",183,IF('Plant-Equipment Register'!H21=\"Yearly\",365,IF('Plant-Equipment Register'!H21=\"2 yearly\",730,IF('Plant-Equipment Register'!H21=\"3 yearly\",1095,IF('Plant-Equipment Register'!H21=\"5 yearly\",1826,\"\")))))))))))","v":""},{"$f":"IF('Plant-Equipment Register'!K21=\"Daily\",1,IF('Plant-Equipment Register'!K21=\"Weekly\",7,IF('Plant-Equipment Register'!K21=\"Fortnightly\",7,IF('Plant-Equipment Register'!K21=\"Monthly\",30,IF('Plant-Equipment Register'!K21=\"2 monthly\",61,IF('Plant-Equipment Register'!K21=\"3 monthly\",92,IF('Plant-Equipment Register'!K21=\"6 montly\",183,IF('Plant-Equipment Register'!K21=\"Yearly\",365,IF('Plant-Equipment Register'!K21=\"2 yearly\",730,IF('Plant-Equipment Register'!K21=\"3 Yearly\",1095,IF('Plant-Equipment Register'!K21=\"5 yearly\",1826,\"\")))))))))))","v":""},{"$f":"IF(AND('Plant-Equipment Register'!A16<>\"Date:\",'Plant-Equipment Register'!A16<>\"PVID:\",'Plant-Equipment Register'!A16<>\"Camp/Base:\",'Plant-Equipment Register'!A16<>\"\",'Plant-Equipment Register'!A16<>\"Construction Vehicles, Plant and Equipment\",'Plant-Equipment Register'!A16<>\"Vehicle/Plant/Equipment\"),ROW()-1,\"\")","v":""}]
["Hamilton","HAM",null,null,{"$f":"IF('Plant-Equipment Register'!H22=\"Daily\",1,IF('Plant-Equipment Register'!H22=\"Weekly\",7,IF('Plant-Equipment Register'!H22=\"Fortnightly\",7,IF('Plant-Equipment Register'!H22=\"Monthly\",30,IF('Plant-Equipment Register'!H22=\"2 monthly\",61,IF('Plant-Equipment Register'!H22=\"3 monthly\",92,IF('Plant-Equipment Register'!H22=\"6 monthly\",183,IF('Plant-Equipment Register'!H22=\"Yearly\",365,IF('Plant-Equipment Register'!H22=\"2 yearly\",730,IF('Plant-Equipment Register'!H22=\"3 yearly\",1095,IF('Plant-Equipment Register'!H22=\"5 yearly\",1826,\"\")))))))))))","v":""},{"$f":"IF('Plant-Equipment Register'!K22=\"Daily\",1,IF('Plant-Equipment Register'!K22=\"Weekly\",7,IF('Plant-Equipment Register'!K22=\"Fortnightly\",7,IF('Plant-Equipment Register'!K22=\"Monthly\",30,IF('Plant-Equipment Register'!K22=\"2 monthly\",61,IF('Plant-Equipment Register'!K22=\"3 monthly\",92,IF('Plant-Equipment Register'!K22=\"6 montly\",183,IF('Plant-Equipment Register'!K22=\"Yearly\",365,IF('Plant-Equipment Register'!K22=\"2 yearly\",730,IF('Plant-Equipment Register'!K22=\"3 Yearly\",1095,IF('Plant-Equipment Register'!K22=\"5 yearly\",1826,\"\")))))))))))","v":""},{"$f":"IF(AND('Plant-Equipment Register'!A17<>\"Date:\",'Plant-Equipment Register'!A17<>\"PVID:\",'Plant-Equipment Register'!A17<>\"Camp/Base:\",'Plant-Equipment Register'!A17<>\"\",'Plant-Equipment Register'!A17<>\"Construction Vehicles, Plant and Equipment\",'Plant-Equipment Register'!A17<>\"Vehicle/Plant/Equipment\"),ROW()-1,\"\")","v":""}]
["Hastings","HAS",null,null,{"$f":"IF('Plant-Equipment Register'!H23=\"Daily\",1,IF('Plant-Equipment Register'!H23=\"Weekly\",7,IF('Plant-Equipment Register'!H23=\"Fortnightly\",7,IF('Plant-Equipment Register'!H23=\"Monthly\",30,IF('Plant-Equipment Register'!H23=\"2 monthly\",61,IF('Plant-Equipment Register'!H23=\"3 monthly\",92,IF('Plant-Equipment Register'!H23=\"6 monthly\",183,IF('Plant-Equipment Register'!H23=\"Yearly\",365,IF('Plant-Equipment Register'!H23=\"2 yearly\",730,IF('Plant-Equipment Register'!H23=\"3 yearly\",1095,IF('Plant-Equipment Register'!H23=\"5 yearly\",1826,\"\")))))))))))","v":""},{"$f":"IF('Plant-Equipment Register'!K23=\"Daily\",1,IF('Plant-Equipment Register'!K23=\"Weekly\",7,IF('Plant-Equipment Register'!K23=\"Fortnightly\",7,IF('Plant-Equipment Register'!K23=\"Monthly\",30,IF('Plant-Equipment Register'!K23=\"2 monthly\",61,IF('Plant-Equipment Register'!K23=\"3 monthly\",92,IF('Plant-Equipment Register'!K23=\"6 montly\",183,IF('Plant-Equipment Register'!K23=\"Yearly\",365,IF('Plant-Equipment Register'!K23=\"2 yearly\",730,IF('Plant-Equipment Register'!K23=\"3 Yearly\",1095,IF('Plant-Equipment Register'!K23=\"5 yearly\",1826,\"\")))))))))))","v":""},{"$f":"IF(AND('Plant-Equipment Register'!A18<>\"Date:\",'Plant-Equipment Register'!A18<>\"PVID:\",'Plant-Equipment Register'!A18<>\"Camp/Base:\",'Plant-Equipment Register'!A18<>\"\",'Plant-Equipment Register'!A18<>\"Construction Vehicles, Plant and Equipment\",'Plant-Equipment Register'!A18<>\"Vehicle/Plant/Equipment\"),ROW()-1,\"\")","v":""}]
["HMNZS Olphert","OLP",null,null,{"$f":"IF('Plant-Equipment Register'!H24=\"Daily\",1,IF('Plant-Equipment Register'!H24=\"Weekly\",7,IF('Plant-Equipment Register'!H24=\"Fortnightly\",7,IF('Plant-Equipment Register'!H24=\"Monthly\",30,IF('Plant-Equipment Register'!H24=\"2 monthly\",61,IF('Plant-Equipment Register'!H24=\"3 monthly\",92,IF('Plant-Equipment Register'!H24=\"6 monthly\",183,IF('Plant-Equipment Register'!H24=\"Yearly\",365,IF('Plant-Equipment Register'!H24=\"2 yearly\",730,IF('Plant-Equipment Register'!H24=\"3 yearly\",1095,IF('Plant-Equipment Register'!H24=\"5 yearly\",1826,\"\")))))))))))","v":""},{"$f":"IF('Plant-Equipment Register'!K24=\"Daily\",1,IF('Plant-Equipment Register'!K24=\"Weekly\",7,IF('Plant-Equipment Register'!K24=\"Fortnightly\",7,IF('Plant-Equipment Register'!K24=\"Monthly\",30,IF('Plant-Equipment Register'!K24=\"2 monthly\",61,IF('Plant-Equipment Register'!K24=\"3 monthly\",92,IF('Plant-Equipment Register'!K24=\"6 montly\",183,IF('Plant-Equipment Register'!K24=\"Yearly\",365,IF('Plant-Equipment Register'!K24=\"2 yearly\",730,IF('Plant-Equipment Register'!K24=\"3 Yearly\",1095,IF('Plant-Equipment Register'!K24=\"5 yearly\",1826,\"\")))))))))))","v":""},{"$f":"IF(AND('Plant-Equipment Register'!#REF!<>\"Date:\",'Plant-Equipment Register'!#REF!<>\"PVID:\",'Plant-Equipment Register'!#REF!<>\"Camp/Base:\",'Plant-Equipment Register'!#REF!<>\"\",'Plant-Equipment Register'!#REF!<>\"Construction Vehicles, Plant and Equipment\",'Plant-Equipment Register'!#REF!<>\"Vehicle/Plant/Equipment\"),ROW()-1,\"\")","v":{"$error":"#REF!"}}]
["Hobsonville","HOB",null,null,{"$f":"IF('Plant-Equipment Register'!H25=\"Daily\",1,IF('Plant-Equipment Register'!H25=\"Weekly\",7,IF('Plant-Equipment Register'!H25=\"Fortnightly\",7,IF('Plant-Equipment Register'!H25=\"Monthly\",30,IF('Plant-Equipment Register'!H25=\"2 monthly\",61,IF('Plant-Equipment Register'!H25=\"3 monthly\",92,IF('Plant-Equipment Register'!H25=\"6 monthly\",183,IF('Plant-Equipment Register'!H25=\"Yearly\",365,IF('Plant-Equipment Register'!H25=\"2 yearly\",730,IF('Plant-Equipment Register'!H25=\"3 yearly\",1095,IF('Plant-Equipment Register'!H25=\"5 yearly\",1826,\"\")))))))))))","v":""},{"$f":"IF('Plant-Equipment Register'!K25=\"Daily\",1,IF('Plant-Equipment Register'!K25=\"Weekly\",7,IF('Plant-Equipment Register'!K25=\"Fortnightly\",7,IF('Plant-Equipment Register'!K25=\"Monthly\",30,IF('Plant-Equipment Register'!K25=\"2 monthly\",61,IF('Plant-Equipment Register'!K25=\"3 monthly\",92,IF('Plant-Equipment Register'!K25=\"6 montly\",183,IF('Plant-Equipment Register'!K25=\"Yearly\",365,IF('Plant-Equipment Register'!K25=\"2 yearly\",730,IF('Plant-Equipment Register'!K25=\"3 Yearly\",1095,IF('Plant-Equipment Register'!K25=\"5 yearly\",1826,\"\")))))))))))","v":""},{"$f":"IF(AND('Plant-Equipment Register'!A19<>\"Date:\",'Plant-Equipment Register'!A19<>\"PVID:\",'Plant-Equipment Register'!A19<>\"Camp/Base:\",'Plant-Equipment Register'!A19<>\"\",'Plant-Equipment Register'!A19<>\"Construction Vehicles, Plant and Equipment\",'Plant-Equipment Register'!A19<>\"Vehicle/Plant/Equipment\"),ROW()-1,\"\")","v":""}]
["Invercargill","INV",null,null,{"$f":"IF('Plant-Equipment Register'!H26=\"Daily\",1,IF('Plant-Equipment Register'!H26=\"Weekly\",7,IF('Plant-Equipment Register'!H26=\"Fortnightly\",7,IF('Plant-Equipment Register'!H26=\"Monthly\",30,IF('Plant-Equipment Register'!H26=\"2 monthly\",61,IF('Plant-Equipment Register'!H26=\"3 monthly\",92,IF('Plant-Equipment Register'!H26=\"6 monthly\",183,IF('Plant-Equipment Register'!H26=\"Yearly\",365,IF('Plant-Equipment Register'!H26=\"2 yearly\",730,IF('Plant-Equipment Register'!H26=\"3 yearly\",1095,IF('Plant-Equipment Register'!H26=\"5 yearly\",1826,\"\")))))))))))","v":""},{"$f":"IF('Plant-Equipment Register'!K26=\"Daily\",1,IF('Plant-Equipment Register'!K26=\"Weekly\",7,IF('Plant-Equipment Register'!K26=\"Fortnightly\",7,IF('Plant-Equipment Register'!K26=\"Monthly\",30,IF('Plant-Equipment Register'!K26=\"2 monthly\",61,IF('Plant-Equipment Register'!K26=\"3 monthly\",92,IF('Plant-Equipment Register'!K26=\"6 montly\",183,IF('Plant-Equipment Register'!K26=\"Yearly\",365,IF('Plant-Equipment Register'!K26=\"2 yearly\",730,IF('Plant-Equipment Register'!K26=\"3 Yearly\",1095,IF('Plant-Equipment Register'!K26=\"5 yearly\",1826,\"\")))))))))))","v":""},{"$f":"IF(AND('Plant-Equipment Register'!A20<>\"Date:\",'Plant-Equipment Register'!A20<>\"PVID:\",'Plant-Equipment Register'!A20<>\"Camp/Base:\",'Plant-Equipment Register'!A20<>\"\",'Plant-Equipment Register'!A20<>\"Construction Vehicles, Plant and Equipment\",'Plant-Equipment Register'!A20<>\"Vehicle/Plant/Equipment\"),ROW()-1,\"\")","v":""}]
["Irirangi","IRI",null,null,{"$f":"IF('Plant-Equipment Register'!H27=\"Daily\",1,IF('Plant-Equipment Register'!H27=\"Weekly\",7,IF('Plant-Equipment Register'!H27=\"Fortnightly\",7,IF('Plant-Equipment Register'!H27=\"Monthly\",30,IF('Plant-Equipment Register'!H27=\"2 monthly\",61,IF('Plant-Equipment Register'!H27=\"3 monthly\",92,IF('Plant-Equipment Register'!H27=\"6 monthly\",183,IF('Plant-Equipment Register'!H27=\"Yearly\",365,IF('Plant-Equipment Register'!H27=\"2 yearly\",730,IF('Plant-Equipment Register'!H27=\"3 yearly\",1095,IF('Plant-Equipment Register'!H27=\"5 yearly\",1826,\"\")))))))))))","v":""},{"$f":"IF('Plant-Equipment Register'!K27=\"Daily\",1,IF('Plant-Equipment Register'!K27=\"Weekly\",7,IF('Plant-Equipment Register'!K27=\"Fortnightly\",7,IF('Plant-Equipment Register'!K27=\"Monthly\",30,IF('Plant-Equipment Register'!K27=\"2 monthly\",61,IF('Plant-Equipment Register'!K27=\"3 monthly\",92,IF('Plant-Equipment Register'!K27=\"6 montly\",183,IF('Plant-Equipment Register'!K27=\"Yearly\",365,IF('Plant-Equipment Register'!K27=\"2 yearly\",730,IF('Plant-Equipment Register'!K27=\"3 Yearly\",1095,IF('Plant-Equipment Register'!K27=\"5 yearly\",1826,\"\")))))))))))","v":""},{"$f":"IF(AND('Plant-Equipment Register'!A21<>\"Date:\",'Plant-Equipment Register'!A21<>\"PVID:\",'Plant-Equipment Register'!A21<>\"Camp/Base:\",'Plant-Equipment Register'!A21<>\"\",'Plant-Equipment Register'!A21<>\"Construction Vehicles, Plant and Equipment\",'Plant-Equipment Register'!A21<>\"Vehicle/Plant/Equipment\"),ROW()-1,\"\")","v":""}]
["Kaipara","KAI",null,null,{"$f":"IF('Plant-Equipment Register'!H28=\"Daily\",1,IF('Plant-Equipment Register'!H28=\"Weekly\",7,IF('Plant-Equipment Register'!H28=\"Fortnightly\",7,IF('Plant-Equipment Register'!H28=\"Monthly\",30,IF('Plant-Equipment Register'!H28=\"2 monthly\",61,IF('Plant-Equipment Register'!H28=\"3 monthly\",92,IF('Plant-Equipment Register'!H28=\"6 monthly\",183,IF('Plant-Equipment Register'!H28=\"Yearly\",365,IF('Plant-Equipment Register'!H28=\"2 yearly\",730,IF('Plant-Equipment Register'!H28=\"3 yearly\",1095,IF('Plant-Equipment Register'!H28=\"5 yearly\",1826,\"\")))))))))))","v":""},{"$f":"IF('Plant-Equipment Register'!K28=\"Daily\",1,IF('Plant-Equipment Register'!K28=\"Weekly\",7,IF('Plant-Equipment Register'!K28=\"Fortnightly\",7,IF('Plant-Equipment Register'!K28=\"Monthly\",30,IF('Plant-Equipment Register'!K28=\"2 monthly\",61,IF('Plant-Equipment Register'!K28=\"3 monthly\",92,IF('Plant-Equipment Register'!K28=\"6 montly\",183,IF('Plant-Equipment Register'!K28=\"Yearly\",365,IF('Plant-Equipment Register'!K28=\"2 yearly\",730,IF('Plant-Equipment Register'!K28=\"3 Yearly\",1095,IF('Plant-Equipment Register'!K28=\"5 yearly\",1826,\"\")))))))))))","v":""},{"$f":"IF(AND('Plant-Equipment Register'!A22<>\"Date:\",'Plant-Equipment Register'!A22<>\"PVID:\",'Plant-Equipment Register'!A22<>\"Camp/Base:\",'Plant-Equipment Register'!A22<>\"\",'Plant-Equipment Register'!A22<>\"Construction Vehicles, Plant and Equipment\",'Plant-Equipment Register'!A22<>\"Vehicle/Plant/Equipment\"),ROW()-1,\"\")","v":""}]
["Kauri Point","KPT",null,null,{"$f":"IF('Plant-Equipment Register'!H29=\"Daily\",1,IF('Plant-Equipment Register'!H29=\"Weekly\",7,IF('Plant-Equipment Register'!H29=\"Fortnightly\",7,IF('Plant-Equipment Register'!H29=\"Monthly\",30,IF('Plant-Equipment Register'!H29=\"2 monthly\",61,IF('Plant-Equipment Register'!H29=\"3 monthly\",92,IF('Plant-Equipment Register'!H29=\"6 monthly\",183,IF('Plant-Equipment Register'!H29=\"Yearly\",365,IF('Plant-Equipment Register'!H29=\"2 yearly\",730,IF('Plant-Equipment Register'!H29=\"3 yearly\",1095,IF('Plant-Equipment Register'!H29=\"5 yearly\",1826,\"\")))))))))))","v":""},{"$f":"IF('Plant-Equipment Register'!K29=\"Daily\",1,IF('Plant-Equipment Register'!K29=\"Weekly\",7,IF('Plant-Equipment Register'!K29=\"Fortnightly\",7,IF('Plant-Equipment Register'!K29=\"Monthly\",30,IF('Plant-Equipment Register'!K29=\"2 monthly\",61,IF('Plant-Equipment Register'!K29=\"3 monthly\",92,IF('Plant-Equipment Register'!K29=\"6 montly\",183,IF('Plant-Equipment Register'!K29=\"Yearly\",365,IF('Plant-Equipment Register'!K29=\"2 yearly\",730,IF('Plant-Equipment Register'!K29=\"3 Yearly\",1095,IF('Plant-Equipment Register'!K29=\"5 yearly\",1826,\"\")))))))))))","v":""},{"$f":"IF(AND('Plant-Equipment Register'!A23<>\"Date:\",'Plant-Equipment Register'!A23<>\"PVID:\",'Plant-Equipment Register'!A23<>\"Camp/Base:\",'Plant-Equipment Register'!A23<>\"\",'Plant-Equipment Register'!A23<>\"Construction Vehicles, Plant and Equipment\",'Plant-Equipment Register'!A23<>\"Vehicle/Plant/Equipment\"),ROW()-1,\"\")","v":""}]
["Kensington Army Hall (Dunedin City)","KAH",null,null,{"$f":"IF('Plant-Equipment Register'!H30=\"Daily\",1,IF('Plant-Equipment Register'!H30=\"Weekly\",7,IF('Plant-Equipment Register'!H30=\"Fortnightly\",7,IF('Plant-Equipment Register'!H30=\"Monthly\",30,IF('Plant-Equipment Register'!H30=\"2 monthly\",61,IF('Plant-Equipment Register'!H30=\"3 monthly\",92,IF('Plant-Equipment Register'!H30=\"6 monthly\",183,IF('Plant-Equipment Register'!H30=\"Yearly\",365,IF('Plant-Equipment Register'!H30=\"2 yearly\",730,IF('Plant-Equipment Register'!H30=\"3 yearly\",1095,IF('Plant-Equipment Register'!H30=\"5 yearly\",1826,\"\")))))))))))","v":""},{"$f":"IF('Plant-Equipment Register'!K30=\"Daily\",1,IF('Plant-Equipment Register'!K30=\"Weekly\",7,IF('Plant-Equipment Register'!K30=\"Fortnightly\",7,IF('Plant-Equipment Register'!K30=\"Monthly\",30,IF('Plant-Equipment Register'!K30=\"2 monthly\",61,IF('Plant-Equipment Register'!K30=\"3 monthly\",92,IF('Plant-Equipment Register'!K30=\"6 montly\",183,IF('Plant-Equipment Register'!K30=\"Yearly\",365,IF('Plant-Equipment Register'!K30=\"2 yearly\",730,IF('Plant-Equipment Register'!K30=\"3 Yearly\",1095,IF('Plant-Equipment Register'!K30=\"5 yearly\",1826,\"\")))))))))))","v":""},{"$f":"IF(AND('Plant-Equipment Register'!A24<>\"Date:\",'Plant-Equipment Register'!A24<>\"PVID:\",'Plant-Equipment Register'!A24<>\"Camp/Base:\",'Plant-Equipment Register'!A24<>\"\",'Plant-Equipment Register'!A24<>\"Construction Vehicles, Plant and Equipment\",'Plant-Equipment Register'!A24<>\"Vehicle/Plant/Equipment\"),ROW()-1,\"\")","v":""}]
["Landguard Bluff","LAN",null,null,{"$f":"IF('Plant-Equipment Register'!H31=\"Daily\",1,IF('Plant-Equipment Register'!H31=\"Weekly\",7,IF('Plant-Equipment Register'!H31=\"Fortnightly\",7,IF('Plant-Equipment Register'!H31=\"Monthly\",30,IF('Plant-Equipment Register'!H31=\"2 monthly\",61,IF('Plant-Equipment Register'!H31=\"3 monthly\",92,IF('Plant-Equipment Register'!H31=\"6 monthly\",183,IF('Plant-Equipment Register'!H31=\"Yearly\",365,IF('Plant-Equipment Register'!H31=\"2 yearly\",730,IF('Plant-Equipment Register'!H31=\"3 yearly\",1095,IF('Plant-Equipment Register'!H31=\"5 yearly\",1826,\"\")))))))))))","v":""},{"$f":"IF('Plant-Equipment Register'!K31=\"Daily\",1,IF('Plant-Equipment Register'!K31=\"Weekly\",7,IF('Plant-Equipment Register'!K31=\"Fortnightly\",7,IF('Plant-Equipment Register'!K31=\"Monthly\",30,IF('Plant-Equipment Register'!K31=\"2 monthly\",61,IF('Plant-Equipment Register'!K31=\"3 monthly\",92,IF('Plant-Equipment Register'!K31=\"6 montly\",183,IF('Plant-Equipment Register'!K31=\"Yearly\",365,IF('Plant-Equipment Register'!K31=\"2 yearly\",730,IF('Plant-Equipment Register'!K31=\"3 Yearly\",1095,IF('Plant-Equipment Register'!K31=\"5 yearly\",1826,\"\")))))))))))","v":""},{"$f":"IF(AND('Plant-Equipment Register'!A25<>\"Date:\",'Plant-Equipment Register'!A25<>\"PVID:\",'Plant-Equipment Register'!A25<>\"Camp/Base:\",'Plant-Equipment Register'!A25<>\"\",'Plant-Equipment Register'!A25<>\"Construction Vehicles, Plant and Equipment\",'Plant-Equipment Register'!A25<>\"Vehicle/Plant/Equipment\"),ROW()-1,\"\")","v":""}]
["Linton","LIN",null,null,{"$f":"IF('Plant-Equipment Register'!H32=\"Daily\",1,IF('Plant-Equipment Register'!H32=\"Weekly\",7,IF('Plant-Equipment Register'!H32=\"Fortnightly\",7,IF('Plant-Equipment Register'!H32=\"Monthly\",30,IF('Plant-Equipment Register'!H32=\"2 monthly\",61,IF('Plant-Equipment Register'!H32=\"3 monthly\",92,IF('Plant-Equipment Register'!H32=\"6 monthly\",183,IF('Plant-Equipment Register'!H32=\"Yearly\",365,IF('Plant-Equipment Register'!H32=\"2 yearly\",730,IF('Plant-Equipment Register'!H32=\"3 yearly\",1095,IF('Plant-Equipment Register'!H32=\"5 yearly\",1826,\"\")))))))))))","v":""},{"$f":"IF('Plant-Equipment Register'!K32=\"Daily\",1,IF('Plant-Equipment Register'!K32=\"Weekly\",7,IF('Plant-Equipment Register'!K32=\"Fortnightly\",7,IF('Plant-Equipment Register'!K32=\"Monthly\",30,IF('Plant-Equipment Register'!K32=\"2 monthly\",61,IF('Plant-Equipment Register'!K32=\"3 monthly\",92,IF('Plant-Equipment Register'!K32=\"6 montly\",183,IF('Plant-Equipment Register'!K32=\"Yearly\",365,IF('Plant-Equipment Register'!K32=\"2 yearly\",730,IF('Plant-Equipment Register'!K32=\"3 Yearly\",1095,IF('Plant-Equipment Register'!K32=\"5 yearly\",1826,\"\")))))))))))","v":""},{"$f":"IF(AND('Plant-Equipment Register'!A26<>\"Date:\",'Plant-Equipment Register'!A26<>\"PVID:\",'Plant-Equipment Register'!A26<>\"Camp/Base:\",'Plant-Equipment Register'!A26<>\"\",'Plant-Equipment Register'!A26<>\"Construction Vehicles, Plant and Equipment\",'Plant-Equipment Register'!A26<>\"Vehicle/Plant/Equipment\"),ROW()-1,\"\")","v":""}]
["MakoMako","MAK",null,null,{"$f":"IF('Plant-Equipment Register'!H33=\"Daily\",1,IF('Plant-Equipment Register'!H33=\"Weekly\",7,IF('Plant-Equipment Register'!H33=\"Fortnightly\",7,IF('Plant-Equipment Register'!H33=\"Monthly\",30,IF('Plant-Equipment Register'!H33=\"2 monthly\",61,IF('Plant-Equipment Register'!H33=\"3 monthly\",92,IF('Plant-Equipment Register'!H33=\"6 monthly\",183,IF('Plant-Equipment Register'!H33=\"Yearly\",365,IF('Plant-Equipment Register'!H33=\"2 yearly\",730,IF('Plant-Equipment Register'!H33=\"3 yearly\",1095,IF('Plant-Equipment Register'!H33=\"5 yearly\",1826,\"\")))))))))))","v":""},{"$f":"IF('Plant-Equipment Register'!K33=\"Daily\",1,IF('Plant-Equipment Register'!K33=\"Weekly\",7,IF('Plant-Equipment Register'!K33=\"Fortnightly\",7,IF('Plant-Equipment Register'!K33=\"Monthly\",30,IF('Plant-Equipment Register'!K33=\"2 monthly\",61,IF('Plant-Equipment Register'!K33=\"3 monthly\",92,IF('Plant-Equipment Register'!K33=\"6 montly\",183,IF('Plant-Equipment Register'!K33=\"Yearly\",365,IF('Plant-Equipment Register'!K33=\"2 yearly\",730,IF('Plant-Equipment Register'!K33=\"3 Yearly\",1095,IF('Plant-Equipment Register'!K33=\"5 yearly\",1826,\"\")))))))))))","v":""},{"$f":"IF(AND('Plant-Equipment Register'!A27<>\"Date:\",'Plant-Equipment Register'!A27<>\"PVID:\",'Plant-Equipment Register'!A27<>\"Camp/Base:\",'Plant-Equipment Register'!A27<>\"\",'Plant-Equipment Register'!A27<>\"Construction Vehicles, Plant and Equipment\",'Plant-Equipment Register'!A27<>\"Vehicle/Plant/Equipment\"),ROW()-1,\"\")","v":""}]
["Mangaroa","MGA",null,null,{"$f":"IF('Plant-Equipment Register'!H34=\"Daily\",1,IF('Plant-Equipment Register'!H34=\"Weekly\",7,IF('Plant-Equipment Register'!H34=\"Fortnightly\",7,IF('Plant-Equipment Register'!H34=\"Monthly\",30,IF('Plant-Equipment Register'!H34=\"2 monthly\",61,IF('Plant-Equipment Register'!H34=\"3 monthly\",92,IF('Plant-Equipment Register'!H34=\"6 monthly\",183,IF('Plant-Equipment Register'!H34=\"Yearly\",365,IF('Plant-Equipment Register'!H34=\"2 yearly\",730,IF('Plant-Equipment Register'!H34=\"3 yearly\",1095,IF('Plant-Equipment Register'!H34=\"5 yearly\",1826,\"\")))))))))))","v":""},{"$f":"IF('Plant-Equipment Register'!K34=\"Daily\",1,IF('Plant-Equipment Register'!K34=\"Weekly\",7,IF('Plant-Equipment Register'!K34=\"Fortnightly\",7,IF('Plant-Equipment Register'!K34=\"Monthly\",30,IF('Plant-Equipment Register'!K34=\"2 monthly\",61,IF('Plant-Equipment Register'!K34=\"3 monthly\",92,IF('Plant-Equipment Register'!K34=\"6 montly\",183,IF('Plant-Equipment Register'!K34=\"Yearly\",365,IF('Plant-Equipment Register'!K34=\"2 yearly\",730,IF('Plant-Equipment Register'!K34=\"3 Yearly\",1095,IF('Plant-Equipment Register'!K34=\"5 yearly\",1826,\"\")))))))))))","v":""},{"$f":"IF(AND('Plant-Equipment Register'!A28<>\"Date:\",'Plant-Equipment Register'!A28<>\"PVID:\",'Plant-Equipment Register'!A28<>\"Camp/Base:\",'Plant-Equipment Register'!A28<>\"\",'Plant-Equipment Register'!A28<>\"Construction Vehicles, Plant and Equipment\",'Plant-Equipment Register'!A28<>\"Vehicle/Plant/Equipment\"),ROW()-1,\"\")","v":""}]
["Manukau","MAN",null,null,{"$f":"IF('Plant-Equipment Register'!H35=\"Daily\",1,IF('Plant-Equipment Register'!H35=\"Weekly\",7,IF('Plant-Equipment Register'!H35=\"Fortnightly\",7,IF('Plant-Equipment Register'!H35=\"Monthly\",30,IF('Plant-Equipment Register'!H35=\"2 monthly\",61,IF('Plant-Equipment Register'!H35=\"3 monthly\",92,IF('Plant-Equipment Register'!H35=\"6 monthly\",183,IF('Plant-Equipment Register'!H35=\"Yearly\",365,IF('Plant-Equipment Register'!H35=\"2 yearly\",730,IF('Plant-Equipment Register'!H35=\"3 yearly\",1095,IF('Plant-Equipment Register'!H35=\"5 yearly\",1826,\"\")))))))))))","v":""},{"$f":"IF('Plant-Equipment Register'!K35=\"Daily\",1,IF('Plant-Equipment Register'!K35=\"Weekly\",7,IF('Plant-Equipment Register'!K35=\"Fortnightly\",7,IF('Plant-Equipment Register'!K35=\"Monthly\",30,IF('Plant-Equipment Register'!K35=\"2 monthly\",61,IF('Plant-Equipment Register'!K35=\"3 monthly\",92,IF('Plant-Equipment Register'!K35=\"6 montly\",183,IF('Plant-Equipment Register'!K35=\"Yearly\",365,IF('Plant-Equipment Register'!K35=\"2 yearly\",730,IF('Plant-Equipment Register'!K35=\"3 Yearly\",1095,IF('Plant-Equipment Register'!K35=\"5 yearly\",1826,\"\")))))))))))","v":""},{"$f":"IF(AND('Plant-Equipment Register'!A29<>\"Date:\",'Plant-Equipment Register'!A29<>\"PVID:\",'Plant-Equipment Register'!A29<>\"Camp/Base:\",'Plant-Equipment Register'!A29<>\"\",'Plant-Equipment Register'!A29<>\"Construction Vehicles, Plant and Equipment\",'Plant-Equipment Register'!A29<>\"Vehicle/Plant/Equipment\"),ROW()-1,\"\")","v":""}]
["Mt Maunganui","MTM",null,null,{"$f":"IF('Plant-Equipment Register'!H36=\"Daily\",1,IF('Plant-Equipment Register'!H36=\"Weekly\",7,IF('Plant-Equipment Register'!H36=\"Fortnightly\",7,IF('Plant-Equipment Register'!H36=\"Monthly\",30,IF('Plant-Equipment Register'!H36=\"2 monthly\",61,IF('Plant-Equipment Register'!H36=\"3 monthly\",92,IF('Plant-Equipment Register'!H36=\"6 monthly\",183,IF('Plant-Equipment Register'!H36=\"Yearly\",365,IF('Plant-Equipment Register'!H36=\"2 yearly\",730,IF('Plant-Equipment Register'!H36=\"3 yearly\",1095,IF('Plant-Equipment Register'!H36=\"5 yearly\",1826,\"\")))))))))))","v":""},{"$f":"IF('Plant-Equipment Register'!K36=\"Daily\",1,IF('Plant-Equipment Register'!K36=\"Weekly\",7,IF('Plant-Equipment Register'!K36=\"Fortnightly\",7,IF('Plant-Equipment Register'!K36=\"Monthly\",30,IF('Plant-Equipment Register'!K36=\"2 monthly\",61,IF('Plant-Equipment Register'!K36=\"3 monthly\",92,IF('Plant-Equipment Register'!K36=\"6 montly\",183,IF('Plant-Equipment Register'!K36=\"Yearly\",365,IF('Plant-Equipment Register'!K36=\"2 yearly\",730,IF('Plant-Equipment Register'!K36=\"3 Yearly\",1095,IF('Plant-Equipment Register'!K36=\"5 yearly\",1826,\"\")))))))))))","v":""},{"$f":"IF(AND('Plant-Equipment Register'!A30<>\"Date:\",'Plant-Equipment Register'!A30<>\"PVID:\",'Plant-Equipment Register'!A30<>\"Camp/Base:\",'Plant-Equipment Register'!A30<>\"\",'Plant-Equipment Register'!A30<>\"Construction Vehicles, Plant and Equipment\",'Plant-Equipment Register'!A30<>\"Vehicle/Plant/Equipment\"),ROW()-1,\"\")","v":""}]
["Napier","NPN",null,null,{"$f":"IF('Plant-Equipment Register'!#REF!=\"Daily\",1,IF('Plant-Equipment Register'!#REF!=\"Weekly\",7,IF('Plant-Equipment Register'!#REF!=\"Fortnightly\",7,IF('Plant-Equipment Register'!#REF!=\"Monthly\",30,IF('Plant-Equipment Register'!#REF!=\"2 monthly\",61,IF('Plant-Equipment Register'!#REF!=\"3 monthly\",92,IF('Plant-Equipment Register'!#REF!=\"6 monthly\",183,IF('Plant-Equipment Register'!#REF!=\"Yearly\",365,IF('Plant-Equipment Register'!#REF!=\"2 yearly\",730,IF('Plant-Equipment Register'!#REF!=\"3 yearly\",1095,IF('Plant-Equipment Register'!#REF!=\"5 yearly\",1826,\"\")))))))))))","v":{"$error":"#REF!"}},{"$f":"IF('Plant-Equipment Register'!#REF!=\"Daily\",1,IF('Plant-Equipment Register'!#REF!=\"Weekly\",7,IF('Plant-Equipment Register'!#REF!=\"Fortnightly\",7,IF('Plant-Equipment Register'!#REF!=\"Monthly\",30,IF('Plant-Equipment Register'!#REF!=\"2 monthly\",61,IF('Plant-Equipment Register'!#REF!=\"3 monthly\",92,IF('Plant-Equipment Register'!#REF!=\"6 montly\",183,IF('Plant-Equipment Register'!#REF!=\"Yearly\",365,IF('Plant-Equipment Register'!#REF!=\"2 yearly\",730,IF('Plant-Equipment Register'!#REF!=\"3 Yearly\",1095,IF('Plant-Equipment Register'!#REF!=\"5 yearly\",1826,\"\")))))))))))","v":{"$error":"#REF!"}},{"$f":"IF(AND('Plant-Equipment Register'!A31<>\"Date:\",'Plant-Equipment Register'!A31<>\"PVID:\",'Plant-Equipment Register'!A31<>\"Camp/Base:\",'Plant-Equipment Register'!A31<>\"\",'Plant-Equipment Register'!A31<>\"Construction Vehicles, Plant and Equipment\",'Plant-Equipment Register'!A31<>\"Vehicle/Plant/Equipment\"),ROW()-1,\"\")","v":""}]
["Narrow Neck","NNK",null,null,{"$f":"IF('Plant-Equipment Register'!H37=\"Daily\",1,IF('Plant-Equipment Register'!H37=\"Weekly\",7,IF('Plant-Equipment Register'!H37=\"Fortnightly\",7,IF('Plant-Equipment Register'!H37=\"Monthly\",30,IF('Plant-Equipment Register'!H37=\"2 monthly\",61,IF('Plant-Equipment Register'!H37=\"3 monthly\",92,IF('Plant-Equipment Register'!H37=\"6 monthly\",183,IF('Plant-Equipment Register'!H37=\"Yearly\",365,IF('Plant-Equipment Register'!H37=\"2 yearly\",730,IF('Plant-Equipment Register'!H37=\"3 yearly\",1095,IF('Plant-Equipment Register'!H37=\"5 yearly\",1826,\"\")))))))))))","v":""},{"$f":"IF('Plant-Equipment Register'!K37=\"Daily\",1,IF('Plant-Equipment Register'!K37=\"Weekly\",7,IF('Plant-Equipment Register'!K37=\"Fortnightly\",7,IF('Plant-Equipment Register'!K37=\"Monthly\",30,IF('Plant-Equipment Register'!K37=\"2 monthly\",61,IF('Plant-Equipment Register'!K37=\"3 monthly\",92,IF('Plant-Equipment Register'!K37=\"6 montly\",183,IF('Plant-Equipment Register'!K37=\"Yearly\",365,IF('Plant-Equipment Register'!K37=\"2 yearly\",730,IF('Plant-Equipment Register'!K37=\"3 Yearly\",1095,IF('Plant-Equipment Register'!K37=\"5 yearly\",1826,\"\")))))))))))","v":""},{"$f":"IF(AND('Plant-Equipment Register'!A32<>\"Date:\",'Plant-Equipment Register'!A32<>\"PVID:\",'Plant-Equipment Register'!A32<>\"Camp/Base:\",'Plant-Equipment Register'!A32<>\"\",'Plant-Equipment Register'!A32<>\"Construction Vehicles, Plant and Equipment\",'Plant-Equipment Register'!A32<>\"Vehicle/Plant/Equipment\"),ROW()-1,\"\")","v":""}]
["Nelson","NSN",null,null,{"$f":"IF('Plant-Equipment Register'!H38=\"Daily\",1,IF('Plant-Equipment Register'!H38=\"Weekly\",7,IF('Plant-Equipment Register'!H38=\"Fortnightly\",7,IF('Plant-Equipment Register'!H38=\"Monthly\",30,IF('Plant-Equipment Register'!H38=\"2 monthly\",61,IF('Plant-Equipment Register'!H38=\"3 monthly\",92,IF('Plant-Equipment Register'!H38=\"6 monthly\",183,IF('Plant-Equipment Register'!H38=\"Yearly\",365,IF('Plant-Equipment Register'!H38=\"2 yearly\",730,IF('Plant-Equipment Register'!H38=\"3 yearly\",1095,IF('Plant-Equipment Register'!H38=\"5 yearly\",1826,\"\")))))))))))","v":""},{"$f":"IF('Plant-Equipment Register'!K38=\"Daily\",1,IF('Plant-Equipment Register'!K38=\"Weekly\",7,IF('Plant-Equipment Register'!K38=\"Fortnightly\",7,IF('Plant-Equipment Register'!K38=\"Monthly\",30,IF('Plant-Equipment Register'!K38=\"2 monthly\",61,IF('Plant-Equipment Register'!K38=\"3 monthly\",92,IF('Plant-Equipment Register'!K38=\"6 montly\",183,IF('Plant-Equipment Register'!K38=\"Yearly\",365,IF('Plant-Equipment Register'!K38=\"2 yearly\",730,IF('Plant-Equipment Register'!K38=\"3 Yearly\",1095,IF('Plant-Equipment Register'!K38=\"5 yearly\",1826,\"\")))))))))))","v":""},{"$f":"IF(AND('Plant-Equipment Register'!A33<>\"Date:\",'Plant-Equipment Register'!A33<>\"PVID:\",'Plant-Equipment Register'!A33<>\"Camp/Base:\",'Plant-Equipment Register'!A33<>\"\",'Plant-Equipment Register'!A33<>\"Construction Vehicles, Plant and Equipment\",'Plant-Equipment Register'!A33<>\"Vehicle/Plant/Equipment\"),ROW()-1,\"\")","v":""}]
["New Plymouth","NPH",null,null,{"$f":"IF('Plant-Equipment Register'!H39=\"Daily\",1,IF('Plant-Equipment Register'!H39=\"Weekly\",7,IF('Plant-Equipment Register'!H39=\"Fortnightly\",7,IF('Plant-Equipment Register'!H39=\"Monthly\",30,IF('Plant-Equipment Register'!H39=\"2 monthly\",61,IF('Plant-Equipment Register'!H39=\"3 monthly\",92,IF('Plant-Equipment Register'!H39=\"6 monthly\",183,IF('Plant-Equipment Register'!H39=\"Yearly\",365,IF('Plant-Equipment Register'!H39=\"2 yearly\",730,IF('Plant-Equipment Register'!H39=\"3 yearly\",1095,IF('Plant-Equipment Register'!H39=\"5 yearly\",1826,\"\")))))))))))","v":""},{"$f":"IF('Plant-Equipment Register'!K39=\"Daily\",1,IF('Plant-Equipment Register'!K39=\"Weekly\",7,IF('Plant-Equipment Register'!K39=\"Fortnightly\",7,IF('Plant-Equipment Register'!K39=\"Monthly\",30,IF('Plant-Equipment Register'!K39=\"2 monthly\",61,IF('Plant-Equipment Register'!K39=\"3 monthly\",92,IF('Plant-Equipment Register'!K39=\"6 montly\",183,IF('Plant-Equipment Register'!K39=\"Yearly\",365,IF('Plant-Equipment Register'!K39=\"2 yearly\",730,IF('Plant-Equipment Register'!K39=\"3 Yearly\",1095,IF('Plant-Equipment Register'!K39=\"5 yearly\",1826,\"\")))))))))))","v":""},{"$f":"IF(AND('Plant-Equipment Register'!A34<>\"Date:\",'Plant-Equipment Register'!A34<>\"PVID:\",'Plant-Equipment Register'!A34<>\"Camp/Base:\",'Plant-Equipment Register'!A34<>\"\",'Plant-Equipment Register'!A34<>\"Construction Vehicles, Plant and Equipment\",'Plant-Equipment Register'!A34<>\"Vehicle/Plant/Equipment\"),ROW()-1,\"\")","v":""}]
["Ngataringa Bay","NGA",null,null,{"$f":"IF('Plant-Equipment Register'!H40=\"Daily\",1,IF('Plant-Equipment Register'!H40=\"Weekly\",7,IF('Plant-Equipment Register'!H40=\"Fortnightly\",7,IF('Plant-Equipment Register'!H40=\"Monthly\",30,IF('Plant-Equipment Register'!H40=\"2 monthly\",61,IF('Plant-Equipment Register'!H40=\"3 monthly\",92,IF('Plant-Equipment Register'!H40=\"6 monthly\",183,IF('Plant-Equipment Register'!H40=\"Yearly\",365,IF('Plant-Equipment Register'!H40=\"2 yearly\",730,IF('Plant-Equipment Register'!H40=\"3 yearly\",1095,IF('Plant-Equipment Register'!H40=\"5 yearly\",1826,\"\")))))))))))","v":""},{"$f":"IF('Plant-Equipment Register'!K40=\"Daily\",1,IF('Plant-Equipment Register'!K40=\"Weekly\",7,IF('Plant-Equipment Register'!K40=\"Fortnightly\",7,IF('Plant-Equipment Register'!K40=\"Monthly\",30,IF('Plant-Equipment Register'!K40=\"2 monthly\",61,IF('Plant-Equipment Register'!K40=\"3 monthly\",92,IF('Plant-Equipment Register'!K40=\"6 montly\",183,IF('Plant-Equipment Register'!K40=\"Yearly\",365,IF('Plant-Equipment Register'!K40=\"2 yearly\",730,IF('Plant-Equipment Register'!K40=\"3 Yearly\",1095,IF('Plant-Equipment Register'!K40=\"5 yearly\",1826,\"\")))))))))))","v":""},{"$f":"IF(AND('Plant-Equipment Register'!A35<>\"Date:\",'Plant-Equipment Register'!A35<>\"PVID:\",'Plant-Equipment Register'!A35<>\"Camp/Base:\",'Plant-Equipment Register'!A35<>\"\",'Plant-Equipment Register'!A35<>\"Construction Vehicles, Plant and Equipment\",'Plant-Equipment Register'!A35<>\"Vehicle/Plant/Equipment\"),ROW()-1,\"\")","v":""}]
["North Shore","NSH",null,null,{"$f":"IF('Plant-Equipment Register'!H41=\"Daily\",1,IF('Plant-Equipment Register'!H41=\"Weekly\",7,IF('Plant-Equipment Register'!H41=\"Fortnightly\",7,IF('Plant-Equipment Register'!H41=\"Monthly\",30,IF('Plant-Equipment Register'!H41=\"2 monthly\",61,IF('Plant-Equipment Register'!H41=\"3 monthly\",92,IF('Plant-Equipment Register'!H41=\"6 monthly\",183,IF('Plant-Equipment Register'!H41=\"Yearly\",365,IF('Plant-Equipment Register'!H41=\"2 yearly\",730,IF('Plant-Equipment Register'!H41=\"3 yearly\",1095,IF('Plant-Equipment Register'!H41=\"5 yearly\",1826,\"\")))))))))))","v":""},{"$f":"IF('Plant-Equipment Register'!K41=\"Daily\",1,IF('Plant-Equipment Register'!K41=\"Weekly\",7,IF('Plant-Equipment Register'!K41=\"Fortnightly\",7,IF('Plant-Equipment Register'!K41=\"Monthly\",30,IF('Plant-Equipment Register'!K41=\"2 monthly\",61,IF('Plant-Equipment Register'!K41=\"3 monthly\",92,IF('Plant-Equipment Register'!K41=\"6 montly\",183,IF('Plant-Equipment Register'!K41=\"Yearly\",365,IF('Plant-Equipment Register'!K41=\"2 yearly\",730,IF('Plant-Equipment Register'!K41=\"3 Yearly\",1095,IF('Plant-Equipment Register'!K41=\"5 yearly\",1826,\"\")))))))))))","v":""},{"$f":"IF(AND('Plant-Equipment Register'!A36<>\"Date:\",'Plant-Equipment Register'!A36<>\"PVID:\",'Plant-Equipment Register'!A36<>\"Camp/Base:\",'Plant-Equipment Register'!A36<>\"\",'Plant-Equipment Register'!A36<>\"Construction Vehicles, Plant and Equipment\",'Plant-Equipment Register'!A36<>\"Vehicle/Plant/Equipment\"),ROW()-1,\"\")","v":""}]
["Oamaru","OAM",null,null,{"$f":"IF('Plant-Equipment Register'!H42=\"Daily\",1,IF('Plant-Equipment Register'!H42=\"Weekly\",7,IF('Plant-Equipment Register'!H42=\"Fortnightly\",7,IF('Plant-Equipment Register'!H42=\"Monthly\",30,IF('Plant-Equipment Register'!H42=\"2 monthly\",61,IF('Plant-Equipment Register'!H42=\"3 monthly\",92,IF('Plant-Equipment Register'!H42=\"6 monthly\",183,IF('Plant-Equipment Register'!H42=\"Yearly\",365,IF('Plant-Equipment Register'!H42=\"2 yearly\",730,IF('Plant-Equipment Register'!H42=\"3 yearly\",1095,IF('Plant-Equipment Register'!H42=\"5 yearly\",1826,\"\")))))))))))","v":""},{"$f":"IF('Plant-Equipment Register'!K42=\"Daily\",1,IF('Plant-Equipment Register'!K42=\"Weekly\",7,IF('Plant-Equipment Register'!K42=\"Fortnightly\",7,IF('Plant-Equipment Register'!K42=\"Monthly\",30,IF('Plant-Equipment Register'!K42=\"2 monthly\",61,IF('Plant-Equipment Register'!K42=\"3 monthly\",92,IF('Plant-Equipment Register'!K42=\"6 montly\",183,IF('Plant-Equipment Register'!K42=\"Yearly\",365,IF('Plant-Equipment Register'!K42=\"2 yearly\",730,IF('Plant-Equipment Register'!K42=\"3 Yearly\",1095,IF('Plant-Equipment Register'!K42=\"5 yearly\",1826,\"\")))))))))))","v":""},{"$f":"IF(AND('Plant-Equipment Register'!#REF!<>\"Date:\",'Plant-Equipment Register'!#REF!<>\"PVID:\",'Plant-Equipment Register'!#REF!<>\"Camp/Base:\",'Plant-Equipment Register'!#REF!<>\"\",'Plant-Equipment Register'!#REF!<>\"Construction Vehicles, Plant and Equipment\",'Plant-Equipment Register'!#REF!<>\"Vehicle/Plant/Equipment\"),ROW()-1,\"\")","v":{"$error":"#REF!"}}]
["Ohakea","OHA",null,null,{"$f":"IF('Plant-Equipment Register'!H43=\"Daily\",1,IF('Plant-Equipment Register'!H43=\"Weekly\",7,IF('Plant-Equipment Register'!H43=\"Fortnightly\",7,IF('Plant-Equipment Register'!H43=\"Monthly\",30,IF('Plant-Equipment Register'!H43=\"2 monthly\",61,IF('Plant-Equipment Register'!H43=\"3 monthly\",92,IF('Plant-Equipment Register'!H43=\"6 monthly\",183,IF('Plant-Equipment Register'!H43=\"Yearly\",365,IF('Plant-Equipment Register'!H43=\"2 yearly\",730,IF('Plant-Equipment Register'!H43=\"3 yearly\",1095,IF('Plant-Equipment Register'!H43=\"5 yearly\",1826,\"\")))))))))))","v":""},{"$f":"IF('Plant-Equipment Register'!K43=\"Daily\",1,IF('Plant-Equipment Register'!K43=\"Weekly\",7,IF('Plant-Equipment Register'!K43=\"Fortnightly\",7,IF('Plant-Equipment Register'!K43=\"Monthly\",30,IF('Plant-Equipment Register'!K43=\"2 monthly\",61,IF('Plant-Equipment Register'!K43=\"3 monthly\",92,IF('Plant-Equipment Register'!K43=\"6 montly\",183,IF('Plant-Equipment Register'!K43=\"Yearly\",365,IF('Plant-Equipment Register'!K43=\"2 yearly\",730,IF('Plant-Equipment Register'!K43=\"3 Yearly\",1095,IF('Plant-Equipment Register'!K43=\"5 yearly\",1826,\"\")))))))))))","v":""},{"$f":"IF(AND('Plant-Equipment Register'!A37<>\"Date:\",'Plant-Equipment Register'!A37<>\"PVID:\",'Plant-Equipment Register'!A37<>\"Camp/Base:\",'Plant-Equipment Register'!A37<>\"\",'Plant-Equipment Register'!A37<>\"Construction Vehicles, Plant and Equipment\",'Plant-Equipment Register'!A37<>\"Vehicle/Plant/Equipment\"),ROW()-1,\"\")","v":""}]
["Palmerston North","PNH",null,null,{"$f":"IF('Plant-Equipment Register'!H44=\"Daily\",1,IF('Plant-Equipment Register'!H44=\"Weekly\",7,IF('Plant-Equipment Register'!H44=\"Fortnightly\",7,IF('Plant-Equipment Register'!H44=\"Monthly\",30,IF('Plant-Equipment Register'!H44=\"2 monthly\",61,IF('Plant-Equipment Register'!H44=\"3 monthly\",92,IF('Plant-Equipment Register'!H44=\"6 monthly\",183,IF('Plant-Equipment Register'!H44=\"Yearly\",365,IF('Plant-Equipment Register'!H44=\"2 yearly\",730,IF('Plant-Equipment Register'!H44=\"3 yearly\",1095,IF('Plant-Equipment Register'!H44=\"5 yearly\",1826,\"\")))))))))))","v":""},{"$f":"IF('Plant-Equipment Register'!K44=\"Daily\",1,IF('Plant-Equipment Register'!K44=\"Weekly\",7,IF('Plant-Equipment Register'!K44=\"Fortnightly\",7,IF('Plant-Equipment Register'!K44=\"Monthly\",30,IF('Plant-Equipment Register'!K44=\"2 monthly\",61,IF('Plant-Equipment Register'!K44=\"3 monthly\",92,IF('Plant-Equipment Register'!K44=\"6 montly\",183,IF('Plant-Equipment Register'!K44=\"Yearly\",365,IF('Plant-Equipment Register'!K44=\"2 yearly\",730,IF('Plant-Equipment Register'!K44=\"3 Yearly\",1095,IF('Plant-Equipment Register'!K44=\"5 yearly\",1826,\"\")))))))))))","v":""},{"$f":"IF(AND('Plant-Equipment Register'!A38<>\"Date:\",'Plant-Equipment Register'!A38<>\"PVID:\",'Plant-Equipment Register'!A38<>\"Camp/Base:\",'Plant-Equipment Register'!A38<>\"\",'Plant-Equipment Register'!A38<>\"Construction Vehicles, Plant and Equipment\",'Plant-Equipment Register'!A38<>\"Vehicle/Plant/Equipment\"),ROW()-1,\"\")","v":""}]
["Papakura","PAP",null,null,{"$f":"IF('Plant-Equipment Register'!H45=\"Daily\",1,IF('Plant-Equipment Register'!H45=\"Weekly\",7,IF('Plant-Equipment Register'!H45=\"Fortnightly\",7,IF('Plant-Equipment Register'!H45=\"Monthly\",30,IF('Plant-Equipment Register'!H45=\"2 monthly\",61,IF('Plant-Equipment Register'!H45=\"3 monthly\",92,IF('Plant-Equipment Register'!H45=\"6 monthly\",183,IF('Plant-Equipment Register'!H45=\"Yearly\",365,IF('Plant-Equipment Register'!H45=\"2 yearly\",730,IF('Plant-Equipment Register'!H45=\"3 yearly\",1095,IF('Plant-Equipment Register'!H45=\"5 yearly\",1826,\"\")))))))))))","v":""},{"$f":"IF('Plant-Equipment Register'!K45=\"Daily\",1,IF('Plant-Equipment Register'!K45=\"Weekly\",7,IF('Plant-Equipment Register'!K45=\"Fortnightly\",7,IF('Plant-Equipment Register'!K45=\"Monthly\",30,IF('Plant-Equipment Register'!K45=\"2 monthly\",61,IF('Plant-Equipment Register'!K45=\"3 monthly\",92,IF('Plant-Equipment Register'!K45=\"6 montly\",183,IF('Plant-Equipment Register'!K45=\"Yearly\",365,IF('Plant-Equipment Register'!K45=\"2 yearly\",730,IF('Plant-Equipment Register'!K45=\"3 Yearly\",1095,IF('Plant-Equipment Register'!K45=\"5 yearly\",1826,\"\")))))))))))","v":""},{"$f":"IF(AND('Plant-Equipment Register'!A39<>\"Date:\",'Plant-Equipment Register'!A39<>\"PVID:\",'Plant-Equipment Register'!A39<>\"Camp/Base:\",'Plant-Equipment Register'!A39<>\"\",'Plant-Equipment Register'!A39<>\"Construction Vehicles, Plant and Equipment\",'Plant-Equipment Register'!A39<>\"Vehicle/Plant/Equipment\"),ROW()-1,\"\")","v":""}]
["Pegasus Facility (Christchurch City)","PEG",null,null,{"$f":"IF('Plant-Equipment Register'!H46=\"Daily\",1,IF('Plant-Equipment Register'!H46=\"Weekly\",7,IF('Plant-Equipment Register'!H46=\"Fortnightly\",7,IF('Plant-Equipment Register'!H46=\"Monthly\",30,IF('Plant-Equipment Register'!H46=\"2 monthly\",61,IF('Plant-Equipment Register'!H46=\"3 monthly\",92,IF('Plant-Equipment Register'!H46=\"6 monthly\",183,IF('Plant-Equipment Register'!H46=\"Yearly\",365,IF('Plant-Equipment Register'!H46=\"2 yearly\",730,IF('Plant-Equipment Register'!H46=\"3 yearly\",1095,IF('Plant-Equipment Register'!H46=\"5 yearly\",1826,\"\")))))))))))","v":""},{"$f":"IF('Plant-Equipment Register'!K46=\"Daily\",1,IF('Plant-Equipment Register'!K46=\"Weekly\",7,IF('Plant-Equipment Register'!K46=\"Fortnightly\",7,IF('Plant-Equipment Register'!K46=\"Monthly\",30,IF('Plant-Equipment Register'!K46=\"2 monthly\",61,IF('Plant-Equipment Register'!K46=\"3 monthly\",92,IF('Plant-Equipment Register'!K46=\"6 montly\",183,IF('Plant-Equipment Register'!K46=\"Yearly\",365,IF('Plant-Equipment Register'!K46=\"2 yearly\",730,IF('Plant-Equipment Register'!K46=\"3 Yearly\",1095,IF('Plant-Equipment Register'!K46=\"5 yearly\",1826,\"\")))))))))))","v":""},{"$f":"IF(AND('Plant-Equipment Register'!A40<>\"Date:\",'Plant-Equipment Register'!A40<>\"PVID:\",'Plant-Equipment Register'!A40<>\"Camp/Base:\",'Plant-Equipment Register'!A40<>\"\",'Plant-Equipment Register'!A40<>\"Construction Vehicles, Plant and Equipment\",'Plant-Equipment Register'!A40<>\"Vehicle/Plant/Equipment\"),ROW()-1,\"\")","v":""}]
["Raumai","RAU",null,null,{"$f":"IF('Plant-Equipment Register'!H47=\"Daily\",1,IF('Plant-Equipment Register'!H47=\"Weekly\",7,IF('Plant-Equipment Register'!H47=\"Fortnightly\",7,IF('Plant-Equipment Register'!H47=\"Monthly\",30,IF('Plant-Equipment Register'!H47=\"2 monthly\",61,IF('Plant-Equipment Register'!H47=\"3 monthly\",92,IF('Plant-Equipment Register'!H47=\"6 monthly\",183,IF('Plant-Equipment Register'!H47=\"Yearly\",365,IF('Plant-Equipment Register'!H47=\"2 yearly\",730,IF('Plant-Equipment Register'!H47=\"3 yearly\",1095,IF('Plant-Equipment Register'!H47=\"5 yearly\",1826,\"\")))))))))))","v":""},{"$f":"IF('Plant-Equipment Register'!K47=\"Daily\",1,IF('Plant-Equipment Register'!K47=\"Weekly\",7,IF('Plant-Equipment Register'!K47=\"Fortnightly\",7,IF('Plant-Equipment Register'!K47=\"Monthly\",30,IF('Plant-Equipment Register'!K47=\"2 monthly\",61,IF('Plant-Equipment Register'!K47=\"3 monthly\",92,IF('Plant-Equipment Register'!K47=\"6 montly\",183,IF('Plant-Equipment Register'!K47=\"Yearly\",365,IF('Plant-Equipment Register'!K47=\"2 yearly\",730,IF('Plant-Equipment Register'!K47=\"3 Yearly\",1095,IF('Plant-Equipment Register'!K47=\"5 yearly\",1826,\"\")))))))))))","v":""},{"$f":"IF(AND('Plant-Equipment Register'!A41<>\"Date:\",'Plant-Equipment Register'!A41<>\"PVID:\",'Plant-Equipment Register'!A41<>\"Camp/Base:\",'Plant-Equipment Register'!A41<>\"\",'Plant-Equipment Register'!A41<>\"Construction Vehicles, Plant and Equipment\",'Plant-Equipment Register'!A41<>\"Vehicle/Plant/Equipment\"),ROW()-1,\"\")","v":""}]
["Rotorua","ROT",null,null,{"$f":"IF('Plant-Equipment Register'!H48=\"Daily\",1,IF('Plant-Equipment Register'!H48=\"Weekly\",7,IF('Plant-Equipment Register'!H48=\"Fortnightly\",7,IF('Plant-Equipment Register'!H48=\"Monthly\",30,IF('Plant-Equipment Register'!H48=\"2 monthly\",61,IF('Plant-Equipment Register'!H48=\"3 monthly\",92,IF('Plant-Equipment Register'!H48=\"6 monthly\",183,IF('Plant-Equipment Register'!H48=\"Yearly\",365,IF('Plant-Equipment Register'!H48=\"2 yearly\",730,IF('Plant-Equipment Register'!H48=\"3 yearly\",1095,IF('Plant-Equipment Register'!H48=\"5 yearly\",1826,\"\")))))))))))","v":""},{"$f":"IF('Plant-Equipment Register'!K48=\"Daily\",1,IF('Plant-Equipment Register'!K48=\"Weekly\",7,IF('Plant-Equipment Register'!K48=\"Fortnightly\",7,IF('Plant-Equipment Register'!K48=\"Monthly\",30,IF('Plant-Equipment Register'!K48=\"2 monthly\",61,IF('Plant-Equipment Register'!K48=\"3 monthly\",92,IF('Plant-Equipment Register'!K48=\"6 montly\",183,IF('Plant-Equipment Register'!K48=\"Yearly\",365,IF('Plant-Equipment Register'!K48=\"2 yearly\",730,IF('Plant-Equipment Register'!K48=\"3 Yearly\",1095,IF('Plant-Equipment Register'!K48=\"5 yearly\",1826,\"\")))))))))))","v":""},{"$f":"IF(AND('Plant-Equipment Register'!A42<>\"Date:\",'Plant-Equipment Register'!A42<>\"PVID:\",'Plant-Equipment Register'!A42<>\"Camp/Base:\",'Plant-Equipment Register'!A42<>\"\",'Plant-Equipment Register'!A42<>\"Construction Vehicles, Plant and Equipment\",'Plant-Equipment Register'!A42<>\"Vehicle/Plant/Equipment\"),ROW()-1,\"\")","v":""}]
["Roys Rifle","ROY",null,null,{"$f":"IF('Plant-Equipment Register'!H49=\"Daily\",1,IF('Plant-Equipment Register'!H49=\"Weekly\",7,IF('Plant-Equipment Register'!H49=\"Fortnightly\",7,IF('Plant-Equipment Register'!H49=\"Monthly\",30,IF('Plant-Equipment Register'!H49=\"2 monthly\",61,IF('Plant-Equipment Register'!H49=\"3 monthly\",92,IF('Plant-Equipment Register'!H49=\"6 monthly\",183,IF('Plant-Equipment Register'!H49=\"Yearly\",365,IF('Plant-Equipment Register'!H49=\"2 yearly\",730,IF('Plant-Equipment Register'!H49=\"3 yearly\",1095,IF('Plant-Equipment Register'!H49=\"5 yearly\",1826,\"\")))))))))))","v":""},{"$f":"IF('Plant-Equipment Register'!K49=\"Daily\",1,IF('Plant-Equipment Register'!K49=\"Weekly\",7,IF('Plant-Equipment Register'!K49=\"Fortnightly\",7,IF('Plant-Equipment Register'!K49=\"Monthly\",30,IF('Plant-Equipment Register'!K49=\"2 monthly\",61,IF('Plant-Equipment Register'!K49=\"3 monthly\",92,IF('Plant-Equipment Register'!K49=\"6 montly\",183,IF('Plant-Equipment Register'!K49=\"Yearly\",365,IF('Plant-Equipment Register'!K49=\"2 yearly\",730,IF('Plant-Equipment Register'!K49=\"3 Yearly\",1095,IF('Plant-Equipment Register'!K49=\"5 yearly\",1826,\"\")))))))))))","v":""},{"$f":"IF(AND('Plant-Equipment Register'!A43<>\"Date:\",'Plant-Equipment Register'!A43<>\"PVID:\",'Plant-Equipment Register'!A43<>\"Camp/Base:\",'Plant-Equipment Register'!A43<>\"\",'Plant-Equipment Register'!A43<>\"Construction Vehicles, Plant and Equipment\",'Plant-Equipment Register'!A43<>\"Vehicle/Plant/Equipment\"),ROW()-1,\"\")","v":""}]
["Singapore","SIN",null,null,{"$f":"IF('Plant-Equipment Register'!H50=\"Daily\",1,IF('Plant-Equipment Register'!H50=\"Weekly\",7,IF('Plant-Equipment Register'!H50=\"Fortnightly\",7,IF('Plant-Equipment Register'!H50=\"Monthly\",30,IF('Plant-Equipment Register'!H50=\"2 monthly\",61,IF('Plant-Equipment Register'!H50=\"3 monthly\",92,IF('Plant-Equipment Register'!H50=\"6 monthly\",183,IF('Plant-Equipment Register'!H50=\"Yearly\",365,IF('Plant-Equipment Register'!H50=\"2 yearly\",730,IF('Plant-Equipment Register'!H50=\"3 yearly\",1095,IF('Plant-Equipment Register'!H50=\"5 yearly\",1826,\"\")))))))))))","v":""},{"$f":"IF('Plant-Equipment Register'!K50=\"Daily\",1,IF('Plant-Equipment Register'!K50=\"Weekly\",7,IF('Plant-Equipment Register'!K50=\"Fortnightly\",7,IF('Plant-Equipment Register'!K50=\"Monthly\",30,IF('Plant-Equipment Register'!K50=\"2 monthly\",61,IF('Plant-Equipment Register'!K50=\"3 monthly\",92,IF('Plant-Equipment Register'!K50=\"6 montly\",183,IF('Plant-Equipment Register'!K50=\"Yearly\",365,IF('Plant-Equipment Register'!K50=\"2 yearly\",730,IF('Plant-Equipment Register'!K50=\"3 Yearly\",1095,IF('Plant-Equipment Register'!K50=\"5 yearly\",1826,\"\")))))))))))","v":""},{"$f":"IF(AND('Plant-Equipment Register'!A44<>\"Date:\",'Plant-Equipment Register'!A44<>\"PVID:\",'Plant-Equipment Register'!A44<>\"Camp/Base:\",'Plant-Equipment Register'!A44<>\"\",'Plant-Equipment Register'!A44<>\"Construction Vehicles, Plant and Equipment\",'Plant-Equipment Register'!A44<>\"Vehicle/Plant/Equipment\"),ROW()-1,\"\")","v":""}]
["Tauranga","TGA",null,null,{"$f":"IF('Plant-Equipment Register'!H51=\"Daily\",1,IF('Plant-Equipment Register'!H51=\"Weekly\",7,IF('Plant-Equipment Register'!H51=\"Fortnightly\",7,IF('Plant-Equipment Register'!H51=\"Monthly\",30,IF('Plant-Equipment Register'!H51=\"2 monthly\",61,IF('Plant-Equipment Register'!H51=\"3 monthly\",92,IF('Plant-Equipment Register'!H51=\"6 monthly\",183,IF('Plant-Equipment Register'!H51=\"Yearly\",365,IF('Plant-Equipment Register'!H51=\"2 yearly\",730,IF('Plant-Equipment Register'!H51=\"3 yearly\",1095,IF('Plant-Equipment Register'!H51=\"5 yearly\",1826,\"\")))))))))))","v":""},{"$f":"IF('Plant-Equipment Register'!K51=\"Daily\",1,IF('Plant-Equipment Register'!K51=\"Weekly\",7,IF('Plant-Equipment Register'!K51=\"Fortnightly\",7,IF('Plant-Equipment Register'!K51=\"Monthly\",30,IF('Plant-Equipment Register'!K51=\"2 monthly\",61,IF('Plant-Equipment Register'!K51=\"3 monthly\",92,IF('Plant-Equipment Register'!K51=\"6 montly\",183,IF('Plant-Equipment Register'!K51=\"Yearly\",365,IF('Plant-Equipment Register'!K51=\"2 yearly\",730,IF('Plant-Equipment Register'!K51=\"3 Yearly\",1095,IF('Plant-Equipment Register'!K51=\"5 yearly\",1826,\"\")))))))))))","v":""},{"$f":"IF(AND('Plant-Equipment Register'!A45<>\"Date:\",'Plant-Equipment Register'!A45<>\"PVID:\",'Plant-Equipment Register'!A45<>\"Camp/Base:\",'Plant-Equipment Register'!A45<>\"\",'Plant-Equipment Register'!A45<>\"Construction Vehicles, Plant and Equipment\",'Plant-Equipment Register'!A45<>\"Vehicle/Plant/Equipment\"),ROW()-1,\"\")","v":""}]
["Tekapo","TEK",null,null,{"$f":"IF('Plant-Equipment Register'!H52=\"Daily\",1,IF('Plant-Equipment Register'!H52=\"Weekly\",7,IF('Plant-Equipment Register'!H52=\"Fortnightly\",7,IF('Plant-Equipment Register'!H52=\"Monthly\",30,IF('Plant-Equipment Register'!H52=\"2 monthly\",61,IF('Plant-Equipment Register'!H52=\"3 monthly\",92,IF('Plant-Equipment Register'!H52=\"6 monthly\",183,IF('Plant-Equipment Register'!H52=\"Yearly\",365,IF('Plant-Equipment Register'!H52=\"2 yearly\",730,IF('Plant-Equipment Register'!H52=\"3 yearly\",1095,IF('Plant-Equipment Register'!H52=\"5 yearly\",1826,\"\")))))))))))","v":""},{"$f":"IF('Plant-Equipment Register'!K52=\"Daily\",1,IF('Plant-Equipment Register'!K52=\"Weekly\",7,IF('Plant-Equipment Register'!K52=\"Fortnightly\",7,IF('Plant-Equipment Register'!K52=\"Monthly\",30,IF('Plant-Equipment Register'!K52=\"2 monthly\",61,IF('Plant-Equipment Register'!K52=\"3 monthly\",92,IF('Plant-Equipment Register'!K52=\"6 montly\",183,IF('Plant-Equipment Register'!K52=\"Yearly\",365,IF('Plant-Equipment Register'!K52=\"2 yearly\",730,IF('Plant-Equipment Register'!K52=\"3 Yearly\",1095,IF('Plant-Equipment Register'!K52=\"5 yearly\",1826,\"\")))))))))))","v":""},{"$f":"IF(AND('Plant-Equipment Register'!A46<>\"Date:\",'Plant-Equipment Register'!A46<>\"PVID:\",'Plant-Equipment Register'!A46<>\"Camp/Base:\",'Plant-Equipment Register'!A46<>\"\",'Plant-Equipment Register'!A46<>\"Construction Vehicles, Plant and Equipment\",'Plant-Equipment Register'!A46<>\"Vehicle/Plant/Equipment\"),ROW()-1,\"\")","v":""}]
["Timaru","TIM",null,null,{"$f":"IF('Plant-Equipment Register'!H53=\"Daily\",1,IF('Plant-Equipment Register'!H53=\"Weekly\",7,IF('Plant-Equipment Register'!H53=\"Fortnightly\",7,IF('Plant-Equipment Register'!H53=\"Monthly\",30,IF('Plant-Equipment Register'!H53=\"2 monthly\",61,IF('Plant-Equipment Register'!H53=\"3 monthly\",92,IF('Plant-Equipment Register'!H53=\"6 monthly\",183,IF('Plant-Equipment Register'!H53=\"Yearly\",365,IF('Plant-Equipment Register'!H53=\"2 yearly\",730,IF('Plant-Equipment Register'!H53=\"3 yearly\",1095,IF('Plant-Equipment Register'!H53=\"5 yearly\",1826,\"\")))))))))))","v":""},{"$f":"IF('Plant-Equipment Register'!K53=\"Daily\",1,IF('Plant-Equipment Register'!K53=\"Weekly\",7,IF('Plant-Equipment Register'!K53=\"Fortnightly\",7,IF('Plant-Equipment Register'!K53=\"Monthly\",30,IF('Plant-Equipment Register'!K53=\"2 monthly\",61,IF('Plant-Equipment Register'!K53=\"3 monthly\",92,IF('Plant-Equipment Register'!K53=\"6 montly\",183,IF('Plant-Equipment Register'!K53=\"Yearly\",365,IF('Plant-Equipment Register'!K53=\"2 yearly\",730,IF('Plant-Equipment Register'!K53=\"3 Yearly\",1095,IF('Plant-Equipment Register'!K53=\"5 yearly\",1826,\"\")))))))))))","v":""},{"$f":"IF(AND('Plant-Equipment Register'!A47<>\"Date:\",'Plant-Equipment Register'!A47<>\"PVID:\",'Plant-Equipment Register'!A47<>\"Camp/Base:\",'Plant-Equipment Register'!A47<>\"\",'Plant-Equipment Register'!A47<>\"Construction Vehicles, Plant and Equipment\",'Plant-Equipment Register'!A47<>\"Vehicle/Plant/Equipment\"),ROW()-1,\"\")","v":""}]
["Toroa Facility (Dunedin City)","TOR",null,null,{"$f":"IF('Plant-Equipment Register'!H54=\"Daily\",1,IF('Plant-Equipment Register'!H54=\"Weekly\",7,IF('Plant-Equipment Register'!H54=\"Fortnightly\",7,IF('Plant-Equipment Register'!H54=\"Monthly\",30,IF('Plant-Equipment Register'!H54=\"2 monthly\",61,IF('Plant-Equipment Register'!H54=\"3 monthly\",92,IF('Plant-Equipment Register'!H54=\"6 monthly\",183,IF('Plant-Equipment Register'!H54=\"Yearly\",365,IF('Plant-Equipment Register'!H54=\"2 yearly\",730,IF('Plant-Equipment Register'!H54=\"3 yearly\",1095,IF('Plant-Equipment Register'!H54=\"5 yearly\",1826,\"\")))))))))))","v":""},{"$f":"IF('Plant-Equipment Register'!K54=\"Daily\",1,IF('Plant-Equipment Register'!K54=\"Weekly\",7,IF('Plant-Equipment Register'!K54=\"Fortnightly\",7,IF('Plant-Equipment Register'!K54=\"Monthly\",30,IF('Plant-Equipment Register'!K54=\"2 monthly\",61,IF('Plant-Equipment Register'!K54=\"3 monthly\",92,IF('Plant-Equipment Register'!K54=\"6 montly\",183,IF('Plant-Equipment Register'!K54=\"Yearly\",365,IF('Plant-Equipment Register'!K54=\"2 yearly\",730,IF('Plant-Equipment Register'!K54=\"3 Yearly\",1095,IF('Plant-Equipment Register'!K54=\"5 yearly\",1826,\"\")))))))))))","v":""},{"$f":"IF(AND('Plant-Equipment Register'!A48<>\"Date:\",'Plant-Equipment Register'!A48<>\"PVID:\",'Plant-Equipment Register'!A48<>\"Camp/Base:\",'Plant-Equipment Register'!A48<>\"\",'Plant-Equipment Register'!A48<>\"Construction Vehicles, Plant and Equipment\",'Plant-Equipment Register'!A48<>\"Vehicle/Plant/Equipment\"),ROW()-1,\"\")","v":""}]
["Torpedo Bay","TOP",null,null,{"$f":"IF('Plant-Equipment Register'!#REF!=\"Daily\",1,IF('Plant-Equipment Register'!#REF!=\"Weekly\",7,IF('Plant-Equipment Register'!#REF!=\"Fortnightly\",7,IF('Plant-Equipment Register'!#REF!=\"Monthly\",30,IF('Plant-Equipment Register'!#REF!=\"2 monthly\",61,IF('Plant-Equipment Register'!#REF!=\"3 monthly\",92,IF('Plant-Equipment Register'!#REF!=\"6 monthly\",183,IF('Plant-Equipment Register'!#REF!=\"Yearly\",365,IF('Plant-Equipment Register'!#REF!=\"2 yearly\",730,IF('Plant-Equipment Register'!#REF!=\"3 yearly\",1095,IF('Plant-Equipment Register'!#REF!=\"5 yearly\",1826,\"\")))))))))))","v":{"$error":"#REF!"}},{"$f":"IF('Plant-Equipment Register'!#REF!=\"Daily\",1,IF('Plant-Equipment Register'!#REF!=\"Weekly\",7,IF('Plant-Equipment Register'!#REF!=\"Fortnightly\",7,IF('Plant-Equipment Register'!#REF!=\"Monthly\",30,IF('Plant-Equipment Register'!#REF!=\"2 monthly\",61,IF('Plant-Equipment Register'!#REF!=\"3 monthly\",92,IF('Plant-Equipment Register'!#REF!=\"6 montly\",183,IF('Plant-Equipment Register'!#REF!=\"Yearly\",365,IF('Plant-Equipment Register'!#REF!=\"2 yearly\",730,IF('Plant-Equipment Register'!#REF!=\"3 Yearly\",1095,IF('Plant-Equipment Register'!#REF!=\"5 yearly\",1826,\"\")))))))))))","v":{"$error":"#REF!"}},{"$f":"IF(AND('Plant-Equipment Register'!A49<>\"Date:\",'Plant-Equipment Register'!A49<>\"PVID:\",'Plant-Equipment Register'!A49<>\"Camp/Base:\",'Plant-Equipment Register'!A49<>\"\",'Plant-Equipment Register'!A49<>\"Construction Vehicles, Plant and Equipment\",'Plant-Equipment Register'!A49<>\"Vehicle/Plant/Equipment\"),ROW()-1,\"\")","v":""}]
["Trentham","TRN",null,null,{"$f":"IF('Plant-Equipment Register'!H55=\"Daily\",1,IF('Plant-Equipment Register'!H55=\"Weekly\",7,IF('Plant-Equipment Register'!H55=\"Fortnightly\",7,IF('Plant-Equipment Register'!H55=\"Monthly\",30,IF('Plant-Equipment Register'!H55=\"2 monthly\",61,IF('Plant-Equipment Register'!H55=\"3 monthly\",92,IF('Plant-Equipment Register'!H55=\"6 monthly\",183,IF('Plant-Equipment Register'!H55=\"Yearly\",365,IF('Plant-Equipment Register'!H55=\"2 yearly\",730,IF('Plant-Equipment Register'!H55=\"3 yearly\",1095,IF('Plant-Equipment Register'!H55=\"5 yearly\",1826,\"\")))))))))))","v":""},{"$f":"IF('Plant-Equipment Register'!K55=\"Daily\",1,IF('Plant-Equipment Register'!K55=\"Weekly\",7,IF('Plant-Equipment Register'!K55=\"Fortnightly\",7,IF('Plant-Equipment Register'!K55=\"Monthly\",30,IF('Plant-Equipment Register'!K55=\"2 monthly\",61,IF('Plant-Equipment Register'!K55=\"3 monthly\",92,IF('Plant-Equipment Register'!K55=\"6 montly\",183,IF('Plant-Equipment Register'!K55=\"Yearly\",365,IF('Plant-Equipment Register'!K55=\"2 yearly\",730,IF('Plant-Equipment Register'!K55=\"3 Yearly\",1095,IF('Plant-Equipment Register'!K55=\"5 yearly\",1826,\"\")))))))))))","v":""},{"$f":"IF(AND('Plant-Equipment Register'!A50<>\"Date:\",'Plant-Equipment Register'!A50<>\"PVID:\",'Plant-Equipment Register'!A50<>\"Camp/Base:\",'Plant-Equipment Register'!A50<>\"\",'Plant-Equipment Register'!A50<>\"Construction Vehicles, Plant and Equipment\",'Plant-Equipment Register'!A50<>\"Vehicle/Plant/Equipment\"),ROW()-1,\"\")","v":""}]
["Waiouru","WAI",null,null,{"$f":"IF('Plant-Equipment Register'!H56=\"Daily\",1,IF('Plant-Equipment Register'!H56=\"Weekly\",7,IF('Plant-Equipment Register'!H56=\"Fortnightly\",7,IF('Plant-Equipment Register'!H56=\"Monthly\",30,IF('Plant-Equipment Register'!H56=\"2 monthly\",61,IF('Plant-Equipment Register'!H56=\"3 monthly\",92,IF('Plant-Equipment Register'!H56=\"6 monthly\",183,IF('Plant-Equipment Register'!H56=\"Yearly\",365,IF('Plant-Equipment Register'!H56=\"2 yearly\",730,IF('Plant-Equipment Register'!H56=\"3 yearly\",1095,IF('Plant-Equipment Register'!H56=\"5 yearly\",1826,\"\")))))))))))","v":""},{"$f":"IF('Plant-Equipment Register'!K56=\"Daily\",1,IF('Plant-Equipment Register'!K56=\"Weekly\",7,IF('Plant-Equipment Register'!K56=\"Fortnightly\",7,IF('Plant-Equipment Register'!K56=\"Monthly\",30,IF('Plant-Equipment Register'!K56=\"2 monthly\",61,IF('Plant-Equipment Register'!K56=\"3 monthly\",92,IF('Plant-Equipment Register'!K56=\"6 montly\",183,IF('Plant-Equipment Register'!K56=\"Yearly\",365,IF('Plant-Equipment Register'!K56=\"2 yearly\",730,IF('Plant-Equipment Register'!K56=\"3 Yearly\",1095,IF('Plant-Equipment Register'!K56=\"5 yearly\",1826,\"\")))))))))))","v":""},{"$f":"IF(AND('Plant-Equipment Register'!A51<>\"Date:\",'Plant-Equipment Register'!A51<>\"PVID:\",'Plant-Equipment Register'!A51<>\"Camp/Base:\",'Plant-Equipment Register'!A51<>\"\",'Plant-Equipment Register'!A51<>\"Construction Vehicles, Plant and Equipment\",'Plant-Equipment Register'!A51<>\"Vehicle/Plant/Equipment\"),ROW()-1,\"\")","v":""}]
["Waitangi","WTG",null,null,{"$f":"IF('Plant-Equipment Register'!H57=\"Daily\",1,IF('Plant-Equipment Register'!H57=\"Weekly\",7,IF('Plant-Equipment Register'!H57=\"Fortnightly\",7,IF('Plant-Equipment Register'!H57=\"Monthly\",30,IF('Plant-Equipment Register'!H57=\"2 monthly\",61,IF('Plant-Equipment Register'!H57=\"3 monthly\",92,IF('Plant-Equipment Register'!H57=\"6 monthly\",183,IF('Plant-Equipment Register'!H57=\"Yearly\",365,IF('Plant-Equipment Register'!H57=\"2 yearly\",730,IF('Plant-Equipment Register'!H57=\"3 yearly\",1095,IF('Plant-Equipment Register'!H57=\"5 yearly\",1826,\"\")))))))))))","v":""},{"$f":"IF('Plant-Equipment Register'!K57=\"Daily\",1,IF('Plant-Equipment Register'!K57=\"Weekly\",7,IF('Plant-Equipment Register'!K57=\"Fortnightly\",7,IF('Plant-Equipment Register'!K57=\"Monthly\",30,IF('Plant-Equipment Register'!K57=\"2 monthly\",61,IF('Plant-Equipment Register'!K57=\"3 monthly\",92,IF('Plant-Equipment Register'!K57=\"6 montly\",183,IF('Plant-Equipment Register'!K57=\"Yearly\",365,IF('Plant-Equipment Register'!K57=\"2 yearly\",730,IF('Plant-Equipment Register'!K57=\"3 Yearly\",1095,IF('Plant-Equipment Register'!K57=\"5 yearly\",1826,\"\")))))))))))","v":""},{"$f":"IF(AND('Plant-Equipment Register'!A52<>\"Date:\",'Plant-Equipment Register'!A52<>\"PVID:\",'Plant-Equipment Register'!A52<>\"Camp/Base:\",'Plant-Equipment Register'!A52<>\"\",'Plant-Equipment Register'!A52<>\"Construction Vehicles, Plant and Equipment\",'Plant-Equipment Register'!A52<>\"Vehicle/Plant/Equipment\"),ROW()-1,\"\")","v":""}]
["Waitati","WAT",null,null,{"$f":"IF('Plant-Equipment Register'!H58=\"Daily\",1,IF('Plant-Equipment Register'!H58=\"Weekly\",7,IF('Plant-Equipment Register'!H58=\"Fortnightly\",7,IF('Plant-Equipment Register'!H58=\"Monthly\",30,IF('Plant-Equipment Register'!H58=\"2 monthly\",61,IF('Plant-Equipment Register'!H58=\"3 monthly\",92,IF('Plant-Equipment Register'!H58=\"6 monthly\",183,IF('Plant-Equipment Register'!H58=\"Yearly\",365,IF('Plant-Equipment Register'!H58=\"2 yearly\",730,IF('Plant-Equipment Register'!H58=\"3 yearly\",1095,IF('Plant-Equipment Register'!H58=\"5 yearly\",1826,\"\")))))))))))","v":""},{"$f":"IF('Plant-Equipment Register'!K58=\"Daily\",1,IF('Plant-Equipment Register'!K58=\"Weekly\",7,IF('Plant-Equipment Register'!K58=\"Fortnightly\",7,IF('Plant-Equipment Register'!K58=\"Monthly\",30,IF('Plant-Equipment Register'!K58=\"2 monthly\",61,IF('Plant-Equipment Register'!K58=\"3 monthly\",92,IF('Plant-Equipment Register'!K58=\"6 montly\",183,IF('Plant-Equipment Register'!K58=\"Yearly\",365,IF('Plant-Equipment Register'!K58=\"2 yearly\",730,IF('Plant-Equipment Register'!K58=\"3 Yearly\",1095,IF('Plant-Equipment Register'!K58=\"5 yearly\",1826,\"\")))))))))))","v":""},{"$f":"IF(AND('Plant-Equipment Register'!A53<>\"Date:\",'Plant-Equipment Register'!A53<>\"PVID:\",'Plant-Equipment Register'!A53<>\"Camp/Base:\",'Plant-Equipment Register'!A53<>\"\",'Plant-Equipment Register'!A53<>\"Construction Vehicles, Plant and Equipment\",'Plant-Equipment Register'!A53<>\"Vehicle/Plant/Equipment\"),ROW()-1,\"\")","v":""}]
["Weedons","WDN",null,null,{"$f":"IF('Plant-Equipment Register'!H59=\"Daily\",1,IF('Plant-Equipment Register'!H59=\"Weekly\",7,IF('Plant-Equipment Register'!H59=\"Fortnightly\",7,IF('Plant-Equipment Register'!H59=\"Monthly\",30,IF('Plant-Equipment Register'!H59=\"2 monthly\",61,IF('Plant-Equipment Register'!H59=\"3 monthly\",92,IF('Plant-Equipment Register'!H59=\"6 monthly\",183,IF('Plant-Equipment Register'!H59=\"Yearly\",365,IF('Plant-Equipment Register'!H59=\"2 yearly\",730,IF('Plant-Equipment Register'!H59=\"3 yearly\",1095,IF('Plant-Equipment Register'!H59=\"5 yearly\",1826,\"\")))))))))))","v":""},{"$f":"IF('Plant-Equipment Register'!K59=\"Daily\",1,IF('Plant-Equipment Register'!K59=\"Weekly\",7,IF('Plant-Equipment Register'!K59=\"Fortnightly\",7,IF('Plant-Equipment Register'!K59=\"Monthly\",30,IF('Plant-Equipment Register'!K59=\"2 monthly\",61,IF('Plant-Equipment Register'!K59=\"3 monthly\",92,IF('Plant-Equipment Register'!K59=\"6 montly\",183,IF('Plant-Equipment Register'!K59=\"Yearly\",365,IF('Plant-Equipment Register'!K59=\"2 yearly\",730,IF('Plant-Equipment Register'!K59=\"3 Yearly\",1095,IF('Plant-Equipment Register'!K59=\"5 yearly\",1826,\"\")))))))))))","v":""},{"$f":"IF(AND('Plant-Equipment Register'!A54<>\"Date:\",'Plant-Equipment Register'!A54<>\"PVID:\",'Plant-Equipment Register'!A54<>\"Camp/Base:\",'Plant-Equipment Register'!A54<>\"\",'Plant-Equipment Register'!A54<>\"Construction Vehicles, Plant and Equipment\",'Plant-Equipment Register'!A54<>\"Vehicle/Plant/Equipment\"),ROW()-1,\"\")","v":""}]
["Wellington","WLG",null,null,{"$f":"IF('Plant-Equipment Register'!H60=\"Daily\",1,IF('Plant-Equipment Register'!H60=\"Weekly\",7,IF('Plant-Equipment Register'!H60=\"Fortnightly\",7,IF('Plant-Equipment Register'!H60=\"Monthly\",30,IF('Plant-Equipment Register'!H60=\"2 monthly\",61,IF('Plant-Equipment Register'!H60=\"3 monthly\",92,IF('Plant-Equipment Register'!H60=\"6 monthly\",183,IF('Plant-Equipment Register'!H60=\"Yearly\",365,IF('Plant-Equipment Register'!H60=\"2 yearly\",730,IF('Plant-Equipment Register'!H60=\"3 yearly\",1095,IF('Plant-Equipment Register'!H60=\"5 yearly\",1826,\"\")))))))))))","v":""},{"$f":"IF('Plant-Equipment Register'!K60=\"Daily\",1,IF('Plant-Equipment Register'!K60=\"Weekly\",7,IF('Plant-Equipment Register'!K60=\"Fortnightly\",7,IF('Plant-Equipment Register'!K60=\"Monthly\",30,IF('Plant-Equipment Register'!K60=\"2 monthly\",61,IF('Plant-Equipment Register'!K60=\"3 monthly\",92,IF('Plant-Equipment Register'!K60=\"6 montly\",183,IF('Plant-Equipment Register'!K60=\"Yearly\",365,IF('Plant-Equipment Register'!K60=\"2 yearly\",730,IF('Plant-Equipment Register'!K60=\"3 Yearly\",1095,IF('Plant-Equipment Register'!K60=\"5 yearly\",1826,\"\")))))))))))","v":""},{"$f":"IF(AND('Plant-Equipment Register'!#REF!<>\"Date:\",'Plant-Equipment Register'!#REF!<>\"PVID:\",'Plant-Equipment Register'!#REF!<>\"Camp/Base:\",'Plant-Equipment Register'!#REF!<>\"\",'Plant-Equipment Register'!#REF!<>\"Construction Vehicles, Plant and Equipment\",'Plant-Equipment Register'!#REF!<>\"Vehicle/Plant/Equipment\"),ROW()-1,\"\")","v":{"$error":"#REF!"}}]
["West Melton","WMN",null,null,{"$f":"IF('Plant-Equipment Register'!H61=\"Daily\",1,IF('Plant-Equipment Register'!H61=\"Weekly\",7,IF('Plant-Equipment Register'!H61=\"Fortnightly\",7,IF('Plant-Equipment Register'!H61=\"Monthly\",30,IF('Plant-Equipment Register'!H61=\"2 monthly\",61,IF('Plant-Equipment Register'!H61=\"3 monthly\",92,IF('Plant-Equipment Register'!H61=\"6 monthly\",183,IF('Plant-Equipment Register'!H61=\"Yearly\",365,IF('Plant-Equipment Register'!H61=\"2 yearly\",730,IF('Plant-Equipment Register'!H61=\"3 yearly\",1095,IF('Plant-Equipment Register'!H61=\"5 yearly\",1826,\"\")))))))))))","v":""},{"$f":"IF('Plant-Equipment Register'!K61=\"Daily\",1,IF('Plant-Equipment Register'!K61=\"Weekly\",7,IF('Plant-Equipment Register'!K61=\"Fortnightly\",7,IF('Plant-Equipment Register'!K61=\"Monthly\",30,IF('Plant-Equipment Register'!K61=\"2 monthly\",61,IF('Plant-Equipment Register'!K61=\"3 monthly\",92,IF('Plant-Equipment Register'!K61=\"6 montly\",183,IF('Plant-Equipment Register'!K61=\"Yearly\",365,IF('Plant-Equipment Register'!K61=\"2 yearly\",730,IF('Plant-Equipment Register'!K61=\"3 Yearly\",1095,IF('Plant-Equipment Register'!K61=\"5 yearly\",1826,\"\")))))))))))","v":""},{"$f":"IF(AND('Plant-Equipment Register'!A55<>\"Date:\",'Plant-Equipment Register'!A55<>\"PVID:\",'Plant-Equipment Register'!A55<>\"Camp/Base:\",'Plant-Equipment Register'!A55<>\"\",'Plant-Equipment Register'!A55<>\"Construction Vehicles, Plant and Equipment\",'Plant-Equipment Register'!A55<>\"Vehicle/Plant/Equipment\"),ROW()-1,\"\")","v":""}]
["Whanganui","WAN",null,null,{"$f":"IF('Plant-Equipment Register'!H62=\"Daily\",1,IF('Plant-Equipment Register'!H62=\"Weekly\",7,IF('Plant-Equipment Register'!H62=\"Fortnightly\",7,IF('Plant-Equipment Register'!H62=\"Monthly\",30,IF('Plant-Equipment Register'!H62=\"2 monthly\",61,IF('Plant-Equipment Register'!H62=\"3 monthly\",92,IF('Plant-Equipment Register'!H62=\"6 monthly\",183,IF('Plant-Equipment Register'!H62=\"Yearly\",365,IF('Plant-Equipment Register'!H62=\"2 yearly\",730,IF('Plant-Equipment Register'!H62=\"3 yearly\",1095,IF('Plant-Equipment Register'!H62=\"5 yearly\",1826,\"\")))))))))))","v":""},{"$f":"IF('Plant-Equipment Register'!K62=\"Daily\",1,IF('Plant-Equipment Register'!K62=\"Weekly\",7,IF('Plant-Equipment Register'!K62=\"Fortnightly\",7,IF('Plant-Equipment Register'!K62=\"Monthly\",30,IF('Plant-Equipment Register'!K62=\"2 monthly\",61,IF('Plant-Equipment Register'!K62=\"3 monthly\",92,IF('Plant-Equipment Register'!K62=\"6 montly\",183,IF('Plant-Equipment Register'!K62=\"Yearly\",365,IF('Plant-Equipment Register'!K62=\"2 yearly\",730,IF('Plant-Equipment Register'!K62=\"3 Yearly\",1095,IF('Plant-Equipment Register'!K62=\"5 yearly\",1826,\"\")))))))))))","v":""},{"$f":"IF(AND('Plant-Equipment Register'!A56<>\"Date:\",'Plant-Equipment Register'!A56<>\"PVID:\",'Plant-Equipment Register'!A56<>\"Camp/Base:\",'Plant-Equipment Register'!A56<>\"\",'Plant-Equipment Register'!A56<>\"Construction Vehicles, Plant and Equipment\",'Plant-Equipment Register'!A56<>\"Vehicle/Plant/Equipment\"),ROW()-1,\"\")","v":""}]
["Whangaparaoa","WHA",null,null,{"$f":"IF('Plant-Equipment Register'!H63=\"Daily\",1,IF('Plant-Equipment Register'!H63=\"Weekly\",7,IF('Plant-Equipment Register'!H63=\"Fortnightly\",7,IF('Plant-Equipment Register'!H63=\"Monthly\",30,IF('Plant-Equipment Register'!H63=\"2 monthly\",61,IF('Plant-Equipment Register'!H63=\"3 monthly\",92,IF('Plant-Equipment Register'!H63=\"6 monthly\",183,IF('Plant-Equipment Register'!H63=\"Yearly\",365,IF('Plant-Equipment Register'!H63=\"2 yearly\",730,IF('Plant-Equipment Register'!H63=\"3 yearly\",1095,IF('Plant-Equipment Register'!H63=\"5 yearly\",1826,\"\")))))))))))","v":""},{"$f":"IF('Plant-Equipment Register'!K63=\"Daily\",1,IF('Plant-Equipment Register'!K63=\"Weekly\",7,IF('Plant-Equipment Register'!K63=\"Fortnightly\",7,IF('Plant-Equipment Register'!K63=\"Monthly\",30,IF('Plant-Equipment Register'!K63=\"2 monthly\",61,IF('Plant-Equipment Register'!K63=\"3 monthly\",92,IF('Plant-Equipment Register'!K63=\"6 montly\",183,IF('Plant-Equipment Register'!K63=\"Yearly\",365,IF('Plant-Equipment Register'!K63=\"2 yearly\",730,IF('Plant-Equipment Register'!K63=\"3 Yearly\",1095,IF('Plant-Equipment Register'!K63=\"5 yearly\",1826,\"\")))))))))))","v":""},{"$f":"IF(AND('Plant-Equipment Register'!A57<>\"Date:\",'Plant-Equipment Register'!A57<>\"PVID:\",'Plant-Equipment Register'!A57<>\"Camp/Base:\",'Plant-Equipment Register'!A57<>\"\",'Plant-Equipment Register'!A57<>\"Construction Vehicles, Plant and Equipment\",'Plant-Equipment Register'!A57<>\"Vehicle/Plant/Equipment\"),ROW()-1,\"\")","v":""}]
["Whangarei","WEI",null,null,{"$f":"IF('Plant-Equipment Register'!H64=\"Daily\",1,IF('Plant-Equipment Register'!H64=\"Weekly\",7,IF('Plant-Equipment Register'!H64=\"Fortnightly\",7,IF('Plant-Equipment Register'!H64=\"Monthly\",30,IF('Plant-Equipment Register'!H64=\"2 monthly\",61,IF('Plant-Equipment Register'!H64=\"3 monthly\",92,IF('Plant-Equipment Register'!H64=\"6 monthly\",183,IF('Plant-Equipment Register'!H64=\"Yearly\",365,IF('Plant-Equipment Register'!H64=\"2 yearly\",730,IF('Plant-Equipment Register'!H64=\"3 yearly\",1095,IF('Plant-Equipment Register'!H64=\"5 yearly\",1826,\"\")))))))))))","v":""},{"$f":"IF('Plant-Equipment Register'!K64=\"Daily\",1,IF('Plant-Equipment Register'!K64=\"Weekly\",7,IF('Plant-Equipment Register'!K64=\"Fortnightly\",7,IF('Plant-Equipment Register'!K64=\"Monthly\",30,IF('Plant-Equipment Register'!K64=\"2 monthly\",61,IF('Plant-Equipment Register'!K64=\"3 monthly\",92,IF('Plant-Equipment Register'!K64=\"6 montly\",183,IF('Plant-Equipment Register'!K64=\"Yearly\",365,IF('Plant-Equipment Register'!K64=\"2 yearly\",730,IF('Plant-Equipment Register'!K64=\"3 Yearly\",1095,IF('Plant-Equipment Register'!K64=\"5 yearly\",1826,\"\")))))))))))","v":""},{"$f":"IF(AND('Plant-Equipment Register'!A58<>\"Date:\",'Plant-Equipment Register'!A58<>\"PVID:\",'Plant-Equipment Register'!A58<>\"Camp/Base:\",'Plant-Equipment Register'!A58<>\"\",'Plant-Equipment Register'!A58<>\"Construction Vehicles, Plant and Equipment\",'Plant-Equipment Register'!A58<>\"Vehicle/Plant/Equipment\"),ROW()-1,\"\")","v":""}]
["Whenuapai","WHP",null,null,{"$f":"IF('Plant-Equipment Register'!H65=\"Daily\",1,IF('Plant-Equipment Register'!H65=\"Weekly\",7,IF('Plant-Equipment Register'!H65=\"Fortnightly\",7,IF('Plant-Equipment Register'!H65=\"Monthly\",30,IF('Plant-Equipment Register'!H65=\"2 monthly\",61,IF('Plant-Equipment Register'!H65=\"3 monthly\",92,IF('Plant-Equipment Register'!H65=\"6 monthly\",183,IF('Plant-Equipment Register'!H65=\"Yearly\",365,IF('Plant-Equipment Register'!H65=\"2 yearly\",730,IF('Plant-Equipment Register'!H65=\"3 yearly\",1095,IF('Plant-Equipment Register'!H65=\"5 yearly\",1826,\"\")))))))))))","v":""},{"$f":"IF('Plant-Equipment Register'!K65=\"Daily\",1,IF('Plant-Equipment Register'!K65=\"Weekly\",7,IF('Plant-Equipment Register'!K65=\"Fortnightly\",7,IF('Plant-Equipment Register'!K65=\"Monthly\",30,IF('Plant-Equipment Register'!K65=\"2 monthly\",61,IF('Plant-Equipment Register'!K65=\"3 monthly\",92,IF('Plant-Equipment Register'!K65=\"6 montly\",183,IF('Plant-Equipment Register'!K65=\"Yearly\",365,IF('Plant-Equipment Register'!K65=\"2 yearly\",730,IF('Plant-Equipment Register'!K65=\"3 Yearly\",1095,IF('Plant-Equipment Register'!K65=\"5 yearly\",1826,\"\")))))))))))","v":""},{"$f":"IF(AND('Plant-Equipment Register'!A59<>\"Date:\",'Plant-Equipment Register'!A59<>\"PVID:\",'Plant-Equipment Register'!A59<>\"Camp/Base:\",'Plant-Equipment Register'!A59<>\"\",'Plant-Equipment Register'!A59<>\"Construction Vehicles, Plant and Equipment\",'Plant-Equipment Register'!A59<>\"Vehicle/Plant/Equipment\"),ROW()-1,\"\")","v":""}]
["Wigram","WIG",null,null,{"$f":"IF('Plant-Equipment Register'!H66=\"Daily\",1,IF('Plant-Equipment Register'!H66=\"Weekly\",7,IF('Plant-Equipment Register'!H66=\"Fortnightly\",7,IF('Plant-Equipment Register'!H66=\"Monthly\",30,IF('Plant-Equipment Register'!H66=\"2 monthly\",61,IF('Plant-Equipment Register'!H66=\"3 monthly\",92,IF('Plant-Equipment Register'!H66=\"6 monthly\",183,IF('Plant-Equipment Register'!H66=\"Yearly\",365,IF('Plant-Equipment Register'!H66=\"2 yearly\",730,IF('Plant-Equipment Register'!H66=\"3 yearly\",1095,IF('Plant-Equipment Register'!H66=\"5 yearly\",1826,\"\")))))))))))","v":""},{"$f":"IF('Plant-Equipment Register'!K66=\"Daily\",1,IF('Plant-Equipment Register'!K66=\"Weekly\",7,IF('Plant-Equipment Register'!K66=\"Fortnightly\",7,IF('Plant-Equipment Register'!K66=\"Monthly\",30,IF('Plant-Equipment Register'!K66=\"2 monthly\",61,IF('Plant-Equipment Register'!K66=\"3 monthly\",92,IF('Plant-Equipment Register'!K66=\"6 montly\",183,IF('Plant-Equipment Register'!K66=\"Yearly\",365,IF('Plant-Equipment Register'!K66=\"2 yearly\",730,IF('Plant-Equipment Register'!K66=\"3 Yearly\",1095,IF('Plant-Equipment Register'!K66=\"5 yearly\",1826,\"\")))))))))))","v":""},{"$f":"IF(AND('Plant-Equipment Register'!A60<>\"Date:\",'Plant-Equipment Register'!A60<>\"PVID:\",'Plant-Equipment Register'!A60<>\"Camp/Base:\",'Plant-Equipment Register'!A60<>\"\",'Plant-Equipment Register'!A60<>\"Construction Vehicles, Plant and Equipment\",'Plant-Equipment Register'!A60<>\"Vehicle/Plant/Equipment\"),ROW()-1,\"\")","v":""}]
["Woodbourne","WBN",null,null,{"$f":"IF('Plant-Equipment Register'!H67=\"Daily\",1,IF('Plant-Equipment Register'!H67=\"Weekly\",7,IF('Plant-Equipment Register'!H67=\"Fortnightly\",7,IF('Plant-Equipment Register'!H67=\"Monthly\",30,IF('Plant-Equipment Register'!H67=\"2 monthly\",61,IF('Plant-Equipment Register'!H67=\"3 monthly\",92,IF('Plant-Equipment Register'!H67=\"6 monthly\",183,IF('Plant-Equipment Register'!H67=\"Yearly\",365,IF('Plant-Equipment Register'!H67=\"2 yearly\",730,IF('Plant-Equipment Register'!H67=\"3 yearly\",1095,IF('Plant-Equipment Register'!H67=\"5 yearly\",1826,\"\")))))))))))","v":""},{"$f":"IF('Plant-Equipment Register'!K67=\"Daily\",1,IF('Plant-Equipment Register'!K67=\"Weekly\",7,IF('Plant-Equipment Register'!K67=\"Fortnightly\",7,IF('Plant-Equipment Register'!K67=\"Monthly\",30,IF('Plant-Equipment Register'!K67=\"2 monthly\",61,IF('Plant-Equipment Register'!K67=\"3 monthly\",92,IF('Plant-Equipment Register'!K67=\"6 montly\",183,IF('Plant-Equipment Register'!K67=\"Yearly\",365,IF('Plant-Equipment Register'!K67=\"2 yearly\",730,IF('Plant-Equipment Register'!K67=\"3 Yearly\",1095,IF('Plant-Equipment Register'!K67=\"5 yearly\",1826,\"\")))))))))))","v":""},{"$f":"IF(AND('Plant-Equipment Register'!A61<>\"Date:\",'Plant-Equipment Register'!A61<>\"PVID:\",'Plant-Equipment Register'!A61<>\"Camp/Base:\",'Plant-Equipment Register'!A61<>\"\",'Plant-Equipment Register'!A61<>\"Construction Vehicles, Plant and Equipment\",'Plant-Equipment Register'!A61<>\"Vehicle/Plant/Equipment\"),ROW()-1,\"\")","v":""}]
[null,null,null,null,{"$f":"IF('Plant-Equipment Register'!H68=\"Daily\",1,IF('Plant-Equipment Register'!H68=\"Weekly\",7,IF('Plant-Equipment Register'!H68=\"Fortnightly\",7,IF('Plant-Equipment Register'!H68=\"Monthly\",30,IF('Plant-Equipment Register'!H68=\"2 monthly\",61,IF('Plant-Equipment Register'!H68=\"3 monthly\",92,IF('Plant-Equipment Register'!H68=\"6 monthly\",183,IF('Plant-Equipment Register'!H68=\"Yearly\",365,IF('Plant-Equipment Register'!H68=\"2 yearly\",730,IF('Plant-Equipment Register'!H68=\"3 yearly\",1095,IF('Plant-Equipment Register'!H68=\"5 yearly\",1826,\"\")))))))))))","v":""},{"$f":"IF('Plant-Equipment Register'!K68=\"Daily\",1,IF('Plant-Equipment Register'!K68=\"Weekly\",7,IF('Plant-Equipment Register'!K68=\"Fortnightly\",7,IF('Plant-Equipment Register'!K68=\"Monthly\",30,IF('Plant-Equipment Register'!K68=\"2 monthly\",61,IF('Plant-Equipment Register'!K68=\"3 monthly\",92,IF('Plant-Equipment Register'!K68=\"6 montly\",183,IF('Plant-Equipment Register'!K68=\"Yearly\",365,IF('Plant-Equipment Register'!K68=\"2 yearly\",730,IF('Plant-Equipment Register'!K68=\"3 Yearly\",1095,IF('Plant-Equipment Register'!K68=\"5 yearly\",1826,\"\")))))))))))","v":""},{"$f":"IF(AND('Plant-Equipment Register'!A62<>\"Date:\",'Plant-Equipment Register'!A62<>\"PVID:\",'Plant-Equipment Register'!A62<>\"Camp/Base:\",'Plant-Equipment Register'!A62<>\"\",'Plant-Equipment Register'!A62<>\"Construction Vehicles, Plant and Equipment\",'Plant-Equipment Register'!A62<>\"Vehicle/Plant/Equipment\"),ROW()-1,\"\")","v":""}]
[null,null,null,null,{"$f":"IF('Plant-Equipment Register'!H69=\"Daily\",1,IF('Plant-Equipment Register'!H69=\"Weekly\",7,IF('Plant-Equipment Register'!H69=\"Fortnightly\",7,IF('Plant-Equipment Register'!H69=\"Monthly\",30,IF('Plant-Equipment Register'!H69=\"2 monthly\",61,IF('Plant-Equipment Register'!H69=\"3 monthly\",92,IF('Plant-Equipment Register'!H69=\"6 monthly\",183,IF('Plant-Equipment Register'!H69=\"Yearly\",365,IF('Plant-Equipment Register'!H69=\"2 yearly\",730,IF('Plant-Equipment Register'!H69=\"3 yearly\",1095,IF('Plant-Equipment Register'!H69=\"5 yearly\",1826,\"\")))))))))))","v":""},{"$f":"IF('Plant-Equipment Register'!K69=\"Daily\",1,IF('Plant-Equipment Register'!K69=\"Weekly\",7,IF('Plant-Equipment Register'!K69=\"Fortnightly\",7,IF('Plant-Equipment Register'!K69=\"Monthly\",30,IF('Plant-Equipment Register'!K69=\"2 monthly\",61,IF('Plant-Equipment Register'!K69=\"3 monthly\",92,IF('Plant-Equipment Register'!K69=\"6 montly\",183,IF('Plant-Equipment Register'!K69=\"Yearly\",365,IF('Plant-Equipment Register'!K69=\"2 yearly\",730,IF('Plant-Equipment Register'!K69=\"3 Yearly\",1095,IF('Plant-Equipment Register'!K69=\"5 yearly\",1826,\"\")))))))))))","v":""},{"$f":"IF(AND('Plant-Equipment Register'!A63<>\"Date:\",'Plant-Equipment Register'!A63<>\"PVID:\",'Plant-Equipment Register'!A63<>\"Camp/Base:\",'Plant-Equipment Register'!A63<>\"\",'Plant-Equipment Register'!A63<>\"Construction Vehicles, Plant and Equipment\",'Plant-Equipment Register'!A63<>\"Vehicle/Plant/Equipment\"),ROW()-1,\"\")","v":""}]
[null,null,null,null,{"$f":"IF('Plant-Equipment Register'!H70=\"Daily\",1,IF('Plant-Equipment Register'!H70=\"Weekly\",7,IF('Plant-Equipment Register'!H70=\"Fortnightly\",7,IF('Plant-Equipment Register'!H70=\"Monthly\",30,IF('Plant-Equipment Register'!H70=\"2 monthly\",61,IF('Plant-Equipment Register'!H70=\"3 monthly\",92,IF('Plant-Equipment Register'!H70=\"6 monthly\",183,IF('Plant-Equipment Register'!H70=\"Yearly\",365,IF('Plant-Equipment Register'!H70=\"2 yearly\",730,IF('Plant-Equipment Register'!H70=\"3 yearly\",1095,IF('Plant-Equipment Register'!H70=\"5 yearly\",1826,\"\")))))))))))","v":""},{"$f":"IF('Plant-Equipment Register'!K70=\"Daily\",1,IF('Plant-Equipment Register'!K70=\"Weekly\",7,IF('Plant-Equipment Register'!K70=\"Fortnightly\",7,IF('Plant-Equipment Register'!K70=\"Monthly\",30,IF('Plant-Equipment Register'!K70=\"2 monthly\",61,IF('Plant-Equipment Register'!K70=\"3 monthly\",92,IF('Plant-Equipment Register'!K70=\"6 montly\",183,IF('Plant-Equipment Register'!K70=\"Yearly\",365,IF('Plant-Equipment Register'!K70=\"2 yearly\",730,IF('Plant-Equipment Register'!K70=\"3 Yearly\",1095,IF('Plant-Equipment Register'!K70=\"5 yearly\",1826,\"\")))))))))))","v":""},{"$f":"IF(AND('Plant-Equipment Register'!A64<>\"Date:\",'Plant-Equipment Register'!A64<>\"PVID:\",'Plant-Equipment Register'!A64<>\"Camp/Base:\",'Plant-Equipment Register'!A64<>\"\",'Plant-Equipment Register'!A64<>\"Construction Vehicles, Plant and Equipment\",'Plant-Equipment Register'!A64<>\"Vehicle/Plant/Equipment\"),ROW()-1,\"\")","v":""}]
[null,null,null,null,{"$f":"IF('Plant-Equipment Register'!H71=\"Daily\",1,IF('Plant-Equipment Register'!H71=\"Weekly\",7,IF('Plant-Equipment Register'!H71=\"Fortnightly\",7,IF('Plant-Equipment Register'!H71=\"Monthly\",30,IF('Plant-Equipment Register'!H71=\"2 monthly\",61,IF('Plant-Equipment Register'!H71=\"3 monthly\",92,IF('Plant-Equipment Register'!H71=\"6 monthly\",183,IF('Plant-Equipment Register'!H71=\"Yearly\",365,IF('Plant-Equipment Register'!H71=\"2 yearly\",730,IF('Plant-Equipment Register'!H71=\"3 yearly\",1095,IF('Plant-Equipment Register'!H71=\"5 yearly\",1826,\"\")))))))))))","v":""},{"$f":"IF('Plant-Equipment Register'!K71=\"Daily\",1,IF('Plant-Equipment Register'!K71=\"Weekly\",7,IF('Plant-Equipment Register'!K71=\"Fortnightly\",7,IF('Plant-Equipment Register'!K71=\"Monthly\",30,IF('Plant-Equipment Register'!K71=\"2 monthly\",61,IF('Plant-Equipment Register'!K71=\"3 monthly\",92,IF('Plant-Equipment Register'!K71=\"6 montly\",183,IF('Plant-Equipment Register'!K71=\"Yearly\",365,IF('Plant-Equipment Register'!K71=\"2 yearly\",730,IF('Plant-Equipment Register'!K71=\"3 Yearly\",1095,IF('Plant-Equipment Register'!K71=\"5 yearly\",1826,\"\")))))))))))","v":""},{"$f":"IF(AND('Plant-Equipment Register'!A65<>\"Date:\",'Plant-Equipment Register'!A65<>\"PVID:\",'Plant-Equipment Register'!A65<>\"Camp/Base:\",'Plant-Equipment Register'!A65<>\"\",'Plant-Equipment Register'!A65<>\"Construction Vehicles, Plant and Equipment\",'Plant-Equipment Register'!A65<>\"Vehicle/Plant/Equipment\"),ROW()-1,\"\")","v":""}]
[null,null,null,null,{"$f":"IF('Plant-Equipment Register'!H72=\"Daily\",1,IF('Plant-Equipment Register'!H72=\"Weekly\",7,IF('Plant-Equipment Register'!H72=\"Fortnightly\",7,IF('Plant-Equipment Register'!H72=\"Monthly\",30,IF('Plant-Equipment Register'!H72=\"2 monthly\",61,IF('Plant-Equipment Register'!H72=\"3 monthly\",92,IF('Plant-Equipment Register'!H72=\"6 monthly\",183,IF('Plant-Equipment Register'!H72=\"Yearly\",365,IF('Plant-Equipment Register'!H72=\"2 yearly\",730,IF('Plant-Equipment Register'!H72=\"3 yearly\",1095,IF('Plant-Equipment Register'!H72=\"5 yearly\",1826,\"\")))))))))))","v":""},{"$f":"IF('Plant-Equipment Register'!K72=\"Daily\",1,IF('Plant-Equipment Register'!K72=\"Weekly\",7,IF('Plant-Equipment Register'!K72=\"Fortnightly\",7,IF('Plant-Equipment Register'!K72=\"Monthly\",30,IF('Plant-Equipment Register'!K72=\"2 monthly\",61,IF('Plant-Equipment Register'!K72=\"3 monthly\",92,IF('Plant-Equipment Register'!K72=\"6 montly\",183,IF('Plant-Equipment Register'!K72=\"Yearly\",365,IF('Plant-Equipment Register'!K72=\"2 yearly\",730,IF('Plant-Equipment Register'!K72=\"3 Yearly\",1095,IF('Plant-Equipment Register'!K72=\"5 yearly\",1826,\"\")))))))))))","v":""},{"$f":"IF(AND('Plant-Equipment Register'!A66<>\"Date:\",'Plant-Equipment Register'!A66<>\"PVID:\",'Plant-Equipment Register'!A66<>\"Camp/Base:\",'Plant-Equipment Register'!A66<>\"\",'Plant-Equipment Register'!A66<>\"Construction Vehicles, Plant and Equipment\",'Plant-Equipment Register'!A66<>\"Vehicle/Plant/Equipment\"),ROW()-1,\"\")","v":""}]
[null,null,null,null,{"$f":"IF('Plant-Equipment Register'!#REF!=\"Daily\",1,IF('Plant-Equipment Register'!#REF!=\"Weekly\",7,IF('Plant-Equipment Register'!#REF!=\"Fortnightly\",7,IF('Plant-Equipment Register'!#REF!=\"Monthly\",30,IF('Plant-Equipment Register'!#REF!=\"2 monthly\",61,IF('Plant-Equipment Register'!#REF!=\"3 monthly\",92,IF('Plant-Equipment Register'!#REF!=\"6 monthly\",183,IF('Plant-Equipment Register'!#REF!=\"Yearly\",365,IF('Plant-Equipment Register'!#REF!=\"2 yearly\",730,IF('Plant-Equipment Register'!#REF!=\"3 yearly\",1095,IF('Plant-Equipment Register'!#REF!=\"5 yearly\",1826,\"\")))))))))))","v":{"$error":"#REF!"}},{"$f":"IF('Plant-Equipment Register'!#REF!=\"Daily\",1,IF('Plant-Equipment Register'!#REF!=\"Weekly\",7,IF('Plant-Equipment Register'!#REF!=\"Fortnightly\",7,IF('Plant-Equipment Register'!#REF!=\"Monthly\",30,IF('Plant-Equipment Register'!#REF!=\"2 monthly\",61,IF('Plant-Equipment Register'!#REF!=\"3 monthly\",92,IF('Plant-Equipment Register'!#REF!=\"6 montly\",183,IF('Plant-Equipment Register'!#REF!=\"Yearly\",365,IF('Plant-Equipment Register'!#REF!=\"2 yearly\",730,IF('Plant-Equipment Register'!#REF!=\"3 Yearly\",1095,IF('Plant-Equipment Register'!#REF!=\"5 yearly\",1826,\"\")))))))))))","v":{"$error":"#REF!"}},{"$f":"IF(AND('Plant-Equipment Register'!A67<>\"Date:\",'Plant-Equipment Register'!A67<>\"PVID:\",'Plant-Equipment Register'!A67<>\"Camp/Base:\",'Plant-Equipment Register'!A67<>\"\",'Plant-Equipment Register'!A67<>\"Construction Vehicles, Plant and Equipment\",'Plant-Equipment Register'!A67<>\"Vehicle/Plant/Equipment\"),ROW()-1,\"\")","v":""}]
[null,null,null,null,{"$f":"IF('Plant-Equipment Register'!H73=\"Daily\",1,IF('Plant-Equipment Register'!H73=\"Weekly\",7,IF('Plant-Equipment Register'!H73=\"Fortnightly\",7,IF('Plant-Equipment Register'!H73=\"Monthly\",30,IF('Plant-Equipment Register'!H73=\"2 monthly\",61,IF('Plant-Equipment Register'!H73=\"3 monthly\",92,IF('Plant-Equipment Register'!H73=\"6 monthly\",183,IF('Plant-Equipment Register'!H73=\"Yearly\",365,IF('Plant-Equipment Register'!H73=\"2 yearly\",730,IF('Plant-Equipment Register'!H73=\"3 yearly\",1095,IF('Plant-Equipment Register'!H73=\"5 yearly\",1826,\"\")))))))))))","v":""},{"$f":"IF('Plant-Equipment Register'!K73=\"Daily\",1,IF('Plant-Equipment Register'!K73=\"Weekly\",7,IF('Plant-Equipment Register'!K73=\"Fortnightly\",7,IF('Plant-Equipment Register'!K73=\"Monthly\",30,IF('Plant-Equipment Register'!K73=\"2 monthly\",61,IF('Plant-Equipment Register'!K73=\"3 monthly\",92,IF('Plant-Equipment Register'!K73=\"6 montly\",183,IF('Plant-Equipment Register'!K73=\"Yearly\",365,IF('Plant-Equipment Register'!K73=\"2 yearly\",730,IF('Plant-Equipment Register'!K73=\"3 Yearly\",1095,IF('Plant-Equipment Register'!K73=\"5 yearly\",1826,\"\")))))))))))","v":""},{"$f":"IF(AND('Plant-Equipment Register'!A68<>\"Date:\",'Plant-Equipment Register'!A68<>\"PVID:\",'Plant-Equipment Register'!A68<>\"Camp/Base:\",'Plant-Equipment Register'!A68<>\"\",'Plant-Equipment Register'!A68<>\"Construction Vehicles, Plant and Equipment\",'Plant-Equipment Register'!A68<>\"Vehicle/Plant/Equipment\"),ROW()-1,\"\")","v":""}]
[null,null,null,null,{"$f":"IF('Plant-Equipment Register'!H74=\"Daily\",1,IF('Plant-Equipment Register'!H74=\"Weekly\",7,IF('Plant-Equipment Register'!H74=\"Fortnightly\",7,IF('Plant-Equipment Register'!H74=\"Monthly\",30,IF('Plant-Equipment Register'!H74=\"2 monthly\",61,IF('Plant-Equipment Register'!H74=\"3 monthly\",92,IF('Plant-Equipment Register'!H74=\"6 monthly\",183,IF('Plant-Equipment Register'!H74=\"Yearly\",365,IF('Plant-Equipment Register'!H74=\"2 yearly\",730,IF('Plant-Equipment Register'!H74=\"3 yearly\",1095,IF('Plant-Equipment Register'!H74=\"5 yearly\",1826,\"\")))))))))))","v":""},{"$f":"IF('Plant-Equipment Register'!K74=\"Daily\",1,IF('Plant-Equipment Register'!K74=\"Weekly\",7,IF('Plant-Equipment Register'!K74=\"Fortnightly\",7,IF('Plant-Equipment Register'!K74=\"Monthly\",30,IF('Plant-Equipment Register'!K74=\"2 monthly\",61,IF('Plant-Equipment Register'!K74=\"3 monthly\",92,IF('Plant-Equipment Register'!K74=\"6 montly\",183,IF('Plant-Equipment Register'!K74=\"Yearly\",365,IF('Plant-Equipment Register'!K74=\"2 yearly\",730,IF('Plant-Equipment Register'!K74=\"3 Yearly\",1095,IF('Plant-Equipment Register'!K74=\"5 yearly\",1826,\"\")))))))))))","v":""},{"$f":"IF(AND('Plant-Equipment Register'!A69<>\"Date:\",'Plant-Equipment Register'!A69<>\"PVID:\",'Plant-Equipment Register'!A69<>\"Camp/Base:\",'Plant-Equipment Register'!A69<>\"\",'Plant-Equipment Register'!A69<>\"Construction Vehicles, Plant and Equipment\",'Plant-Equipment Register'!A69<>\"Vehicle/Plant/Equipment\"),ROW()-1,\"\")","v":""}]
[null,null,null,null,{"$f":"IF('Plant-Equipment Register'!H75=\"Daily\",1,IF('Plant-Equipment Register'!H75=\"Weekly\",7,IF('Plant-Equipment Register'!H75=\"Fortnightly\",7,IF('Plant-Equipment Register'!H75=\"Monthly\",30,IF('Plant-Equipment Register'!H75=\"2 monthly\",61,IF('Plant-Equipment Register'!H75=\"3 monthly\",92,IF('Plant-Equipment Register'!H75=\"6 monthly\",183,IF('Plant-Equipment Register'!H75=\"Yearly\",365,IF('Plant-Equipment Register'!H75=\"2 yearly\",730,IF('Plant-Equipment Register'!H75=\"3 yearly\",1095,IF('Plant-Equipment Register'!H75=\"5 yearly\",1826,\"\")))))))))))","v":""},{"$f":"IF('Plant-Equipment Register'!K75=\"Daily\",1,IF('Plant-Equipment Register'!K75=\"Weekly\",7,IF('Plant-Equipment Register'!K75=\"Fortnightly\",7,IF('Plant-Equipment Register'!K75=\"Monthly\",30,IF('Plant-Equipment Register'!K75=\"2 monthly\",61,IF('Plant-Equipment Register'!K75=\"3 monthly\",92,IF('Plant-Equipment Register'!K75=\"6 montly\",183,IF('Plant-Equipment Register'!K75=\"Yearly\",365,IF('Plant-Equipment Register'!K75=\"2 yearly\",730,IF('Plant-Equipment Register'!K75=\"3 Yearly\",1095,IF('Plant-Equipment Register'!K75=\"5 yearly\",1826,\"\")))))))))))","v":""},{"$f":"IF(AND('Plant-Equipment Register'!A70<>\"Date:\",'Plant-Equipment Register'!A70<>\"PVID:\",'Plant-Equipment Register'!A70<>\"Camp/Base:\",'Plant-Equipment Register'!A70<>\"\",'Plant-Equipment Register'!A70<>\"Construction Vehicles, Plant and Equipment\",'Plant-Equipment Register'!A70<>\"Vehicle/Plant/Equipment\"),ROW()-1,\"\")","v":""}]
[null,null,null,null,{"$f":"IF('Plant-Equipment Register'!H76=\"Daily\",1,IF('Plant-Equipment Register'!H76=\"Weekly\",7,IF('Plant-Equipment Register'!H76=\"Fortnightly\",7,IF('Plant-Equipment Register'!H76=\"Monthly\",30,IF('Plant-Equipment Register'!H76=\"2 monthly\",61,IF('Plant-Equipment Register'!H76=\"3 monthly\",92,IF('Plant-Equipment Register'!H76=\"6 monthly\",183,IF('Plant-Equipment Register'!H76=\"Yearly\",365,IF('Plant-Equipment Register'!H76=\"2 yearly\",730,IF('Plant-Equipment Register'!H76=\"3 yearly\",1095,IF('Plant-Equipment Register'!H76=\"5 yearly\",1826,\"\")))))))))))","v":""},{"$f":"IF('Plant-Equipment Register'!K76=\"Daily\",1,IF('Plant-Equipment Register'!K76=\"Weekly\",7,IF('Plant-Equipment Register'!K76=\"Fortnightly\",7,IF('Plant-Equipment Register'!K76=\"Monthly\",30,IF('Plant-Equipment Register'!K76=\"2 monthly\",61,IF('Plant-Equipment Register'!K76=\"3 monthly\",92,IF('Plant-Equipment Register'!K76=\"6 montly\",183,IF('Plant-Equipment Register'!K76=\"Yearly\",365,IF('Plant-Equipment Register'!K76=\"2 yearly\",730,IF('Plant-Equipment Register'!K76=\"3 Yearly\",1095,IF('Plant-Equipment Register'!K76=\"5 yearly\",1826,\"\")))))))))))","v":""},{"$f":"IF(AND('Plant-Equipment Register'!A71<>\"Date:\",'Plant-Equipment Register'!A71<>\"PVID:\",'Plant-Equipment Register'!A71<>\"Camp/Base:\",'Plant-Equipment Register'!A71<>\"\",'Plant-Equipment Register'!A71<>\"Construction Vehicles, Plant and Equipment\",'Plant-Equipment Register'!A71<>\"Vehicle/Plant/Equipment\"),ROW()-1,\"\")","v":""}]
[null,null,null,null,{"$f":"IF('Plant-Equipment Register'!H77=\"Daily\",1,IF('Plant-Equipment Register'!H77=\"Weekly\",7,IF('Plant-Equipment Register'!H77=\"Fortnightly\",7,IF('Plant-Equipment Register'!H77=\"Monthly\",30,IF('Plant-Equipment Register'!H77=\"2 monthly\",61,IF('Plant-Equipment Register'!H77=\"3 monthly\",92,IF('Plant-Equipment Register'!H77=\"6 monthly\",183,IF('Plant-Equipment Register'!H77=\"Yearly\",365,IF('Plant-Equipment Register'!H77=\"2 yearly\",730,IF('Plant-Equipment Register'!H77=\"3 yearly\",1095,IF('Plant-Equipment Register'!H77=\"5 yearly\",1826,\"\")))))))))))","v":""},{"$f":"IF('Plant-Equipment Register'!K77=\"Daily\",1,IF('Plant-Equipment Register'!K77=\"Weekly\",7,IF('Plant-Equipment Register'!K77=\"Fortnightly\",7,IF('Plant-Equipment Register'!K77=\"Monthly\",30,IF('Plant-Equipment Register'!K77=\"2 monthly\",61,IF('Plant-Equipment Register'!K77=\"3 monthly\",92,IF('Plant-Equipment Register'!K77=\"6 montly\",183,IF('Plant-Equipment Register'!K77=\"Yearly\",365,IF('Plant-Equipment Register'!K77=\"2 yearly\",730,IF('Plant-Equipment Register'!K77=\"3 Yearly\",1095,IF('Plant-Equipment Register'!K77=\"5 yearly\",1826,\"\")))))))))))","v":""},{"$f":"IF(AND('Plant-Equipment Register'!A72<>\"Date:\",'Plant-Equipment Register'!A72<>\"PVID:\",'Plant-Equipment Register'!A72<>\"Camp/Base:\",'Plant-Equipment Register'!A72<>\"\",'Plant-Equipment Register'!A72<>\"Construction Vehicles, Plant and Equipment\",'Plant-Equipment Register'!A72<>\"Vehicle/Plant/Equipment\"),ROW()-1,\"\")","v":""}]
[null,null,null,null,{"$f":"IF('Plant-Equipment Register'!H78=\"Daily\",1,IF('Plant-Equipment Register'!H78=\"Weekly\",7,IF('Plant-Equipment Register'!H78=\"Fortnightly\",7,IF('Plant-Equipment Register'!H78=\"Monthly\",30,IF('Plant-Equipment Register'!H78=\"2 monthly\",61,IF('Plant-Equipment Register'!H78=\"3 monthly\",92,IF('Plant-Equipment Register'!H78=\"6 monthly\",183,IF('Plant-Equipment Register'!H78=\"Yearly\",365,IF('Plant-Equipment Register'!H78=\"2 yearly\",730,IF('Plant-Equipment Register'!H78=\"3 yearly\",1095,IF('Plant-Equipment Register'!H78=\"5 yearly\",1826,\"\")))))))))))","v":""},{"$f":"IF('Plant-Equipment Register'!K78=\"Daily\",1,IF('Plant-Equipment Register'!K78=\"Weekly\",7,IF('Plant-Equipment Register'!K78=\"Fortnightly\",7,IF('Plant-Equipment Register'!K78=\"Monthly\",30,IF('Plant-Equipment Register'!K78=\"2 monthly\",61,IF('Plant-Equipment Register'!K78=\"3 monthly\",92,IF('Plant-Equipment Register'!K78=\"6 montly\",183,IF('Plant-Equipment Register'!K78=\"Yearly\",365,IF('Plant-Equipment Register'!K78=\"2 yearly\",730,IF('Plant-Equipment Register'!K78=\"3 Yearly\",1095,IF('Plant-Equipment Register'!K78=\"5 yearly\",1826,\"\")))))))))))","v":""},{"$f":"IF(AND('Plant-Equipment Register'!#REF!<>\"Date:\",'Plant-Equipment Register'!#REF!<>\"PVID:\",'Plant-Equipment Register'!#REF!<>\"Camp/Base:\",'Plant-Equipment Register'!#REF!<>\"\",'Plant-Equipment Register'!#REF!<>\"Construction Vehicles, Plant and Equipment\",'Plant-Equipment Register'!#REF!<>\"Vehicle/Plant/Equipment\"),ROW()-1,\"\")","v":{"$error":"#REF!"}}]
[null,null,null,null,{"$f":"IF('Plant-Equipment Register'!H79=\"Daily\",1,IF('Plant-Equipment Register'!H79=\"Weekly\",7,IF('Plant-Equipment Register'!H79=\"Fortnightly\",7,IF('Plant-Equipment Register'!H79=\"Monthly\",30,IF('Plant-Equipment Register'!H79=\"2 monthly\",61,IF('Plant-Equipment Register'!H79=\"3 monthly\",92,IF('Plant-Equipment Register'!H79=\"6 monthly\",183,IF('Plant-Equipment Register'!H79=\"Yearly\",365,IF('Plant-Equipment Register'!H79=\"2 yearly\",730,IF('Plant-Equipment Register'!H79=\"3 yearly\",1095,IF('Plant-Equipment Register'!H79=\"5 yearly\",1826,\"\")))))))))))","v":""},{"$f":"IF('Plant-Equipment Register'!K79=\"Daily\",1,IF('Plant-Equipment Register'!K79=\"Weekly\",7,IF('Plant-Equipment Register'!K79=\"Fortnightly\",7,IF('Plant-Equipment Register'!K79=\"Monthly\",30,IF('Plant-Equipment Register'!K79=\"2 monthly\",61,IF('Plant-Equipment Register'!K79=\"3 monthly\",92,IF('Plant-Equipment Register'!K79=\"6 montly\",183,IF('Plant-Equipment Register'!K79=\"Yearly\",365,IF('Plant-Equipment Register'!K79=\"2 yearly\",730,IF('Plant-Equipment Register'!K79=\"3 Yearly\",1095,IF('Plant-Equipment Register'!K79=\"5 yearly\",1826,\"\")))))))))))","v":""},{"$f":"IF(AND('Plant-Equipment Register'!A73<>\"Date:\",'Plant-Equipment Register'!A73<>\"PVID:\",'Plant-Equipment Register'!A73<>\"Camp/Base:\",'Plant-Equipment Register'!A73<>\"\",'Plant-Equipment Register'!A73<>\"Construction Vehicles, Plant and Equipment\",'Plant-Equipment Register'!A73<>\"Vehicle/Plant/Equipment\"),ROW()-1,\"\")","v":""}]
[null,null,null,null,{"$f":"IF('Plant-Equipment Register'!H80=\"Daily\",1,IF('Plant-Equipment Register'!H80=\"Weekly\",7,IF('Plant-Equipment Register'!H80=\"Fortnightly\",7,IF('Plant-Equipment Register'!H80=\"Monthly\",30,IF('Plant-Equipment Register'!H80=\"2 monthly\",61,IF('Plant-Equipment Register'!H80=\"3 monthly\",92,IF('Plant-Equipment Register'!H80=\"6 monthly\",183,IF('Plant-Equipment Register'!H80=\"Yearly\",365,IF('Plant-Equipment Register'!H80=\"2 yearly\",730,IF('Plant-Equipment Register'!H80=\"3 yearly\",1095,IF('Plant-Equipment Register'!H80=\"5 yearly\",1826,\"\")))))))))))","v":""},{"$f":"IF('Plant-Equipment Register'!K80=\"Daily\",1,IF('Plant-Equipment Register'!K80=\"Weekly\",7,IF('Plant-Equipment Register'!K80=\"Fortnightly\",7,IF('Plant-Equipment Register'!K80=\"Monthly\",30,IF('Plant-Equipment Register'!K80=\"2 monthly\",61,IF('Plant-Equipment Register'!K80=\"3 monthly\",92,IF('Plant-Equipment Register'!K80=\"6 montly\",183,IF('Plant-Equipment Register'!K80=\"Yearly\",365,IF('Plant-Equipment Register'!K80=\"2 yearly\",730,IF('Plant-Equipment Register'!K80=\"3 Yearly\",1095,IF('Plant-Equipment Register'!K80=\"5 yearly\",1826,\"\")))))))))))","v":""},{"$f":"IF(AND('Plant-Equipment Register'!A74<>\"Date:\",'Plant-Equipment Register'!A74<>\"PVID:\",'Plant-Equipment Register'!A74<>\"Camp/Base:\",'Plant-Equipment Register'!A74<>\"\",'Plant-Equipment Register'!A74<>\"Construction Vehicles, Plant and Equipment\",'Plant-Equipment Register'!A74<>\"Vehicle/Plant/Equipment\"),ROW()-1,\"\")","v":""}]
[null,null,null,null,{"$f":"IF('Plant-Equipment Register'!H81=\"Daily\",1,IF('Plant-Equipment Register'!H81=\"Weekly\",7,IF('Plant-Equipment Register'!H81=\"Fortnightly\",7,IF('Plant-Equipment Register'!H81=\"Monthly\",30,IF('Plant-Equipment Register'!H81=\"2 monthly\",61,IF('Plant-Equipment Register'!H81=\"3 monthly\",92,IF('Plant-Equipment Register'!H81=\"6 monthly\",183,IF('Plant-Equipment Register'!H81=\"Yearly\",365,IF('Plant-Equipment Register'!H81=\"2 yearly\",730,IF('Plant-Equipment Register'!H81=\"3 yearly\",1095,IF('Plant-Equipment Register'!H81=\"5 yearly\",1826,\"\")))))))))))","v":""},{"$f":"IF('Plant-Equipment Register'!K81=\"Daily\",1,IF('Plant-Equipment Register'!K81=\"Weekly\",7,IF('Plant-Equipment Register'!K81=\"Fortnightly\",7,IF('Plant-Equipment Register'!K81=\"Monthly\",30,IF('Plant-Equipment Register'!K81=\"2 monthly\",61,IF('Plant-Equipment Register'!K81=\"3 monthly\",92,IF('Plant-Equipment Register'!K81=\"6 montly\",183,IF('Plant-Equipment Register'!K81=\"Yearly\",365,IF('Plant-Equipment Register'!K81=\"2 yearly\",730,IF('Plant-Equipment Register'!K81=\"3 Yearly\",1095,IF('Plant-Equipment Register'!K81=\"5 yearly\",1826,\"\")))))))))))","v":""},{"$f":"IF(AND('Plant-Equipment Register'!A75<>\"Date:\",'Plant-Equipment Register'!A75<>\"PVID:\",'Plant-Equipment Register'!A75<>\"Camp/Base:\",'Plant-Equipment Register'!A75<>\"\",'Plant-Equipment Register'!A75<>\"Construction Vehicles, Plant and Equipment\",'Plant-Equipment Register'!A75<>\"Vehicle/Plant/Equipment\"),ROW()-1,\"\")","v":""}]
[null,null,null,null,{"$f":"IF('Plant-Equipment Register'!H82=\"Daily\",1,IF('Plant-Equipment Register'!H82=\"Weekly\",7,IF('Plant-Equipment Register'!H82=\"Fortnightly\",7,IF('Plant-Equipment Register'!H82=\"Monthly\",30,IF('Plant-Equipment Register'!H82=\"2 monthly\",61,IF('Plant-Equipment Register'!H82=\"3 monthly\",92,IF('Plant-Equipment Register'!H82=\"6 monthly\",183,IF('Plant-Equipment Register'!H82=\"Yearly\",365,IF('Plant-Equipment Register'!H82=\"2 yearly\",730,IF('Plant-Equipment Register'!H82=\"3 yearly\",1095,IF('Plant-Equipment Register'!H82=\"5 yearly\",1826,\"\")))))))))))","v":""},{"$f":"IF('Plant-Equipment Register'!K82=\"Daily\",1,IF('Plant-Equipment Register'!K82=\"Weekly\",7,IF('Plant-Equipment Register'!K82=\"Fortnightly\",7,IF('Plant-Equipment Register'!K82=\"Monthly\",30,IF('Plant-Equipment Register'!K82=\"2 monthly\",61,IF('Plant-Equipment Register'!K82=\"3 monthly\",92,IF('Plant-Equipment Register'!K82=\"6 montly\",183,IF('Plant-Equipment Register'!K82=\"Yearly\",365,IF('Plant-Equipment Register'!K82=\"2 yearly\",730,IF('Plant-Equipment Register'!K82=\"3 Yearly\",1095,IF('Plant-Equipment Register'!K82=\"5 yearly\",1826,\"\")))))))))))","v":""},{"$f":"IF(AND('Plant-Equipment Register'!A76<>\"Date:\",'Plant-Equipment Register'!A76<>\"PVID:\",'Plant-Equipment Register'!A76<>\"Camp/Base:\",'Plant-Equipment Register'!A76<>\"\",'Plant-Equipment Register'!A76<>\"Construction Vehicles, Plant and Equipment\",'Plant-Equipment Register'!A76<>\"Vehicle/Plant/Equipment\"),ROW()-1,\"\")","v":""}]
[null,null,null,null,{"$f":"IF('Plant-Equipment Register'!H83=\"Daily\",1,IF('Plant-Equipment Register'!H83=\"Weekly\",7,IF('Plant-Equipment Register'!H83=\"Fortnightly\",7,IF('Plant-Equipment Register'!H83=\"Monthly\",30,IF('Plant-Equipment Register'!H83=\"2 monthly\",61,IF('Plant-Equipment Register'!H83=\"3 monthly\",92,IF('Plant-Equipment Register'!H83=\"6 monthly\",183,IF('Plant-Equipment Register'!H83=\"Yearly\",365,IF('Plant-Equipment Register'!H83=\"2 yearly\",730,IF('Plant-Equipment Register'!H83=\"3 yearly\",1095,IF('Plant-Equipment Register'!H83=\"5 yearly\",1826,\"\")))))))))))","v":""},{"$f":"IF('Plant-Equipment Register'!K83=\"Daily\",1,IF('Plant-Equipment Register'!K83=\"Weekly\",7,IF('Plant-Equipment Register'!K83=\"Fortnightly\",7,IF('Plant-Equipment Register'!K83=\"Monthly\",30,IF('Plant-Equipment Register'!K83=\"2 monthly\",61,IF('Plant-Equipment Register'!K83=\"3 monthly\",92,IF('Plant-Equipment Register'!K83=\"6 montly\",183,IF('Plant-Equipment Register'!K83=\"Yearly\",365,IF('Plant-Equipment Register'!K83=\"2 yearly\",730,IF('Plant-Equipment Register'!K83=\"3 Yearly\",1095,IF('Plant-Equipment Register'!K83=\"5 yearly\",1826,\"\")))))))))))","v":""},{"$f":"IF(AND('Plant-Equipment Register'!A77<>\"Date:\",'Plant-Equipment Register'!A77<>\"PVID:\",'Plant-Equipment Register'!A77<>\"Camp/Base:\",'Plant-Equipment Register'!A77<>\"\",'Plant-Equipment Register'!A77<>\"Construction Vehicles, Plant and Equipment\",'Plant-Equipment Register'!A77<>\"Vehicle/Plant/Equipment\"),ROW()-1,\"\")","v":""}]
[null,null,null,null,{"$f":"IF('Plant-Equipment Register'!H84=\"Daily\",1,IF('Plant-Equipment Register'!H84=\"Weekly\",7,IF('Plant-Equipment Register'!H84=\"Fortnightly\",7,IF('Plant-Equipment Register'!H84=\"Monthly\",30,IF('Plant-Equipment Register'!H84=\"2 monthly\",61,IF('Plant-Equipment Register'!H84=\"3 monthly\",92,IF('Plant-Equipment Register'!H84=\"6 monthly\",183,IF('Plant-Equipment Register'!H84=\"Yearly\",365,IF('Plant-Equipment Register'!H84=\"2 yearly\",730,IF('Plant-Equipment Register'!H84=\"3 yearly\",1095,IF('Plant-Equipment Register'!H84=\"5 yearly\",1826,\"\")))))))))))","v":""},{"$f":"IF('Plant-Equipment Register'!K84=\"Daily\",1,IF('Plant-Equipment Register'!K84=\"Weekly\",7,IF('Plant-Equipment Register'!K84=\"Fortnightly\",7,IF('Plant-Equipment Register'!K84=\"Monthly\",30,IF('Plant-Equipment Register'!K84=\"2 monthly\",61,IF('Plant-Equipment Register'!K84=\"3 monthly\",92,IF('Plant-Equipment Register'!K84=\"6 montly\",183,IF('Plant-Equipment Register'!K84=\"Yearly\",365,IF('Plant-Equipment Register'!K84=\"2 yearly\",730,IF('Plant-Equipment Register'!K84=\"3 Yearly\",1095,IF('Plant-Equipment Register'!K84=\"5 yearly\",1826,\"\")))))))))))","v":""},{"$f":"IF(AND('Plant-Equipment Register'!A78<>\"Date:\",'Plant-Equipment Register'!A78<>\"PVID:\",'Plant-Equipment Register'!A78<>\"Camp/Base:\",'Plant-Equipment Register'!A78<>\"\",'Plant-Equipment Register'!A78<>\"Construction Vehicles, Plant and Equipment\",'Plant-Equipment Register'!A78<>\"Vehicle/Plant/Equipment\"),ROW()-1,\"\")","v":""}]
[null,null,null,null,{"$f":"IF('Plant-Equipment Register'!H85=\"Daily\",1,IF('Plant-Equipment Register'!H85=\"Weekly\",7,IF('Plant-Equipment Register'!H85=\"Fortnightly\",7,IF('Plant-Equipment Register'!H85=\"Monthly\",30,IF('Plant-Equipment Register'!H85=\"2 monthly\",61,IF('Plant-Equipment Register'!H85=\"3 monthly\",92,IF('Plant-Equipment Register'!H85=\"6 monthly\",183,IF('Plant-Equipment Register'!H85=\"Yearly\",365,IF('Plant-Equipment Register'!H85=\"2 yearly\",730,IF('Plant-Equipment Register'!H85=\"3 yearly\",1095,IF('Plant-Equipment Register'!H85=\"5 yearly\",1826,\"\")))))))))))","v":""},{"$f":"IF('Plant-Equipment Register'!K85=\"Daily\",1,IF('Plant-Equipment Register'!K85=\"Weekly\",7,IF('Plant-Equipment Register'!K85=\"Fortnightly\",7,IF('Plant-Equipment Register'!K85=\"Monthly\",30,IF('Plant-Equipment Register'!K85=\"2 monthly\",61,IF('Plant-Equipment Register'!K85=\"3 monthly\",92,IF('Plant-Equipment Register'!K85=\"6 montly\",183,IF('Plant-Equipment Register'!K85=\"Yearly\",365,IF('Plant-Equipment Register'!K85=\"2 yearly\",730,IF('Plant-Equipment Register'!K85=\"3 Yearly\",1095,IF('Plant-Equipment Register'!K85=\"5 yearly\",1826,\"\")))))))))))","v":""},{"$f":"IF(AND('Plant-Equipment Register'!A79<>\"Date:\",'Plant-Equipment Register'!A79<>\"PVID:\",'Plant-Equipment Register'!A79<>\"Camp/Base:\",'Plant-Equipment Register'!A79<>\"\",'Plant-Equipment Register'!A79<>\"Construction Vehicles, Plant and Equipment\",'Plant-Equipment Register'!A79<>\"Vehicle/Plant/Equipment\"),ROW()-1,\"\")","v":""}]
[null,null,null,null,{"$f":"IF('Plant-Equipment Register'!H86=\"Daily\",1,IF('Plant-Equipment Register'!H86=\"Weekly\",7,IF('Plant-Equipment Register'!H86=\"Fortnightly\",7,IF('Plant-Equipment Register'!H86=\"Monthly\",30,IF('Plant-Equipment Register'!H86=\"2 monthly\",61,IF('Plant-Equipment Register'!H86=\"3 monthly\",92,IF('Plant-Equipment Register'!H86=\"6 monthly\",183,IF('Plant-Equipment Register'!H86=\"Yearly\",365,IF('Plant-Equipment Register'!H86=\"2 yearly\",730,IF('Plant-Equipment Register'!H86=\"3 yearly\",1095,IF('Plant-Equipment Register'!H86=\"5 yearly\",1826,\"\")))))))))))","v":""},{"$f":"IF('Plant-Equipment Register'!K86=\"Daily\",1,IF('Plant-Equipment Register'!K86=\"Weekly\",7,IF('Plant-Equipment Register'!K86=\"Fortnightly\",7,IF('Plant-Equipment Register'!K86=\"Monthly\",30,IF('Plant-Equipment Register'!K86=\"2 monthly\",61,IF('Plant-Equipment Register'!K86=\"3 monthly\",92,IF('Plant-Equipment Register'!K86=\"6 montly\",183,IF('Plant-Equipment Register'!K86=\"Yearly\",365,IF('Plant-Equipment Register'!K86=\"2 yearly\",730,IF('Plant-Equipment Register'!K86=\"3 Yearly\",1095,IF('Plant-Equipment Register'!K86=\"5 yearly\",1826,\"\")))))))))))","v":""},{"$f":"IF(AND('Plant-Equipment Register'!A80<>\"Date:\",'Plant-Equipment Register'!A80<>\"PVID:\",'Plant-Equipment Register'!A80<>\"Camp/Base:\",'Plant-Equipment Register'!A80<>\"\",'Plant-Equipment Register'!A80<>\"Construction Vehicles, Plant and Equipment\",'Plant-Equipment Register'!A80<>\"Vehicle/Plant/Equipment\"),ROW()-1,\"\")","v":""}]
[null,null,null,null,{"$f":"IF('Plant-Equipment Register'!H87=\"Daily\",1,IF('Plant-Equipment Register'!H87=\"Weekly\",7,IF('Plant-Equipment Register'!H87=\"Fortnightly\",7,IF('Plant-Equipment Register'!H87=\"Monthly\",30,IF('Plant-Equipment Register'!H87=\"2 monthly\",61,IF('Plant-Equipment Register'!H87=\"3 monthly\",92,IF('Plant-Equipment Register'!H87=\"6 monthly\",183,IF('Plant-Equipment Register'!H87=\"Yearly\",365,IF('Plant-Equipment Register'!H87=\"2 yearly\",730,IF('Plant-Equipment Register'!H87=\"3 yearly\",1095,IF('Plant-Equipment Register'!H87=\"5 yearly\",1826,\"\")))))))))))","v":""},{"$f":"IF('Plant-Equipment Register'!K87=\"Daily\",1,IF('Plant-Equipment Register'!K87=\"Weekly\",7,IF('Plant-Equipment Register'!K87=\"Fortnightly\",7,IF('Plant-Equipment Register'!K87=\"Monthly\",30,IF('Plant-Equipment Register'!K87=\"2 monthly\",61,IF('Plant-Equipment Register'!K87=\"3 monthly\",92,IF('Plant-Equipment Register'!K87=\"6 montly\",183,IF('Plant-Equipment Register'!K87=\"Yearly\",365,IF('Plant-Equipment Register'!K87=\"2 yearly\",730,IF('Plant-Equipment Register'!K87=\"3 Yearly\",1095,IF('Plant-Equipment Register'!K87=\"5 yearly\",1826,\"\")))))))))))","v":""},{"$f":"IF(AND('Plant-Equipment Register'!A81<>\"Date:\",'Plant-Equipment Register'!A81<>\"PVID:\",'Plant-Equipment Register'!A81<>\"Camp/Base:\",'Plant-Equipment Register'!A81<>\"\",'Plant-Equipment Register'!A81<>\"Construction Vehicles, Plant and Equipment\",'Plant-Equipment Register'!A81<>\"Vehicle/Plant/Equipment\"),ROW()-1,\"\")","v":""}]
[null,null,null,null,{"$f":"IF('Plant-Equipment Register'!H88=\"Daily\",1,IF('Plant-Equipment Register'!H88=\"Weekly\",7,IF('Plant-Equipment Register'!H88=\"Fortnightly\",7,IF('Plant-Equipment Register'!H88=\"Monthly\",30,IF('Plant-Equipment Register'!H88=\"2 monthly\",61,IF('Plant-Equipment Register'!H88=\"3 monthly\",92,IF('Plant-Equipment Register'!H88=\"6 monthly\",183,IF('Plant-Equipment Register'!H88=\"Yearly\",365,IF('Plant-Equipment Register'!H88=\"2 yearly\",730,IF('Plant-Equipment Register'!H88=\"3 yearly\",1095,IF('Plant-Equipment Register'!H88=\"5 yearly\",1826,\"\")))))))))))","v":""},{"$f":"IF('Plant-Equipment Register'!K88=\"Daily\",1,IF('Plant-Equipment Register'!K88=\"Weekly\",7,IF('Plant-Equipment Register'!K88=\"Fortnightly\",7,IF('Plant-Equipment Register'!K88=\"Monthly\",30,IF('Plant-Equipment Register'!K88=\"2 monthly\",61,IF('Plant-Equipment Register'!K88=\"3 monthly\",92,IF('Plant-Equipment Register'!K88=\"6 montly\",183,IF('Plant-Equipment Register'!K88=\"Yearly\",365,IF('Plant-Equipment Register'!K88=\"2 yearly\",730,IF('Plant-Equipment Register'!K88=\"3 Yearly\",1095,IF('Plant-Equipment Register'!K88=\"5 yearly\",1826,\"\")))))))))))","v":""},{"$f":"IF(AND('Plant-Equipment Register'!A82<>\"Date:\",'Plant-Equipment Register'!A82<>\"PVID:\",'Plant-Equipment Register'!A82<>\"Camp/Base:\",'Plant-Equipment Register'!A82<>\"\",'Plant-Equipment Register'!A82<>\"Construction Vehicles, Plant and Equipment\",'Plant-Equipment Register'!A82<>\"Vehicle/Plant/Equipment\"),ROW()-1,\"\")","v":""}]
[null,null,null,null,{"$f":"IF('Plant-Equipment Register'!H89=\"Daily\",1,IF('Plant-Equipment Register'!H89=\"Weekly\",7,IF('Plant-Equipment Register'!H89=\"Fortnightly\",7,IF('Plant-Equipment Register'!H89=\"Monthly\",30,IF('Plant-Equipment Register'!H89=\"2 monthly\",61,IF('Plant-Equipment Register'!H89=\"3 monthly\",92,IF('Plant-Equipment Register'!H89=\"6 monthly\",183,IF('Plant-Equipment Register'!H89=\"Yearly\",365,IF('Plant-Equipment Register'!H89=\"2 yearly\",730,IF('Plant-Equipment Register'!H89=\"3 yearly\",1095,IF('Plant-Equipment Register'!H89=\"5 yearly\",1826,\"\")))))))))))","v":""},{"$f":"IF('Plant-Equipment Register'!K89=\"Daily\",1,IF('Plant-Equipment Register'!K89=\"Weekly\",7,IF('Plant-Equipment Register'!K89=\"Fortnightly\",7,IF('Plant-Equipment Register'!K89=\"Monthly\",30,IF('Plant-Equipment Register'!K89=\"2 monthly\",61,IF('Plant-Equipment Register'!K89=\"3 monthly\",92,IF('Plant-Equipment Register'!K89=\"6 montly\",183,IF('Plant-Equipment Register'!K89=\"Yearly\",365,IF('Plant-Equipment Register'!K89=\"2 yearly\",730,IF('Plant-Equipment Register'!K89=\"3 Yearly\",1095,IF('Plant-Equipment Register'!K89=\"5 yearly\",1826,\"\")))))))))))","v":""},{"$f":"IF(AND('Plant-Equipment Register'!A83<>\"Date:\",'Plant-Equipment Register'!A83<>\"PVID:\",'Plant-Equipment Register'!A83<>\"Camp/Base:\",'Plant-Equipment Register'!A83<>\"\",'Plant-Equipment Register'!A83<>\"Construction Vehicles, Plant and Equipment\",'Plant-Equipment Register'!A83<>\"Vehicle/Plant/Equipment\"),ROW()-1,\"\")","v":""}]
[null,null,null,null,{"$f":"IF('Plant-Equipment Register'!H90=\"Daily\",1,IF('Plant-Equipment Register'!H90=\"Weekly\",7,IF('Plant-Equipment Register'!H90=\"Fortnightly\",7,IF('Plant-Equipment Register'!H90=\"Monthly\",30,IF('Plant-Equipment Register'!H90=\"2 monthly\",61,IF('Plant-Equipment Register'!H90=\"3 monthly\",92,IF('Plant-Equipment Register'!H90=\"6 monthly\",183,IF('Plant-Equipment Register'!H90=\"Yearly\",365,IF('Plant-Equipment Register'!H90=\"2 yearly\",730,IF('Plant-Equipment Register'!H90=\"3 yearly\",1095,IF('Plant-Equipment Register'!H90=\"5 yearly\",1826,\"\")))))))))))","v":""},{"$f":"IF('Plant-Equipment Register'!K90=\"Daily\",1,IF('Plant-Equipment Register'!K90=\"Weekly\",7,IF('Plant-Equipment Register'!K90=\"Fortnightly\",7,IF('Plant-Equipment Register'!K90=\"Monthly\",30,IF('Plant-Equipment Register'!K90=\"2 monthly\",61,IF('Plant-Equipment Register'!K90=\"3 monthly\",92,IF('Plant-Equipment Register'!K90=\"6 montly\",183,IF('Plant-Equipment Register'!K90=\"Yearly\",365,IF('Plant-Equipment Register'!K90=\"2 yearly\",730,IF('Plant-Equipment Register'!K90=\"3 Yearly\",1095,IF('Plant-Equipment Register'!K90=\"5 yearly\",1826,\"\")))))))))))","v":""},{"$f":"IF(AND('Plant-Equipment Register'!A84<>\"Date:\",'Plant-Equipment Register'!A84<>\"PVID:\",'Plant-Equipment Register'!A84<>\"Camp/Base:\",'Plant-Equipment Register'!A84<>\"\",'Plant-Equipment Register'!A84<>\"Construction Vehicles, Plant and Equipment\",'Plant-Equipment Register'!A84<>\"Vehicle/Plant/Equipment\"),ROW()-1,\"\")","v":""}]
[null,null,null,null,{"$f":"IF('Plant-Equipment Register'!#REF!=\"Daily\",1,IF('Plant-Equipment Register'!#REF!=\"Weekly\",7,IF('Plant-Equipment Register'!#REF!=\"Fortnightly\",7,IF('Plant-Equipment Register'!#REF!=\"Monthly\",30,IF('Plant-Equipment Register'!#REF!=\"2 monthly\",61,IF('Plant-Equipment Register'!#REF!=\"3 monthly\",92,IF('Plant-Equipment Register'!#REF!=\"6 monthly\",183,IF('Plant-Equipment Register'!#REF!=\"Yearly\",365,IF('Plant-Equipment Register'!#REF!=\"2 yearly\",730,IF('Plant-Equipment Register'!#REF!=\"3 yearly\",1095,IF('Plant-Equipment Register'!#REF!=\"5 yearly\",1826,\"\")))))))))))","v":{"$error":"#REF!"}},{"$f":"IF('Plant-Equipment Register'!#REF!=\"Daily\",1,IF('Plant-Equipment Register'!#REF!=\"Weekly\",7,IF('Plant-Equipment Register'!#REF!=\"Fortnightly\",7,IF('Plant-Equipment Register'!#REF!=\"Monthly\",30,IF('Plant-Equipment Register'!#REF!=\"2 monthly\",61,IF('Plant-Equipment Register'!#REF!=\"3 monthly\",92,IF('Plant-Equipment Register'!#REF!=\"6 montly\",183,IF('Plant-Equipment Register'!#REF!=\"Yearly\",365,IF('Plant-Equipment Register'!#REF!=\"2 yearly\",730,IF('Plant-Equipment Register'!#REF!=\"3 Yearly\",1095,IF('Plant-Equipment Register'!#REF!=\"5 yearly\",1826,\"\")))))))))))","v":{"$error":"#REF!"}},{"$f":"IF(AND('Plant-Equipment Register'!A85<>\"Date:\",'Plant-Equipment Register'!A85<>\"PVID:\",'Plant-Equipment Register'!A85<>\"Camp/Base:\",'Plant-Equipment Register'!A85<>\"\",'Plant-Equipment Register'!A85<>\"Construction Vehicles, Plant and Equipment\",'Plant-Equipment Register'!A85<>\"Vehicle/Plant/Equipment\"),ROW()-1,\"\")","v":""}]
[null,null,null,null,{"$f":"IF('Plant-Equipment Register'!H91=\"Daily\",1,IF('Plant-Equipment Register'!H91=\"Weekly\",7,IF('Plant-Equipment Register'!H91=\"Fortnightly\",7,IF('Plant-Equipment Register'!H91=\"Monthly\",30,IF('Plant-Equipment Register'!H91=\"2 monthly\",61,IF('Plant-Equipment Register'!H91=\"3 monthly\",92,IF('Plant-Equipment Register'!H91=\"6 monthly\",183,IF('Plant-Equipment Register'!H91=\"Yearly\",365,IF('Plant-Equipment Register'!H91=\"2 yearly\",730,IF('Plant-Equipment Register'!H91=\"3 yearly\",1095,IF('Plant-Equipment Register'!H91=\"5 yearly\",1826,\"\")))))))))))","v":""},{"$f":"IF('Plant-Equipment Register'!K91=\"Daily\",1,IF('Plant-Equipment Register'!K91=\"Weekly\",7,IF('Plant-Equipment Register'!K91=\"Fortnightly\",7,IF('Plant-Equipment Register'!K91=\"Monthly\",30,IF('Plant-Equipment Register'!K91=\"2 monthly\",61,IF('Plant-Equipment Register'!K91=\"3 monthly\",92,IF('Plant-Equipment Register'!K91=\"6 montly\",183,IF('Plant-Equipment Register'!K91=\"Yearly\",365,IF('Plant-Equipment Register'!K91=\"2 yearly\",730,IF('Plant-Equipment Register'!K91=\"3 Yearly\",1095,IF('Plant-Equipment Register'!K91=\"5 yearly\",1826,\"\")))))))))))","v":""},{"$f":"IF(AND('Plant-Equipment Register'!A86<>\"Date:\",'Plant-Equipment Register'!A86<>\"PVID:\",'Plant-Equipment Register'!A86<>\"Camp/Base:\",'Plant-Equipment Register'!A86<>\"\",'Plant-Equipment Register'!A86<>\"Construction Vehicles, Plant and Equipment\",'Plant-Equipment Register'!A86<>\"Vehicle/Plant/Equipment\"),ROW()-1,\"\")","v":""}]
[null,null,null,null,{"$f":"IF('Plant-Equipment Register'!H92=\"Daily\",1,IF('Plant-Equipment Register'!H92=\"Weekly\",7,IF('Plant-Equipment Register'!H92=\"Fortnightly\",7,IF('Plant-Equipment Register'!H92=\"Monthly\",30,IF('Plant-Equipment Register'!H92=\"2 monthly\",61,IF('Plant-Equipment Register'!H92=\"3 monthly\",92,IF('Plant-Equipment Register'!H92=\"6 monthly\",183,IF('Plant-Equipment Register'!H92=\"Yearly\",365,IF('Plant-Equipment Register'!H92=\"2 yearly\",730,IF('Plant-Equipment Register'!H92=\"3 yearly\",1095,IF('Plant-Equipment Register'!H92=\"5 yearly\",1826,\"\")))))))))))","v":""},{"$f":"IF('Plant-Equipment Register'!K92=\"Daily\",1,IF('Plant-Equipment Register'!K92=\"Weekly\",7,IF('Plant-Equipment Register'!K92=\"Fortnightly\",7,IF('Plant-Equipment Register'!K92=\"Monthly\",30,IF('Plant-Equipment Register'!K92=\"2 monthly\",61,IF('Plant-Equipment Register'!K92=\"3 monthly\",92,IF('Plant-Equipment Register'!K92=\"6 montly\",183,IF('Plant-Equipment Register'!K92=\"Yearly\",365,IF('Plant-Equipment Register'!K92=\"2 yearly\",730,IF('Plant-Equipment Register'!K92=\"3 Yearly\",1095,IF('Plant-Equipment Register'!K92=\"5 yearly\",1826,\"\")))))))))))","v":""},{"$f":"IF(AND('Plant-Equipment Register'!A87<>\"Date:\",'Plant-Equipment Register'!A87<>\"PVID:\",'Plant-Equipment Register'!A87<>\"Camp/Base:\",'Plant-Equipment Register'!A87<>\"\",'Plant-Equipment Register'!A87<>\"Construction Vehicles, Plant and Equipment\",'Plant-Equipment Register'!A87<>\"Vehicle/Plant/Equipment\"),ROW()-1,\"\")","v":""}]
[null,null,null,null,{"$f":"IF('Plant-Equipment Register'!H93=\"Daily\",1,IF('Plant-Equipment Register'!H93=\"Weekly\",7,IF('Plant-Equipment Register'!H93=\"Fortnightly\",7,IF('Plant-Equipment Register'!H93=\"Monthly\",30,IF('Plant-Equipment Register'!H93=\"2 monthly\",61,IF('Plant-Equipment Register'!H93=\"3 monthly\",92,IF('Plant-Equipment Register'!H93=\"6 monthly\",183,IF('Plant-Equipment Register'!H93=\"Yearly\",365,IF('Plant-Equipment Register'!H93=\"2 yearly\",730,IF('Plant-Equipment Register'!H93=\"3 yearly\",1095,IF('Plant-Equipment Register'!H93=\"5 yearly\",1826,\"\")))))))))))","v":""},{"$f":"IF('Plant-Equipment Register'!K93=\"Daily\",1,IF('Plant-Equipment Register'!K93=\"Weekly\",7,IF('Plant-Equipment Register'!K93=\"Fortnightly\",7,IF('Plant-Equipment Register'!K93=\"Monthly\",30,IF('Plant-Equipment Register'!K93=\"2 monthly\",61,IF('Plant-Equipment Register'!K93=\"3 monthly\",92,IF('Plant-Equipment Register'!K93=\"6 montly\",183,IF('Plant-Equipment Register'!K93=\"Yearly\",365,IF('Plant-Equipment Register'!K93=\"2 yearly\",730,IF('Plant-Equipment Register'!K93=\"3 Yearly\",1095,IF('Plant-Equipment Register'!K93=\"5 yearly\",1826,\"\")))))))))))","v":""},{"$f":"IF(AND('Plant-Equipment Register'!A88<>\"Date:\",'Plant-Equipment Register'!A88<>\"PVID:\",'Plant-Equipment Register'!A88<>\"Camp/Base:\",'Plant-Equipment Register'!A88<>\"\",'Plant-Equipment Register'!A88<>\"Construction Vehicles, Plant and Equipment\",'Plant-Equipment Register'!A88<>\"Vehicle/Plant/Equipment\"),ROW()-1,\"\")","v":""}]
[null,null,null,null,{"$f":"IF('Plant-Equipment Register'!H94=\"Daily\",1,IF('Plant-Equipment Register'!H94=\"Weekly\",7,IF('Plant-Equipment Register'!H94=\"Fortnightly\",7,IF('Plant-Equipment Register'!H94=\"Monthly\",30,IF('Plant-Equipment Register'!H94=\"2 monthly\",61,IF('Plant-Equipment Register'!H94=\"3 monthly\",92,IF('Plant-Equipment Register'!H94=\"6 monthly\",183,IF('Plant-Equipment Register'!H94=\"Yearly\",365,IF('Plant-Equipment Register'!H94=\"2 yearly\",730,IF('Plant-Equipment Register'!H94=\"3 yearly\",1095,IF('Plant-Equipment Register'!H94=\"5 yearly\",1826,\"\")))))))))))","v":""},{"$f":"IF('Plant-Equipment Register'!K94=\"Daily\",1,IF('Plant-Equipment Register'!K94=\"Weekly\",7,IF('Plant-Equipment Register'!K94=\"Fortnightly\",7,IF('Plant-Equipment Register'!K94=\"Monthly\",30,IF('Plant-Equipment Register'!K94=\"2 monthly\",61,IF('Plant-Equipment Register'!K94=\"3 monthly\",92,IF('Plant-Equipment Register'!K94=\"6 montly\",183,IF('Plant-Equipment Register'!K94=\"Yearly\",365,IF('Plant-Equipment Register'!K94=\"2 yearly\",730,IF('Plant-Equipment Register'!K94=\"3 Yearly\",1095,IF('Plant-Equipment Register'!K94=\"5 yearly\",1826,\"\")))))))))))","v":""},{"$f":"IF(AND('Plant-Equipment Register'!A89<>\"Date:\",'Plant-Equipment Register'!A89<>\"PVID:\",'Plant-Equipment Register'!A89<>\"Camp/Base:\",'Plant-Equipment Register'!A89<>\"\",'Plant-Equipment Register'!A89<>\"Construction Vehicles, Plant and Equipment\",'Plant-Equipment Register'!A89<>\"Vehicle/Plant/Equipment\"),ROW()-1,\"\")","v":""}]
[null,null,null,null,{"$f":"IF('Plant-Equipment Register'!H95=\"Daily\",1,IF('Plant-Equipment Register'!H95=\"Weekly\",7,IF('Plant-Equipment Register'!H95=\"Fortnightly\",7,IF('Plant-Equipment Register'!H95=\"Monthly\",30,IF('Plant-Equipment Register'!H95=\"2 monthly\",61,IF('Plant-Equipment Register'!H95=\"3 monthly\",92,IF('Plant-Equipment Register'!H95=\"6 monthly\",183,IF('Plant-Equipment Register'!H95=\"Yearly\",365,IF('Plant-Equipment Register'!H95=\"2 yearly\",730,IF('Plant-Equipment Register'!H95=\"3 yearly\",1095,IF('Plant-Equipment Register'!H95=\"5 yearly\",1826,\"\")))))))))))","v":""},{"$f":"IF('Plant-Equipment Register'!K95=\"Daily\",1,IF('Plant-Equipment Register'!K95=\"Weekly\",7,IF('Plant-Equipment Register'!K95=\"Fortnightly\",7,IF('Plant-Equipment Register'!K95=\"Monthly\",30,IF('Plant-Equipment Register'!K95=\"2 monthly\",61,IF('Plant-Equipment Register'!K95=\"3 monthly\",92,IF('Plant-Equipment Register'!K95=\"6 montly\",183,IF('Plant-Equipment Register'!K95=\"Yearly\",365,IF('Plant-Equipment Register'!K95=\"2 yearly\",730,IF('Plant-Equipment Register'!K95=\"3 Yearly\",1095,IF('Plant-Equipment Register'!K95=\"5 yearly\",1826,\"\")))))))))))","v":""},{"$f":"IF(AND('Plant-Equipment Register'!A90<>\"Date:\",'Plant-Equipment Register'!A90<>\"PVID:\",'Plant-Equipment Register'!A90<>\"Camp/Base:\",'Plant-Equipment Register'!A90<>\"\",'Plant-Equipment Register'!A90<>\"Construction Vehicles, Plant and Equipment\",'Plant-Equipment Register'!A90<>\"Vehicle/Plant/Equipment\"),ROW()-1,\"\")","v":""}]
[null,null,null,null,{"$f":"IF('Plant-Equipment Register'!H96=\"Daily\",1,IF('Plant-Equipment Register'!H96=\"Weekly\",7,IF('Plant-Equipment Register'!H96=\"Fortnightly\",7,IF('Plant-Equipment Register'!H96=\"Monthly\",30,IF('Plant-Equipment Register'!H96=\"2 monthly\",61,IF('Plant-Equipment Register'!H96=\"3 monthly\",92,IF('Plant-Equipment Register'!H96=\"6 monthly\",183,IF('Plant-Equipment Register'!H96=\"Yearly\",365,IF('Plant-Equipment Register'!H96=\"2 yearly\",730,IF('Plant-Equipment Register'!H96=\"3 yearly\",1095,IF('Plant-Equipment Register'!H96=\"5 yearly\",1826,\"\")))))))))))","v":""},{"$f":"IF('Plant-Equipment Register'!K96=\"Daily\",1,IF('Plant-Equipment Register'!K96=\"Weekly\",7,IF('Plant-Equipment Register'!K96=\"Fortnightly\",7,IF('Plant-Equipment Register'!K96=\"Monthly\",30,IF('Plant-Equipment Register'!K96=\"2 monthly\",61,IF('Plant-Equipment Register'!K96=\"3 monthly\",92,IF('Plant-Equipment Register'!K96=\"6 montly\",183,IF('Plant-Equipment Register'!K96=\"Yearly\",365,IF('Plant-Equipment Register'!K96=\"2 yearly\",730,IF('Plant-Equipment Register'!K96=\"3 Yearly\",1095,IF('Plant-Equipment Register'!K96=\"5 yearly\",1826,\"\")))))))))))","v":""},{"$f":"IF(AND('Plant-Equipment Register'!#REF!<>\"Date:\",'Plant-Equipment Register'!#REF!<>\"PVID:\",'Plant-Equipment Register'!#REF!<>\"Camp/Base:\",'Plant-Equipment Register'!#REF!<>\"\",'Plant-Equipment Register'!#REF!<>\"Construction Vehicles, Plant and Equipment\",'Plant-Equipment Register'!#REF!<>\"Vehicle/Plant/Equipment\"),ROW()-1,\"\")","v":{"$error":"#REF!"}}]
[null,null,null,null,{"$f":"IF('Plant-Equipment Register'!H97=\"Daily\",1,IF('Plant-Equipment Register'!H97=\"Weekly\",7,IF('Plant-Equipment Register'!H97=\"Fortnightly\",7,IF('Plant-Equipment Register'!H97=\"Monthly\",30,IF('Plant-Equipment Register'!H97=\"2 monthly\",61,IF('Plant-Equipment Register'!H97=\"3 monthly\",92,IF('Plant-Equipment Register'!H97=\"6 monthly\",183,IF('Plant-Equipment Register'!H97=\"Yearly\",365,IF('Plant-Equipment Register'!H97=\"2 yearly\",730,IF('Plant-Equipment Register'!H97=\"3 yearly\",1095,IF('Plant-Equipment Register'!H97=\"5 yearly\",1826,\"\")))))))))))","v":""},{"$f":"IF('Plant-Equipment Register'!K97=\"Daily\",1,IF('Plant-Equipment Register'!K97=\"Weekly\",7,IF('Plant-Equipment Register'!K97=\"Fortnightly\",7,IF('Plant-Equipment Register'!K97=\"Monthly\",30,IF('Plant-Equipment Register'!K97=\"2 monthly\",61,IF('Plant-Equipment Register'!K97=\"3 monthly\",92,IF('Plant-Equipment Register'!K97=\"6 montly\",183,IF('Plant-Equipment Register'!K97=\"Yearly\",365,IF('Plant-Equipment Register'!K97=\"2 yearly\",730,IF('Plant-Equipment Register'!K97=\"3 Yearly\",1095,IF('Plant-Equipment Register'!K97=\"5 yearly\",1826,\"\")))))))))))","v":""},{"$f":"IF(AND('Plant-Equipment Register'!A91<>\"Date:\",'Plant-Equipment Register'!A91<>\"PVID:\",'Plant-Equipment Register'!A91<>\"Camp/Base:\",'Plant-Equipment Register'!A91<>\"\",'Plant-Equipment Register'!A91<>\"Construction Vehicles, Plant and Equipment\",'Plant-Equipment Register'!A91<>\"Vehicle/Plant/Equipment\"),ROW()-1,\"\")","v":""}]
[null,null,null,null,{"$f":"IF('Plant-Equipment Register'!H98=\"Daily\",1,IF('Plant-Equipment Register'!H98=\"Weekly\",7,IF('Plant-Equipment Register'!H98=\"Fortnightly\",7,IF('Plant-Equipment Register'!H98=\"Monthly\",30,IF('Plant-Equipment Register'!H98=\"2 monthly\",61,IF('Plant-Equipment Register'!H98=\"3 monthly\",92,IF('Plant-Equipment Register'!H98=\"6 monthly\",183,IF('Plant-Equipment Register'!H98=\"Yearly\",365,IF('Plant-Equipment Register'!H98=\"2 yearly\",730,IF('Plant-Equipment Register'!H98=\"3 yearly\",1095,IF('Plant-Equipment Register'!H98=\"5 yearly\",1826,\"\")))))))))))","v":""},{"$f":"IF('Plant-Equipment Register'!K98=\"Daily\",1,IF('Plant-Equipment Register'!K98=\"Weekly\",7,IF('Plant-Equipment Register'!K98=\"Fortnightly\",7,IF('Plant-Equipment Register'!K98=\"Monthly\",30,IF('Plant-Equipment Register'!K98=\"2 monthly\",61,IF('Plant-Equipment Register'!K98=\"3 monthly\",92,IF('Plant-Equipment Register'!K98=\"6 montly\",183,IF('Plant-Equipment Register'!K98=\"Yearly\",365,IF('Plant-Equipment Register'!K98=\"2 yearly\",730,IF('Plant-Equipment Register'!K98=\"3 Yearly\",1095,IF('Plant-Equipment Register'!K98=\"5 yearly\",1826,\"\")))))))))))","v":""},{"$f":"IF(AND('Plant-Equipment Register'!A92<>\"Date:\",'Plant-Equipment Register'!A92<>\"PVID:\",'Plant-Equipment Register'!A92<>\"Camp/Base:\",'Plant-Equipment Register'!A92<>\"\",'Plant-Equipment Register'!A92<>\"Construction Vehicles, Plant and Equipment\",'Plant-Equipment Register'!A92<>\"Vehicle/Plant/Equipment\"),ROW()-1,\"\")","v":""}]
[null,null,null,null,{"$f":"IF('Plant-Equipment Register'!H99=\"Daily\",1,IF('Plant-Equipment Register'!H99=\"Weekly\",7,IF('Plant-Equipment Register'!H99=\"Fortnightly\",7,IF('Plant-Equipment Register'!H99=\"Monthly\",30,IF('Plant-Equipment Register'!H99=\"2 monthly\",61,IF('Plant-Equipment Register'!H99=\"3 monthly\",92,IF('Plant-Equipment Register'!H99=\"6 monthly\",183,IF('Plant-Equipment Register'!H99=\"Yearly\",365,IF('Plant-Equipment Register'!H99=\"2 yearly\",730,IF('Plant-Equipment Register'!H99=\"3 yearly\",1095,IF('Plant-Equipment Register'!H99=\"5 yearly\",1826,\"\")))))))))))","v":""},{"$f":"IF('Plant-Equipment Register'!K99=\"Daily\",1,IF('Plant-Equipment Register'!K99=\"Weekly\",7,IF('Plant-Equipment Register'!K99=\"Fortnightly\",7,IF('Plant-Equipment Register'!K99=\"Monthly\",30,IF('Plant-Equipment Register'!K99=\"2 monthly\",61,IF('Plant-Equipment Register'!K99=\"3 monthly\",92,IF('Plant-Equipment Register'!K99=\"6 montly\",183,IF('Plant-Equipment Register'!K99=\"Yearly\",365,IF('Plant-Equipment Register'!K99=\"2 yearly\",730,IF('Plant-Equipment Register'!K99=\"3 Yearly\",1095,IF('Plant-Equipment Register'!K99=\"5 yearly\",1826,\"\")))))))))))","v":""},{"$f":"IF(AND('Plant-Equipment Register'!A93<>\"Date:\",'Plant-Equipment Register'!A93<>\"PVID:\",'Plant-Equipment Register'!A93<>\"Camp/Base:\",'Plant-Equipment Register'!A93<>\"\",'Plant-Equipment Register'!A93<>\"Construction Vehicles, Plant and Equipment\",'Plant-Equipment Register'!A93<>\"Vehicle/Plant/Equipment\"),ROW()-1,\"\")","v":""}]
[null,null,null,null,{"$f":"IF('Plant-Equipment Register'!H100=\"Daily\",1,IF('Plant-Equipment Register'!H100=\"Weekly\",7,IF('Plant-Equipment Register'!H100=\"Fortnightly\",7,IF('Plant-Equipment Register'!H100=\"Monthly\",30,IF('Plant-Equipment Register'!H100=\"2 monthly\",61,IF('Plant-Equipment Register'!H100=\"3 monthly\",92,IF('Plant-Equipment Register'!H100=\"6 monthly\",183,IF('Plant-Equipment Register'!H100=\"Yearly\",365,IF('Plant-Equipment Register'!H100=\"2 yearly\",730,IF('Plant-Equipment Register'!H100=\"3 yearly\",1095,IF('Plant-Equipment Register'!H100=\"5 yearly\",1826,\"\")))))))))))","v":""},{"$f":"IF('Plant-Equipment Register'!K100=\"Daily\",1,IF('Plant-Equipment Register'!K100=\"Weekly\",7,IF('Plant-Equipment Register'!K100=\"Fortnightly\",7,IF('Plant-Equipment Register'!K100=\"Monthly\",30,IF('Plant-Equipment Register'!K100=\"2 monthly\",61,IF('Plant-Equipment Register'!K100=\"3 monthly\",92,IF('Plant-Equipment Register'!K100=\"6 montly\",183,IF('Plant-Equipment Register'!K100=\"Yearly\",365,IF('Plant-Equipment Register'!K100=\"2 yearly\",730,IF('Plant-Equipment Register'!K100=\"3 Yearly\",1095,IF('Plant-Equipment Register'!K100=\"5 yearly\",1826,\"\")))))))))))","v":""},{"$f":"IF(AND('Plant-Equipment Register'!A94<>\"Date:\",'Plant-Equipment Register'!A94<>\"PVID:\",'Plant-Equipment Register'!A94<>\"Camp/Base:\",'Plant-Equipment Register'!A94<>\"\",'Plant-Equipment Register'!A94<>\"Construction Vehicles, Plant and Equipment\",'Plant-Equipment Register'!A94<>\"Vehicle/Plant/Equipment\"),ROW()-1,\"\")","v":""}]
[null,null,null,null,{"$f":"IF('Plant-Equipment Register'!H101=\"Daily\",1,IF('Plant-Equipment Register'!H101=\"Weekly\",7,IF('Plant-Equipment Register'!H101=\"Fortnightly\",7,IF('Plant-Equipment Register'!H101=\"Monthly\",30,IF('Plant-Equipment Register'!H101=\"2 monthly\",61,IF('Plant-Equipment Register'!H101=\"3 monthly\",92,IF('Plant-Equipment Register'!H101=\"6 monthly\",183,IF('Plant-Equipment Register'!H101=\"Yearly\",365,IF('Plant-Equipment Register'!H101=\"2 yearly\",730,IF('Plant-Equipment Register'!H101=\"3 yearly\",1095,IF('Plant-Equipment Register'!H101=\"5 yearly\",1826,\"\")))))))))))","v":""},{"$f":"IF('Plant-Equipment Register'!K101=\"Daily\",1,IF('Plant-Equipment Register'!K101=\"Weekly\",7,IF('Plant-Equipment Register'!K101=\"Fortnightly\",7,IF('Plant-Equipment Register'!K101=\"Monthly\",30,IF('Plant-Equipment Register'!K101=\"2 monthly\",61,IF('Plant-Equipment Register'!K101=\"3 monthly\",92,IF('Plant-Equipment Register'!K101=\"6 montly\",183,IF('Plant-Equipment Register'!K101=\"Yearly\",365,IF('Plant-Equipment Register'!K101=\"2 yearly\",730,IF('Plant-Equipment Register'!K101=\"3 Yearly\",1095,IF('Plant-Equipment Register'!K101=\"5 yearly\",1826,\"\")))))))))))","v":""},{"$f":"IF(AND('Plant-Equipment Register'!A95<>\"Date:\",'Plant-Equipment Register'!A95<>\"PVID:\",'Plant-Equipment Register'!A95<>\"Camp/Base:\",'Plant-Equipment Register'!A95<>\"\",'Plant-Equipment Register'!A95<>\"Construction Vehicles, Plant and Equipment\",'Plant-Equipment Register'!A95<>\"Vehicle/Plant/Equipment\"),ROW()-1,\"\")","v":""}]
[null,null,null,null,{"$f":"IF('Plant-Equipment Register'!H102=\"Daily\",1,IF('Plant-Equipment Register'!H102=\"Weekly\",7,IF('Plant-Equipment Register'!H102=\"Fortnightly\",7,IF('Plant-Equipment Register'!H102=\"Monthly\",30,IF('Plant-Equipment Register'!H102=\"2 monthly\",61,IF('Plant-Equipment Register'!H102=\"3 monthly\",92,IF('Plant-Equipment Register'!H102=\"6 monthly\",183,IF('Plant-Equipment Register'!H102=\"Yearly\",365,IF('Plant-Equipment Register'!H102=\"2 yearly\",730,IF('Plant-Equipment Register'!H102=\"3 yearly\",1095,IF('Plant-Equipment Register'!H102=\"5 yearly\",1826,\"\")))))))))))","v":""},{"$f":"IF('Plant-Equipment Register'!K102=\"Daily\",1,IF('Plant-Equipment Register'!K102=\"Weekly\",7,IF('Plant-Equipment Register'!K102=\"Fortnightly\",7,IF('Plant-Equipment Register'!K102=\"Monthly\",30,IF('Plant-Equipment Register'!K102=\"2 monthly\",61,IF('Plant-Equipment Register'!K102=\"3 monthly\",92,IF('Plant-Equipment Register'!K102=\"6 montly\",183,IF('Plant-Equipment Register'!K102=\"Yearly\",365,IF('Plant-Equipment Register'!K102=\"2 yearly\",730,IF('Plant-Equipment Register'!K102=\"3 Yearly\",1095,IF('Plant-Equipment Register'!K102=\"5 yearly\",1826,\"\")))))))))))","v":""},{"$f":"IF(AND('Plant-Equipment Register'!A96<>\"Date:\",'Plant-Equipment Register'!A96<>\"PVID:\",'Plant-Equipment Register'!A96<>\"Camp/Base:\",'Plant-Equipment Register'!A96<>\"\",'Plant-Equipment Register'!A96<>\"Construction Vehicles, Plant and Equipment\",'Plant-Equipment Register'!A96<>\"Vehicle/Plant/Equipment\"),ROW()-1,\"\")","v":""}]
[null,null,null,null,{"$f":"IF('Plant-Equipment Register'!H103=\"Daily\",1,IF('Plant-Equipment Register'!H103=\"Weekly\",7,IF('Plant-Equipment Register'!H103=\"Fortnightly\",7,IF('Plant-Equipment Register'!H103=\"Monthly\",30,IF('Plant-Equipment Register'!H103=\"2 monthly\",61,IF('Plant-Equipment Register'!H103=\"3 monthly\",92,IF('Plant-Equipment Register'!H103=\"6 monthly\",183,IF('Plant-Equipment Register'!H103=\"Yearly\",365,IF('Plant-Equipment Register'!H103=\"2 yearly\",730,IF('Plant-Equipment Register'!H103=\"3 yearly\",1095,IF('Plant-Equipment Register'!H103=\"5 yearly\",1826,\"\")))))))))))","v":""},{"$f":"IF('Plant-Equipment Register'!K103=\"Daily\",1,IF('Plant-Equipment Register'!K103=\"Weekly\",7,IF('Plant-Equipment Register'!K103=\"Fortnightly\",7,IF('Plant-Equipment Register'!K103=\"Monthly\",30,IF('Plant-Equipment Register'!K103=\"2 monthly\",61,IF('Plant-Equipment Register'!K103=\"3 monthly\",92,IF('Plant-Equipment Register'!K103=\"6 montly\",183,IF('Plant-Equipment Register'!K103=\"Yearly\",365,IF('Plant-Equipment Register'!K103=\"2 yearly\",730,IF('Plant-Equipment Register'!K103=\"3 Yearly\",1095,IF('Plant-Equipment Register'!K103=\"5 yearly\",1826,\"\")))))))))))","v":""},{"$f":"IF(AND('Plant-Equipment Register'!A97<>\"Date:\",'Plant-Equipment Register'!A97<>\"PVID:\",'Plant-Equipment Register'!A97<>\"Camp/Base:\",'Plant-Equipment Register'!A97<>\"\",'Plant-Equipment Register'!A97<>\"Construction Vehicles, Plant and Equipment\",'Plant-Equipment Register'!A97<>\"Vehicle/Plant/Equipment\"),ROW()-1,\"\")","v":""}]
[null,null,null,null,{"$f":"IF('Plant-Equipment Register'!H104=\"Daily\",1,IF('Plant-Equipment Register'!H104=\"Weekly\",7,IF('Plant-Equipment Register'!H104=\"Fortnightly\",7,IF('Plant-Equipment Register'!H104=\"Monthly\",30,IF('Plant-Equipment Register'!H104=\"2 monthly\",61,IF('Plant-Equipment Register'!H104=\"3 monthly\",92,IF('Plant-Equipment Register'!H104=\"6 monthly\",183,IF('Plant-Equipment Register'!H104=\"Yearly\",365,IF('Plant-Equipment Register'!H104=\"2 yearly\",730,IF('Plant-Equipment Register'!H104=\"3 yearly\",1095,IF('Plant-Equipment Register'!H104=\"5 yearly\",1826,\"\")))))))))))","v":""},{"$f":"IF('Plant-Equipment Register'!K104=\"Daily\",1,IF('Plant-Equipment Register'!K104=\"Weekly\",7,IF('Plant-Equipment Register'!K104=\"Fortnightly\",7,IF('Plant-Equipment Register'!K104=\"Monthly\",30,IF('Plant-Equipment Register'!K104=\"2 monthly\",61,IF('Plant-Equipment Register'!K104=\"3 monthly\",92,IF('Plant-Equipment Register'!K104=\"6 montly\",183,IF('Plant-Equipment Register'!K104=\"Yearly\",365,IF('Plant-Equipment Register'!K104=\"2 yearly\",730,IF('Plant-Equipment Register'!K104=\"3 Yearly\",1095,IF('Plant-Equipment Register'!K104=\"5 yearly\",1826,\"\")))))))))))","v":""},{"$f":"IF(AND('Plant-Equipment Register'!A98<>\"Date:\",'Plant-Equipment Register'!A98<>\"PVID:\",'Plant-Equipment Register'!A98<>\"Camp/Base:\",'Plant-Equipment Register'!A98<>\"\",'Plant-Equipment Register'!A98<>\"Construction Vehicles, Plant and Equipment\",'Plant-Equipment Register'!A98<>\"Vehicle/Plant/Equipment\"),ROW()-1,\"\")","v":""}]
[null,null,null,null,{"$f":"IF('Plant-Equipment Register'!H105=\"Daily\",1,IF('Plant-Equipment Register'!H105=\"Weekly\",7,IF('Plant-Equipment Register'!H105=\"Fortnightly\",7,IF('Plant-Equipment Register'!H105=\"Monthly\",30,IF('Plant-Equipment Register'!H105=\"2 monthly\",61,IF('Plant-Equipment Register'!H105=\"3 monthly\",92,IF('Plant-Equipment Register'!H105=\"6 monthly\",183,IF('Plant-Equipment Register'!H105=\"Yearly\",365,IF('Plant-Equipment Register'!H105=\"2 yearly\",730,IF('Plant-Equipment Register'!H105=\"3 yearly\",1095,IF('Plant-Equipment Register'!H105=\"5 yearly\",1826,\"\")))))))))))","v":""},{"$f":"IF('Plant-Equipment Register'!K105=\"Daily\",1,IF('Plant-Equipment Register'!K105=\"Weekly\",7,IF('Plant-Equipment Register'!K105=\"Fortnightly\",7,IF('Plant-Equipment Register'!K105=\"Monthly\",30,IF('Plant-Equipment Register'!K105=\"2 monthly\",61,IF('Plant-Equipment Register'!K105=\"3 monthly\",92,IF('Plant-Equipment Register'!K105=\"6 montly\",183,IF('Plant-Equipment Register'!K105=\"Yearly\",365,IF('Plant-Equipment Register'!K105=\"2 yearly\",730,IF('Plant-Equipment Register'!K105=\"3 Yearly\",1095,IF('Plant-Equipment Register'!K105=\"5 yearly\",1826,\"\")))))))))))","v":""},{"$f":"IF(AND('Plant-Equipment Register'!A99<>\"Date:\",'Plant-Equipment Register'!A99<>\"PVID:\",'Plant-Equipment Register'!A99<>\"Camp/Base:\",'Plant-Equipment Register'!A99<>\"\",'Plant-Equipment Register'!A99<>\"Construction Vehicles, Plant and Equipment\",'Plant-Equipment Register'!A99<>\"Vehicle/Plant/Equipment\"),ROW()-1,\"\")","v":""}]
[null,null,null,null,{"$f":"IF('Plant-Equipment Register'!H106=\"Daily\",1,IF('Plant-Equipment Register'!H106=\"Weekly\",7,IF('Plant-Equipment Register'!H106=\"Fortnightly\",7,IF('Plant-Equipment Register'!H106=\"Monthly\",30,IF('Plant-Equipment Register'!H106=\"2 monthly\",61,IF('Plant-Equipment Register'!H106=\"3 monthly\",92,IF('Plant-Equipment Register'!H106=\"6 monthly\",183,IF('Plant-Equipment Register'!H106=\"Yearly\",365,IF('Plant-Equipment Register'!H106=\"2 yearly\",730,IF('Plant-Equipment Register'!H106=\"3 yearly\",1095,IF('Plant-Equipment Register'!H106=\"5 yearly\",1826,\"\")))))))))))","v":""},{"$f":"IF('Plant-Equipment Register'!K106=\"Daily\",1,IF('Plant-Equipment Register'!K106=\"Weekly\",7,IF('Plant-Equipment Register'!K106=\"Fortnightly\",7,IF('Plant-Equipment Register'!K106=\"Monthly\",30,IF('Plant-Equipment Register'!K106=\"2 monthly\",61,IF('Plant-Equipment Register'!K106=\"3 monthly\",92,IF('Plant-Equipment Register'!K106=\"6 montly\",183,IF('Plant-Equipment Register'!K106=\"Yearly\",365,IF('Plant-Equipment Register'!K106=\"2 yearly\",730,IF('Plant-Equipment Register'!K106=\"3 Yearly\",1095,IF('Plant-Equipment Register'!K106=\"5 yearly\",1826,\"\")))))))))))","v":""},{"$f":"IF(AND('Plant-Equipment Register'!A100<>\"Date:\",'Plant-Equipment Register'!A100<>\"PVID:\",'Plant-Equipment Register'!A100<>\"Camp/Base:\",'Plant-Equipment Register'!A100<>\"\",'Plant-Equipment Register'!A100<>\"Construction Vehicles, Plant and Equipment\",'Plant-Equipment Register'!A100<>\"Vehicle/Plant/Equipment\"),ROW()-1,\"\")","v":""}]
[null,null,null,null,{"$f":"IF('Plant-Equipment Register'!H107=\"Daily\",1,IF('Plant-Equipment Register'!H107=\"Weekly\",7,IF('Plant-Equipment Register'!H107=\"Fortnightly\",7,IF('Plant-Equipment Register'!H107=\"Monthly\",30,IF('Plant-Equipment Register'!H107=\"2 monthly\",61,IF('Plant-Equipment Register'!H107=\"3 monthly\",92,IF('Plant-Equipment Register'!H107=\"6 monthly\",183,IF('Plant-Equipment Register'!H107=\"Yearly\",365,IF('Plant-Equipment Register'!H107=\"2 yearly\",730,IF('Plant-Equipment Register'!H107=\"3 yearly\",1095,IF('Plant-Equipment Register'!H107=\"5 yearly\",1826,\"\")))))))))))","v":""},{"$f":"IF('Plant-Equipment Register'!K107=\"Daily\",1,IF('Plant-Equipment Register'!K107=\"Weekly\",7,IF('Plant-Equipment Register'!K107=\"Fortnightly\",7,IF('Plant-Equipment Register'!K107=\"Monthly\",30,IF('Plant-Equipment Register'!K107=\"2 monthly\",61,IF('Plant-Equipment Register'!K107=\"3 monthly\",92,IF('Plant-Equipment Register'!K107=\"6 montly\",183,IF('Plant-Equipment Register'!K107=\"Yearly\",365,IF('Plant-Equipment Register'!K107=\"2 yearly\",730,IF('Plant-Equipment Register'!K107=\"3 Yearly\",1095,IF('Plant-Equipment Register'!K107=\"5 yearly\",1826,\"\")))))))))))","v":""},{"$f":"IF(AND('Plant-Equipment Register'!A101<>\"Date:\",'Plant-Equipment Register'!A101<>\"PVID:\",'Plant-Equipment Register'!A101<>\"Camp/Base:\",'Plant-Equipment Register'!A101<>\"\",'Plant-Equipment Register'!A101<>\"Construction Vehicles, Plant and Equipment\",'Plant-Equipment Register'!A101<>\"Vehicle/Plant/Equipment\"),ROW()-1,\"\")","v":""}]
[null,null,null,null,{"$f":"IF('Plant-Equipment Register'!H108=\"Daily\",1,IF('Plant-Equipment Register'!H108=\"Weekly\",7,IF('Plant-Equipment Register'!H108=\"Fortnightly\",7,IF('Plant-Equipment Register'!H108=\"Monthly\",30,IF('Plant-Equipment Register'!H108=\"2 monthly\",61,IF('Plant-Equipment Register'!H108=\"3 monthly\",92,IF('Plant-Equipment Register'!H108=\"6 monthly\",183,IF('Plant-Equipment Register'!H108=\"Yearly\",365,IF('Plant-Equipment Register'!H108=\"2 yearly\",730,IF('Plant-Equipment Register'!H108=\"3 yearly\",1095,IF('Plant-Equipment Register'!H108=\"5 yearly\",1826,\"\")))))))))))","v":""},{"$f":"IF('Plant-Equipment Register'!K108=\"Daily\",1,IF('Plant-Equipment Register'!K108=\"Weekly\",7,IF('Plant-Equipment Register'!K108=\"Fortnightly\",7,IF('Plant-Equipment Register'!K108=\"Monthly\",30,IF('Plant-Equipment Register'!K108=\"2 monthly\",61,IF('Plant-Equipment Register'!K108=\"3 monthly\",92,IF('Plant-Equipment Register'!K108=\"6 montly\",183,IF('Plant-Equipment Register'!K108=\"Yearly\",365,IF('Plant-Equipment Register'!K108=\"2 yearly\",730,IF('Plant-Equipment Register'!K108=\"3 Yearly\",1095,IF('Plant-Equipment Register'!K108=\"5 yearly\",1826,\"\")))))))))))","v":""},{"$f":"IF(AND('Plant-Equipment Register'!A102<>\"Date:\",'Plant-Equipment Register'!A102<>\"PVID:\",'Plant-Equipment Register'!A102<>\"Camp/Base:\",'Plant-Equipment Register'!A102<>\"\",'Plant-Equipment Register'!A102<>\"Construction Vehicles, Plant and Equipment\",'Plant-Equipment Register'!A102<>\"Vehicle/Plant/Equipment\"),ROW()-1,\"\")","v":""}]
[null,null,null,null,{"$f":"IF('Plant-Equipment Register'!#REF!=\"Daily\",1,IF('Plant-Equipment Register'!#REF!=\"Weekly\",7,IF('Plant-Equipment Register'!#REF!=\"Fortnightly\",7,IF('Plant-Equipment Register'!#REF!=\"Monthly\",30,IF('Plant-Equipment Register'!#REF!=\"2 monthly\",61,IF('Plant-Equipment Register'!#REF!=\"3 monthly\",92,IF('Plant-Equipment Register'!#REF!=\"6 monthly\",183,IF('Plant-Equipment Register'!#REF!=\"Yearly\",365,IF('Plant-Equipment Register'!#REF!=\"2 yearly\",730,IF('Plant-Equipment Register'!#REF!=\"3 yearly\",1095,IF('Plant-Equipment Register'!#REF!=\"5 yearly\",1826,\"\")))))))))))","v":{"$error":"#REF!"}},{"$f":"IF('Plant-Equipment Register'!#REF!=\"Daily\",1,IF('Plant-Equipment Register'!#REF!=\"Weekly\",7,IF('Plant-Equipment Register'!#REF!=\"Fortnightly\",7,IF('Plant-Equipment Register'!#REF!=\"Monthly\",30,IF('Plant-Equipment Register'!#REF!=\"2 monthly\",61,IF('Plant-Equipment Register'!#REF!=\"3 monthly\",92,IF('Plant-Equipment Register'!#REF!=\"6 montly\",183,IF('Plant-Equipment Register'!#REF!=\"Yearly\",365,IF('Plant-Equipment Register'!#REF!=\"2 yearly\",730,IF('Plant-Equipment Register'!#REF!=\"3 Yearly\",1095,IF('Plant-Equipment Register'!#REF!=\"5 yearly\",1826,\"\")))))))))))","v":{"$error":"#REF!"}},{"$f":"IF(AND('Plant-Equipment Register'!A103<>\"Date:\",'Plant-Equipment Register'!A103<>\"PVID:\",'Plant-Equipment Register'!A103<>\"Camp/Base:\",'Plant-Equipment Register'!A103<>\"\",'Plant-Equipment Register'!A103<>\"Construction Vehicles, Plant and Equipment\",'Plant-Equipment Register'!A103<>\"Vehicle/Plant/Equipment\"),ROW()-1,\"\")","v":""}]
[null,null,null,null,{"$f":"IF('Plant-Equipment Register'!H109=\"Daily\",1,IF('Plant-Equipment Register'!H109=\"Weekly\",7,IF('Plant-Equipment Register'!H109=\"Fortnightly\",7,IF('Plant-Equipment Register'!H109=\"Monthly\",30,IF('Plant-Equipment Register'!H109=\"2 monthly\",61,IF('Plant-Equipment Register'!H109=\"3 monthly\",92,IF('Plant-Equipment Register'!H109=\"6 monthly\",183,IF('Plant-Equipment Register'!H109=\"Yearly\",365,IF('Plant-Equipment Register'!H109=\"2 yearly\",730,IF('Plant-Equipment Register'!H109=\"3 yearly\",1095,IF('Plant-Equipment Register'!H109=\"5 yearly\",1826,\"\")))))))))))","v":""},{"$f":"IF('Plant-Equipment Register'!K109=\"Daily\",1,IF('Plant-Equipment Register'!K109=\"Weekly\",7,IF('Plant-Equipment Register'!K109=\"Fortnightly\",7,IF('Plant-Equipment Register'!K109=\"Monthly\",30,IF('Plant-Equipment Register'!K109=\"2 monthly\",61,IF('Plant-Equipment Register'!K109=\"3 monthly\",92,IF('Plant-Equipment Register'!K109=\"6 montly\",183,IF('Plant-Equipment Register'!K109=\"Yearly\",365,IF('Plant-Equipment Register'!K109=\"2 yearly\",730,IF('Plant-Equipment Register'!K109=\"3 Yearly\",1095,IF('Plant-Equipment Register'!K109=\"5 yearly\",1826,\"\")))))))))))","v":""},{"$f":"IF(AND('Plant-Equipment Register'!A104<>\"Date:\",'Plant-Equipment Register'!A104<>\"PVID:\",'Plant-Equipment Register'!A104<>\"Camp/Base:\",'Plant-Equipment Register'!A104<>\"\",'Plant-Equipment Register'!A104<>\"Construction Vehicles, Plant and Equipment\",'Plant-Equipment Register'!A104<>\"Vehicle/Plant/Equipment\"),ROW()-1,\"\")","v":""}]
[null,null,null,null,{"$f":"IF('Plant-Equipment Register'!H110=\"Daily\",1,IF('Plant-Equipment Register'!H110=\"Weekly\",7,IF('Plant-Equipment Register'!H110=\"Fortnightly\",7,IF('Plant-Equipment Register'!H110=\"Monthly\",30,IF('Plant-Equipment Register'!H110=\"2 monthly\",61,IF('Plant-Equipment Register'!H110=\"3 monthly\",92,IF('Plant-Equipment Register'!H110=\"6 monthly\",183,IF('Plant-Equipment Register'!H110=\"Yearly\",365,IF('Plant-Equipment Register'!H110=\"2 yearly\",730,IF('Plant-Equipment Register'!H110=\"3 yearly\",1095,IF('Plant-Equipment Register'!H110=\"5 yearly\",1826,\"\")))))))))))","v":""},{"$f":"IF('Plant-Equipment Register'!K110=\"Daily\",1,IF('Plant-Equipment Register'!K110=\"Weekly\",7,IF('Plant-Equipment Register'!K110=\"Fortnightly\",7,IF('Plant-Equipment Register'!K110=\"Monthly\",30,IF('Plant-Equipment Register'!K110=\"2 monthly\",61,IF('Plant-Equipment Register'!K110=\"3 monthly\",92,IF('Plant-Equipment Register'!K110=\"6 montly\",183,IF('Plant-Equipment Register'!K110=\"Yearly\",365,IF('Plant-Equipment Register'!K110=\"2 yearly\",730,IF('Plant-Equipment Register'!K110=\"3 Yearly\",1095,IF('Plant-Equipment Register'!K110=\"5 yearly\",1826,\"\")))))))))))","v":""},{"$f":"IF(AND('Plant-Equipment Register'!A105<>\"Date:\",'Plant-Equipment Register'!A105<>\"PVID:\",'Plant-Equipment Register'!A105<>\"Camp/Base:\",'Plant-Equipment Register'!A105<>\"\",'Plant-Equipment Register'!A105<>\"Construction Vehicles, Plant and Equipment\",'Plant-Equipment Register'!A105<>\"Vehicle/Plant/Equipment\"),ROW()-1,\"\")","v":""}]
[null,null,null,null,{"$f":"IF('Plant-Equipment Register'!H111=\"Daily\",1,IF('Plant-Equipment Register'!H111=\"Weekly\",7,IF('Plant-Equipment Register'!H111=\"Fortnightly\",7,IF('Plant-Equipment Register'!H111=\"Monthly\",30,IF('Plant-Equipment Register'!H111=\"2 monthly\",61,IF('Plant-Equipment Register'!H111=\"3 monthly\",92,IF('Plant-Equipment Register'!H111=\"6 monthly\",183,IF('Plant-Equipment Register'!H111=\"Yearly\",365,IF('Plant-Equipment Register'!H111=\"2 yearly\",730,IF('Plant-Equipment Register'!H111=\"3 yearly\",1095,IF('Plant-Equipment Register'!H111=\"5 yearly\",1826,\"\")))))))))))","v":""},{"$f":"IF('Plant-Equipment Register'!K111=\"Daily\",1,IF('Plant-Equipment Register'!K111=\"Weekly\",7,IF('Plant-Equipment Register'!K111=\"Fortnightly\",7,IF('Plant-Equipment Register'!K111=\"Monthly\",30,IF('Plant-Equipment Register'!K111=\"2 monthly\",61,IF('Plant-Equipment Register'!K111=\"3 monthly\",92,IF('Plant-Equipment Register'!K111=\"6 montly\",183,IF('Plant-Equipment Register'!K111=\"Yearly\",365,IF('Plant-Equipment Register'!K111=\"2 yearly\",730,IF('Plant-Equipment Register'!K111=\"3 Yearly\",1095,IF('Plant-Equipment Register'!K111=\"5 yearly\",1826,\"\")))))))))))","v":""},{"$f":"IF(AND('Plant-Equipment Register'!A106<>\"Date:\",'Plant-Equipment Register'!A106<>\"PVID:\",'Plant-Equipment Register'!A106<>\"Camp/Base:\",'Plant-Equipment Register'!A106<>\"\",'Plant-Equipment Register'!A106<>\"Construction Vehicles, Plant and Equipment\",'Plant-Equipment Register'!A106<>\"Vehicle/Plant/Equipment\"),ROW()-1,\"\")","v":""}]
[null,null,null,null,{"$f":"IF('Plant-Equipment Register'!H112=\"Daily\",1,IF('Plant-Equipment Register'!H112=\"Weekly\",7,IF('Plant-Equipment Register'!H112=\"Fortnightly\",7,IF('Plant-Equipment Register'!H112=\"Monthly\",30,IF('Plant-Equipment Register'!H112=\"2 monthly\",61,IF('Plant-Equipment Register'!H112=\"3 monthly\",92,IF('Plant-Equipment Register'!H112=\"6 monthly\",183,IF('Plant-Equipment Register'!H112=\"Yearly\",365,IF('Plant-Equipment Register'!H112=\"2 yearly\",730,IF('Plant-Equipment Register'!H112=\"3 yearly\",1095,IF('Plant-Equipment Register'!H112=\"5 yearly\",1826,\"\")))))))))))","v":""},{"$f":"IF('Plant-Equipment Register'!K112=\"Daily\",1,IF('Plant-Equipment Register'!K112=\"Weekly\",7,IF('Plant-Equipment Register'!K112=\"Fortnightly\",7,IF('Plant-Equipment Register'!K112=\"Monthly\",30,IF('Plant-Equipment Register'!K112=\"2 monthly\",61,IF('Plant-Equipment Register'!K112=\"3 monthly\",92,IF('Plant-Equipment Register'!K112=\"6 montly\",183,IF('Plant-Equipment Register'!K112=\"Yearly\",365,IF('Plant-Equipment Register'!K112=\"2 yearly\",730,IF('Plant-Equipment Register'!K112=\"3 Yearly\",1095,IF('Plant-Equipment Register'!K112=\"5 yearly\",1826,\"\")))))))))))","v":""},{"$f":"IF(AND('Plant-Equipment Register'!A107<>\"Date:\",'Plant-Equipment Register'!A107<>\"PVID:\",'Plant-Equipment Register'!A107<>\"Camp/Base:\",'Plant-Equipment Register'!A107<>\"\",'Plant-Equipment Register'!A107<>\"Construction Vehicles, Plant and Equipment\",'Plant-Equipment Register'!A107<>\"Vehicle/Plant/Equipment\"),ROW()-1,\"\")","v":""}]
[null,null,null,null,{"$f":"IF('Plant-Equipment Register'!H113=\"Daily\",1,IF('Plant-Equipment Register'!H113=\"Weekly\",7,IF('Plant-Equipment Register'!H113=\"Fortnightly\",7,IF('Plant-Equipment Register'!H113=\"Monthly\",30,IF('Plant-Equipment Register'!H113=\"2 monthly\",61,IF('Plant-Equipment Register'!H113=\"3 monthly\",92,IF('Plant-Equipment Register'!H113=\"6 monthly\",183,IF('Plant-Equipment Register'!H113=\"Yearly\",365,IF('Plant-Equipment Register'!H113=\"2 yearly\",730,IF('Plant-Equipment Register'!H113=\"3 yearly\",1095,IF('Plant-Equipment Register'!H113=\"5 yearly\",1826,\"\")))))))))))","v":""},{"$f":"IF('Plant-Equipment Register'!K113=\"Daily\",1,IF('Plant-Equipment Register'!K113=\"Weekly\",7,IF('Plant-Equipment Register'!K113=\"Fortnightly\",7,IF('Plant-Equipment Register'!K113=\"Monthly\",30,IF('Plant-Equipment Register'!K113=\"2 monthly\",61,IF('Plant-Equipment Register'!K113=\"3 monthly\",92,IF('Plant-Equipment Register'!K113=\"6 montly\",183,IF('Plant-Equipment Register'!K113=\"Yearly\",365,IF('Plant-Equipment Register'!K113=\"2 yearly\",730,IF('Plant-Equipment Register'!K113=\"3 Yearly\",1095,IF('Plant-Equipment Register'!K113=\"5 yearly\",1826,\"\")))))))))))","v":""},{"$f":"IF(AND('Plant-Equipment Register'!A108<>\"Date:\",'Plant-Equipment Register'!A108<>\"PVID:\",'Plant-Equipment Register'!A108<>\"Camp/Base:\",'Plant-Equipment Register'!A108<>\"\",'Plant-Equipment Register'!A108<>\"Construction Vehicles, Plant and Equipment\",'Plant-Equipment Register'!A108<>\"Vehicle/Plant/Equipment\"),ROW()-1,\"\")","v":""}]
[null,null,null,null,{"$f":"IF('Plant-Equipment Register'!H114=\"Daily\",1,IF('Plant-Equipment Register'!H114=\"Weekly\",7,IF('Plant-Equipment Register'!H114=\"Fortnightly\",7,IF('Plant-Equipment Register'!H114=\"Monthly\",30,IF('Plant-Equipment Register'!H114=\"2 monthly\",61,IF('Plant-Equipment Register'!H114=\"3 monthly\",92,IF('Plant-Equipment Register'!H114=\"6 monthly\",183,IF('Plant-Equipment Register'!H114=\"Yearly\",365,IF('Plant-Equipment Register'!H114=\"2 yearly\",730,IF('Plant-Equipment Register'!H114=\"3 yearly\",1095,IF('Plant-Equipment Register'!H114=\"5 yearly\",1826,\"\")))))))))))","v":""},{"$f":"IF('Plant-Equipment Register'!K114=\"Daily\",1,IF('Plant-Equipment Register'!K114=\"Weekly\",7,IF('Plant-Equipment Register'!K114=\"Fortnightly\",7,IF('Plant-Equipment Register'!K114=\"Monthly\",30,IF('Plant-Equipment Register'!K114=\"2 monthly\",61,IF('Plant-Equipment Register'!K114=\"3 monthly\",92,IF('Plant-Equipment Register'!K114=\"6 montly\",183,IF('Plant-Equipment Register'!K114=\"Yearly\",365,IF('Plant-Equipment Register'!K114=\"2 yearly\",730,IF('Plant-Equipment Register'!K114=\"3 Yearly\",1095,IF('Plant-Equipment Register'!K114=\"5 yearly\",1826,\"\")))))))))))","v":""},{"$f":"IF(AND('Plant-Equipment Register'!#REF!<>\"Date:\",'Plant-Equipment Register'!#REF!<>\"PVID:\",'Plant-Equipment Register'!#REF!<>\"Camp/Base:\",'Plant-Equipment Register'!#REF!<>\"\",'Plant-Equipment Register'!#REF!<>\"Construction Vehicles, Plant and Equipment\",'Plant-Equipment Register'!#REF!<>\"Vehicle/Plant/Equipment\"),ROW()-1,\"\")","v":{"$error":"#REF!"}}]
[null,null,null,null,{"$f":"IF('Plant-Equipment Register'!H115=\"Daily\",1,IF('Plant-Equipment Register'!H115=\"Weekly\",7,IF('Plant-Equipment Register'!H115=\"Fortnightly\",7,IF('Plant-Equipment Register'!H115=\"Monthly\",30,IF('Plant-Equipment Register'!H115=\"2 monthly\",61,IF('Plant-Equipment Register'!H115=\"3 monthly\",92,IF('Plant-Equipment Register'!H115=\"6 monthly\",183,IF('Plant-Equipment Register'!H115=\"Yearly\",365,IF('Plant-Equipment Register'!H115=\"2 yearly\",730,IF('Plant-Equipment Register'!H115=\"3 yearly\",1095,IF('Plant-Equipment Register'!H115=\"5 yearly\",1826,\"\")))))))))))","v":""},{"$f":"IF('Plant-Equipment Register'!K115=\"Daily\",1,IF('Plant-Equipment Register'!K115=\"Weekly\",7,IF('Plant-Equipment Register'!K115=\"Fortnightly\",7,IF('Plant-Equipment Register'!K115=\"Monthly\",30,IF('Plant-Equipment Register'!K115=\"2 monthly\",61,IF('Plant-Equipment Register'!K115=\"3 monthly\",92,IF('Plant-Equipment Register'!K115=\"6 montly\",183,IF('Plant-Equipment Register'!K115=\"Yearly\",365,IF('Plant-Equipment Register'!K115=\"2 yearly\",730,IF('Plant-Equipment Register'!K115=\"3 Yearly\",1095,IF('Plant-Equipment Register'!K115=\"5 yearly\",1826,\"\")))))))))))","v":""},{"$f":"IF(AND('Plant-Equipment Register'!A109<>\"Date:\",'Plant-Equipment Register'!A109<>\"PVID:\",'Plant-Equipment Register'!A109<>\"Camp/Base:\",'Plant-Equipment Register'!A109<>\"\",'Plant-Equipment Register'!A109<>\"Construction Vehicles, Plant and Equipment\",'Plant-Equipment Register'!A109<>\"Vehicle/Plant/Equipment\"),ROW()-1,\"\")","v":""}]
[null,null,null,null,{"$f":"IF('Plant-Equipment Register'!H116=\"Daily\",1,IF('Plant-Equipment Register'!H116=\"Weekly\",7,IF('Plant-Equipment Register'!H116=\"Fortnightly\",7,IF('Plant-Equipment Register'!H116=\"Monthly\",30,IF('Plant-Equipment Register'!H116=\"2 monthly\",61,IF('Plant-Equipment Register'!H116=\"3 monthly\",92,IF('Plant-Equipment Register'!H116=\"6 monthly\",183,IF('Plant-Equipment Register'!H116=\"Yearly\",365,IF('Plant-Equipment Register'!H116=\"2 yearly\",730,IF('Plant-Equipment Register'!H116=\"3 yearly\",1095,IF('Plant-Equipment Register'!H116=\"5 yearly\",1826,\"\")))))))))))","v":""},{"$f":"IF('Plant-Equipment Register'!K116=\"Daily\",1,IF('Plant-Equipment Register'!K116=\"Weekly\",7,IF('Plant-Equipment Register'!K116=\"Fortnightly\",7,IF('Plant-Equipment Register'!K116=\"Monthly\",30,IF('Plant-Equipment Register'!K116=\"2 monthly\",61,IF('Plant-Equipment Register'!K116=\"3 monthly\",92,IF('Plant-Equipment Register'!K116=\"6 montly\",183,IF('Plant-Equipment Register'!K116=\"Yearly\",365,IF('Plant-Equipment Register'!K116=\"2 yearly\",730,IF('Plant-Equipment Register'!K116=\"3 Yearly\",1095,IF('Plant-Equipment Register'!K116=\"5 yearly\",1826,\"\")))))))))))","v":""},{"$f":"IF(AND('Plant-Equipment Register'!A110<>\"Date:\",'Plant-Equipment Register'!A110<>\"PVID:\",'Plant-Equipment Register'!A110<>\"Camp/Base:\",'Plant-Equipment Register'!A110<>\"\",'Plant-Equipment Register'!A110<>\"Construction Vehicles, Plant and Equipment\",'Plant-Equipment Register'!A110<>\"Vehicle/Plant/Equipment\"),ROW()-1,\"\")","v":""}]
[null,null,null,null,{"$f":"IF('Plant-Equipment Register'!H117=\"Daily\",1,IF('Plant-Equipment Register'!H117=\"Weekly\",7,IF('Plant-Equipment Register'!H117=\"Fortnightly\",7,IF('Plant-Equipment Register'!H117=\"Monthly\",30,IF('Plant-Equipment Register'!H117=\"2 monthly\",61,IF('Plant-Equipment Register'!H117=\"3 monthly\",92,IF('Plant-Equipment Register'!H117=\"6 monthly\",183,IF('Plant-Equipment Register'!H117=\"Yearly\",365,IF('Plant-Equipment Register'!H117=\"2 yearly\",730,IF('Plant-Equipment Register'!H117=\"3 yearly\",1095,IF('Plant-Equipment Register'!H117=\"5 yearly\",1826,\"\")))))))))))","v":""},{"$f":"IF('Plant-Equipment Register'!K117=\"Daily\",1,IF('Plant-Equipment Register'!K117=\"Weekly\",7,IF('Plant-Equipment Register'!K117=\"Fortnightly\",7,IF('Plant-Equipment Register'!K117=\"Monthly\",30,IF('Plant-Equipment Register'!K117=\"2 monthly\",61,IF('Plant-Equipment Register'!K117=\"3 monthly\",92,IF('Plant-Equipment Register'!K117=\"6 montly\",183,IF('Plant-Equipment Register'!K117=\"Yearly\",365,IF('Plant-Equipment Register'!K117=\"2 yearly\",730,IF('Plant-Equipment Register'!K117=\"3 Yearly\",1095,IF('Plant-Equipment Register'!K117=\"5 yearly\",1826,\"\")))))))))))","v":""},{"$f":"IF(AND('Plant-Equipment Register'!A111<>\"Date:\",'Plant-Equipment Register'!A111<>\"PVID:\",'Plant-Equipment Register'!A111<>\"Camp/Base:\",'Plant-Equipment Register'!A111<>\"\",'Plant-Equipment Register'!A111<>\"Construction Vehicles, Plant and Equipment\",'Plant-Equipment Register'!A111<>\"Vehicle/Plant/Equipment\"),ROW()-1,\"\")","v":""}]
[null,null,null,null,{"$f":"IF('Plant-Equipment Register'!H118=\"Daily\",1,IF('Plant-Equipment Register'!H118=\"Weekly\",7,IF('Plant-Equipment Register'!H118=\"Fortnightly\",7,IF('Plant-Equipment Register'!H118=\"Monthly\",30,IF('Plant-Equipment Register'!H118=\"2 monthly\",61,IF('Plant-Equipment Register'!H118=\"3 monthly\",92,IF('Plant-Equipment Register'!H118=\"6 monthly\",183,IF('Plant-Equipment Register'!H118=\"Yearly\",365,IF('Plant-Equipment Register'!H118=\"2 yearly\",730,IF('Plant-Equipment Register'!H118=\"3 yearly\",1095,IF('Plant-Equipment Register'!H118=\"5 yearly\",1826,\"\")))))))))))","v":""},{"$f":"IF('Plant-Equipment Register'!K118=\"Daily\",1,IF('Plant-Equipment Register'!K118=\"Weekly\",7,IF('Plant-Equipment Register'!K118=\"Fortnightly\",7,IF('Plant-Equipment Register'!K118=\"Monthly\",30,IF('Plant-Equipment Register'!K118=\"2 monthly\",61,IF('Plant-Equipment Register'!K118=\"3 monthly\",92,IF('Plant-Equipment Register'!K118=\"6 montly\",183,IF('Plant-Equipment Register'!K118=\"Yearly\",365,IF('Plant-Equipment Register'!K118=\"2 yearly\",730,IF('Plant-Equipment Register'!K118=\"3 Yearly\",1095,IF('Plant-Equipment Register'!K118=\"5 yearly\",1826,\"\")))))))))))","v":""},{"$f":"IF(AND('Plant-Equipment Register'!A112<>\"Date:\",'Plant-Equipment Register'!A112<>\"PVID:\",'Plant-Equipment Register'!A112<>\"Camp/Base:\",'Plant-Equipment Register'!A112<>\"\",'Plant-Equipment Register'!A112<>\"Construction Vehicles, Plant and Equipment\",'Plant-Equipment Register'!A112<>\"Vehicle/Plant/Equipment\"),ROW()-1,\"\")","v":""}]
[null,null,null,null,{"$f":"IF('Plant-Equipment Register'!H119=\"Daily\",1,IF('Plant-Equipment Register'!H119=\"Weekly\",7,IF('Plant-Equipment Register'!H119=\"Fortnightly\",7,IF('Plant-Equipment Register'!H119=\"Monthly\",30,IF('Plant-Equipment Register'!H119=\"2 monthly\",61,IF('Plant-Equipment Register'!H119=\"3 monthly\",92,IF('Plant-Equipment Register'!H119=\"6 monthly\",183,IF('Plant-Equipment Register'!H119=\"Yearly\",365,IF('Plant-Equipment Register'!H119=\"2 yearly\",730,IF('Plant-Equipment Register'!H119=\"3 yearly\",1095,IF('Plant-Equipment Register'!H119=\"5 yearly\",1826,\"\")))))))))))","v":""},{"$f":"IF('Plant-Equipment Register'!K119=\"Daily\",1,IF('Plant-Equipment Register'!K119=\"Weekly\",7,IF('Plant-Equipment Register'!K119=\"Fortnightly\",7,IF('Plant-Equipment Register'!K119=\"Monthly\",30,IF('Plant-Equipment Register'!K119=\"2 monthly\",61,IF('Plant-Equipment Register'!K119=\"3 monthly\",92,IF('Plant-Equipment Register'!K119=\"6 montly\",183,IF('Plant-Equipment Register'!K119=\"Yearly\",365,IF('Plant-Equipment Register'!K119=\"2 yearly\",730,IF('Plant-Equipment Register'!K119=\"3 Yearly\",1095,IF('Plant-Equipment Register'!K119=\"5 yearly\",1826,\"\")))))))))))","v":""},{"$f":"IF(AND('Plant-Equipment Register'!A113<>\"Date:\",'Plant-Equipment Register'!A113<>\"PVID:\",'Plant-Equipment Register'!A113<>\"Camp/Base:\",'Plant-Equipment Register'!A113<>\"\",'Plant-Equipment Register'!A113<>\"Construction Vehicles, Plant and Equipment\",'Plant-Equipment Register'!A113<>\"Vehicle/Plant/Equipment\"),ROW()-1,\"\")","v":""}]
[null,null,null,null,{"$f":"IF('Plant-Equipment Register'!H120=\"Daily\",1,IF('Plant-Equipment Register'!H120=\"Weekly\",7,IF('Plant-Equipment Register'!H120=\"Fortnightly\",7,IF('Plant-Equipment Register'!H120=\"Monthly\",30,IF('Plant-Equipment Register'!H120=\"2 monthly\",61,IF('Plant-Equipment Register'!H120=\"3 monthly\",92,IF('Plant-Equipment Register'!H120=\"6 monthly\",183,IF('Plant-Equipment Register'!H120=\"Yearly\",365,IF('Plant-Equipment Register'!H120=\"2 yearly\",730,IF('Plant-Equipment Register'!H120=\"3 yearly\",1095,IF('Plant-Equipment Register'!H120=\"5 yearly\",1826,\"\")))))))))))","v":""},{"$f":"IF('Plant-Equipment Register'!K120=\"Daily\",1,IF('Plant-Equipment Register'!K120=\"Weekly\",7,IF('Plant-Equipment Register'!K120=\"Fortnightly\",7,IF('Plant-Equipment Register'!K120=\"Monthly\",30,IF('Plant-Equipment Register'!K120=\"2 monthly\",61,IF('Plant-Equipment Register'!K120=\"3 monthly\",92,IF('Plant-Equipment Register'!K120=\"6 montly\",183,IF('Plant-Equipment Register'!K120=\"Yearly\",365,IF('Plant-Equipment Register'!K120=\"2 yearly\",730,IF('Plant-Equipment Register'!K120=\"3 Yearly\",1095,IF('Plant-Equipment Register'!K120=\"5 yearly\",1826,\"\")))))))))))","v":""},{"$f":"IF(AND('Plant-Equipment Register'!A114<>\"Date:\",'Plant-Equipment Register'!A114<>\"PVID:\",'Plant-Equipment Register'!A114<>\"Camp/Base:\",'Plant-Equipment Register'!A114<>\"\",'Plant-Equipment Register'!A114<>\"Construction Vehicles, Plant and Equipment\",'Plant-Equipment Register'!A114<>\"Vehicle/Plant/Equipment\"),ROW()-1,\"\")","v":""}]
[null,null,null,null,{"$f":"IF('Plant-Equipment Register'!H121=\"Daily\",1,IF('Plant-Equipment Register'!H121=\"Weekly\",7,IF('Plant-Equipment Register'!H121=\"Fortnightly\",7,IF('Plant-Equipment Register'!H121=\"Monthly\",30,IF('Plant-Equipment Register'!H121=\"2 monthly\",61,IF('Plant-Equipment Register'!H121=\"3 monthly\",92,IF('Plant-Equipment Register'!H121=\"6 monthly\",183,IF('Plant-Equipment Register'!H121=\"Yearly\",365,IF('Plant-Equipment Register'!H121=\"2 yearly\",730,IF('Plant-Equipment Register'!H121=\"3 yearly\",1095,IF('Plant-Equipment Register'!H121=\"5 yearly\",1826,\"\")))))))))))","v":""},{"$f":"IF('Plant-Equipment Register'!K121=\"Daily\",1,IF('Plant-Equipment Register'!K121=\"Weekly\",7,IF('Plant-Equipment Register'!K121=\"Fortnightly\",7,IF('Plant-Equipment Register'!K121=\"Monthly\",30,IF('Plant-Equipment Register'!K121=\"2 monthly\",61,IF('Plant-Equipment Register'!K121=\"3 monthly\",92,IF('Plant-Equipment Register'!K121=\"6 montly\",183,IF('Plant-Equipment Register'!K121=\"Yearly\",365,IF('Plant-Equipment Register'!K121=\"2 yearly\",730,IF('Plant-Equipment Register'!K121=\"3 Yearly\",1095,IF('Plant-Equipment Register'!K121=\"5 yearly\",1826,\"\")))))))))))","v":""},{"$f":"IF(AND('Plant-Equipment Register'!A115<>\"Date:\",'Plant-Equipment Register'!A115<>\"PVID:\",'Plant-Equipment Register'!A115<>\"Camp/Base:\",'Plant-Equipment Register'!A115<>\"\",'Plant-Equipment Register'!A115<>\"Construction Vehicles, Plant and Equipment\",'Plant-Equipment Register'!A115<>\"Vehicle/Plant/Equipment\"),ROW()-1,\"\")","v":""}]
[null,null,null,null,{"$f":"IF('Plant-Equipment Register'!H122=\"Daily\",1,IF('Plant-Equipment Register'!H122=\"Weekly\",7,IF('Plant-Equipment Register'!H122=\"Fortnightly\",7,IF('Plant-Equipment Register'!H122=\"Monthly\",30,IF('Plant-Equipment Register'!H122=\"2 monthly\",61,IF('Plant-Equipment Register'!H122=\"3 monthly\",92,IF('Plant-Equipment Register'!H122=\"6 monthly\",183,IF('Plant-Equipment Register'!H122=\"Yearly\",365,IF('Plant-Equipment Register'!H122=\"2 yearly\",730,IF('Plant-Equipment Register'!H122=\"3 yearly\",1095,IF('Plant-Equipment Register'!H122=\"5 yearly\",1826,\"\")))))))))))","v":""},{"$f":"IF('Plant-Equipment Register'!K122=\"Daily\",1,IF('Plant-Equipment Register'!K122=\"Weekly\",7,IF('Plant-Equipment Register'!K122=\"Fortnightly\",7,IF('Plant-Equipment Register'!K122=\"Monthly\",30,IF('Plant-Equipment Register'!K122=\"2 monthly\",61,IF('Plant-Equipment Register'!K122=\"3 monthly\",92,IF('Plant-Equipment Register'!K122=\"6 montly\",183,IF('Plant-Equipment Register'!K122=\"Yearly\",365,IF('Plant-Equipment Register'!K122=\"2 yearly\",730,IF('Plant-Equipment Register'!K122=\"3 Yearly\",1095,IF('Plant-Equipment Register'!K122=\"5 yearly\",1826,\"\")))))))))))","v":""},{"$f":"IF(AND('Plant-Equipment Register'!A116<>\"Date:\",'Plant-Equipment Register'!A116<>\"PVID:\",'Plant-Equipment Register'!A116<>\"Camp/Base:\",'Plant-Equipment Register'!A116<>\"\",'Plant-Equipment Register'!A116<>\"Construction Vehicles, Plant and Equipment\",'Plant-Equipment Register'!A116<>\"Vehicle/Plant/Equipment\"),ROW()-1,\"\")","v":""}]
[null,null,null,null,{"$f":"IF('Plant-Equipment Register'!H123=\"Daily\",1,IF('Plant-Equipment Register'!H123=\"Weekly\",7,IF('Plant-Equipment Register'!H123=\"Fortnightly\",7,IF('Plant-Equipment Register'!H123=\"Monthly\",30,IF('Plant-Equipment Register'!H123=\"2 monthly\",61,IF('Plant-Equipment Register'!H123=\"3 monthly\",92,IF('Plant-Equipment Register'!H123=\"6 monthly\",183,IF('Plant-Equipment Register'!H123=\"Yearly\",365,IF('Plant-Equipment Register'!H123=\"2 yearly\",730,IF('Plant-Equipment Register'!H123=\"3 yearly\",1095,IF('Plant-Equipment Register'!H123=\"5 yearly\",1826,\"\")))))))))))","v":""},{"$f":"IF('Plant-Equipment Register'!K123=\"Daily\",1,IF('Plant-Equipment Register'!K123=\"Weekly\",7,IF('Plant-Equipment Register'!K123=\"Fortnightly\",7,IF('Plant-Equipment Register'!K123=\"Monthly\",30,IF('Plant-Equipment Register'!K123=\"2 monthly\",61,IF('Plant-Equipment Register'!K123=\"3 monthly\",92,IF('Plant-Equipment Register'!K123=\"6 montly\",183,IF('Plant-Equipment Register'!K123=\"Yearly\",365,IF('Plant-Equipment Register'!K123=\"2 yearly\",730,IF('Plant-Equipment Register'!K123=\"3 Yearly\",1095,IF('Plant-Equipment Register'!K123=\"5 yearly\",1826,\"\")))))))))))","v":""},{"$f":"IF(AND('Plant-Equipment Register'!A117<>\"Date:\",'Plant-Equipment Register'!A117<>\"PVID:\",'Plant-Equipment Register'!A117<>\"Camp/Base:\",'Plant-Equipment Register'!A117<>\"\",'Plant-Equipment Register'!A117<>\"Construction Vehicles, Plant and Equipment\",'Plant-Equipment Register'!A117<>\"Vehicle/Plant/Equipment\"),ROW()-1,\"\")","v":""}]
[null,null,null,null,{"$f":"IF('Plant-Equipment Register'!H124=\"Daily\",1,IF('Plant-Equipment Register'!H124=\"Weekly\",7,IF('Plant-Equipment Register'!H124=\"Fortnightly\",7,IF('Plant-Equipment Register'!H124=\"Monthly\",30,IF('Plant-Equipment Register'!H124=\"2 monthly\",61,IF('Plant-Equipment Register'!H124=\"3 monthly\",92,IF('Plant-Equipment Register'!H124=\"6 monthly\",183,IF('Plant-Equipment Register'!H124=\"Yearly\",365,IF('Plant-Equipment Register'!H124=\"2 yearly\",730,IF('Plant-Equipment Register'!H124=\"3 yearly\",1095,IF('Plant-Equipment Register'!H124=\"5 yearly\",1826,\"\")))))))))))","v":""},{"$f":"IF('Plant-Equipment Register'!K124=\"Daily\",1,IF('Plant-Equipment Register'!K124=\"Weekly\",7,IF('Plant-Equipment Register'!K124=\"Fortnightly\",7,IF('Plant-Equipment Register'!K124=\"Monthly\",30,IF('Plant-Equipment Register'!K124=\"2 monthly\",61,IF('Plant-Equipment Register'!K124=\"3 monthly\",92,IF('Plant-Equipment Register'!K124=\"6 montly\",183,IF('Plant-Equipment Register'!K124=\"Yearly\",365,IF('Plant-Equipment Register'!K124=\"2 yearly\",730,IF('Plant-Equipment Register'!K124=\"3 Yearly\",1095,IF('Plant-Equipment Register'!K124=\"5 yearly\",1826,\"\")))))))))))","v":""},{"$f":"IF(AND('Plant-Equipment Register'!A118<>\"Date:\",'Plant-Equipment Register'!A118<>\"PVID:\",'Plant-Equipment Register'!A118<>\"Camp/Base:\",'Plant-Equipment Register'!A118<>\"\",'Plant-Equipment Register'!A118<>\"Construction Vehicles, Plant and Equipment\",'Plant-Equipment Register'!A118<>\"Vehicle/Plant/Equipment\"),ROW()-1,\"\")","v":""}]
[null,null,null,null,{"$f":"IF('Plant-Equipment Register'!H125=\"Daily\",1,IF('Plant-Equipment Register'!H125=\"Weekly\",7,IF('Plant-Equipment Register'!H125=\"Fortnightly\",7,IF('Plant-Equipment Register'!H125=\"Monthly\",30,IF('Plant-Equipment Register'!H125=\"2 monthly\",61,IF('Plant-Equipment Register'!H125=\"3 monthly\",92,IF('Plant-Equipment Register'!H125=\"6 monthly\",183,IF('Plant-Equipment Register'!H125=\"Yearly\",365,IF('Plant-Equipment Register'!H125=\"2 yearly\",730,IF('Plant-Equipment Register'!H125=\"3 yearly\",1095,IF('Plant-Equipment Register'!H125=\"5 yearly\",1826,\"\")))))))))))","v":""},{"$f":"IF('Plant-Equipment Register'!K125=\"Daily\",1,IF('Plant-Equipment Register'!K125=\"Weekly\",7,IF('Plant-Equipment Register'!K125=\"Fortnightly\",7,IF('Plant-Equipment Register'!K125=\"Monthly\",30,IF('Plant-Equipment Register'!K125=\"2 monthly\",61,IF('Plant-Equipment Register'!K125=\"3 monthly\",92,IF('Plant-Equipment Register'!K125=\"6 montly\",183,IF('Plant-Equipment Register'!K125=\"Yearly\",365,IF('Plant-Equipment Register'!K125=\"2 yearly\",730,IF('Plant-Equipment Register'!K125=\"3 Yearly\",1095,IF('Plant-Equipment Register'!K125=\"5 yearly\",1826,\"\")))))))))))","v":""},{"$f":"IF(AND('Plant-Equipment Register'!A119<>\"Date:\",'Plant-Equipment Register'!A119<>\"PVID:\",'Plant-Equipment Register'!A119<>\"Camp/Base:\",'Plant-Equipment Register'!A119<>\"\",'Plant-Equipment Register'!A119<>\"Construction Vehicles, Plant and Equipment\",'Plant-Equipment Register'!A119<>\"Vehicle/Plant/Equipment\"),ROW()-1,\"\")","v":""}]
[null,null,null,null,{"$f":"IF('Plant-Equipment Register'!H126=\"Daily\",1,IF('Plant-Equipment Register'!H126=\"Weekly\",7,IF('Plant-Equipment Register'!H126=\"Fortnightly\",7,IF('Plant-Equipment Register'!H126=\"Monthly\",30,IF('Plant-Equipment Register'!H126=\"2 monthly\",61,IF('Plant-Equipment Register'!H126=\"3 monthly\",92,IF('Plant-Equipment Register'!H126=\"6 monthly\",183,IF('Plant-Equipment Register'!H126=\"Yearly\",365,IF('Plant-Equipment Register'!H126=\"2 yearly\",730,IF('Plant-Equipment Register'!H126=\"3 yearly\",1095,IF('Plant-Equipment Register'!H126=\"5 yearly\",1826,\"\")))))))))))","v":""},{"$f":"IF('Plant-Equipment Register'!K126=\"Daily\",1,IF('Plant-Equipment Register'!K126=\"Weekly\",7,IF('Plant-Equipment Register'!K126=\"Fortnightly\",7,IF('Plant-Equipment Register'!K126=\"Monthly\",30,IF('Plant-Equipment Register'!K126=\"2 monthly\",61,IF('Plant-Equipment Register'!K126=\"3 monthly\",92,IF('Plant-Equipment Register'!K126=\"6 montly\",183,IF('Plant-Equipment Register'!K126=\"Yearly\",365,IF('Plant-Equipment Register'!K126=\"2 yearly\",730,IF('Plant-Equipment Register'!K126=\"3 Yearly\",1095,IF('Plant-Equipment Register'!K126=\"5 yearly\",1826,\"\")))))))))))","v":""},{"$f":"IF(AND('Plant-Equipment Register'!A120<>\"Date:\",'Plant-Equipment Register'!A120<>\"PVID:\",'Plant-Equipment Register'!A120<>\"Camp/Base:\",'Plant-Equipment Register'!A120<>\"\",'Plant-Equipment Register'!A120<>\"Construction Vehicles, Plant and Equipment\",'Plant-Equipment Register'!A120<>\"Vehicle/Plant/Equipment\"),ROW()-1,\"\")","v":""}]
[null,null,null,null,{"$f":"IF('Plant-Equipment Register'!#REF!=\"Daily\",1,IF('Plant-Equipment Register'!#REF!=\"Weekly\",7,IF('Plant-Equipment Register'!#REF!=\"Fortnightly\",7,IF('Plant-Equipment Register'!#REF!=\"Monthly\",30,IF('Plant-Equipment Register'!#REF!=\"2 monthly\",61,IF('Plant-Equipment Register'!#REF!=\"3 monthly\",92,IF('Plant-Equipment Register'!#REF!=\"6 monthly\",183,IF('Plant-Equipment Register'!#REF!=\"Yearly\",365,IF('Plant-Equipment Register'!#REF!=\"2 yearly\",730,IF('Plant-Equipment Register'!#REF!=\"3 yearly\",1095,IF('Plant-Equipment Register'!#REF!=\"5 yearly\",1826,\"\")))))))))))","v":{"$error":"#REF!"}},{"$f":"IF('Plant-Equipment Register'!#REF!=\"Daily\",1,IF('Plant-Equipment Register'!#REF!=\"Weekly\",7,IF('Plant-Equipment Register'!#REF!=\"Fortnightly\",7,IF('Plant-Equipment Register'!#REF!=\"Monthly\",30,IF('Plant-Equipment Register'!#REF!=\"2 monthly\",61,IF('Plant-Equipment Register'!#REF!=\"3 monthly\",92,IF('Plant-Equipment Register'!#REF!=\"6 montly\",183,IF('Plant-Equipment Register'!#REF!=\"Yearly\",365,IF('Plant-Equipment Register'!#REF!=\"2 yearly\",730,IF('Plant-Equipment Register'!#REF!=\"3 Yearly\",1095,IF('Plant-Equipment Register'!#REF!=\"5 yearly\",1826,\"\")))))))))))","v":{"$error":"#REF!"}},{"$f":"IF(AND('Plant-Equipment Register'!A121<>\"Date:\",'Plant-Equipment Register'!A121<>\"PVID:\",'Plant-Equipment Register'!A121<>\"Camp/Base:\",'Plant-Equipment Register'!A121<>\"\",'Plant-Equipment Register'!A121<>\"Construction Vehicles, Plant and Equipment\",'Plant-Equipment Register'!A121<>\"Vehicle/Plant/Equipment\"),ROW()-1,\"\")","v":""}]
[null,null,null,null,{"$f":"IF('Plant-Equipment Register'!H127=\"Daily\",1,IF('Plant-Equipment Register'!H127=\"Weekly\",7,IF('Plant-Equipment Register'!H127=\"Fortnightly\",7,IF('Plant-Equipment Register'!H127=\"Monthly\",30,IF('Plant-Equipment Register'!H127=\"2 monthly\",61,IF('Plant-Equipment Register'!H127=\"3 monthly\",92,IF('Plant-Equipment Register'!H127=\"6 monthly\",183,IF('Plant-Equipment Register'!H127=\"Yearly\",365,IF('Plant-Equipment Register'!H127=\"2 yearly\",730,IF('Plant-Equipment Register'!H127=\"3 yearly\",1095,IF('Plant-Equipment Register'!H127=\"5 yearly\",1826,\"\")))))))))))","v":""},{"$f":"IF('Plant-Equipment Register'!K127=\"Daily\",1,IF('Plant-Equipment Register'!K127=\"Weekly\",7,IF('Plant-Equipment Register'!K127=\"Fortnightly\",7,IF('Plant-Equipment Register'!K127=\"Monthly\",30,IF('Plant-Equipment Register'!K127=\"2 monthly\",61,IF('Plant-Equipment Register'!K127=\"3 monthly\",92,IF('Plant-Equipment Register'!K127=\"6 montly\",183,IF('Plant-Equipment Register'!K127=\"Yearly\",365,IF('Plant-Equipment Register'!K127=\"2 yearly\",730,IF('Plant-Equipment Register'!K127=\"3 Yearly\",1095,IF('Plant-Equipment Register'!K127=\"5 yearly\",1826,\"\")))))))))))","v":""},{"$f":"IF(AND('Plant-Equipment Register'!A122<>\"Date:\",'Plant-Equipment Register'!A122<>\"PVID:\",'Plant-Equipment Register'!A122<>\"Camp/Base:\",'Plant-Equipment Register'!A122<>\"\",'Plant-Equipment Register'!A122<>\"Construction Vehicles, Plant and Equipment\",'Plant-Equipment Register'!A122<>\"Vehicle/Plant/Equipment\"),ROW()-1,\"\")","v":""}]
[null,null,null,null,{"$f":"IF('Plant-Equipment Register'!H128=\"Daily\",1,IF('Plant-Equipment Register'!H128=\"Weekly\",7,IF('Plant-Equipment Register'!H128=\"Fortnightly\",7,IF('Plant-Equipment Register'!H128=\"Monthly\",30,IF('Plant-Equipment Register'!H128=\"2 monthly\",61,IF('Plant-Equipment Register'!H128=\"3 monthly\",92,IF('Plant-Equipment Register'!H128=\"6 monthly\",183,IF('Plant-Equipment Register'!H128=\"Yearly\",365,IF('Plant-Equipment Register'!H128=\"2 yearly\",730,IF('Plant-Equipment Register'!H128=\"3 yearly\",1095,IF('Plant-Equipment Register'!H128=\"5 yearly\",1826,\"\")))))))))))","v":""},{"$f":"IF('Plant-Equipment Register'!K128=\"Daily\",1,IF('Plant-Equipment Register'!K128=\"Weekly\",7,IF('Plant-Equipment Register'!K128=\"Fortnightly\",7,IF('Plant-Equipment Register'!K128=\"Monthly\",30,IF('Plant-Equipment Register'!K128=\"2 monthly\",61,IF('Plant-Equipment Register'!K128=\"3 monthly\",92,IF('Plant-Equipment Register'!K128=\"6 montly\",183,IF('Plant-Equipment Register'!K128=\"Yearly\",365,IF('Plant-Equipment Register'!K128=\"2 yearly\",730,IF('Plant-Equipment Register'!K128=\"3 Yearly\",1095,IF('Plant-Equipment Register'!K128=\"5 yearly\",1826,\"\")))))))))))","v":""},{"$f":"IF(AND('Plant-Equipment Register'!A123<>\"Date:\",'Plant-Equipment Register'!A123<>\"PVID:\",'Plant-Equipment Register'!A123<>\"Camp/Base:\",'Plant-Equipment Register'!A123<>\"\",'Plant-Equipment Register'!A123<>\"Construction Vehicles, Plant and Equipment\",'Plant-Equipment Register'!A123<>\"Vehicle/Plant/Equipment\"),ROW()-1,\"\")","v":""}]
[null,null,null,null,{"$f":"IF('Plant-Equipment Register'!H129=\"Daily\",1,IF('Plant-Equipment Register'!H129=\"Weekly\",7,IF('Plant-Equipment Register'!H129=\"Fortnightly\",7,IF('Plant-Equipment Register'!H129=\"Monthly\",30,IF('Plant-Equipment Register'!H129=\"2 monthly\",61,IF('Plant-Equipment Register'!H129=\"3 monthly\",92,IF('Plant-Equipment Register'!H129=\"6 monthly\",183,IF('Plant-Equipment Register'!H129=\"Yearly\",365,IF('Plant-Equipment Register'!H129=\"2 yearly\",730,IF('Plant-Equipment Register'!H129=\"3 yearly\",1095,IF('Plant-Equipment Register'!H129=\"5 yearly\",1826,\"\")))))))))))","v":""},{"$f":"IF('Plant-Equipment Register'!K129=\"Daily\",1,IF('Plant-Equipment Register'!K129=\"Weekly\",7,IF('Plant-Equipment Register'!K129=\"Fortnightly\",7,IF('Plant-Equipment Register'!K129=\"Monthly\",30,IF('Plant-Equipment Register'!K129=\"2 monthly\",61,IF('Plant-Equipment Register'!K129=\"3 monthly\",92,IF('Plant-Equipment Register'!K129=\"6 montly\",183,IF('Plant-Equipment Register'!K129=\"Yearly\",365,IF('Plant-Equipment Register'!K129=\"2 yearly\",730,IF('Plant-Equipment Register'!K129=\"3 Yearly\",1095,IF('Plant-Equipment Register'!K129=\"5 yearly\",1826,\"\")))))))))))","v":""},{"$f":"IF(AND('Plant-Equipment Register'!A124<>\"Date:\",'Plant-Equipment Register'!A124<>\"PVID:\",'Plant-Equipment Register'!A124<>\"Camp/Base:\",'Plant-Equipment Register'!A124<>\"\",'Plant-Equipment Register'!A124<>\"Construction Vehicles, Plant and Equipment\",'Plant-Equipment Register'!A124<>\"Vehicle/Plant/Equipment\"),ROW()-1,\"\")","v":""}]
[null,null,null,null,{"$f":"IF('Plant-Equipment Register'!H130=\"Daily\",1,IF('Plant-Equipment Register'!H130=\"Weekly\",7,IF('Plant-Equipment Register'!H130=\"Fortnightly\",7,IF('Plant-Equipment Register'!H130=\"Monthly\",30,IF('Plant-Equipment Register'!H130=\"2 monthly\",61,IF('Plant-Equipment Register'!H130=\"3 monthly\",92,IF('Plant-Equipment Register'!H130=\"6 monthly\",183,IF('Plant-Equipment Register'!H130=\"Yearly\",365,IF('Plant-Equipment Register'!H130=\"2 yearly\",730,IF('Plant-Equipment Register'!H130=\"3 yearly\",1095,IF('Plant-Equipment Register'!H130=\"5 yearly\",1826,\"\")))))))))))","v":""},{"$f":"IF('Plant-Equipment Register'!K130=\"Daily\",1,IF('Plant-Equipment Register'!K130=\"Weekly\",7,IF('Plant-Equipment Register'!K130=\"Fortnightly\",7,IF('Plant-Equipment Register'!K130=\"Monthly\",30,IF('Plant-Equipment Register'!K130=\"2 monthly\",61,IF('Plant-Equipment Register'!K130=\"3 monthly\",92,IF('Plant-Equipment Register'!K130=\"6 montly\",183,IF('Plant-Equipment Register'!K130=\"Yearly\",365,IF('Plant-Equipment Register'!K130=\"2 yearly\",730,IF('Plant-Equipment Register'!K130=\"3 Yearly\",1095,IF('Plant-Equipment Register'!K130=\"5 yearly\",1826,\"\")))))))))))","v":""},{"$f":"IF(AND('Plant-Equipment Register'!A125<>\"Date:\",'Plant-Equipment Register'!A125<>\"PVID:\",'Plant-Equipment Register'!A125<>\"Camp/Base:\",'Plant-Equipment Register'!A125<>\"\",'Plant-Equipment Register'!A125<>\"Construction Vehicles, Plant and Equipment\",'Plant-Equipment Register'!A125<>\"Vehicle/Plant/Equipment\"),ROW()-1,\"\")","v":""}]
[null,null,null,null,{"$f":"IF('Plant-Equipment Register'!H131=\"Daily\",1,IF('Plant-Equipment Register'!H131=\"Weekly\",7,IF('Plant-Equipment Register'!H131=\"Fortnightly\",7,IF('Plant-Equipment Register'!H131=\"Monthly\",30,IF('Plant-Equipment Register'!H131=\"2 monthly\",61,IF('Plant-Equipment Register'!H131=\"3 monthly\",92,IF('Plant-Equipment Register'!H131=\"6 monthly\",183,IF('Plant-Equipment Register'!H131=\"Yearly\",365,IF('Plant-Equipment Register'!H131=\"2 yearly\",730,IF('Plant-Equipment Register'!H131=\"3 yearly\",1095,IF('Plant-Equipment Register'!H131=\"5 yearly\",1826,\"\")))))))))))","v":""},{"$f":"IF('Plant-Equipment Register'!K131=\"Daily\",1,IF('Plant-Equipment Register'!K131=\"Weekly\",7,IF('Plant-Equipment Register'!K131=\"Fortnightly\",7,IF('Plant-Equipment Register'!K131=\"Monthly\",30,IF('Plant-Equipment Register'!K131=\"2 monthly\",61,IF('Plant-Equipment Register'!K131=\"3 monthly\",92,IF('Plant-Equipment Register'!K131=\"6 montly\",183,IF('Plant-Equipment Register'!K131=\"Yearly\",365,IF('Plant-Equipment Register'!K131=\"2 yearly\",730,IF('Plant-Equipment Register'!K131=\"3 Yearly\",1095,IF('Plant-Equipment Register'!K131=\"5 yearly\",1826,\"\")))))))))))","v":""},{"$f":"IF(AND('Plant-Equipment Register'!A126<>\"Date:\",'Plant-Equipment Register'!A126<>\"PVID:\",'Plant-Equipment Register'!A126<>\"Camp/Base:\",'Plant-Equipment Register'!A126<>\"\",'Plant-Equipment Register'!A126<>\"Construction Vehicles, Plant and Equipment\",'Plant-Equipment Register'!A126<>\"Vehicle/Plant/Equipment\"),ROW()-1,\"\")","v":""}]
[null,null,null,null,{"$f":"IF('Plant-Equipment Register'!H132=\"Daily\",1,IF('Plant-Equipment Register'!H132=\"Weekly\",7,IF('Plant-Equipment Register'!H132=\"Fortnightly\",7,IF('Plant-Equipment Register'!H132=\"Monthly\",30,IF('Plant-Equipment Register'!H132=\"2 monthly\",61,IF('Plant-Equipment Register'!H132=\"3 monthly\",92,IF('Plant-Equipment Register'!H132=\"6 monthly\",183,IF('Plant-Equipment Register'!H132=\"Yearly\",365,IF('Plant-Equipment Register'!H132=\"2 yearly\",730,IF('Plant-Equipment Register'!H132=\"3 yearly\",1095,IF('Plant-Equipment Register'!H132=\"5 yearly\",1826,\"\")))))))))))","v":""},{"$f":"IF('Plant-Equipment Register'!K132=\"Daily\",1,IF('Plant-Equipment Register'!K132=\"Weekly\",7,IF('Plant-Equipment Register'!K132=\"Fortnightly\",7,IF('Plant-Equipment Register'!K132=\"Monthly\",30,IF('Plant-Equipment Register'!K132=\"2 monthly\",61,IF('Plant-Equipment Register'!K132=\"3 monthly\",92,IF('Plant-Equipment Register'!K132=\"6 montly\",183,IF('Plant-Equipment Register'!K132=\"Yearly\",365,IF('Plant-Equipment Register'!K132=\"2 yearly\",730,IF('Plant-Equipment Register'!K132=\"3 Yearly\",1095,IF('Plant-Equipment Register'!K132=\"5 yearly\",1826,\"\")))))))))))","v":""},{"$f":"IF(AND('Plant-Equipment Register'!#REF!<>\"Date:\",'Plant-Equipment Register'!#REF!<>\"PVID:\",'Plant-Equipment Register'!#REF!<>\"Camp/Base:\",'Plant-Equipment Register'!#REF!<>\"\",'Plant-Equipment Register'!#REF!<>\"Construction Vehicles, Plant and Equipment\",'Plant-Equipment Register'!#REF!<>\"Vehicle/Plant/Equipment\"),ROW()-1,\"\")","v":{"$error":"#REF!"}}]
[null,null,null,null,{"$f":"IF('Plant-Equipment Register'!H133=\"Daily\",1,IF('Plant-Equipment Register'!H133=\"Weekly\",7,IF('Plant-Equipment Register'!H133=\"Fortnightly\",7,IF('Plant-Equipment Register'!H133=\"Monthly\",30,IF('Plant-Equipment Register'!H133=\"2 monthly\",61,IF('Plant-Equipment Register'!H133=\"3 monthly\",92,IF('Plant-Equipment Register'!H133=\"6 monthly\",183,IF('Plant-Equipment Register'!H133=\"Yearly\",365,IF('Plant-Equipment Register'!H133=\"2 yearly\",730,IF('Plant-Equipment Register'!H133=\"3 yearly\",1095,IF('Plant-Equipment Register'!H133=\"5 yearly\",1826,\"\")))))))))))","v":""},{"$f":"IF('Plant-Equipment Register'!K133=\"Daily\",1,IF('Plant-Equipment Register'!K133=\"Weekly\",7,IF('Plant-Equipment Register'!K133=\"Fortnightly\",7,IF('Plant-Equipment Register'!K133=\"Monthly\",30,IF('Plant-Equipment Register'!K133=\"2 monthly\",61,IF('Plant-Equipment Register'!K133=\"3 monthly\",92,IF('Plant-Equipment Register'!K133=\"6 montly\",183,IF('Plant-Equipment Register'!K133=\"Yearly\",365,IF('Plant-Equipment Register'!K133=\"2 yearly\",730,IF('Plant-Equipment Register'!K133=\"3 Yearly\",1095,IF('Plant-Equipment Register'!K133=\"5 yearly\",1826,\"\")))))))))))","v":""},{"$f":"IF(AND('Plant-Equipment Register'!A127<>\"Date:\",'Plant-Equipment Register'!A127<>\"PVID:\",'Plant-Equipment Register'!A127<>\"Camp/Base:\",'Plant-Equipment Register'!A127<>\"\",'Plant-Equipment Register'!A127<>\"Construction Vehicles, Plant and Equipment\",'Plant-Equipment Register'!A127<>\"Vehicle/Plant/Equipment\"),ROW()-1,\"\")","v":""}]
[null,null,null,null,{"$f":"IF('Plant-Equipment Register'!H134=\"Daily\",1,IF('Plant-Equipment Register'!H134=\"Weekly\",7,IF('Plant-Equipment Register'!H134=\"Fortnightly\",7,IF('Plant-Equipment Register'!H134=\"Monthly\",30,IF('Plant-Equipment Register'!H134=\"2 monthly\",61,IF('Plant-Equipment Register'!H134=\"3 monthly\",92,IF('Plant-Equipment Register'!H134=\"6 monthly\",183,IF('Plant-Equipment Register'!H134=\"Yearly\",365,IF('Plant-Equipment Register'!H134=\"2 yearly\",730,IF('Plant-Equipment Register'!H134=\"3 yearly\",1095,IF('Plant-Equipment Register'!H134=\"5 yearly\",1826,\"\")))))))))))","v":""},{"$f":"IF('Plant-Equipment Register'!K134=\"Daily\",1,IF('Plant-Equipment Register'!K134=\"Weekly\",7,IF('Plant-Equipment Register'!K134=\"Fortnightly\",7,IF('Plant-Equipment Register'!K134=\"Monthly\",30,IF('Plant-Equipment Register'!K134=\"2 monthly\",61,IF('Plant-Equipment Register'!K134=\"3 monthly\",92,IF('Plant-Equipment Register'!K134=\"6 montly\",183,IF('Plant-Equipment Register'!K134=\"Yearly\",365,IF('Plant-Equipment Register'!K134=\"2 yearly\",730,IF('Plant-Equipment Register'!K134=\"3 Yearly\",1095,IF('Plant-Equipment Register'!K134=\"5 yearly\",1826,\"\")))))))))))","v":""},{"$f":"IF(AND('Plant-Equipment Register'!A128<>\"Date:\",'Plant-Equipment Register'!A128<>\"PVID:\",'Plant-Equipment Register'!A128<>\"Camp/Base:\",'Plant-Equipment Register'!A128<>\"\",'Plant-Equipment Register'!A128<>\"Construction Vehicles, Plant and Equipment\",'Plant-Equipment Register'!A128<>\"Vehicle/Plant/Equipment\"),ROW()-1,\"\")","v":""}]
[null,null,null,null,{"$f":"IF('Plant-Equipment Register'!H135=\"Daily\",1,IF('Plant-Equipment Register'!H135=\"Weekly\",7,IF('Plant-Equipment Register'!H135=\"Fortnightly\",7,IF('Plant-Equipment Register'!H135=\"Monthly\",30,IF('Plant-Equipment Register'!H135=\"2 monthly\",61,IF('Plant-Equipment Register'!H135=\"3 monthly\",92,IF('Plant-Equipment Register'!H135=\"6 monthly\",183,IF('Plant-Equipment Register'!H135=\"Yearly\",365,IF('Plant-Equipment Register'!H135=\"2 yearly\",730,IF('Plant-Equipment Register'!H135=\"3 yearly\",1095,IF('Plant-Equipment Register'!H135=\"5 yearly\",1826,\"\")))))))))))","v":""},{"$f":"IF('Plant-Equipment Register'!K135=\"Daily\",1,IF('Plant-Equipment Register'!K135=\"Weekly\",7,IF('Plant-Equipment Register'!K135=\"Fortnightly\",7,IF('Plant-Equipment Register'!K135=\"Monthly\",30,IF('Plant-Equipment Register'!K135=\"2 monthly\",61,IF('Plant-Equipment Register'!K135=\"3 monthly\",92,IF('Plant-Equipment Register'!K135=\"6 montly\",183,IF('Plant-Equipment Register'!K135=\"Yearly\",365,IF('Plant-Equipment Register'!K135=\"2 yearly\",730,IF('Plant-Equipment Register'!K135=\"3 Yearly\",1095,IF('Plant-Equipment Register'!K135=\"5 yearly\",1826,\"\")))))))))))","v":""},{"$f":"IF(AND('Plant-Equipment Register'!A129<>\"Date:\",'Plant-Equipment Register'!A129<>\"PVID:\",'Plant-Equipment Register'!A129<>\"Camp/Base:\",'Plant-Equipment Register'!A129<>\"\",'Plant-Equipment Register'!A129<>\"Construction Vehicles, Plant and Equipment\",'Plant-Equipment Register'!A129<>\"Vehicle/Plant/Equipment\"),ROW()-1,\"\")","v":""}]
[null,null,null,null,{"$f":"IF('Plant-Equipment Register'!H136=\"Daily\",1,IF('Plant-Equipment Register'!H136=\"Weekly\",7,IF('Plant-Equipment Register'!H136=\"Fortnightly\",7,IF('Plant-Equipment Register'!H136=\"Monthly\",30,IF('Plant-Equipment Register'!H136=\"2 monthly\",61,IF('Plant-Equipment Register'!H136=\"3 monthly\",92,IF('Plant-Equipment Register'!H136=\"6 monthly\",183,IF('Plant-Equipment Register'!H136=\"Yearly\",365,IF('Plant-Equipment Register'!H136=\"2 yearly\",730,IF('Plant-Equipment Register'!H136=\"3 yearly\",1095,IF('Plant-Equipment Register'!H136=\"5 yearly\",1826,\"\")))))))))))","v":""},{"$f":"IF('Plant-Equipment Register'!K136=\"Daily\",1,IF('Plant-Equipment Register'!K136=\"Weekly\",7,IF('Plant-Equipment Register'!K136=\"Fortnightly\",7,IF('Plant-Equipment Register'!K136=\"Monthly\",30,IF('Plant-Equipment Register'!K136=\"2 monthly\",61,IF('Plant-Equipment Register'!K136=\"3 monthly\",92,IF('Plant-Equipment Register'!K136=\"6 montly\",183,IF('Plant-Equipment Register'!K136=\"Yearly\",365,IF('Plant-Equipment Register'!K136=\"2 yearly\",730,IF('Plant-Equipment Register'!K136=\"3 Yearly\",1095,IF('Plant-Equipment Register'!K136=\"5 yearly\",1826,\"\")))))))))))","v":""},{"$f":"IF(AND('Plant-Equipment Register'!A130<>\"Date:\",'Plant-Equipment Register'!A130<>\"PVID:\",'Plant-Equipment Register'!A130<>\"Camp/Base:\",'Plant-Equipment Register'!A130<>\"\",'Plant-Equipment Register'!A130<>\"Construction Vehicles, Plant and Equipment\",'Plant-Equipment Register'!A130<>\"Vehicle/Plant/Equipment\"),ROW()-1,\"\")","v":""}]
[null,null,null,null,{"$f":"IF('Plant-Equipment Register'!H137=\"Daily\",1,IF('Plant-Equipment Register'!H137=\"Weekly\",7,IF('Plant-Equipment Register'!H137=\"Fortnightly\",7,IF('Plant-Equipment Register'!H137=\"Monthly\",30,IF('Plant-Equipment Register'!H137=\"2 monthly\",61,IF('Plant-Equipment Register'!H137=\"3 monthly\",92,IF('Plant-Equipment Register'!H137=\"6 monthly\",183,IF('Plant-Equipment Register'!H137=\"Yearly\",365,IF('Plant-Equipment Register'!H137=\"2 yearly\",730,IF('Plant-Equipment Register'!H137=\"3 yearly\",1095,IF('Plant-Equipment Register'!H137=\"5 yearly\",1826,\"\")))))))))))","v":""},{"$f":"IF('Plant-Equipment Register'!K137=\"Daily\",1,IF('Plant-Equipment Register'!K137=\"Weekly\",7,IF('Plant-Equipment Register'!K137=\"Fortnightly\",7,IF('Plant-Equipment Register'!K137=\"Monthly\",30,IF('Plant-Equipment Register'!K137=\"2 monthly\",61,IF('Plant-Equipment Register'!K137=\"3 monthly\",92,IF('Plant-Equipment Register'!K137=\"6 montly\",183,IF('Plant-Equipment Register'!K137=\"Yearly\",365,IF('Plant-Equipment Register'!K137=\"2 yearly\",730,IF('Plant-Equipment Register'!K137=\"3 Yearly\",1095,IF('Plant-Equipment Register'!K137=\"5 yearly\",1826,\"\")))))))))))","v":""},{"$f":"IF(AND('Plant-Equipment Register'!A131<>\"Date:\",'Plant-Equipment Register'!A131<>\"PVID:\",'Plant-Equipment Register'!A131<>\"Camp/Base:\",'Plant-Equipment Register'!A131<>\"\",'Plant-Equipment Register'!A131<>\"Construction Vehicles, Plant and Equipment\",'Plant-Equipment Register'!A131<>\"Vehicle/Plant/Equipment\"),ROW()-1,\"\")","v":""}]
[null,null,null,null,{"$f":"IF('Plant-Equipment Register'!H138=\"Daily\",1,IF('Plant-Equipment Register'!H138=\"Weekly\",7,IF('Plant-Equipment Register'!H138=\"Fortnightly\",7,IF('Plant-Equipment Register'!H138=\"Monthly\",30,IF('Plant-Equipment Register'!H138=\"2 monthly\",61,IF('Plant-Equipment Register'!H138=\"3 monthly\",92,IF('Plant-Equipment Register'!H138=\"6 monthly\",183,IF('Plant-Equipment Register'!H138=\"Yearly\",365,IF('Plant-Equipment Register'!H138=\"2 yearly\",730,IF('Plant-Equipment Register'!H138=\"3 yearly\",1095,IF('Plant-Equipment Register'!H138=\"5 yearly\",1826,\"\")))))))))))","v":""},{"$f":"IF('Plant-Equipment Register'!K138=\"Daily\",1,IF('Plant-Equipment Register'!K138=\"Weekly\",7,IF('Plant-Equipment Register'!K138=\"Fortnightly\",7,IF('Plant-Equipment Register'!K138=\"Monthly\",30,IF('Plant-Equipment Register'!K138=\"2 monthly\",61,IF('Plant-Equipment Register'!K138=\"3 monthly\",92,IF('Plant-Equipment Register'!K138=\"6 montly\",183,IF('Plant-Equipment Register'!K138=\"Yearly\",365,IF('Plant-Equipment Register'!K138=\"2 yearly\",730,IF('Plant-Equipment Register'!K138=\"3 Yearly\",1095,IF('Plant-Equipment Register'!K138=\"5 yearly\",1826,\"\")))))))))))","v":""},{"$f":"IF(AND('Plant-Equipment Register'!A132<>\"Date:\",'Plant-Equipment Register'!A132<>\"PVID:\",'Plant-Equipment Register'!A132<>\"Camp/Base:\",'Plant-Equipment Register'!A132<>\"\",'Plant-Equipment Register'!A132<>\"Construction Vehicles, Plant and Equipment\",'Plant-Equipment Register'!A132<>\"Vehicle/Plant/Equipment\"),ROW()-1,\"\")","v":""}]
[null,null,null,null,{"$f":"IF('Plant-Equipment Register'!H139=\"Daily\",1,IF('Plant-Equipment Register'!H139=\"Weekly\",7,IF('Plant-Equipment Register'!H139=\"Fortnightly\",7,IF('Plant-Equipment Register'!H139=\"Monthly\",30,IF('Plant-Equipment Register'!H139=\"2 monthly\",61,IF('Plant-Equipment Register'!H139=\"3 monthly\",92,IF('Plant-Equipment Register'!H139=\"6 monthly\",183,IF('Plant-Equipment Register'!H139=\"Yearly\",365,IF('Plant-Equipment Register'!H139=\"2 yearly\",730,IF('Plant-Equipment Register'!H139=\"3 yearly\",1095,IF('Plant-Equipment Register'!H139=\"5 yearly\",1826,\"\")))))))))))","v":""},{"$f":"IF('Plant-Equipment Register'!K139=\"Daily\",1,IF('Plant-Equipment Register'!K139=\"Weekly\",7,IF('Plant-Equipment Register'!K139=\"Fortnightly\",7,IF('Plant-Equipment Register'!K139=\"Monthly\",30,IF('Plant-Equipment Register'!K139=\"2 monthly\",61,IF('Plant-Equipment Register'!K139=\"3 monthly\",92,IF('Plant-Equipment Register'!K139=\"6 montly\",183,IF('Plant-Equipment Register'!K139=\"Yearly\",365,IF('Plant-Equipment Register'!K139=\"2 yearly\",730,IF('Plant-Equipment Register'!K139=\"3 Yearly\",1095,IF('Plant-Equipment Register'!K139=\"5 yearly\",1826,\"\")))))))))))","v":""},{"$f":"IF(AND('Plant-Equipment Register'!A133<>\"Date:\",'Plant-Equipment Register'!A133<>\"PVID:\",'Plant-Equipment Register'!A133<>\"Camp/Base:\",'Plant-Equipment Register'!A133<>\"\",'Plant-Equipment Register'!A133<>\"Construction Vehicles, Plant and Equipment\",'Plant-Equipment Register'!A133<>\"Vehicle/Plant/Equipment\"),ROW()-1,\"\")","v":""}]
[null,null,null,null,{"$f":"IF('Plant-Equipment Register'!H140=\"Daily\",1,IF('Plant-Equipment Register'!H140=\"Weekly\",7,IF('Plant-Equipment Register'!H140=\"Fortnightly\",7,IF('Plant-Equipment Register'!H140=\"Monthly\",30,IF('Plant-Equipment Register'!H140=\"2 monthly\",61,IF('Plant-Equipment Register'!H140=\"3 monthly\",92,IF('Plant-Equipment Register'!H140=\"6 monthly\",183,IF('Plant-Equipment Register'!H140=\"Yearly\",365,IF('Plant-Equipment Register'!H140=\"2 yearly\",730,IF('Plant-Equipment Register'!H140=\"3 yearly\",1095,IF('Plant-Equipment Register'!H140=\"5 yearly\",1826,\"\")))))))))))","v":""},{"$f":"IF('Plant-Equipment Register'!K140=\"Daily\",1,IF('Plant-Equipment Register'!K140=\"Weekly\",7,IF('Plant-Equipment Register'!K140=\"Fortnightly\",7,IF('Plant-Equipment Register'!K140=\"Monthly\",30,IF('Plant-Equipment Register'!K140=\"2 monthly\",61,IF('Plant-Equipment Register'!K140=\"3 monthly\",92,IF('Plant-Equipment Register'!K140=\"6 montly\",183,IF('Plant-Equipment Register'!K140=\"Yearly\",365,IF('Plant-Equipment Register'!K140=\"2 yearly\",730,IF('Plant-Equipment Register'!K140=\"3 Yearly\",1095,IF('Plant-Equipment Register'!K140=\"5 yearly\",1826,\"\")))))))))))","v":""},{"$f":"IF(AND('Plant-Equipment Register'!A134<>\"Date:\",'Plant-Equipment Register'!A134<>\"PVID:\",'Plant-Equipment Register'!A134<>\"Camp/Base:\",'Plant-Equipment Register'!A134<>\"\",'Plant-Equipment Register'!A134<>\"Construction Vehicles, Plant and Equipment\",'Plant-Equipment Register'!A134<>\"Vehicle/Plant/Equipment\"),ROW()-1,\"\")","v":""}]
[null,null,null,null,{"$f":"IF('Plant-Equipment Register'!H141=\"Daily\",1,IF('Plant-Equipment Register'!H141=\"Weekly\",7,IF('Plant-Equipment Register'!H141=\"Fortnightly\",7,IF('Plant-Equipment Register'!H141=\"Monthly\",30,IF('Plant-Equipment Register'!H141=\"2 monthly\",61,IF('Plant-Equipment Register'!H141=\"3 monthly\",92,IF('Plant-Equipment Register'!H141=\"6 monthly\",183,IF('Plant-Equipment Register'!H141=\"Yearly\",365,IF('Plant-Equipment Register'!H141=\"2 yearly\",730,IF('Plant-Equipment Register'!H141=\"3 yearly\",1095,IF('Plant-Equipment Register'!H141=\"5 yearly\",1826,\"\")))))))))))","v":""},{"$f":"IF('Plant-Equipment Register'!K141=\"Daily\",1,IF('Plant-Equipment Register'!K141=\"Weekly\",7,IF('Plant-Equipment Register'!K141=\"Fortnightly\",7,IF('Plant-Equipment Register'!K141=\"Monthly\",30,IF('Plant-Equipment Register'!K141=\"2 monthly\",61,IF('Plant-Equipment Register'!K141=\"3 monthly\",92,IF('Plant-Equipment Register'!K141=\"6 montly\",183,IF('Plant-Equipment Register'!K141=\"Yearly\",365,IF('Plant-Equipment Register'!K141=\"2 yearly\",730,IF('Plant-Equipment Register'!K141=\"3 Yearly\",1095,IF('Plant-Equipment Register'!K141=\"5 yearly\",1826,\"\")))))))))))","v":""},{"$f":"IF(AND('Plant-Equipment Register'!A135<>\"Date:\",'Plant-Equipment Register'!A135<>\"PVID:\",'Plant-Equipment Register'!A135<>\"Camp/Base:\",'Plant-Equipment Register'!A135<>\"\",'Plant-Equipment Register'!A135<>\"Construction Vehicles, Plant and Equipment\",'Plant-Equipment Register'!A135<>\"Vehicle/Plant/Equipment\"),ROW()-1,\"\")","v":""}]
[null,null,null,null,{"$f":"IF('Plant-Equipment Register'!H142=\"Daily\",1,IF('Plant-Equipment Register'!H142=\"Weekly\",7,IF('Plant-Equipment Register'!H142=\"Fortnightly\",7,IF('Plant-Equipment Register'!H142=\"Monthly\",30,IF('Plant-Equipment Register'!H142=\"2 monthly\",61,IF('Plant-Equipment Register'!H142=\"3 monthly\",92,IF('Plant-Equipment Register'!H142=\"6 monthly\",183,IF('Plant-Equipment Register'!H142=\"Yearly\",365,IF('Plant-Equipment Register'!H142=\"2 yearly\",730,IF('Plant-Equipment Register'!H142=\"3 yearly\",1095,IF('Plant-Equipment Register'!H142=\"5 yearly\",1826,\"\")))))))))))","v":""},{"$f":"IF('Plant-Equipment Register'!K142=\"Daily\",1,IF('Plant-Equipment Register'!K142=\"Weekly\",7,IF('Plant-Equipment Register'!K142=\"Fortnightly\",7,IF('Plant-Equipment Register'!K142=\"Monthly\",30,IF('Plant-Equipment Register'!K142=\"2 monthly\",61,IF('Plant-Equipment Register'!K142=\"3 monthly\",92,IF('Plant-Equipment Register'!K142=\"6 montly\",183,IF('Plant-Equipment Register'!K142=\"Yearly\",365,IF('Plant-Equipment Register'!K142=\"2 yearly\",730,IF('Plant-Equipment Register'!K142=\"3 Yearly\",1095,IF('Plant-Equipment Register'!K142=\"5 yearly\",1826,\"\")))))))))))","v":""},{"$f":"IF(AND('Plant-Equipment Register'!A136<>\"Date:\",'Plant-Equipment Register'!A136<>\"PVID:\",'Plant-Equipment Register'!A136<>\"Camp/Base:\",'Plant-Equipment Register'!A136<>\"\",'Plant-Equipment Register'!A136<>\"Construction Vehicles, Plant and Equipment\",'Plant-Equipment Register'!A136<>\"Vehicle/Plant/Equipment\"),ROW()-1,\"\")","v":""}]
[null,null,null,null,{"$f":"IF('Plant-Equipment Register'!H143=\"Daily\",1,IF('Plant-Equipment Register'!H143=\"Weekly\",7,IF('Plant-Equipment Register'!H143=\"Fortnightly\",7,IF('Plant-Equipment Register'!H143=\"Monthly\",30,IF('Plant-Equipment Register'!H143=\"2 monthly\",61,IF('Plant-Equipment Register'!H143=\"3 monthly\",92,IF('Plant-Equipment Register'!H143=\"6 monthly\",183,IF('Plant-Equipment Register'!H143=\"Yearly\",365,IF('Plant-Equipment Register'!H143=\"2 yearly\",730,IF('Plant-Equipment Register'!H143=\"3 yearly\",1095,IF('Plant-Equipment Register'!H143=\"5 yearly\",1826,\"\")))))))))))","v":""},{"$f":"IF('Plant-Equipment Register'!K143=\"Daily\",1,IF('Plant-Equipment Register'!K143=\"Weekly\",7,IF('Plant-Equipment Register'!K143=\"Fortnightly\",7,IF('Plant-Equipment Register'!K143=\"Monthly\",30,IF('Plant-Equipment Register'!K143=\"2 monthly\",61,IF('Plant-Equipment Register'!K143=\"3 monthly\",92,IF('Plant-Equipment Register'!K143=\"6 montly\",183,IF('Plant-Equipment Register'!K143=\"Yearly\",365,IF('Plant-Equipment Register'!K143=\"2 yearly\",730,IF('Plant-Equipment Register'!K143=\"3 Yearly\",1095,IF('Plant-Equipment Register'!K143=\"5 yearly\",1826,\"\")))))))))))","v":""},{"$f":"IF(AND('Plant-Equipment Register'!A137<>\"Date:\",'Plant-Equipment Register'!A137<>\"PVID:\",'Plant-Equipment Register'!A137<>\"Camp/Base:\",'Plant-Equipment Register'!A137<>\"\",'Plant-Equipment Register'!A137<>\"Construction Vehicles, Plant and Equipment\",'Plant-Equipment Register'!A137<>\"Vehicle/Plant/Equipment\"),ROW()-1,\"\")","v":""}]
[null,null,null,null,{"$f":"IF('Plant-Equipment Register'!H144=\"Daily\",1,IF('Plant-Equipment Register'!H144=\"Weekly\",7,IF('Plant-Equipment Register'!H144=\"Fortnightly\",7,IF('Plant-Equipment Register'!H144=\"Monthly\",30,IF('Plant-Equipment Register'!H144=\"2 monthly\",61,IF('Plant-Equipment Register'!H144=\"3 monthly\",92,IF('Plant-Equipment Register'!H144=\"6 monthly\",183,IF('Plant-Equipment Register'!H144=\"Yearly\",365,IF('Plant-Equipment Register'!H144=\"2 yearly\",730,IF('Plant-Equipment Register'!H144=\"3 yearly\",1095,IF('Plant-Equipment Register'!H144=\"5 yearly\",1826,\"\")))))))))))","v":""},{"$f":"IF('Plant-Equipment Register'!K144=\"Daily\",1,IF('Plant-Equipment Register'!K144=\"Weekly\",7,IF('Plant-Equipment Register'!K144=\"Fortnightly\",7,IF('Plant-Equipment Register'!K144=\"Monthly\",30,IF('Plant-Equipment Register'!K144=\"2 monthly\",61,IF('Plant-Equipment Register'!K144=\"3 monthly\",92,IF('Plant-Equipment Register'!K144=\"6 montly\",183,IF('Plant-Equipment Register'!K144=\"Yearly\",365,IF('Plant-Equipment Register'!K144=\"2 yearly\",730,IF('Plant-Equipment Register'!K144=\"3 Yearly\",1095,IF('Plant-Equipment Register'!K144=\"5 yearly\",1826,\"\")))))))))))","v":""},{"$f":"IF(AND('Plant-Equipment Register'!A138<>\"Date:\",'Plant-Equipment Register'!A138<>\"PVID:\",'Plant-Equipment Register'!A138<>\"Camp/Base:\",'Plant-Equipment Register'!A138<>\"\",'Plant-Equipment Register'!A138<>\"Construction Vehicles, Plant and Equipment\",'Plant-Equipment Register'!A138<>\"Vehicle/Plant/Equipment\"),ROW()-1,\"\")","v":""}]
[null,null,null,null,{"$f":"IF('Plant-Equipment Register'!#REF!=\"Daily\",1,IF('Plant-Equipment Register'!#REF!=\"Weekly\",7,IF('Plant-Equipment Register'!#REF!=\"Fortnightly\",7,IF('Plant-Equipment Register'!#REF!=\"Monthly\",30,IF('Plant-Equipment Register'!#REF!=\"2 monthly\",61,IF('Plant-Equipment Register'!#REF!=\"3 monthly\",92,IF('Plant-Equipment Register'!#REF!=\"6 monthly\",183,IF('Plant-Equipment Register'!#REF!=\"Yearly\",365,IF('Plant-Equipment Register'!#REF!=\"2 yearly\",730,IF('Plant-Equipment Register'!#REF!=\"3 yearly\",1095,IF('Plant-Equipment Register'!#REF!=\"5 yearly\",1826,\"\")))))))))))","v":{"$error":"#REF!"}},{"$f":"IF('Plant-Equipment Register'!#REF!=\"Daily\",1,IF('Plant-Equipment Register'!#REF!=\"Weekly\",7,IF('Plant-Equipment Register'!#REF!=\"Fortnightly\",7,IF('Plant-Equipment Register'!#REF!=\"Monthly\",30,IF('Plant-Equipment Register'!#REF!=\"2 monthly\",61,IF('Plant-Equipment Register'!#REF!=\"3 monthly\",92,IF('Plant-Equipment Register'!#REF!=\"6 montly\",183,IF('Plant-Equipment Register'!#REF!=\"Yearly\",365,IF('Plant-Equipment Register'!#REF!=\"2 yearly\",730,IF('Plant-Equipment Register'!#REF!=\"3 Yearly\",1095,IF('Plant-Equipment Register'!#REF!=\"5 yearly\",1826,\"\")))))))))))","v":{"$error":"#REF!"}},{"$f":"IF(AND('Plant-Equipment Register'!A139<>\"Date:\",'Plant-Equipment Register'!A139<>\"PVID:\",'Plant-Equipment Register'!A139<>\"Camp/Base:\",'Plant-Equipment Register'!A139<>\"\",'Plant-Equipment Register'!A139<>\"Construction Vehicles, Plant and Equipment\",'Plant-Equipment Register'!A139<>\"Vehicle/Plant/Equipment\"),ROW()-1,\"\")","v":""}]
[null,null,null,null,{"$f":"IF('Plant-Equipment Register'!H145=\"Daily\",1,IF('Plant-Equipment Register'!H145=\"Weekly\",7,IF('Plant-Equipment Register'!H145=\"Fortnightly\",7,IF('Plant-Equipment Register'!H145=\"Monthly\",30,IF('Plant-Equipment Register'!H145=\"2 monthly\",61,IF('Plant-Equipment Register'!H145=\"3 monthly\",92,IF('Plant-Equipment Register'!H145=\"6 monthly\",183,IF('Plant-Equipment Register'!H145=\"Yearly\",365,IF('Plant-Equipment Register'!H145=\"2 yearly\",730,IF('Plant-Equipment Register'!H145=\"3 yearly\",1095,IF('Plant-Equipment Register'!H145=\"5 yearly\",1826,\"\")))))))))))","v":""},{"$f":"IF('Plant-Equipment Register'!K145=\"Daily\",1,IF('Plant-Equipment Register'!K145=\"Weekly\",7,IF('Plant-Equipment Register'!K145=\"Fortnightly\",7,IF('Plant-Equipment Register'!K145=\"Monthly\",30,IF('Plant-Equipment Register'!K145=\"2 monthly\",61,IF('Plant-Equipment Register'!K145=\"3 monthly\",92,IF('Plant-Equipment Register'!K145=\"6 montly\",183,IF('Plant-Equipment Register'!K145=\"Yearly\",365,IF('Plant-Equipment Register'!K145=\"2 yearly\",730,IF('Plant-Equipment Register'!K145=\"3 Yearly\",1095,IF('Plant-Equipment Register'!K145=\"5 yearly\",1826,\"\")))))))))))","v":""},{"$f":"IF(AND('Plant-Equipment Register'!A140<>\"Date:\",'Plant-Equipment Register'!A140<>\"PVID:\",'Plant-Equipment Register'!A140<>\"Camp/Base:\",'Plant-Equipment Register'!A140<>\"\",'Plant-Equipment Register'!A140<>\"Construction Vehicles, Plant and Equipment\",'Plant-Equipment Register'!A140<>\"Vehicle/Plant/Equipment\"),ROW()-1,\"\")","v":""}]
[null,null,null,null,{"$f":"IF('Plant-Equipment Register'!H146=\"Daily\",1,IF('Plant-Equipment Register'!H146=\"Weekly\",7,IF('Plant-Equipment Register'!H146=\"Fortnightly\",7,IF('Plant-Equipment Register'!H146=\"Monthly\",30,IF('Plant-Equipment Register'!H146=\"2 monthly\",61,IF('Plant-Equipment Register'!H146=\"3 monthly\",92,IF('Plant-Equipment Register'!H146=\"6 monthly\",183,IF('Plant-Equipment Register'!H146=\"Yearly\",365,IF('Plant-Equipment Register'!H146=\"2 yearly\",730,IF('Plant-Equipment Register'!H146=\"3 yearly\",1095,IF('Plant-Equipment Register'!H146=\"5 yearly\",1826,\"\")))))))))))","v":""},{"$f":"IF('Plant-Equipment Register'!K146=\"Daily\",1,IF('Plant-Equipment Register'!K146=\"Weekly\",7,IF('Plant-Equipment Register'!K146=\"Fortnightly\",7,IF('Plant-Equipment Register'!K146=\"Monthly\",30,IF('Plant-Equipment Register'!K146=\"2 monthly\",61,IF('Plant-Equipment Register'!K146=\"3 monthly\",92,IF('Plant-Equipment Register'!K146=\"6 montly\",183,IF('Plant-Equipment Register'!K146=\"Yearly\",365,IF('Plant-Equipment Register'!K146=\"2 yearly\",730,IF('Plant-Equipment Register'!K146=\"3 Yearly\",1095,IF('Plant-Equipment Register'!K146=\"5 yearly\",1826,\"\")))))))))))","v":""},{"$f":"IF(AND('Plant-Equipment Register'!A141<>\"Date:\",'Plant-Equipment Register'!A141<>\"PVID:\",'Plant-Equipment Register'!A141<>\"Camp/Base:\",'Plant-Equipment Register'!A141<>\"\",'Plant-Equipment Register'!A141<>\"Construction Vehicles, Plant and Equipment\",'Plant-Equipment Register'!A141<>\"Vehicle/Plant/Equipment\"),ROW()-1,\"\")","v":""}]
[null,null,null,null,{"$f":"IF('Plant-Equipment Register'!H147=\"Daily\",1,IF('Plant-Equipment Register'!H147=\"Weekly\",7,IF('Plant-Equipment Register'!H147=\"Fortnightly\",7,IF('Plant-Equipment Register'!H147=\"Monthly\",30,IF('Plant-Equipment Register'!H147=\"2 monthly\",61,IF('Plant-Equipment Register'!H147=\"3 monthly\",92,IF('Plant-Equipment Register'!H147=\"6 monthly\",183,IF('Plant-Equipment Register'!H147=\"Yearly\",365,IF('Plant-Equipment Register'!H147=\"2 yearly\",730,IF('Plant-Equipment Register'!H147=\"3 yearly\",1095,IF('Plant-Equipment Register'!H147=\"5 yearly\",1826,\"\")))))))))))","v":""},{"$f":"IF('Plant-Equipment Register'!K147=\"Daily\",1,IF('Plant-Equipment Register'!K147=\"Weekly\",7,IF('Plant-Equipment Register'!K147=\"Fortnightly\",7,IF('Plant-Equipment Register'!K147=\"Monthly\",30,IF('Plant-Equipment Register'!K147=\"2 monthly\",61,IF('Plant-Equipment Register'!K147=\"3 monthly\",92,IF('Plant-Equipment Register'!K147=\"6 montly\",183,IF('Plant-Equipment Register'!K147=\"Yearly\",365,IF('Plant-Equipment Register'!K147=\"2 yearly\",730,IF('Plant-Equipment Register'!K147=\"3 Yearly\",1095,IF('Plant-Equipment Register'!K147=\"5 yearly\",1826,\"\")))))))))))","v":""},{"$f":"IF(AND('Plant-Equipment Register'!A142<>\"Date:\",'Plant-Equipment Register'!A142<>\"PVID:\",'Plant-Equipment Register'!A142<>\"Camp/Base:\",'Plant-Equipment Register'!A142<>\"\",'Plant-Equipment Register'!A142<>\"Construction Vehicles, Plant and Equipment\",'Plant-Equipment Register'!A142<>\"Vehicle/Plant/Equipment\"),ROW()-1,\"\")","v":""}]
[null,null,null,null,{"$f":"IF('Plant-Equipment Register'!H148=\"Daily\",1,IF('Plant-Equipment Register'!H148=\"Weekly\",7,IF('Plant-Equipment Register'!H148=\"Fortnightly\",7,IF('Plant-Equipment Register'!H148=\"Monthly\",30,IF('Plant-Equipment Register'!H148=\"2 monthly\",61,IF('Plant-Equipment Register'!H148=\"3 monthly\",92,IF('Plant-Equipment Register'!H148=\"6 monthly\",183,IF('Plant-Equipment Register'!H148=\"Yearly\",365,IF('Plant-Equipment Register'!H148=\"2 yearly\",730,IF('Plant-Equipment Register'!H148=\"3 yearly\",1095,IF('Plant-Equipment Register'!H148=\"5 yearly\",1826,\"\")))))))))))","v":""},{"$f":"IF('Plant-Equipment Register'!K148=\"Daily\",1,IF('Plant-Equipment Register'!K148=\"Weekly\",7,IF('Plant-Equipment Register'!K148=\"Fortnightly\",7,IF('Plant-Equipment Register'!K148=\"Monthly\",30,IF('Plant-Equipment Register'!K148=\"2 monthly\",61,IF('Plant-Equipment Register'!K148=\"3 monthly\",92,IF('Plant-Equipment Register'!K148=\"6 montly\",183,IF('Plant-Equipment Register'!K148=\"Yearly\",365,IF('Plant-Equipment Register'!K148=\"2 yearly\",730,IF('Plant-Equipment Register'!K148=\"3 Yearly\",1095,IF('Plant-Equipment Register'!K148=\"5 yearly\",1826,\"\")))))))))))","v":""},{"$f":"IF(AND('Plant-Equipment Register'!A143<>\"Date:\",'Plant-Equipment Register'!A143<>\"PVID:\",'Plant-Equipment Register'!A143<>\"Camp/Base:\",'Plant-Equipment Register'!A143<>\"\",'Plant-Equipment Register'!A143<>\"Construction Vehicles, Plant and Equipment\",'Plant-Equipment Register'!A143<>\"Vehicle/Plant/Equipment\"),ROW()-1,\"\")","v":""}]
[null,null,null,null,{"$f":"IF('Plant-Equipment Register'!H149=\"Daily\",1,IF('Plant-Equipment Register'!H149=\"Weekly\",7,IF('Plant-Equipment Register'!H149=\"Fortnightly\",7,IF('Plant-Equipment Register'!H149=\"Monthly\",30,IF('Plant-Equipment Register'!H149=\"2 monthly\",61,IF('Plant-Equipment Register'!H149=\"3 monthly\",92,IF('Plant-Equipment Register'!H149=\"6 monthly\",183,IF('Plant-Equipment Register'!H149=\"Yearly\",365,IF('Plant-Equipment Register'!H149=\"2 yearly\",730,IF('Plant-Equipment Register'!H149=\"3 yearly\",1095,IF('Plant-Equipment Register'!H149=\"5 yearly\",1826,\"\")))))))))))","v":""},{"$f":"IF('Plant-Equipment Register'!K149=\"Daily\",1,IF('Plant-Equipment Register'!K149=\"Weekly\",7,IF('Plant-Equipment Register'!K149=\"Fortnightly\",7,IF('Plant-Equipment Register'!K149=\"Monthly\",30,IF('Plant-Equipment Register'!K149=\"2 monthly\",61,IF('Plant-Equipment Register'!K149=\"3 monthly\",92,IF('Plant-Equipment Register'!K149=\"6 montly\",183,IF('Plant-Equipment Register'!K149=\"Yearly\",365,IF('Plant-Equipment Register'!K149=\"2 yearly\",730,IF('Plant-Equipment Register'!K149=\"3 Yearly\",1095,IF('Plant-Equipment Register'!K149=\"5 yearly\",1826,\"\")))))))))))","v":""},{"$f":"IF(AND('Plant-Equipment Register'!A144<>\"Date:\",'Plant-Equipment Register'!A144<>\"PVID:\",'Plant-Equipment Register'!A144<>\"Camp/Base:\",'Plant-Equipment Register'!A144<>\"\",'Plant-Equipment Register'!A144<>\"Construction Vehicles, Plant and Equipment\",'Plant-Equipment Register'!A144<>\"Vehicle/Plant/Equipment\"),ROW()-1,\"\")","v":""}]
[null,null,null,null,{"$f":"IF('Plant-Equipment Register'!H150=\"Daily\",1,IF('Plant-Equipment Register'!H150=\"Weekly\",7,IF('Plant-Equipment Register'!H150=\"Fortnightly\",7,IF('Plant-Equipment Register'!H150=\"Monthly\",30,IF('Plant-Equipment Register'!H150=\"2 monthly\",61,IF('Plant-Equipment Register'!H150=\"3 monthly\",92,IF('Plant-Equipment Register'!H150=\"6 monthly\",183,IF('Plant-Equipment Register'!H150=\"Yearly\",365,IF('Plant-Equipment Register'!H150=\"2 yearly\",730,IF('Plant-Equipment Register'!H150=\"3 yearly\",1095,IF('Plant-Equipment Register'!H150=\"5 yearly\",1826,\"\")))))))))))","v":""},{"$f":"IF('Plant-Equipment Register'!K150=\"Daily\",1,IF('Plant-Equipment Register'!K150=\"Weekly\",7,IF('Plant-Equipment Register'!K150=\"Fortnightly\",7,IF('Plant-Equipment Register'!K150=\"Monthly\",30,IF('Plant-Equipment Register'!K150=\"2 monthly\",61,IF('Plant-Equipment Register'!K150=\"3 monthly\",92,IF('Plant-Equipment Register'!K150=\"6 montly\",183,IF('Plant-Equipment Register'!K150=\"Yearly\",365,IF('Plant-Equipment Register'!K150=\"2 yearly\",730,IF('Plant-Equipment Register'!K150=\"3 Yearly\",1095,IF('Plant-Equipment Register'!K150=\"5 yearly\",1826,\"\")))))))))))","v":""},{"$f":"IF(AND('Plant-Equipment Register'!#REF!<>\"Date:\",'Plant-Equipment Register'!#REF!<>\"PVID:\",'Plant-Equipment Register'!#REF!<>\"Camp/Base:\",'Plant-Equipment Register'!#REF!<>\"\",'Plant-Equipment Register'!#REF!<>\"Construction Vehicles, Plant and Equipment\",'Plant-Equipment Register'!#REF!<>\"Vehicle/Plant/Equipment\"),ROW()-1,\"\")","v":{"$error":"#REF!"}}]
[null,null,null,null,{"$f":"IF('Plant-Equipment Register'!H151=\"Daily\",1,IF('Plant-Equipment Register'!H151=\"Weekly\",7,IF('Plant-Equipment Register'!H151=\"Fortnightly\",7,IF('Plant-Equipment Register'!H151=\"Monthly\",30,IF('Plant-Equipment Register'!H151=\"2 monthly\",61,IF('Plant-Equipment Register'!H151=\"3 monthly\",92,IF('Plant-Equipment Register'!H151=\"6 monthly\",183,IF('Plant-Equipment Register'!H151=\"Yearly\",365,IF('Plant-Equipment Register'!H151=\"2 yearly\",730,IF('Plant-Equipment Register'!H151=\"3 yearly\",1095,IF('Plant-Equipment Register'!H151=\"5 yearly\",1826,\"\")))))))))))","v":""},{"$f":"IF('Plant-Equipment Register'!K151=\"Daily\",1,IF('Plant-Equipment Register'!K151=\"Weekly\",7,IF('Plant-Equipment Register'!K151=\"Fortnightly\",7,IF('Plant-Equipment Register'!K151=\"Monthly\",30,IF('Plant-Equipment Register'!K151=\"2 monthly\",61,IF('Plant-Equipment Register'!K151=\"3 monthly\",92,IF('Plant-Equipment Register'!K151=\"6 montly\",183,IF('Plant-Equipment Register'!K151=\"Yearly\",365,IF('Plant-Equipment Register'!K151=\"2 yearly\",730,IF('Plant-Equipment Register'!K151=\"3 Yearly\",1095,IF('Plant-Equipment Register'!K151=\"5 yearly\",1826,\"\")))))))))))","v":""},{"$f":"IF(AND('Plant-Equipment Register'!A145<>\"Date:\",'Plant-Equipment Register'!A145<>\"PVID:\",'Plant-Equipment Register'!A145<>\"Camp/Base:\",'Plant-Equipment Register'!A145<>\"\",'Plant-Equipment Register'!A145<>\"Construction Vehicles, Plant and Equipment\",'Plant-Equipment Register'!A145<>\"Vehicle/Plant/Equipment\"),ROW()-1,\"\")","v":""}]
[null,null,null,null,{"$f":"IF('Plant-Equipment Register'!H152=\"Daily\",1,IF('Plant-Equipment Register'!H152=\"Weekly\",7,IF('Plant-Equipment Register'!H152=\"Fortnightly\",7,IF('Plant-Equipment Register'!H152=\"Monthly\",30,IF('Plant-Equipment Register'!H152=\"2 monthly\",61,IF('Plant-Equipment Register'!H152=\"3 monthly\",92,IF('Plant-Equipment Register'!H152=\"6 monthly\",183,IF('Plant-Equipment Register'!H152=\"Yearly\",365,IF('Plant-Equipment Register'!H152=\"2 yearly\",730,IF('Plant-Equipment Register'!H152=\"3 yearly\",1095,IF('Plant-Equipment Register'!H152=\"5 yearly\",1826,\"\")))))))))))","v":""},{"$f":"IF('Plant-Equipment Register'!K152=\"Daily\",1,IF('Plant-Equipment Register'!K152=\"Weekly\",7,IF('Plant-Equipment Register'!K152=\"Fortnightly\",7,IF('Plant-Equipment Register'!K152=\"Monthly\",30,IF('Plant-Equipment Register'!K152=\"2 monthly\",61,IF('Plant-Equipment Register'!K152=\"3 monthly\",92,IF('Plant-Equipment Register'!K152=\"6 montly\",183,IF('Plant-Equipment Register'!K152=\"Yearly\",365,IF('Plant-Equipment Register'!K152=\"2 yearly\",730,IF('Plant-Equipment Register'!K152=\"3 Yearly\",1095,IF('Plant-Equipment Register'!K152=\"5 yearly\",1826,\"\")))))))))))","v":""},{"$f":"IF(AND('Plant-Equipment Register'!A146<>\"Date:\",'Plant-Equipment Register'!A146<>\"PVID:\",'Plant-Equipment Register'!A146<>\"Camp/Base:\",'Plant-Equipment Register'!A146<>\"\",'Plant-Equipment Register'!A146<>\"Construction Vehicles, Plant and Equipment\",'Plant-Equipment Register'!A146<>\"Vehicle/Plant/Equipment\"),ROW()-1,\"\")","v":""}]
[null,null,null,null,{"$f":"IF('Plant-Equipment Register'!H153=\"Daily\",1,IF('Plant-Equipment Register'!H153=\"Weekly\",7,IF('Plant-Equipment Register'!H153=\"Fortnightly\",7,IF('Plant-Equipment Register'!H153=\"Monthly\",30,IF('Plant-Equipment Register'!H153=\"2 monthly\",61,IF('Plant-Equipment Register'!H153=\"3 monthly\",92,IF('Plant-Equipment Register'!H153=\"6 monthly\",183,IF('Plant-Equipment Register'!H153=\"Yearly\",365,IF('Plant-Equipment Register'!H153=\"2 yearly\",730,IF('Plant-Equipment Register'!H153=\"3 yearly\",1095,IF('Plant-Equipment Register'!H153=\"5 yearly\",1826,\"\")))))))))))","v":""},{"$f":"IF('Plant-Equipment Register'!K153=\"Daily\",1,IF('Plant-Equipment Register'!K153=\"Weekly\",7,IF('Plant-Equipment Register'!K153=\"Fortnightly\",7,IF('Plant-Equipment Register'!K153=\"Monthly\",30,IF('Plant-Equipment Register'!K153=\"2 monthly\",61,IF('Plant-Equipment Register'!K153=\"3 monthly\",92,IF('Plant-Equipment Register'!K153=\"6 montly\",183,IF('Plant-Equipment Register'!K153=\"Yearly\",365,IF('Plant-Equipment Register'!K153=\"2 yearly\",730,IF('Plant-Equipment Register'!K153=\"3 Yearly\",1095,IF('Plant-Equipment Register'!K153=\"5 yearly\",1826,\"\")))))))))))","v":""},{"$f":"IF(AND('Plant-Equipment Register'!A147<>\"Date:\",'Plant-Equipment Register'!A147<>\"PVID:\",'Plant-Equipment Register'!A147<>\"Camp/Base:\",'Plant-Equipment Register'!A147<>\"\",'Plant-Equipment Register'!A147<>\"Construction Vehicles, Plant and Equipment\",'Plant-Equipment Register'!A147<>\"Vehicle/Plant/Equipment\"),ROW()-1,\"\")","v":""}]
[null,null,null,null,{"$f":"IF('Plant-Equipment Register'!H154=\"Daily\",1,IF('Plant-Equipment Register'!H154=\"Weekly\",7,IF('Plant-Equipment Register'!H154=\"Fortnightly\",7,IF('Plant-Equipment Register'!H154=\"Monthly\",30,IF('Plant-Equipment Register'!H154=\"2 monthly\",61,IF('Plant-Equipment Register'!H154=\"3 monthly\",92,IF('Plant-Equipment Register'!H154=\"6 monthly\",183,IF('Plant-Equipment Register'!H154=\"Yearly\",365,IF('Plant-Equipment Register'!H154=\"2 yearly\",730,IF('Plant-Equipment Register'!H154=\"3 yearly\",1095,IF('Plant-Equipment Register'!H154=\"5 yearly\",1826,\"\")))))))))))","v":""},{"$f":"IF('Plant-Equipment Register'!K154=\"Daily\",1,IF('Plant-Equipment Register'!K154=\"Weekly\",7,IF('Plant-Equipment Register'!K154=\"Fortnightly\",7,IF('Plant-Equipment Register'!K154=\"Monthly\",30,IF('Plant-Equipment Register'!K154=\"2 monthly\",61,IF('Plant-Equipment Register'!K154=\"3 monthly\",92,IF('Plant-Equipment Register'!K154=\"6 montly\",183,IF('Plant-Equipment Register'!K154=\"Yearly\",365,IF('Plant-Equipment Register'!K154=\"2 yearly\",730,IF('Plant-Equipment Register'!K154=\"3 Yearly\",1095,IF('Plant-Equipment Register'!K154=\"5 yearly\",1826,\"\")))))))))))","v":""},{"$f":"IF(AND('Plant-Equipment Register'!A148<>\"Date:\",'Plant-Equipment Register'!A148<>\"PVID:\",'Plant-Equipment Register'!A148<>\"Camp/Base:\",'Plant-Equipment Register'!A148<>\"\",'Plant-Equipment Register'!A148<>\"Construction Vehicles, Plant and Equipment\",'Plant-Equipment Register'!A148<>\"Vehicle/Plant/Equipment\"),ROW()-1,\"\")","v":""}]
[null,null,null,null,{"$f":"IF('Plant-Equipment Register'!H155=\"Daily\",1,IF('Plant-Equipment Register'!H155=\"Weekly\",7,IF('Plant-Equipment Register'!H155=\"Fortnightly\",7,IF('Plant-Equipment Register'!H155=\"Monthly\",30,IF('Plant-Equipment Register'!H155=\"2 monthly\",61,IF('Plant-Equipment Register'!H155=\"3 monthly\",92,IF('Plant-Equipment Register'!H155=\"6 monthly\",183,IF('Plant-Equipment Register'!H155=\"Yearly\",365,IF('Plant-Equipment Register'!H155=\"2 yearly\",730,IF('Plant-Equipment Register'!H155=\"3 yearly\",1095,IF('Plant-Equipment Register'!H155=\"5 yearly\",1826,\"\")))))))))))","v":""},{"$f":"IF('Plant-Equipment Register'!K155=\"Daily\",1,IF('Plant-Equipment Register'!K155=\"Weekly\",7,IF('Plant-Equipment Register'!K155=\"Fortnightly\",7,IF('Plant-Equipment Register'!K155=\"Monthly\",30,IF('Plant-Equipment Register'!K155=\"2 monthly\",61,IF('Plant-Equipment Register'!K155=\"3 monthly\",92,IF('Plant-Equipment Register'!K155=\"6 montly\",183,IF('Plant-Equipment Register'!K155=\"Yearly\",365,IF('Plant-Equipment Register'!K155=\"2 yearly\",730,IF('Plant-Equipment Register'!K155=\"3 Yearly\",1095,IF('Plant-Equipment Register'!K155=\"5 yearly\",1826,\"\")))))))))))","v":""},{"$f":"IF(AND('Plant-Equipment Register'!A149<>\"Date:\",'Plant-Equipment Register'!A149<>\"PVID:\",'Plant-Equipment Register'!A149<>\"Camp/Base:\",'Plant-Equipment Register'!A149<>\"\",'Plant-Equipment Register'!A149<>\"Construction Vehicles, Plant and Equipment\",'Plant-Equipment Register'!A149<>\"Vehicle/Plant/Equipment\"),ROW()-1,\"\")","v":""}]
[null,null,null,null,{"$f":"IF('Plant-Equipment Register'!H156=\"Daily\",1,IF('Plant-Equipment Register'!H156=\"Weekly\",7,IF('Plant-Equipment Register'!H156=\"Fortnightly\",7,IF('Plant-Equipment Register'!H156=\"Monthly\",30,IF('Plant-Equipment Register'!H156=\"2 monthly\",61,IF('Plant-Equipment Register'!H156=\"3 monthly\",92,IF('Plant-Equipment Register'!H156=\"6 monthly\",183,IF('Plant-Equipment Register'!H156=\"Yearly\",365,IF('Plant-Equipment Register'!H156=\"2 yearly\",730,IF('Plant-Equipment Register'!H156=\"3 yearly\",1095,IF('Plant-Equipment Register'!H156=\"5 yearly\",1826,\"\")))))))))))","v":""},{"$f":"IF('Plant-Equipment Register'!K156=\"Daily\",1,IF('Plant-Equipment Register'!K156=\"Weekly\",7,IF('Plant-Equipment Register'!K156=\"Fortnightly\",7,IF('Plant-Equipment Register'!K156=\"Monthly\",30,IF('Plant-Equipment Register'!K156=\"2 monthly\",61,IF('Plant-Equipment Register'!K156=\"3 monthly\",92,IF('Plant-Equipment Register'!K156=\"6 montly\",183,IF('Plant-Equipment Register'!K156=\"Yearly\",365,IF('Plant-Equipment Register'!K156=\"2 yearly\",730,IF('Plant-Equipment Register'!K156=\"3 Yearly\",1095,IF('Plant-Equipment Register'!K156=\"5 yearly\",1826,\"\")))))))))))","v":""},{"$f":"IF(AND('Plant-Equipment Register'!A150<>\"Date:\",'Plant-Equipment Register'!A150<>\"PVID:\",'Plant-Equipment Register'!A150<>\"Camp/Base:\",'Plant-Equipment Register'!A150<>\"\",'Plant-Equipment Register'!A150<>\"Construction Vehicles, Plant and Equipment\",'Plant-Equipment Register'!A150<>\"Vehicle/Plant/Equipment\"),ROW()-1,\"\")","v":""}]
[null,null,null,null,{"$f":"IF('Plant-Equipment Register'!H157=\"Daily\",1,IF('Plant-Equipment Register'!H157=\"Weekly\",7,IF('Plant-Equipment Register'!H157=\"Fortnightly\",7,IF('Plant-Equipment Register'!H157=\"Monthly\",30,IF('Plant-Equipment Register'!H157=\"2 monthly\",61,IF('Plant-Equipment Register'!H157=\"3 monthly\",92,IF('Plant-Equipment Register'!H157=\"6 monthly\",183,IF('Plant-Equipment Register'!H157=\"Yearly\",365,IF('Plant-Equipment Register'!H157=\"2 yearly\",730,IF('Plant-Equipment Register'!H157=\"3 yearly\",1095,IF('Plant-Equipment Register'!H157=\"5 yearly\",1826,\"\")))))))))))","v":""},{"$f":"IF('Plant-Equipment Register'!K157=\"Daily\",1,IF('Plant-Equipment Register'!K157=\"Weekly\",7,IF('Plant-Equipment Register'!K157=\"Fortnightly\",7,IF('Plant-Equipment Register'!K157=\"Monthly\",30,IF('Plant-Equipment Register'!K157=\"2 monthly\",61,IF('Plant-Equipment Register'!K157=\"3 monthly\",92,IF('Plant-Equipment Register'!K157=\"6 montly\",183,IF('Plant-Equipment Register'!K157=\"Yearly\",365,IF('Plant-Equipment Register'!K157=\"2 yearly\",730,IF('Plant-Equipment Register'!K157=\"3 Yearly\",1095,IF('Plant-Equipment Register'!K157=\"5 yearly\",1826,\"\")))))))))))","v":""},{"$f":"IF(AND('Plant-Equipment Register'!A151<>\"Date:\",'Plant-Equipment Register'!A151<>\"PVID:\",'Plant-Equipment Register'!A151<>\"Camp/Base:\",'Plant-Equipment Register'!A151<>\"\",'Plant-Equipment Register'!A151<>\"Construction Vehicles, Plant and Equipment\",'Plant-Equipment Register'!A151<>\"Vehicle/Plant/Equipment\"),ROW()-1,\"\")","v":""}]
[null,null,null,null,{"$f":"IF('Plant-Equipment Register'!H158=\"Daily\",1,IF('Plant-Equipment Register'!H158=\"Weekly\",7,IF('Plant-Equipment Register'!H158=\"Fortnightly\",7,IF('Plant-Equipment Register'!H158=\"Monthly\",30,IF('Plant-Equipment Register'!H158=\"2 monthly\",61,IF('Plant-Equipment Register'!H158=\"3 monthly\",92,IF('Plant-Equipment Register'!H158=\"6 monthly\",183,IF('Plant-Equipment Register'!H158=\"Yearly\",365,IF('Plant-Equipment Register'!H158=\"2 yearly\",730,IF('Plant-Equipment Register'!H158=\"3 yearly\",1095,IF('Plant-Equipment Register'!H158=\"5 yearly\",1826,\"\")))))))))))","v":""},{"$f":"IF('Plant-Equipment Register'!K158=\"Daily\",1,IF('Plant-Equipment Register'!K158=\"Weekly\",7,IF('Plant-Equipment Register'!K158=\"Fortnightly\",7,IF('Plant-Equipment Register'!K158=\"Monthly\",30,IF('Plant-Equipment Register'!K158=\"2 monthly\",61,IF('Plant-Equipment Register'!K158=\"3 monthly\",92,IF('Plant-Equipment Register'!K158=\"6 montly\",183,IF('Plant-Equipment Register'!K158=\"Yearly\",365,IF('Plant-Equipment Register'!K158=\"2 yearly\",730,IF('Plant-Equipment Register'!K158=\"3 Yearly\",1095,IF('Plant-Equipment Register'!K158=\"5 yearly\",1826,\"\")))))))))))","v":""},{"$f":"IF(AND('Plant-Equipment Register'!A152<>\"Date:\",'Plant-Equipment Register'!A152<>\"PVID:\",'Plant-Equipment Register'!A152<>\"Camp/Base:\",'Plant-Equipment Register'!A152<>\"\",'Plant-Equipment Register'!A152<>\"Construction Vehicles, Plant and Equipment\",'Plant-Equipment Register'!A152<>\"Vehicle/Plant/Equipment\"),ROW()-1,\"\")","v":""}]
[null,null,null,null,{"$f":"IF('Plant-Equipment Register'!H159=\"Daily\",1,IF('Plant-Equipment Register'!H159=\"Weekly\",7,IF('Plant-Equipment Register'!H159=\"Fortnightly\",7,IF('Plant-Equipment Register'!H159=\"Monthly\",30,IF('Plant-Equipment Register'!H159=\"2 monthly\",61,IF('Plant-Equipment Register'!H159=\"3 monthly\",92,IF('Plant-Equipment Register'!H159=\"6 monthly\",183,IF('Plant-Equipment Register'!H159=\"Yearly\",365,IF('Plant-Equipment Register'!H159=\"2 yearly\",730,IF('Plant-Equipment Register'!H159=\"3 yearly\",1095,IF('Plant-Equipment Register'!H159=\"5 yearly\",1826,\"\")))))))))))","v":""},{"$f":"IF('Plant-Equipment Register'!K159=\"Daily\",1,IF('Plant-Equipment Register'!K159=\"Weekly\",7,IF('Plant-Equipment Register'!K159=\"Fortnightly\",7,IF('Plant-Equipment Register'!K159=\"Monthly\",30,IF('Plant-Equipment Register'!K159=\"2 monthly\",61,IF('Plant-Equipment Register'!K159=\"3 monthly\",92,IF('Plant-Equipment Register'!K159=\"6 montly\",183,IF('Plant-Equipment Register'!K159=\"Yearly\",365,IF('Plant-Equipment Register'!K159=\"2 yearly\",730,IF('Plant-Equipment Register'!K159=\"3 Yearly\",1095,IF('Plant-Equipment Register'!K159=\"5 yearly\",1826,\"\")))))))))))","v":""},{"$f":"IF(AND('Plant-Equipment Register'!A153<>\"Date:\",'Plant-Equipment Register'!A153<>\"PVID:\",'Plant-Equipment Register'!A153<>\"Camp/Base:\",'Plant-Equipment Register'!A153<>\"\",'Plant-Equipment Register'!A153<>\"Construction Vehicles, Plant and Equipment\",'Plant-Equipment Register'!A153<>\"Vehicle/Plant/Equipment\"),ROW()-1,\"\")","v":""}]
[null,null,null,null,{"$f":"IF('Plant-Equipment Register'!H160=\"Daily\",1,IF('Plant-Equipment Register'!H160=\"Weekly\",7,IF('Plant-Equipment Register'!H160=\"Fortnightly\",7,IF('Plant-Equipment Register'!H160=\"Monthly\",30,IF('Plant-Equipment Register'!H160=\"2 monthly\",61,IF('Plant-Equipment Register'!H160=\"3 monthly\",92,IF('Plant-Equipment Register'!H160=\"6 monthly\",183,IF('Plant-Equipment Register'!H160=\"Yearly\",365,IF('Plant-Equipment Register'!H160=\"2 yearly\",730,IF('Plant-Equipment Register'!H160=\"3 yearly\",1095,IF('Plant-Equipment Register'!H160=\"5 yearly\",1826,\"\")))))))))))","v":""},{"$f":"IF('Plant-Equipment Register'!K160=\"Daily\",1,IF('Plant-Equipment Register'!K160=\"Weekly\",7,IF('Plant-Equipment Register'!K160=\"Fortnightly\",7,IF('Plant-Equipment Register'!K160=\"Monthly\",30,IF('Plant-Equipment Register'!K160=\"2 monthly\",61,IF('Plant-Equipment Register'!K160=\"3 monthly\",92,IF('Plant-Equipment Register'!K160=\"6 montly\",183,IF('Plant-Equipment Register'!K160=\"Yearly\",365,IF('Plant-Equipment Register'!K160=\"2 yearly\",730,IF('Plant-Equipment Register'!K160=\"3 Yearly\",1095,IF('Plant-Equipment Register'!K160=\"5 yearly\",1826,\"\")))))))))))","v":""},{"$f":"IF(AND('Plant-Equipment Register'!A154<>\"Date:\",'Plant-Equipment Register'!A154<>\"PVID:\",'Plant-Equipment Register'!A154<>\"Camp/Base:\",'Plant-Equipment Register'!A154<>\"\",'Plant-Equipment Register'!A154<>\"Construction Vehicles, Plant and Equipment\",'Plant-Equipment Register'!A154<>\"Vehicle/Plant/Equipment\"),ROW()-1,\"\")","v":""}]
[null,null,null,null,{"$f":"IF('Plant-Equipment Register'!H161=\"Daily\",1,IF('Plant-Equipment Register'!H161=\"Weekly\",7,IF('Plant-Equipment Register'!H161=\"Fortnightly\",7,IF('Plant-Equipment Register'!H161=\"Monthly\",30,IF('Plant-Equipment Register'!H161=\"2 monthly\",61,IF('Plant-Equipment Register'!H161=\"3 monthly\",92,IF('Plant-Equipment Register'!H161=\"6 monthly\",183,IF('Plant-Equipment Register'!H161=\"Yearly\",365,IF('Plant-Equipment Register'!H161=\"2 yearly\",730,IF('Plant-Equipment Register'!H161=\"3 yearly\",1095,IF('Plant-Equipment Register'!H161=\"5 yearly\",1826,\"\")))))))))))","v":""},{"$f":"IF('Plant-Equipment Register'!K161=\"Daily\",1,IF('Plant-Equipment Register'!K161=\"Weekly\",7,IF('Plant-Equipment Register'!K161=\"Fortnightly\",7,IF('Plant-Equipment Register'!K161=\"Monthly\",30,IF('Plant-Equipment Register'!K161=\"2 monthly\",61,IF('Plant-Equipment Register'!K161=\"3 monthly\",92,IF('Plant-Equipment Register'!K161=\"6 montly\",183,IF('Plant-Equipment Register'!K161=\"Yearly\",365,IF('Plant-Equipment Register'!K161=\"2 yearly\",730,IF('Plant-Equipment Register'!K161=\"3 Yearly\",1095,IF('Plant-Equipment Register'!K161=\"5 yearly\",1826,\"\")))))))))))","v":""},{"$f":"IF(AND('Plant-Equipment Register'!A155<>\"Date:\",'Plant-Equipment Register'!A155<>\"PVID:\",'Plant-Equipment Register'!A155<>\"Camp/Base:\",'Plant-Equipment Register'!A155<>\"\",'Plant-Equipment Register'!A155<>\"Construction Vehicles, Plant and Equipment\",'Plant-Equipment Register'!A155<>\"Vehicle/Plant/Equipment\"),ROW()-1,\"\")","v":""}]
[null,null,null,null,{"$f":"IF('Plant-Equipment Register'!H162=\"Daily\",1,IF('Plant-Equipment Register'!H162=\"Weekly\",7,IF('Plant-Equipment Register'!H162=\"Fortnightly\",7,IF('Plant-Equipment Register'!H162=\"Monthly\",30,IF('Plant-Equipment Register'!H162=\"2 monthly\",61,IF('Plant-Equipment Register'!H162=\"3 monthly\",92,IF('Plant-Equipment Register'!H162=\"6 monthly\",183,IF('Plant-Equipment Register'!H162=\"Yearly\",365,IF('Plant-Equipment Register'!H162=\"2 yearly\",730,IF('Plant-Equipment Register'!H162=\"3 yearly\",1095,IF('Plant-Equipment Register'!H162=\"5 yearly\",1826,\"\")))))))))))","v":""},{"$f":"IF('Plant-Equipment Register'!K162=\"Daily\",1,IF('Plant-Equipment Register'!K162=\"Weekly\",7,IF('Plant-Equipment Register'!K162=\"Fortnightly\",7,IF('Plant-Equipment Register'!K162=\"Monthly\",30,IF('Plant-Equipment Register'!K162=\"2 monthly\",61,IF('Plant-Equipment Register'!K162=\"3 monthly\",92,IF('Plant-Equipment Register'!K162=\"6 montly\",183,IF('Plant-Equipment Register'!K162=\"Yearly\",365,IF('Plant-Equipment Register'!K162=\"2 yearly\",730,IF('Plant-Equipment Register'!K162=\"3 Yearly\",1095,IF('Plant-Equipment Register'!K162=\"5 yearly\",1826,\"\")))))))))))","v":""},{"$f":"IF(AND('Plant-Equipment Register'!A156<>\"Date:\",'Plant-Equipment Register'!A156<>\"PVID:\",'Plant-Equipment Register'!A156<>\"Camp/Base:\",'Plant-Equipment Register'!A156<>\"\",'Plant-Equipment Register'!A156<>\"Construction Vehicles, Plant and Equipment\",'Plant-Equipment Register'!A156<>\"Vehicle/Plant/Equipment\"),ROW()-1,\"\")","v":""}]
[null,null,null,null,{"$f":"IF('Plant-Equipment Register'!#REF!=\"Daily\",1,IF('Plant-Equipment Register'!#REF!=\"Weekly\",7,IF('Plant-Equipment Register'!#REF!=\"Fortnightly\",7,IF('Plant-Equipment Register'!#REF!=\"Monthly\",30,IF('Plant-Equipment Register'!#REF!=\"2 monthly\",61,IF('Plant-Equipment Register'!#REF!=\"3 monthly\",92,IF('Plant-Equipment Register'!#REF!=\"6 monthly\",183,IF('Plant-Equipment Register'!#REF!=\"Yearly\",365,IF('Plant-Equipment Register'!#REF!=\"2 yearly\",730,IF('Plant-Equipment Register'!#REF!=\"3 yearly\",1095,IF('Plant-Equipment Register'!#REF!=\"5 yearly\",1826,\"\")))))))))))","v":{"$error":"#REF!"}},{"$f":"IF('Plant-Equipment Register'!#REF!=\"Daily\",1,IF('Plant-Equipment Register'!#REF!=\"Weekly\",7,IF('Plant-Equipment Register'!#REF!=\"Fortnightly\",7,IF('Plant-Equipment Register'!#REF!=\"Monthly\",30,IF('Plant-Equipment Register'!#REF!=\"2 monthly\",61,IF('Plant-Equipment Register'!#REF!=\"3 monthly\",92,IF('Plant-Equipment Register'!#REF!=\"6 montly\",183,IF('Plant-Equipment Register'!#REF!=\"Yearly\",365,IF('Plant-Equipment Register'!#REF!=\"2 yearly\",730,IF('Plant-Equipment Register'!#REF!=\"3 Yearly\",1095,IF('Plant-Equipment Register'!#REF!=\"5 yearly\",1826,\"\")))))))))))","v":{"$error":"#REF!"}},{"$f":"IF(AND('Plant-Equipment Register'!A157<>\"Date:\",'Plant-Equipment Register'!A157<>\"PVID:\",'Plant-Equipment Register'!A157<>\"Camp/Base:\",'Plant-Equipment Register'!A157<>\"\",'Plant-Equipment Register'!A157<>\"Construction Vehicles, Plant and Equipment\",'Plant-Equipment Register'!A157<>\"Vehicle/Plant/Equipment\"),ROW()-1,\"\")","v":""}]
[null,null,null,null,{"$f":"IF('Plant-Equipment Register'!H163=\"Daily\",1,IF('Plant-Equipment Register'!H163=\"Weekly\",7,IF('Plant-Equipment Register'!H163=\"Fortnightly\",7,IF('Plant-Equipment Register'!H163=\"Monthly\",30,IF('Plant-Equipment Register'!H163=\"2 monthly\",61,IF('Plant-Equipment Register'!H163=\"3 monthly\",92,IF('Plant-Equipment Register'!H163=\"6 monthly\",183,IF('Plant-Equipment Register'!H163=\"Yearly\",365,IF('Plant-Equipment Register'!H163=\"2 yearly\",730,IF('Plant-Equipment Register'!H163=\"3 yearly\",1095,IF('Plant-Equipment Register'!H163=\"5 yearly\",1826,\"\")))))))))))","v":""},{"$f":"IF('Plant-Equipment Register'!K163=\"Daily\",1,IF('Plant-Equipment Register'!K163=\"Weekly\",7,IF('Plant-Equipment Register'!K163=\"Fortnightly\",7,IF('Plant-Equipment Register'!K163=\"Monthly\",30,IF('Plant-Equipment Register'!K163=\"2 monthly\",61,IF('Plant-Equipment Register'!K163=\"3 monthly\",92,IF('Plant-Equipment Register'!K163=\"6 montly\",183,IF('Plant-Equipment Register'!K163=\"Yearly\",365,IF('Plant-Equipment Register'!K163=\"2 yearly\",730,IF('Plant-Equipment Register'!K163=\"3 Yearly\",1095,IF('Plant-Equipment Register'!K163=\"5 yearly\",1826,\"\")))))))))))","v":""},{"$f":"IF(AND('Plant-Equipment Register'!A158<>\"Date:\",'Plant-Equipment Register'!A158<>\"PVID:\",'Plant-Equipment Register'!A158<>\"Camp/Base:\",'Plant-Equipment Register'!A158<>\"\",'Plant-Equipment Register'!A158<>\"Construction Vehicles, Plant and Equipment\",'Plant-Equipment Register'!A158<>\"Vehicle/Plant/Equipment\"),ROW()-1,\"\")","v":""}]
[null,null,null,null,{"$f":"IF('Plant-Equipment Register'!H164=\"Daily\",1,IF('Plant-Equipment Register'!H164=\"Weekly\",7,IF('Plant-Equipment Register'!H164=\"Fortnightly\",7,IF('Plant-Equipment Register'!H164=\"Monthly\",30,IF('Plant-Equipment Register'!H164=\"2 monthly\",61,IF('Plant-Equipment Register'!H164=\"3 monthly\",92,IF('Plant-Equipment Register'!H164=\"6 monthly\",183,IF('Plant-Equipment Register'!H164=\"Yearly\",365,IF('Plant-Equipment Register'!H164=\"2 yearly\",730,IF('Plant-Equipment Register'!H164=\"3 yearly\",1095,IF('Plant-Equipment Register'!H164=\"5 yearly\",1826,\"\")))))))))))","v":""},{"$f":"IF('Plant-Equipment Register'!K164=\"Daily\",1,IF('Plant-Equipment Register'!K164=\"Weekly\",7,IF('Plant-Equipment Register'!K164=\"Fortnightly\",7,IF('Plant-Equipment Register'!K164=\"Monthly\",30,IF('Plant-Equipment Register'!K164=\"2 monthly\",61,IF('Plant-Equipment Register'!K164=\"3 monthly\",92,IF('Plant-Equipment Register'!K164=\"6 montly\",183,IF('Plant-Equipment Register'!K164=\"Yearly\",365,IF('Plant-Equipment Register'!K164=\"2 yearly\",730,IF('Plant-Equipment Register'!K164=\"3 Yearly\",1095,IF('Plant-Equipment Register'!K164=\"5 yearly\",1826,\"\")))))))))))","v":""},{"$f":"IF(AND('Plant-Equipment Register'!A159<>\"Date:\",'Plant-Equipment Register'!A159<>\"PVID:\",'Plant-Equipment Register'!A159<>\"Camp/Base:\",'Plant-Equipment Register'!A159<>\"\",'Plant-Equipment Register'!A159<>\"Construction Vehicles, Plant and Equipment\",'Plant-Equipment Register'!A159<>\"Vehicle/Plant/Equipment\"),ROW()-1,\"\")","v":""}]
[null,null,null,null,{"$f":"IF('Plant-Equipment Register'!H165=\"Daily\",1,IF('Plant-Equipment Register'!H165=\"Weekly\",7,IF('Plant-Equipment Register'!H165=\"Fortnightly\",7,IF('Plant-Equipment Register'!H165=\"Monthly\",30,IF('Plant-Equipment Register'!H165=\"2 monthly\",61,IF('Plant-Equipment Register'!H165=\"3 monthly\",92,IF('Plant-Equipment Register'!H165=\"6 monthly\",183,IF('Plant-Equipment Register'!H165=\"Yearly\",365,IF('Plant-Equipment Register'!H165=\"2 yearly\",730,IF('Plant-Equipment Register'!H165=\"3 yearly\",1095,IF('Plant-Equipment Register'!H165=\"5 yearly\",1826,\"\")))))))))))","v":""},{"$f":"IF('Plant-Equipment Register'!K165=\"Daily\",1,IF('Plant-Equipment Register'!K165=\"Weekly\",7,IF('Plant-Equipment Register'!K165=\"Fortnightly\",7,IF('Plant-Equipment Register'!K165=\"Monthly\",30,IF('Plant-Equipment Register'!K165=\"2 monthly\",61,IF('Plant-Equipment Register'!K165=\"3 monthly\",92,IF('Plant-Equipment Register'!K165=\"6 montly\",183,IF('Plant-Equipment Register'!K165=\"Yearly\",365,IF('Plant-Equipment Register'!K165=\"2 yearly\",730,IF('Plant-Equipment Register'!K165=\"3 Yearly\",1095,IF('Plant-Equipment Register'!K165=\"5 yearly\",1826,\"\")))))))))))","v":""},{"$f":"IF(AND('Plant-Equipment Register'!A160<>\"Date:\",'Plant-Equipment Register'!A160<>\"PVID:\",'Plant-Equipment Register'!A160<>\"Camp/Base:\",'Plant-Equipment Register'!A160<>\"\",'Plant-Equipment Register'!A160<>\"Construction Vehicles, Plant and Equipment\",'Plant-Equipment Register'!A160<>\"Vehicle/Plant/Equipment\"),ROW()-1,\"\")","v":""}]
[null,null,null,null,{"$f":"IF('Plant-Equipment Register'!H166=\"Daily\",1,IF('Plant-Equipment Register'!H166=\"Weekly\",7,IF('Plant-Equipment Register'!H166=\"Fortnightly\",7,IF('Plant-Equipment Register'!H166=\"Monthly\",30,IF('Plant-Equipment Register'!H166=\"2 monthly\",61,IF('Plant-Equipment Register'!H166=\"3 monthly\",92,IF('Plant-Equipment Register'!H166=\"6 monthly\",183,IF('Plant-Equipment Register'!H166=\"Yearly\",365,IF('Plant-Equipment Register'!H166=\"2 yearly\",730,IF('Plant-Equipment Register'!H166=\"3 yearly\",1095,IF('Plant-Equipment Register'!H166=\"5 yearly\",1826,\"\")))))))))))","v":""},{"$f":"IF('Plant-Equipment Register'!K166=\"Daily\",1,IF('Plant-Equipment Register'!K166=\"Weekly\",7,IF('Plant-Equipment Register'!K166=\"Fortnightly\",7,IF('Plant-Equipment Register'!K166=\"Monthly\",30,IF('Plant-Equipment Register'!K166=\"2 monthly\",61,IF('Plant-Equipment Register'!K166=\"3 monthly\",92,IF('Plant-Equipment Register'!K166=\"6 montly\",183,IF('Plant-Equipment Register'!K166=\"Yearly\",365,IF('Plant-Equipment Register'!K166=\"2 yearly\",730,IF('Plant-Equipment Register'!K166=\"3 Yearly\",1095,IF('Plant-Equipment Register'!K166=\"5 yearly\",1826,\"\")))))))))))","v":""},{"$f":"IF(AND('Plant-Equipment Register'!A161<>\"Date:\",'Plant-Equipment Register'!A161<>\"PVID:\",'Plant-Equipment Register'!A161<>\"Camp/Base:\",'Plant-Equipment Register'!A161<>\"\",'Plant-Equipment Register'!A161<>\"Construction Vehicles, Plant and Equipment\",'Plant-Equipment Register'!A161<>\"Vehicle/Plant/Equipment\"),ROW()-1,\"\")","v":""}]
[null,null,null,null,{"$f":"IF('Plant-Equipment Register'!H167=\"Daily\",1,IF('Plant-Equipment Register'!H167=\"Weekly\",7,IF('Plant-Equipment Register'!H167=\"Fortnightly\",7,IF('Plant-Equipment Register'!H167=\"Monthly\",30,IF('Plant-Equipment Register'!H167=\"2 monthly\",61,IF('Plant-Equipment Register'!H167=\"3 monthly\",92,IF('Plant-Equipment Register'!H167=\"6 monthly\",183,IF('Plant-Equipment Register'!H167=\"Yearly\",365,IF('Plant-Equipment Register'!H167=\"2 yearly\",730,IF('Plant-Equipment Register'!H167=\"3 yearly\",1095,IF('Plant-Equipment Register'!H167=\"5 yearly\",1826,\"\")))))))))))","v":""},{"$f":"IF('Plant-Equipment Register'!K167=\"Daily\",1,IF('Plant-Equipment Register'!K167=\"Weekly\",7,IF('Plant-Equipment Register'!K167=\"Fortnightly\",7,IF('Plant-Equipment Register'!K167=\"Monthly\",30,IF('Plant-Equipment Register'!K167=\"2 monthly\",61,IF('Plant-Equipment Register'!K167=\"3 monthly\",92,IF('Plant-Equipment Register'!K167=\"6 montly\",183,IF('Plant-Equipment Register'!K167=\"Yearly\",365,IF('Plant-Equipment Register'!K167=\"2 yearly\",730,IF('Plant-Equipment Register'!K167=\"3 Yearly\",1095,IF('Plant-Equipment Register'!K167=\"5 yearly\",1826,\"\")))))))))))","v":""},{"$f":"IF(AND('Plant-Equipment Register'!A162<>\"Date:\",'Plant-Equipment Register'!A162<>\"PVID:\",'Plant-Equipment Register'!A162<>\"Camp/Base:\",'Plant-Equipment Register'!A162<>\"\",'Plant-Equipment Register'!A162<>\"Construction Vehicles, Plant and Equipment\",'Plant-Equipment Register'!A162<>\"Vehicle/Plant/Equipment\"),ROW()-1,\"\")","v":""}]
[null,null,null,null,{"$f":"IF('Plant-Equipment Register'!H168=\"Daily\",1,IF('Plant-Equipment Register'!H168=\"Weekly\",7,IF('Plant-Equipment Register'!H168=\"Fortnightly\",7,IF('Plant-Equipment Register'!H168=\"Monthly\",30,IF('Plant-Equipment Register'!H168=\"2 monthly\",61,IF('Plant-Equipment Register'!H168=\"3 monthly\",92,IF('Plant-Equipment Register'!H168=\"6 monthly\",183,IF('Plant-Equipment Register'!H168=\"Yearly\",365,IF('Plant-Equipment Register'!H168=\"2 yearly\",730,IF('Plant-Equipment Register'!H168=\"3 yearly\",1095,IF('Plant-Equipment Register'!H168=\"5 yearly\",1826,\"\")))))))))))","v":""},{"$f":"IF('Plant-Equipment Register'!K168=\"Daily\",1,IF('Plant-Equipment Register'!K168=\"Weekly\",7,IF('Plant-Equipment Register'!K168=\"Fortnightly\",7,IF('Plant-Equipment Register'!K168=\"Monthly\",30,IF('Plant-Equipment Register'!K168=\"2 monthly\",61,IF('Plant-Equipment Register'!K168=\"3 monthly\",92,IF('Plant-Equipment Register'!K168=\"6 montly\",183,IF('Plant-Equipment Register'!K168=\"Yearly\",365,IF('Plant-Equipment Register'!K168=\"2 yearly\",730,IF('Plant-Equipment Register'!K168=\"3 Yearly\",1095,IF('Plant-Equipment Register'!K168=\"5 yearly\",1826,\"\")))))))))))","v":""},{"$f":"IF(AND('Plant-Equipment Register'!#REF!<>\"Date:\",'Plant-Equipment Register'!#REF!<>\"PVID:\",'Plant-Equipment Register'!#REF!<>\"Camp/Base:\",'Plant-Equipment Register'!#REF!<>\"\",'Plant-Equipment Register'!#REF!<>\"Construction Vehicles, Plant and Equipment\",'Plant-Equipment Register'!#REF!<>\"Vehicle/Plant/Equipment\"),ROW()-1,\"\")","v":{"$error":"#REF!"}}]
[null,null,null,null,{"$f":"IF('Plant-Equipment Register'!H169=\"Daily\",1,IF('Plant-Equipment Register'!H169=\"Weekly\",7,IF('Plant-Equipment Register'!H169=\"Fortnightly\",7,IF('Plant-Equipment Register'!H169=\"Monthly\",30,IF('Plant-Equipment Register'!H169=\"2 monthly\",61,IF('Plant-Equipment Register'!H169=\"3 monthly\",92,IF('Plant-Equipment Register'!H169=\"6 monthly\",183,IF('Plant-Equipment Register'!H169=\"Yearly\",365,IF('Plant-Equipment Register'!H169=\"2 yearly\",730,IF('Plant-Equipment Register'!H169=\"3 yearly\",1095,IF('Plant-Equipment Register'!H169=\"5 yearly\",1826,\"\")))))))))))","v":""},{"$f":"IF('Plant-Equipment Register'!K169=\"Daily\",1,IF('Plant-Equipment Register'!K169=\"Weekly\",7,IF('Plant-Equipment Register'!K169=\"Fortnightly\",7,IF('Plant-Equipment Register'!K169=\"Monthly\",30,IF('Plant-Equipment Register'!K169=\"2 monthly\",61,IF('Plant-Equipment Register'!K169=\"3 monthly\",92,IF('Plant-Equipment Register'!K169=\"6 montly\",183,IF('Plant-Equipment Register'!K169=\"Yearly\",365,IF('Plant-Equipment Register'!K169=\"2 yearly\",730,IF('Plant-Equipment Register'!K169=\"3 Yearly\",1095,IF('Plant-Equipment Register'!K169=\"5 yearly\",1826,\"\")))))))))))","v":""},{"$f":"IF(AND('Plant-Equipment Register'!A163<>\"Date:\",'Plant-Equipment Register'!A163<>\"PVID:\",'Plant-Equipment Register'!A163<>\"Camp/Base:\",'Plant-Equipment Register'!A163<>\"\",'Plant-Equipment Register'!A163<>\"Construction Vehicles, Plant and Equipment\",'Plant-Equipment Register'!A163<>\"Vehicle/Plant/Equipment\"),ROW()-1,\"\")","v":""}]
[null,null,null,null,{"$f":"IF('Plant-Equipment Register'!H170=\"Daily\",1,IF('Plant-Equipment Register'!H170=\"Weekly\",7,IF('Plant-Equipment Register'!H170=\"Fortnightly\",7,IF('Plant-Equipment Register'!H170=\"Monthly\",30,IF('Plant-Equipment Register'!H170=\"2 monthly\",61,IF('Plant-Equipment Register'!H170=\"3 monthly\",92,IF('Plant-Equipment Register'!H170=\"6 monthly\",183,IF('Plant-Equipment Register'!H170=\"Yearly\",365,IF('Plant-Equipment Register'!H170=\"2 yearly\",730,IF('Plant-Equipment Register'!H170=\"3 yearly\",1095,IF('Plant-Equipment Register'!H170=\"5 yearly\",1826,\"\")))))))))))","v":""},{"$f":"IF('Plant-Equipment Register'!K170=\"Daily\",1,IF('Plant-Equipment Register'!K170=\"Weekly\",7,IF('Plant-Equipment Register'!K170=\"Fortnightly\",7,IF('Plant-Equipment Register'!K170=\"Monthly\",30,IF('Plant-Equipment Register'!K170=\"2 monthly\",61,IF('Plant-Equipment Register'!K170=\"3 monthly\",92,IF('Plant-Equipment Register'!K170=\"6 montly\",183,IF('Plant-Equipment Register'!K170=\"Yearly\",365,IF('Plant-Equipment Register'!K170=\"2 yearly\",730,IF('Plant-Equipment Register'!K170=\"3 Yearly\",1095,IF('Plant-Equipment Register'!K170=\"5 yearly\",1826,\"\")))))))))))","v":""},{"$f":"IF(AND('Plant-Equipment Register'!A164<>\"Date:\",'Plant-Equipment Register'!A164<>\"PVID:\",'Plant-Equipment Register'!A164<>\"Camp/Base:\",'Plant-Equipment Register'!A164<>\"\",'Plant-Equipment Register'!A164<>\"Construction Vehicles, Plant and Equipment\",'Plant-Equipment Register'!A164<>\"Vehicle/Plant/Equipment\"),ROW()-1,\"\")","v":""}]
[null,null,null,null,{"$f":"IF('Plant-Equipment Register'!H171=\"Daily\",1,IF('Plant-Equipment Register'!H171=\"Weekly\",7,IF('Plant-Equipment Register'!H171=\"Fortnightly\",7,IF('Plant-Equipment Register'!H171=\"Monthly\",30,IF('Plant-Equipment Register'!H171=\"2 monthly\",61,IF('Plant-Equipment Register'!H171=\"3 monthly\",92,IF('Plant-Equipment Register'!H171=\"6 monthly\",183,IF('Plant-Equipment Register'!H171=\"Yearly\",365,IF('Plant-Equipment Register'!H171=\"2 yearly\",730,IF('Plant-Equipment Register'!H171=\"3 yearly\",1095,IF('Plant-Equipment Register'!H171=\"5 yearly\",1826,\"\")))))))))))","v":""},{"$f":"IF('Plant-Equipment Register'!K171=\"Daily\",1,IF('Plant-Equipment Register'!K171=\"Weekly\",7,IF('Plant-Equipment Register'!K171=\"Fortnightly\",7,IF('Plant-Equipment Register'!K171=\"Monthly\",30,IF('Plant-Equipment Register'!K171=\"2 monthly\",61,IF('Plant-Equipment Register'!K171=\"3 monthly\",92,IF('Plant-Equipment Register'!K171=\"6 montly\",183,IF('Plant-Equipment Register'!K171=\"Yearly\",365,IF('Plant-Equipment Register'!K171=\"2 yearly\",730,IF('Plant-Equipment Register'!K171=\"3 Yearly\",1095,IF('Plant-Equipment Register'!K171=\"5 yearly\",1826,\"\")))))))))))","v":""},{"$f":"IF(AND('Plant-Equipment Register'!A165<>\"Date:\",'Plant-Equipment Register'!A165<>\"PVID:\",'Plant-Equipment Register'!A165<>\"Camp/Base:\",'Plant-Equipment Register'!A165<>\"\",'Plant-Equipment Register'!A165<>\"Construction Vehicles, Plant and Equipment\",'Plant-Equipment Register'!A165<>\"Vehicle/Plant/Equipment\"),ROW()-1,\"\")","v":""}]
[null,null,null,null,{"$f":"IF('Plant-Equipment Register'!H172=\"Daily\",1,IF('Plant-Equipment Register'!H172=\"Weekly\",7,IF('Plant-Equipment Register'!H172=\"Fortnightly\",7,IF('Plant-Equipment Register'!H172=\"Monthly\",30,IF('Plant-Equipment Register'!H172=\"2 monthly\",61,IF('Plant-Equipment Register'!H172=\"3 monthly\",92,IF('Plant-Equipment Register'!H172=\"6 monthly\",183,IF('Plant-Equipment Register'!H172=\"Yearly\",365,IF('Plant-Equipment Register'!H172=\"2 yearly\",730,IF('Plant-Equipment Register'!H172=\"3 yearly\",1095,IF('Plant-Equipment Register'!H172=\"5 yearly\",1826,\"\")))))))))))","v":""},{"$f":"IF('Plant-Equipment Register'!K172=\"Daily\",1,IF('Plant-Equipment Register'!K172=\"Weekly\",7,IF('Plant-Equipment Register'!K172=\"Fortnightly\",7,IF('Plant-Equipment Register'!K172=\"Monthly\",30,IF('Plant-Equipment Register'!K172=\"2 monthly\",61,IF('Plant-Equipment Register'!K172=\"3 monthly\",92,IF('Plant-Equipment Register'!K172=\"6 montly\",183,IF('Plant-Equipment Register'!K172=\"Yearly\",365,IF('Plant-Equipment Register'!K172=\"2 yearly\",730,IF('Plant-Equipment Register'!K172=\"3 Yearly\",1095,IF('Plant-Equipment Register'!K172=\"5 yearly\",1826,\"\")))))))))))","v":""},{"$f":"IF(AND('Plant-Equipment Register'!A166<>\"Date:\",'Plant-Equipment Register'!A166<>\"PVID:\",'Plant-Equipment Register'!A166<>\"Camp/Base:\",'Plant-Equipment Register'!A166<>\"\",'Plant-Equipment Register'!A166<>\"Construction Vehicles, Plant and Equipment\",'Plant-Equipment Register'!A166<>\"Vehicle/Plant/Equipment\"),ROW()-1,\"\")","v":""}]
[null,null,null,null,{"$f":"IF('Plant-Equipment Register'!H173=\"Daily\",1,IF('Plant-Equipment Register'!H173=\"Weekly\",7,IF('Plant-Equipment Register'!H173=\"Fortnightly\",7,IF('Plant-Equipment Register'!H173=\"Monthly\",30,IF('Plant-Equipment Register'!H173=\"2 monthly\",61,IF('Plant-Equipment Register'!H173=\"3 monthly\",92,IF('Plant-Equipment Register'!H173=\"6 monthly\",183,IF('Plant-Equipment Register'!H173=\"Yearly\",365,IF('Plant-Equipment Register'!H173=\"2 yearly\",730,IF('Plant-Equipment Register'!H173=\"3 yearly\",1095,IF('Plant-Equipment Register'!H173=\"5 yearly\",1826,\"\")))))))))))","v":""},{"$f":"IF('Plant-Equipment Register'!K173=\"Daily\",1,IF('Plant-Equipment Register'!K173=\"Weekly\",7,IF('Plant-Equipment Register'!K173=\"Fortnightly\",7,IF('Plant-Equipment Register'!K173=\"Monthly\",30,IF('Plant-Equipment Register'!K173=\"2 monthly\",61,IF('Plant-Equipment Register'!K173=\"3 monthly\",92,IF('Plant-Equipment Register'!K173=\"6 montly\",183,IF('Plant-Equipment Register'!K173=\"Yearly\",365,IF('Plant-Equipment Register'!K173=\"2 yearly\",730,IF('Plant-Equipment Register'!K173=\"3 Yearly\",1095,IF('Plant-Equipment Register'!K173=\"5 yearly\",1826,\"\")))))))))))","v":""},{"$f":"IF(AND('Plant-Equipment Register'!A167<>\"Date:\",'Plant-Equipment Register'!A167<>\"PVID:\",'Plant-Equipment Register'!A167<>\"Camp/Base:\",'Plant-Equipment Register'!A167<>\"\",'Plant-Equipment Register'!A167<>\"Construction Vehicles, Plant and Equipment\",'Plant-Equipment Register'!A167<>\"Vehicle/Plant/Equipment\"),ROW()-1,\"\")","v":""}]
[null,null,null,null,{"$f":"IF('Plant-Equipment Register'!H174=\"Daily\",1,IF('Plant-Equipment Register'!H174=\"Weekly\",7,IF('Plant-Equipment Register'!H174=\"Fortnightly\",7,IF('Plant-Equipment Register'!H174=\"Monthly\",30,IF('Plant-Equipment Register'!H174=\"2 monthly\",61,IF('Plant-Equipment Register'!H174=\"3 monthly\",92,IF('Plant-Equipment Register'!H174=\"6 monthly\",183,IF('Plant-Equipment Register'!H174=\"Yearly\",365,IF('Plant-Equipment Register'!H174=\"2 yearly\",730,IF('Plant-Equipment Register'!H174=\"3 yearly\",1095,IF('Plant-Equipment Register'!H174=\"5 yearly\",1826,\"\")))))))))))","v":""},{"$f":"IF('Plant-Equipment Register'!K174=\"Daily\",1,IF('Plant-Equipment Register'!K174=\"Weekly\",7,IF('Plant-Equipment Register'!K174=\"Fortnightly\",7,IF('Plant-Equipment Register'!K174=\"Monthly\",30,IF('Plant-Equipment Register'!K174=\"2 monthly\",61,IF('Plant-Equipment Register'!K174=\"3 monthly\",92,IF('Plant-Equipment Register'!K174=\"6 montly\",183,IF('Plant-Equipment Register'!K174=\"Yearly\",365,IF('Plant-Equipment Register'!K174=\"2 yearly\",730,IF('Plant-Equipment Register'!K174=\"3 Yearly\",1095,IF('Plant-Equipment Register'!K174=\"5 yearly\",1826,\"\")))))))))))","v":""},{"$f":"IF(AND('Plant-Equipment Register'!A168<>\"Date:\",'Plant-Equipment Register'!A168<>\"PVID:\",'Plant-Equipment Register'!A168<>\"Camp/Base:\",'Plant-Equipment Register'!A168<>\"\",'Plant-Equipment Register'!A168<>\"Construction Vehicles, Plant and Equipment\",'Plant-Equipment Register'!A168<>\"Vehicle/Plant/Equipment\"),ROW()-1,\"\")","v":""}]
[null,null,null,null,{"$f":"IF('Plant-Equipment Register'!H175=\"Daily\",1,IF('Plant-Equipment Register'!H175=\"Weekly\",7,IF('Plant-Equipment Register'!H175=\"Fortnightly\",7,IF('Plant-Equipment Register'!H175=\"Monthly\",30,IF('Plant-Equipment Register'!H175=\"2 monthly\",61,IF('Plant-Equipment Register'!H175=\"3 monthly\",92,IF('Plant-Equipment Register'!H175=\"6 monthly\",183,IF('Plant-Equipment Register'!H175=\"Yearly\",365,IF('Plant-Equipment Register'!H175=\"2 yearly\",730,IF('Plant-Equipment Register'!H175=\"3 yearly\",1095,IF('Plant-Equipment Register'!H175=\"5 yearly\",1826,\"\")))))))))))","v":""},{"$f":"IF('Plant-Equipment Register'!K175=\"Daily\",1,IF('Plant-Equipment Register'!K175=\"Weekly\",7,IF('Plant-Equipment Register'!K175=\"Fortnightly\",7,IF('Plant-Equipment Register'!K175=\"Monthly\",30,IF('Plant-Equipment Register'!K175=\"2 monthly\",61,IF('Plant-Equipment Register'!K175=\"3 monthly\",92,IF('Plant-Equipment Register'!K175=\"6 montly\",183,IF('Plant-Equipment Register'!K175=\"Yearly\",365,IF('Plant-Equipment Register'!K175=\"2 yearly\",730,IF('Plant-Equipment Register'!K175=\"3 Yearly\",1095,IF('Plant-Equipment Register'!K175=\"5 yearly\",1826,\"\")))))))))))","v":""},{"$f":"IF(AND('Plant-Equipment Register'!A169<>\"Date:\",'Plant-Equipment Register'!A169<>\"PVID:\",'Plant-Equipment Register'!A169<>\"Camp/Base:\",'Plant-Equipment Register'!A169<>\"\",'Plant-Equipment Register'!A169<>\"Construction Vehicles, Plant and Equipment\",'Plant-Equipment Register'!A169<>\"Vehicle/Plant/Equipment\"),ROW()-1,\"\")","v":""}]
[null,null,null,null,{"$f":"IF('Plant-Equipment Register'!H176=\"Daily\",1,IF('Plant-Equipment Register'!H176=\"Weekly\",7,IF('Plant-Equipment Register'!H176=\"Fortnightly\",7,IF('Plant-Equipment Register'!H176=\"Monthly\",30,IF('Plant-Equipment Register'!H176=\"2 monthly\",61,IF('Plant-Equipment Register'!H176=\"3 monthly\",92,IF('Plant-Equipment Register'!H176=\"6 monthly\",183,IF('Plant-Equipment Register'!H176=\"Yearly\",365,IF('Plant-Equipment Register'!H176=\"2 yearly\",730,IF('Plant-Equipment Register'!H176=\"3 yearly\",1095,IF('Plant-Equipment Register'!H176=\"5 yearly\",1826,\"\")))))))))))","v":""},{"$f":"IF('Plant-Equipment Register'!K176=\"Daily\",1,IF('Plant-Equipment Register'!K176=\"Weekly\",7,IF('Plant-Equipment Register'!K176=\"Fortnightly\",7,IF('Plant-Equipment Register'!K176=\"Monthly\",30,IF('Plant-Equipment Register'!K176=\"2 monthly\",61,IF('Plant-Equipment Register'!K176=\"3 monthly\",92,IF('Plant-Equipment Register'!K176=\"6 montly\",183,IF('Plant-Equipment Register'!K176=\"Yearly\",365,IF('Plant-Equipment Register'!K176=\"2 yearly\",730,IF('Plant-Equipment Register'!K176=\"3 Yearly\",1095,IF('Plant-Equipment Register'!K176=\"5 yearly\",1826,\"\")))))))))))","v":""},{"$f":"IF(AND('Plant-Equipment Register'!A170<>\"Date:\",'Plant-Equipment Register'!A170<>\"PVID:\",'Plant-Equipment Register'!A170<>\"Camp/Base:\",'Plant-Equipment Register'!A170<>\"\",'Plant-Equipment Register'!A170<>\"Construction Vehicles, Plant and Equipment\",'Plant-Equipment Register'!A170<>\"Vehicle/Plant/Equipment\"),ROW()-1,\"\")","v":""}]
[null,null,null,null,{"$f":"IF('Plant-Equipment Register'!H177=\"Daily\",1,IF('Plant-Equipment Register'!H177=\"Weekly\",7,IF('Plant-Equipment Register'!H177=\"Fortnightly\",7,IF('Plant-Equipment Register'!H177=\"Monthly\",30,IF('Plant-Equipment Register'!H177=\"2 monthly\",61,IF('Plant-Equipment Register'!H177=\"3 monthly\",92,IF('Plant-Equipment Register'!H177=\"6 monthly\",183,IF('Plant-Equipment Register'!H177=\"Yearly\",365,IF('Plant-Equipment Register'!H177=\"2 yearly\",730,IF('Plant-Equipment Register'!H177=\"3 yearly\",1095,IF('Plant-Equipment Register'!H177=\"5 yearly\",1826,\"\")))))))))))","v":""},{"$f":"IF('Plant-Equipment Register'!K177=\"Daily\",1,IF('Plant-Equipment Register'!K177=\"Weekly\",7,IF('Plant-Equipment Register'!K177=\"Fortnightly\",7,IF('Plant-Equipment Register'!K177=\"Monthly\",30,IF('Plant-Equipment Register'!K177=\"2 monthly\",61,IF('Plant-Equipment Register'!K177=\"3 monthly\",92,IF('Plant-Equipment Register'!K177=\"6 montly\",183,IF('Plant-Equipment Register'!K177=\"Yearly\",365,IF('Plant-Equipment Register'!K177=\"2 yearly\",730,IF('Plant-Equipment Register'!K177=\"3 Yearly\",1095,IF('Plant-Equipment Register'!K177=\"5 yearly\",1826,\"\")))))))))))","v":""},{"$f":"IF(AND('Plant-Equipment Register'!A171<>\"Date:\",'Plant-Equipment Register'!A171<>\"PVID:\",'Plant-Equipment Register'!A171<>\"Camp/Base:\",'Plant-Equipment Register'!A171<>\"\",'Plant-Equipment Register'!A171<>\"Construction Vehicles, Plant and Equipment\",'Plant-Equipment Register'!A171<>\"Vehicle/Plant/Equipment\"),ROW()-1,\"\")","v":""}]
[null,null,null,null,{"$f":"IF('Plant-Equipment Register'!H178=\"Daily\",1,IF('Plant-Equipment Register'!H178=\"Weekly\",7,IF('Plant-Equipment Register'!H178=\"Fortnightly\",7,IF('Plant-Equipment Register'!H178=\"Monthly\",30,IF('Plant-Equipment Register'!H178=\"2 monthly\",61,IF('Plant-Equipment Register'!H178=\"3 monthly\",92,IF('Plant-Equipment Register'!H178=\"6 monthly\",183,IF('Plant-Equipment Register'!H178=\"Yearly\",365,IF('Plant-Equipment Register'!H178=\"2 yearly\",730,IF('Plant-Equipment Register'!H178=\"3 yearly\",1095,IF('Plant-Equipment Register'!H178=\"5 yearly\",1826,\"\")))))))))))","v":""},{"$f":"IF('Plant-Equipment Register'!K178=\"Daily\",1,IF('Plant-Equipment Register'!K178=\"Weekly\",7,IF('Plant-Equipment Register'!K178=\"Fortnightly\",7,IF('Plant-Equipment Register'!K178=\"Monthly\",30,IF('Plant-Equipment Register'!K178=\"2 monthly\",61,IF('Plant-Equipment Register'!K178=\"3 monthly\",92,IF('Plant-Equipment Register'!K178=\"6 montly\",183,IF('Plant-Equipment Register'!K178=\"Yearly\",365,IF('Plant-Equipment Register'!K178=\"2 yearly\",730,IF('Plant-Equipment Register'!K178=\"3 Yearly\",1095,IF('Plant-Equipment Register'!K178=\"5 yearly\",1826,\"\")))))))))))","v":""},{"$f":"IF(AND('Plant-Equipment Register'!A172<>\"Date:\",'Plant-Equipment Register'!A172<>\"PVID:\",'Plant-Equipment Register'!A172<>\"Camp/Base:\",'Plant-Equipment Register'!A172<>\"\",'Plant-Equipment Register'!A172<>\"Construction Vehicles, Plant and Equipment\",'Plant-Equipment Register'!A172<>\"Vehicle/Plant/Equipment\"),ROW()-1,\"\")","v":""}]
[null,null,null,null,{"$f":"IF('Plant-Equipment Register'!H179=\"Daily\",1,IF('Plant-Equipment Register'!H179=\"Weekly\",7,IF('Plant-Equipment Register'!H179=\"Fortnightly\",7,IF('Plant-Equipment Register'!H179=\"Monthly\",30,IF('Plant-Equipment Register'!H179=\"2 monthly\",61,IF('Plant-Equipment Register'!H179=\"3 monthly\",92,IF('Plant-Equipment Register'!H179=\"6 monthly\",183,IF('Plant-Equipment Register'!H179=\"Yearly\",365,IF('Plant-Equipment Register'!H179=\"2 yearly\",730,IF('Plant-Equipment Register'!H179=\"3 yearly\",1095,IF('Plant-Equipment Register'!H179=\"5 yearly\",1826,\"\")))))))))))","v":""},{"$f":"IF('Plant-Equipment Register'!K179=\"Daily\",1,IF('Plant-Equipment Register'!K179=\"Weekly\",7,IF('Plant-Equipment Register'!K179=\"Fortnightly\",7,IF('Plant-Equipment Register'!K179=\"Monthly\",30,IF('Plant-Equipment Register'!K179=\"2 monthly\",61,IF('Plant-Equipment Register'!K179=\"3 monthly\",92,IF('Plant-Equipment Register'!K179=\"6 montly\",183,IF('Plant-Equipment Register'!K179=\"Yearly\",365,IF('Plant-Equipment Register'!K179=\"2 yearly\",730,IF('Plant-Equipment Register'!K179=\"3 Yearly\",1095,IF('Plant-Equipment Register'!K179=\"5 yearly\",1826,\"\")))))))))))","v":""},{"$f":"IF(AND('Plant-Equipment Register'!A173<>\"Date:\",'Plant-Equipment Register'!A173<>\"PVID:\",'Plant-Equipment Register'!A173<>\"Camp/Base:\",'Plant-Equipment Register'!A173<>\"\",'Plant-Equipment Register'!A173<>\"Construction Vehicles, Plant and Equipment\",'Plant-Equipment Register'!A173<>\"Vehicle/Plant/Equipment\"),ROW()-1,\"\")","v":""}]
[null,null,null,null,{"$f":"IF('Plant-Equipment Register'!H180=\"Daily\",1,IF('Plant-Equipment Register'!H180=\"Weekly\",7,IF('Plant-Equipment Register'!H180=\"Fortnightly\",7,IF('Plant-Equipment Register'!H180=\"Monthly\",30,IF('Plant-Equipment Register'!H180=\"2 monthly\",61,IF('Plant-Equipment Register'!H180=\"3 monthly\",92,IF('Plant-Equipment Register'!H180=\"6 monthly\",183,IF('Plant-Equipment Register'!H180=\"Yearly\",365,IF('Plant-Equipment Register'!H180=\"2 yearly\",730,IF('Plant-Equipment Register'!H180=\"3 yearly\",1095,IF('Plant-Equipment Register'!H180=\"5 yearly\",1826,\"\")))))))))))","v":""},{"$f":"IF('Plant-Equipment Register'!K180=\"Daily\",1,IF('Plant-Equipment Register'!K180=\"Weekly\",7,IF('Plant-Equipment Register'!K180=\"Fortnightly\",7,IF('Plant-Equipment Register'!K180=\"Monthly\",30,IF('Plant-Equipment Register'!K180=\"2 monthly\",61,IF('Plant-Equipment Register'!K180=\"3 monthly\",92,IF('Plant-Equipment Register'!K180=\"6 montly\",183,IF('Plant-Equipment Register'!K180=\"Yearly\",365,IF('Plant-Equipment Register'!K180=\"2 yearly\",730,IF('Plant-Equipment Register'!K180=\"3 Yearly\",1095,IF('Plant-Equipment Register'!K180=\"5 yearly\",1826,\"\")))))))))))","v":""},{"$f":"IF(AND('Plant-Equipment Register'!A174<>\"Date:\",'Plant-Equipment Register'!A174<>\"PVID:\",'Plant-Equipment Register'!A174<>\"Camp/Base:\",'Plant-Equipment Register'!A174<>\"\",'Plant-Equipment Register'!A174<>\"Construction Vehicles, Plant and Equipment\",'Plant-Equipment Register'!A174<>\"Vehicle/Plant/Equipment\"),ROW()-1,\"\")","v":""}]
[null,null,null,null,{"$f":"IF('Plant-Equipment Register'!H181=\"Daily\",1,IF('Plant-Equipment Register'!H181=\"Weekly\",7,IF('Plant-Equipment Register'!H181=\"Fortnightly\",7,IF('Plant-Equipment Register'!H181=\"Monthly\",30,IF('Plant-Equipment Register'!H181=\"2 monthly\",61,IF('Plant-Equipment Register'!H181=\"3 monthly\",92,IF('Plant-Equipment Register'!H181=\"6 monthly\",183,IF('Plant-Equipment Register'!H181=\"Yearly\",365,IF('Plant-Equipment Register'!H181=\"2 yearly\",730,IF('Plant-Equipment Register'!H181=\"3 yearly\",1095,IF('Plant-Equipment Register'!H181=\"5 yearly\",1826,\"\")))))))))))","v":""},{"$f":"IF('Plant-Equipment Register'!K181=\"Daily\",1,IF('Plant-Equipment Register'!K181=\"Weekly\",7,IF('Plant-Equipment Register'!K181=\"Fortnightly\",7,IF('Plant-Equipment Register'!K181=\"Monthly\",30,IF('Plant-Equipment Register'!K181=\"2 monthly\",61,IF('Plant-Equipment Register'!K181=\"3 monthly\",92,IF('Plant-Equipment Register'!K181=\"6 montly\",183,IF('Plant-Equipment Register'!K181=\"Yearly\",365,IF('Plant-Equipment Register'!K181=\"2 yearly\",730,IF('Plant-Equipment Register'!K181=\"3 Yearly\",1095,IF('Plant-Equipment Register'!K181=\"5 yearly\",1826,\"\")))))))))))","v":""},{"$f":"IF(AND('Plant-Equipment Register'!A175<>\"Date:\",'Plant-Equipment Register'!A175<>\"PVID:\",'Plant-Equipment Register'!A175<>\"Camp/Base:\",'Plant-Equipment Register'!A175<>\"\",'Plant-Equipment Register'!A175<>\"Construction Vehicles, Plant and Equipment\",'Plant-Equipment Register'!A175<>\"Vehicle/Plant/Equipment\"),ROW()-1,\"\")","v":""}]
[null,null,null,null,{"$f":"IF('Plant-Equipment Register'!H182=\"Daily\",1,IF('Plant-Equipment Register'!H182=\"Weekly\",7,IF('Plant-Equipment Register'!H182=\"Fortnightly\",7,IF('Plant-Equipment Register'!H182=\"Monthly\",30,IF('Plant-Equipment Register'!H182=\"2 monthly\",61,IF('Plant-Equipment Register'!H182=\"3 monthly\",92,IF('Plant-Equipment Register'!H182=\"6 monthly\",183,IF('Plant-Equipment Register'!H182=\"Yearly\",365,IF('Plant-Equipment Register'!H182=\"2 yearly\",730,IF('Plant-Equipment Register'!H182=\"3 yearly\",1095,IF('Plant-Equipment Register'!H182=\"5 yearly\",1826,\"\")))))))))))","v":""},{"$f":"IF('Plant-Equipment Register'!K182=\"Daily\",1,IF('Plant-Equipment Register'!K182=\"Weekly\",7,IF('Plant-Equipment Register'!K182=\"Fortnightly\",7,IF('Plant-Equipment Register'!K182=\"Monthly\",30,IF('Plant-Equipment Register'!K182=\"2 monthly\",61,IF('Plant-Equipment Register'!K182=\"3 monthly\",92,IF('Plant-Equipment Register'!K182=\"6 montly\",183,IF('Plant-Equipment Register'!K182=\"Yearly\",365,IF('Plant-Equipment Register'!K182=\"2 yearly\",730,IF('Plant-Equipment Register'!K182=\"3 Yearly\",1095,IF('Plant-Equipment Register'!K182=\"5 yearly\",1826,\"\")))))))))))","v":""},{"$f":"IF(AND('Plant-Equipment Register'!A176<>\"Date:\",'Plant-Equipment Register'!A176<>\"PVID:\",'Plant-Equipment Register'!A176<>\"Camp/Base:\",'Plant-Equipment Register'!A176<>\"\",'Plant-Equipment Register'!A176<>\"Construction Vehicles, Plant and Equipment\",'Plant-Equipment Register'!A176<>\"Vehicle/Plant/Equipment\"),ROW()-1,\"\")","v":""}]
[null,null,null,null,{"$f":"IF('Plant-Equipment Register'!H183=\"Daily\",1,IF('Plant-Equipment Register'!H183=\"Weekly\",7,IF('Plant-Equipment Register'!H183=\"Fortnightly\",7,IF('Plant-Equipment Register'!H183=\"Monthly\",30,IF('Plant-Equipment Register'!H183=\"2 monthly\",61,IF('Plant-Equipment Register'!H183=\"3 monthly\",92,IF('Plant-Equipment Register'!H183=\"6 monthly\",183,IF('Plant-Equipment Register'!H183=\"Yearly\",365,IF('Plant-Equipment Register'!H183=\"2 yearly\",730,IF('Plant-Equipment Register'!H183=\"3 yearly\",1095,IF('Plant-Equipment Register'!H183=\"5 yearly\",1826,\"\")))))))))))","v":""},{"$f":"IF('Plant-Equipment Register'!K183=\"Daily\",1,IF('Plant-Equipment Register'!K183=\"Weekly\",7,IF('Plant-Equipment Register'!K183=\"Fortnightly\",7,IF('Plant-Equipment Register'!K183=\"Monthly\",30,IF('Plant-Equipment Register'!K183=\"2 monthly\",61,IF('Plant-Equipment Register'!K183=\"3 monthly\",92,IF('Plant-Equipment Register'!K183=\"6 montly\",183,IF('Plant-Equipment Register'!K183=\"Yearly\",365,IF('Plant-Equipment Register'!K183=\"2 yearly\",730,IF('Plant-Equipment Register'!K183=\"3 Yearly\",1095,IF('Plant-Equipment Register'!K183=\"5 yearly\",1826,\"\")))))))))))","v":""},{"$f":"IF(AND('Plant-Equipment Register'!A177<>\"Date:\",'Plant-Equipment Register'!A177<>\"PVID:\",'Plant-Equipment Register'!A177<>\"Camp/Base:\",'Plant-Equipment Register'!A177<>\"\",'Plant-Equipment Register'!A177<>\"Construction Vehicles, Plant and Equipment\",'Plant-Equipment Register'!A177<>\"Vehicle/Plant/Equipment\"),ROW()-1,\"\")","v":""}]
[null,null,null,null,{"$f":"IF('Plant-Equipment Register'!H184=\"Daily\",1,IF('Plant-Equipment Register'!H184=\"Weekly\",7,IF('Plant-Equipment Register'!H184=\"Fortnightly\",7,IF('Plant-Equipment Register'!H184=\"Monthly\",30,IF('Plant-Equipment Register'!H184=\"2 monthly\",61,IF('Plant-Equipment Register'!H184=\"3 monthly\",92,IF('Plant-Equipment Register'!H184=\"6 monthly\",183,IF('Plant-Equipment Register'!H184=\"Yearly\",365,IF('Plant-Equipment Register'!H184=\"2 yearly\",730,IF('Plant-Equipment Register'!H184=\"3 yearly\",1095,IF('Plant-Equipment Register'!H184=\"5 yearly\",1826,\"\")))))))))))","v":""},{"$f":"IF('Plant-Equipment Register'!K184=\"Daily\",1,IF('Plant-Equipment Register'!K184=\"Weekly\",7,IF('Plant-Equipment Register'!K184=\"Fortnightly\",7,IF('Plant-Equipment Register'!K184=\"Monthly\",30,IF('Plant-Equipment Register'!K184=\"2 monthly\",61,IF('Plant-Equipment Register'!K184=\"3 monthly\",92,IF('Plant-Equipment Register'!K184=\"6 montly\",183,IF('Plant-Equipment Register'!K184=\"Yearly\",365,IF('Plant-Equipment Register'!K184=\"2 yearly\",730,IF('Plant-Equipment Register'!K184=\"3 Yearly\",1095,IF('Plant-Equipment Register'!K184=\"5 yearly\",1826,\"\")))))))))))","v":""},{"$f":"IF(AND('Plant-Equipment Register'!A178<>\"Date:\",'Plant-Equipment Register'!A178<>\"PVID:\",'Plant-Equipment Register'!A178<>\"Camp/Base:\",'Plant-Equipment Register'!A178<>\"\",'Plant-Equipment Register'!A178<>\"Construction Vehicles, Plant and Equipment\",'Plant-Equipment Register'!A178<>\"Vehicle/Plant/Equipment\"),ROW()-1,\"\")","v":""}]
[null,null,null,null,{"$f":"IF('Plant-Equipment Register'!H185=\"Daily\",1,IF('Plant-Equipment Register'!H185=\"Weekly\",7,IF('Plant-Equipment Register'!H185=\"Fortnightly\",7,IF('Plant-Equipment Register'!H185=\"Monthly\",30,IF('Plant-Equipment Register'!H185=\"2 monthly\",61,IF('Plant-Equipment Register'!H185=\"3 monthly\",92,IF('Plant-Equipment Register'!H185=\"6 monthly\",183,IF('Plant-Equipment Register'!H185=\"Yearly\",365,IF('Plant-Equipment Register'!H185=\"2 yearly\",730,IF('Plant-Equipment Register'!H185=\"3 yearly\",1095,IF('Plant-Equipment Register'!H185=\"5 yearly\",1826,\"\")))))))))))","v":""},{"$f":"IF('Plant-Equipment Register'!K185=\"Daily\",1,IF('Plant-Equipment Register'!K185=\"Weekly\",7,IF('Plant-Equipment Register'!K185=\"Fortnightly\",7,IF('Plant-Equipment Register'!K185=\"Monthly\",30,IF('Plant-Equipment Register'!K185=\"2 monthly\",61,IF('Plant-Equipment Register'!K185=\"3 monthly\",92,IF('Plant-Equipment Register'!K185=\"6 montly\",183,IF('Plant-Equipment Register'!K185=\"Yearly\",365,IF('Plant-Equipment Register'!K185=\"2 yearly\",730,IF('Plant-Equipment Register'!K185=\"3 Yearly\",1095,IF('Plant-Equipment Register'!K185=\"5 yearly\",1826,\"\")))))))))))","v":""},{"$f":"IF(AND('Plant-Equipment Register'!A179<>\"Date:\",'Plant-Equipment Register'!A179<>\"PVID:\",'Plant-Equipment Register'!A179<>\"Camp/Base:\",'Plant-Equipment Register'!A179<>\"\",'Plant-Equipment Register'!A179<>\"Construction Vehicles, Plant and Equipment\",'Plant-Equipment Register'!A179<>\"Vehicle/Plant/Equipment\"),ROW()-1,\"\")","v":""}]
[null,null,null,null,{"$f":"IF('Plant-Equipment Register'!H186=\"Daily\",1,IF('Plant-Equipment Register'!H186=\"Weekly\",7,IF('Plant-Equipment Register'!H186=\"Fortnightly\",7,IF('Plant-Equipment Register'!H186=\"Monthly\",30,IF('Plant-Equipment Register'!H186=\"2 monthly\",61,IF('Plant-Equipment Register'!H186=\"3 monthly\",92,IF('Plant-Equipment Register'!H186=\"6 monthly\",183,IF('Plant-Equipment Register'!H186=\"Yearly\",365,IF('Plant-Equipment Register'!H186=\"2 yearly\",730,IF('Plant-Equipment Register'!H186=\"3 yearly\",1095,IF('Plant-Equipment Register'!H186=\"5 yearly\",1826,\"\")))))))))))","v":""},{"$f":"IF('Plant-Equipment Register'!K186=\"Daily\",1,IF('Plant-Equipment Register'!K186=\"Weekly\",7,IF('Plant-Equipment Register'!K186=\"Fortnightly\",7,IF('Plant-Equipment Register'!K186=\"Monthly\",30,IF('Plant-Equipment Register'!K186=\"2 monthly\",61,IF('Plant-Equipment Register'!K186=\"3 monthly\",92,IF('Plant-Equipment Register'!K186=\"6 montly\",183,IF('Plant-Equipment Register'!K186=\"Yearly\",365,IF('Plant-Equipment Register'!K186=\"2 yearly\",730,IF('Plant-Equipment Register'!K186=\"3 Yearly\",1095,IF('Plant-Equipment Register'!K186=\"5 yearly\",1826,\"\")))))))))))","v":""},{"$f":"IF(AND('Plant-Equipment Register'!A180<>\"Date:\",'Plant-Equipment Register'!A180<>\"PVID:\",'Plant-Equipment Register'!A180<>\"Camp/Base:\",'Plant-Equipment Register'!A180<>\"\",'Plant-Equipment Register'!A180<>\"Construction Vehicles, Plant and Equipment\",'Plant-Equipment Register'!A180<>\"Vehicle/Plant/Equipment\"),ROW()-1,\"\")","v":""}]
[null,null,null,null,{"$f":"IF('Plant-Equipment Register'!H187=\"Daily\",1,IF('Plant-Equipment Register'!H187=\"Weekly\",7,IF('Plant-Equipment Register'!H187=\"Fortnightly\",7,IF('Plant-Equipment Register'!H187=\"Monthly\",30,IF('Plant-Equipment Register'!H187=\"2 monthly\",61,IF('Plant-Equipment Register'!H187=\"3 monthly\",92,IF('Plant-Equipment Register'!H187=\"6 monthly\",183,IF('Plant-Equipment Register'!H187=\"Yearly\",365,IF('Plant-Equipment Register'!H187=\"2 yearly\",730,IF('Plant-Equipment Register'!H187=\"3 yearly\",1095,IF('Plant-Equipment Register'!H187=\"5 yearly\",1826,\"\")))))))))))","v":""},{"$f":"IF('Plant-Equipment Register'!K187=\"Daily\",1,IF('Plant-Equipment Register'!K187=\"Weekly\",7,IF('Plant-Equipment Register'!K187=\"Fortnightly\",7,IF('Plant-Equipment Register'!K187=\"Monthly\",30,IF('Plant-Equipment Register'!K187=\"2 monthly\",61,IF('Plant-Equipment Register'!K187=\"3 monthly\",92,IF('Plant-Equipment Register'!K187=\"6 montly\",183,IF('Plant-Equipment Register'!K187=\"Yearly\",365,IF('Plant-Equipment Register'!K187=\"2 yearly\",730,IF('Plant-Equipment Register'!K187=\"3 Yearly\",1095,IF('Plant-Equipment Register'!K187=\"5 yearly\",1826,\"\")))))))))))","v":""},{"$f":"IF(AND('Plant-Equipment Register'!A181<>\"Date:\",'Plant-Equipment Register'!A181<>\"PVID:\",'Plant-Equipment Register'!A181<>\"Camp/Base:\",'Plant-Equipment Register'!A181<>\"\",'Plant-Equipment Register'!A181<>\"Construction Vehicles, Plant and Equipment\",'Plant-Equipment Register'!A181<>\"Vehicle/Plant/Equipment\"),ROW()-1,\"\")","v":""}]
[null,null,null,null,{"$f":"IF('Plant-Equipment Register'!H188=\"Daily\",1,IF('Plant-Equipment Register'!H188=\"Weekly\",7,IF('Plant-Equipment Register'!H188=\"Fortnightly\",7,IF('Plant-Equipment Register'!H188=\"Monthly\",30,IF('Plant-Equipment Register'!H188=\"2 monthly\",61,IF('Plant-Equipment Register'!H188=\"3 monthly\",92,IF('Plant-Equipment Register'!H188=\"6 monthly\",183,IF('Plant-Equipment Register'!H188=\"Yearly\",365,IF('Plant-Equipment Register'!H188=\"2 yearly\",730,IF('Plant-Equipment Register'!H188=\"3 yearly\",1095,IF('Plant-Equipment Register'!H188=\"5 yearly\",1826,\"\")))))))))))","v":""},{"$f":"IF('Plant-Equipment Register'!K188=\"Daily\",1,IF('Plant-Equipment Register'!K188=\"Weekly\",7,IF('Plant-Equipment Register'!K188=\"Fortnightly\",7,IF('Plant-Equipment Register'!K188=\"Monthly\",30,IF('Plant-Equipment Register'!K188=\"2 monthly\",61,IF('Plant-Equipment Register'!K188=\"3 monthly\",92,IF('Plant-Equipment Register'!K188=\"6 montly\",183,IF('Plant-Equipment Register'!K188=\"Yearly\",365,IF('Plant-Equipment Register'!K188=\"2 yearly\",730,IF('Plant-Equipment Register'!K188=\"3 Yearly\",1095,IF('Plant-Equipment Register'!K188=\"5 yearly\",1826,\"\")))))))))))","v":""},{"$f":"IF(AND('Plant-Equipment Register'!A182<>\"Date:\",'Plant-Equipment Register'!A182<>\"PVID:\",'Plant-Equipment Register'!A182<>\"Camp/Base:\",'Plant-Equipment Register'!A182<>\"\",'Plant-Equipment Register'!A182<>\"Construction Vehicles, Plant and Equipment\",'Plant-Equipment Register'!A182<>\"Vehicle/Plant/Equipment\"),ROW()-1,\"\")","v":""}]
[null,null,null,null,{"$f":"IF('Plant-Equipment Register'!H189=\"Daily\",1,IF('Plant-Equipment Register'!H189=\"Weekly\",7,IF('Plant-Equipment Register'!H189=\"Fortnightly\",7,IF('Plant-Equipment Register'!H189=\"Monthly\",30,IF('Plant-Equipment Register'!H189=\"2 monthly\",61,IF('Plant-Equipment Register'!H189=\"3 monthly\",92,IF('Plant-Equipment Register'!H189=\"6 monthly\",183,IF('Plant-Equipment Register'!H189=\"Yearly\",365,IF('Plant-Equipment Register'!H189=\"2 yearly\",730,IF('Plant-Equipment Register'!H189=\"3 yearly\",1095,IF('Plant-Equipment Register'!H189=\"5 yearly\",1826,\"\")))))))))))","v":""},{"$f":"IF('Plant-Equipment Register'!K189=\"Daily\",1,IF('Plant-Equipment Register'!K189=\"Weekly\",7,IF('Plant-Equipment Register'!K189=\"Fortnightly\",7,IF('Plant-Equipment Register'!K189=\"Monthly\",30,IF('Plant-Equipment Register'!K189=\"2 monthly\",61,IF('Plant-Equipment Register'!K189=\"3 monthly\",92,IF('Plant-Equipment Register'!K189=\"6 montly\",183,IF('Plant-Equipment Register'!K189=\"Yearly\",365,IF('Plant-Equipment Register'!K189=\"2 yearly\",730,IF('Plant-Equipment Register'!K189=\"3 Yearly\",1095,IF('Plant-Equipment Register'!K189=\"5 yearly\",1826,\"\")))))))))))","v":""},{"$f":"IF(AND('Plant-Equipment Register'!A183<>\"Date:\",'Plant-Equipment Register'!A183<>\"PVID:\",'Plant-Equipment Register'!A183<>\"Camp/Base:\",'Plant-Equipment Register'!A183<>\"\",'Plant-Equipment Register'!A183<>\"Construction Vehicles, Plant and Equipment\",'Plant-Equipment Register'!A183<>\"Vehicle/Plant/Equipment\"),ROW()-1,\"\")","v":""}]
[null,null,null,null,{"$f":"IF('Plant-Equipment Register'!H190=\"Daily\",1,IF('Plant-Equipment Register'!H190=\"Weekly\",7,IF('Plant-Equipment Register'!H190=\"Fortnightly\",7,IF('Plant-Equipment Register'!H190=\"Monthly\",30,IF('Plant-Equipment Register'!H190=\"2 monthly\",61,IF('Plant-Equipment Register'!H190=\"3 monthly\",92,IF('Plant-Equipment Register'!H190=\"6 monthly\",183,IF('Plant-Equipment Register'!H190=\"Yearly\",365,IF('Plant-Equipment Register'!H190=\"2 yearly\",730,IF('Plant-Equipment Register'!H190=\"3 yearly\",1095,IF('Plant-Equipment Register'!H190=\"5 yearly\",1826,\"\")))))))))))","v":""},{"$f":"IF('Plant-Equipment Register'!K190=\"Daily\",1,IF('Plant-Equipment Register'!K190=\"Weekly\",7,IF('Plant-Equipment Register'!K190=\"Fortnightly\",7,IF('Plant-Equipment Register'!K190=\"Monthly\",30,IF('Plant-Equipment Register'!K190=\"2 monthly\",61,IF('Plant-Equipment Register'!K190=\"3 monthly\",92,IF('Plant-Equipment Register'!K190=\"6 montly\",183,IF('Plant-Equipment Register'!K190=\"Yearly\",365,IF('Plant-Equipment Register'!K190=\"2 yearly\",730,IF('Plant-Equipment Register'!K190=\"3 Yearly\",1095,IF('Plant-Equipment Register'!K190=\"5 yearly\",1826,\"\")))))))))))","v":""},{"$f":"IF(AND('Plant-Equipment Register'!A184<>\"Date:\",'Plant-Equipment Register'!A184<>\"PVID:\",'Plant-Equipment Register'!A184<>\"Camp/Base:\",'Plant-Equipment Register'!A184<>\"\",'Plant-Equipment Register'!A184<>\"Construction Vehicles, Plant and Equipment\",'Plant-Equipment Register'!A184<>\"Vehicle/Plant/Equipment\"),ROW()-1,\"\")","v":""}]
[null,null,null,null,{"$f":"IF('Plant-Equipment Register'!H191=\"Daily\",1,IF('Plant-Equipment Register'!H191=\"Weekly\",7,IF('Plant-Equipment Register'!H191=\"Fortnightly\",7,IF('Plant-Equipment Register'!H191=\"Monthly\",30,IF('Plant-Equipment Register'!H191=\"2 monthly\",61,IF('Plant-Equipment Register'!H191=\"3 monthly\",92,IF('Plant-Equipment Register'!H191=\"6 monthly\",183,IF('Plant-Equipment Register'!H191=\"Yearly\",365,IF('Plant-Equipment Register'!H191=\"2 yearly\",730,IF('Plant-Equipment Register'!H191=\"3 yearly\",1095,IF('Plant-Equipment Register'!H191=\"5 yearly\",1826,\"\")))))))))))","v":""},{"$f":"IF('Plant-Equipment Register'!K191=\"Daily\",1,IF('Plant-Equipment Register'!K191=\"Weekly\",7,IF('Plant-Equipment Register'!K191=\"Fortnightly\",7,IF('Plant-Equipment Register'!K191=\"Monthly\",30,IF('Plant-Equipment Register'!K191=\"2 monthly\",61,IF('Plant-Equipment Register'!K191=\"3 monthly\",92,IF('Plant-Equipment Register'!K191=\"6 montly\",183,IF('Plant-Equipment Register'!K191=\"Yearly\",365,IF('Plant-Equipment Register'!K191=\"2 yearly\",730,IF('Plant-Equipment Register'!K191=\"3 Yearly\",1095,IF('Plant-Equipment Register'!K191=\"5 yearly\",1826,\"\")))))))))))","v":""},{"$f":"IF(AND('Plant-Equipment Register'!A185<>\"Date:\",'Plant-Equipment Register'!A185<>\"PVID:\",'Plant-Equipment Register'!A185<>\"Camp/Base:\",'Plant-Equipment Register'!A185<>\"\",'Plant-Equipment Register'!A185<>\"Construction Vehicles, Plant and Equipment\",'Plant-Equipment Register'!A185<>\"Vehicle/Plant/Equipment\"),ROW()-1,\"\")","v":""}]
[null,null,null,null,{"$f":"IF('Plant-Equipment Register'!H192=\"Daily\",1,IF('Plant-Equipment Register'!H192=\"Weekly\",7,IF('Plant-Equipment Register'!H192=\"Fortnightly\",7,IF('Plant-Equipment Register'!H192=\"Monthly\",30,IF('Plant-Equipment Register'!H192=\"2 monthly\",61,IF('Plant-Equipment Register'!H192=\"3 monthly\",92,IF('Plant-Equipment Register'!H192=\"6 monthly\",183,IF('Plant-Equipment Register'!H192=\"Yearly\",365,IF('Plant-Equipment Register'!H192=\"2 yearly\",730,IF('Plant-Equipment Register'!H192=\"3 yearly\",1095,IF('Plant-Equipment Register'!H192=\"5 yearly\",1826,\"\")))))))))))","v":""},{"$f":"IF('Plant-Equipment Register'!K192=\"Daily\",1,IF('Plant-Equipment Register'!K192=\"Weekly\",7,IF('Plant-Equipment Register'!K192=\"Fortnightly\",7,IF('Plant-Equipment Register'!K192=\"Monthly\",30,IF('Plant-Equipment Register'!K192=\"2 monthly\",61,IF('Plant-Equipment Register'!K192=\"3 monthly\",92,IF('Plant-Equipment Register'!K192=\"6 montly\",183,IF('Plant-Equipment Register'!K192=\"Yearly\",365,IF('Plant-Equipment Register'!K192=\"2 yearly\",730,IF('Plant-Equipment Register'!K192=\"3 Yearly\",1095,IF('Plant-Equipment Register'!K192=\"5 yearly\",1826,\"\")))))))))))","v":""},{"$f":"IF(AND('Plant-Equipment Register'!A186<>\"Date:\",'Plant-Equipment Register'!A186<>\"PVID:\",'Plant-Equipment Register'!A186<>\"Camp/Base:\",'Plant-Equipment Register'!A186<>\"\",'Plant-Equipment Register'!A186<>\"Construction Vehicles, Plant and Equipment\",'Plant-Equipment Register'!A186<>\"Vehicle/Plant/Equipment\"),ROW()-1,\"\")","v":""}]
[null,null,null,null,{"$f":"IF('Plant-Equipment Register'!H193=\"Daily\",1,IF('Plant-Equipment Register'!H193=\"Weekly\",7,IF('Plant-Equipment Register'!H193=\"Fortnightly\",7,IF('Plant-Equipment Register'!H193=\"Monthly\",30,IF('Plant-Equipment Register'!H193=\"2 monthly\",61,IF('Plant-Equipment Register'!H193=\"3 monthly\",92,IF('Plant-Equipment Register'!H193=\"6 monthly\",183,IF('Plant-Equipment Register'!H193=\"Yearly\",365,IF('Plant-Equipment Register'!H193=\"2 yearly\",730,IF('Plant-Equipment Register'!H193=\"3 yearly\",1095,IF('Plant-Equipment Register'!H193=\"5 yearly\",1826,\"\")))))))))))","v":""},{"$f":"IF('Plant-Equipment Register'!K193=\"Daily\",1,IF('Plant-Equipment Register'!K193=\"Weekly\",7,IF('Plant-Equipment Register'!K193=\"Fortnightly\",7,IF('Plant-Equipment Register'!K193=\"Monthly\",30,IF('Plant-Equipment Register'!K193=\"2 monthly\",61,IF('Plant-Equipment Register'!K193=\"3 monthly\",92,IF('Plant-Equipment Register'!K193=\"6 montly\",183,IF('Plant-Equipment Register'!K193=\"Yearly\",365,IF('Plant-Equipment Register'!K193=\"2 yearly\",730,IF('Plant-Equipment Register'!K193=\"3 Yearly\",1095,IF('Plant-Equipment Register'!K193=\"5 yearly\",1826,\"\")))))))))))","v":""},{"$f":"IF(AND('Plant-Equipment Register'!A187<>\"Date:\",'Plant-Equipment Register'!A187<>\"PVID:\",'Plant-Equipment Register'!A187<>\"Camp/Base:\",'Plant-Equipment Register'!A187<>\"\",'Plant-Equipment Register'!A187<>\"Construction Vehicles, Plant and Equipment\",'Plant-Equipment Register'!A187<>\"Vehicle/Plant/Equipment\"),ROW()-1,\"\")","v":""}]
[null,null,null,null,{"$f":"IF('Plant-Equipment Register'!H194=\"Daily\",1,IF('Plant-Equipment Register'!H194=\"Weekly\",7,IF('Plant-Equipment Register'!H194=\"Fortnightly\",7,IF('Plant-Equipment Register'!H194=\"Monthly\",30,IF('Plant-Equipment Register'!H194=\"2 monthly\",61,IF('Plant-Equipment Register'!H194=\"3 monthly\",92,IF('Plant-Equipment Register'!H194=\"6 monthly\",183,IF('Plant-Equipment Register'!H194=\"Yearly\",365,IF('Plant-Equipment Register'!H194=\"2 yearly\",730,IF('Plant-Equipment Register'!H194=\"3 yearly\",1095,IF('Plant-Equipment Register'!H194=\"5 yearly\",1826,\"\")))))))))))","v":""},{"$f":"IF('Plant-Equipment Register'!K194=\"Daily\",1,IF('Plant-Equipment Register'!K194=\"Weekly\",7,IF('Plant-Equipment Register'!K194=\"Fortnightly\",7,IF('Plant-Equipment Register'!K194=\"Monthly\",30,IF('Plant-Equipment Register'!K194=\"2 monthly\",61,IF('Plant-Equipment Register'!K194=\"3 monthly\",92,IF('Plant-Equipment Register'!K194=\"6 montly\",183,IF('Plant-Equipment Register'!K194=\"Yearly\",365,IF('Plant-Equipment Register'!K194=\"2 yearly\",730,IF('Plant-Equipment Register'!K194=\"3 Yearly\",1095,IF('Plant-Equipment Register'!K194=\"5 yearly\",1826,\"\")))))))))))","v":""},{"$f":"IF(AND('Plant-Equipment Register'!A188<>\"Date:\",'Plant-Equipment Register'!A188<>\"PVID:\",'Plant-Equipment Register'!A188<>\"Camp/Base:\",'Plant-Equipment Register'!A188<>\"\",'Plant-Equipment Register'!A188<>\"Construction Vehicles, Plant and Equipment\",'Plant-Equipment Register'!A188<>\"Vehicle/Plant/Equipment\"),ROW()-1,\"\")","v":""}]
[null,null,null,null,{"$f":"IF('Plant-Equipment Register'!H195=\"Daily\",1,IF('Plant-Equipment Register'!H195=\"Weekly\",7,IF('Plant-Equipment Register'!H195=\"Fortnightly\",7,IF('Plant-Equipment Register'!H195=\"Monthly\",30,IF('Plant-Equipment Register'!H195=\"2 monthly\",61,IF('Plant-Equipment Register'!H195=\"3 monthly\",92,IF('Plant-Equipment Register'!H195=\"6 monthly\",183,IF('Plant-Equipment Register'!H195=\"Yearly\",365,IF('Plant-Equipment Register'!H195=\"2 yearly\",730,IF('Plant-Equipment Register'!H195=\"3 yearly\",1095,IF('Plant-Equipment Register'!H195=\"5 yearly\",1826,\"\")))))))))))","v":""},{"$f":"IF('Plant-Equipment Register'!K195=\"Daily\",1,IF('Plant-Equipment Register'!K195=\"Weekly\",7,IF('Plant-Equipment Register'!K195=\"Fortnightly\",7,IF('Plant-Equipment Register'!K195=\"Monthly\",30,IF('Plant-Equipment Register'!K195=\"2 monthly\",61,IF('Plant-Equipment Register'!K195=\"3 monthly\",92,IF('Plant-Equipment Register'!K195=\"6 montly\",183,IF('Plant-Equipment Register'!K195=\"Yearly\",365,IF('Plant-Equipment Register'!K195=\"2 yearly\",730,IF('Plant-Equipment Register'!K195=\"3 Yearly\",1095,IF('Plant-Equipment Register'!K195=\"5 yearly\",1826,\"\")))))))))))","v":""},{"$f":"IF(AND('Plant-Equipment Register'!A189<>\"Date:\",'Plant-Equipment Register'!A189<>\"PVID:\",'Plant-Equipment Register'!A189<>\"Camp/Base:\",'Plant-Equipment Register'!A189<>\"\",'Plant-Equipment Register'!A189<>\"Construction Vehicles, Plant and Equipment\",'Plant-Equipment Register'!A189<>\"Vehicle/Plant/Equipment\"),ROW()-1,\"\")","v":""}]
[null,null,null,null,{"$f":"IF('Plant-Equipment Register'!H196=\"Daily\",1,IF('Plant-Equipment Register'!H196=\"Weekly\",7,IF('Plant-Equipment Register'!H196=\"Fortnightly\",7,IF('Plant-Equipment Register'!H196=\"Monthly\",30,IF('Plant-Equipment Register'!H196=\"2 monthly\",61,IF('Plant-Equipment Register'!H196=\"3 monthly\",92,IF('Plant-Equipment Register'!H196=\"6 monthly\",183,IF('Plant-Equipment Register'!H196=\"Yearly\",365,IF('Plant-Equipment Register'!H196=\"2 yearly\",730,IF('Plant-Equipment Register'!H196=\"3 yearly\",1095,IF('Plant-Equipment Register'!H196=\"5 yearly\",1826,\"\")))))))))))","v":""},{"$f":"IF('Plant-Equipment Register'!K196=\"Daily\",1,IF('Plant-Equipment Register'!K196=\"Weekly\",7,IF('Plant-Equipment Register'!K196=\"Fortnightly\",7,IF('Plant-Equipment Register'!K196=\"Monthly\",30,IF('Plant-Equipment Register'!K196=\"2 monthly\",61,IF('Plant-Equipment Register'!K196=\"3 monthly\",92,IF('Plant-Equipment Register'!K196=\"6 montly\",183,IF('Plant-Equipment Register'!K196=\"Yearly\",365,IF('Plant-Equipment Register'!K196=\"2 yearly\",730,IF('Plant-Equipment Register'!K196=\"3 Yearly\",1095,IF('Plant-Equipment Register'!K196=\"5 yearly\",1826,\"\")))))))))))","v":""},{"$f":"IF(AND('Plant-Equipment Register'!A190<>\"Date:\",'Plant-Equipment Register'!A190<>\"PVID:\",'Plant-Equipment Register'!A190<>\"Camp/Base:\",'Plant-Equipment Register'!A190<>\"\",'Plant-Equipment Register'!A190<>\"Construction Vehicles, Plant and Equipment\",'Plant-Equipment Register'!A190<>\"Vehicle/Plant/Equipment\"),ROW()-1,\"\")","v":""}]